Workbook

Sheet Caratula
J1: Cliente | N1: E-mail
J2: Ejecutivo | N2: Teléfono
J3: Punto de Vta
B5: Datos del Crédito
D7: Fecha de cotización | F7: =+TODAY() -> 2022-06-29 | K7: Programa | N7: Tradicional
D9: Elige un destino | E9: =VLOOKUP(F9,Sheet1!$B$2:$C$10,2,0) -> 1 | F9: Adquisición | H9: =IF($F$9="Mejora",'Tabla Parámetros'!$M$52,"") ->  | K9: Tipo de seguro | N9: Básico
D11: Elige un producto | E11: =VLOOKUP(F11,Sheet1!$E$2:$F$5,2,0) -> 1 | F11: Hipoteca Fuerte | H11: =IF($F$9="Mejora",'Tabla Parámetros'!$O$52,"") ->  | K11: Ingresa valor de vivienda | M11: Capturable | N11: 870800
D13: Seguros BANORTE | F13: SI | J13: ¿Conoces la Suma Asegurable? | K13: NO | L13: *Suma Asegurable | M13: Capturable | N13: =IF($J$11="SI",0,IF($F$9='Tabla Parámetros'!$O$6,0,Caratula!$N$11*0.7)) -> 609560
D15: =IF(F15=0,"","Monto Crédito") -> Monto Crédito | E15: Capturable | F15: 609560 | H15: =IF(F15/N11>N19,'Tabla Parámetros'!M53,"") ->  | J15: ¿Exenta Comisión Apertura? | K15: SI | L15: Comisión apertura | N15: =IF($K$15="Si",0,VLOOKUP($F$9,'Tabla Parámetros'!$G$30:$I$38,2,0)) -> 0
D17: =IF($N$7="Cofinavit"," ",IF($N$7="Alia2+"," ",IF($N$7="Respalda2"," ","Monto Enganche"))) -> Monto Enganche | F17: =IF(OR($N$7="Cofinavit",N7="Cuenta INFONAVIT + BANORTE"),0,'Tabla Parámetros'!$F$20) -> 261240 | H17: =IF(F17=0,"",IF($N$7='Tabla Parámetros'!R35,'Tabla Parámetros'!M54,IF(Caratula!$N$7='Tabla Parámetros'!$R$37,'Tabla Parámetros'!M54,IF(Caratula!$N$7='Tabla Parámetros'!$R$39,'Tabla Parámetros'!M54,"")))) ->  | K17: Comisión apertura financiada | N17: NO
D19: Plazo en meses | F19: 240 | K19: =IF($N$7="Cofinavit"," ",IF($N$7="Alia2+"," ",IF($N$7="Respalda2"," ","Selecciona el Aforo"))) -> Selecciona el Aforo | N19: =IF(F11='Tabla Parámetros'!G45,'Tabla Parámetros'!G49,IF(Caratula!F11='Tabla Parámetros'!G65,'Tabla Parámetros'!G68,IF(F11='Tabla Parámetros'!G37,'Tabla Parámetros'!G62,IF(Caratula!F11='Tabla Parámetros'!G38,'Tabla Parámetros'!G63,IF($N$7="Cofinavit"," ",IF($N$7="Alia2+"," ",IF($N$7="Respalda2"," ",))))))) -> 0.7
C21: =IF($F$9="Mejora","Estado",IF($F$9="Mejora_más_Remodelación","Estado","")) ->  | F21: CIUDAD DE MEXICO | L21: *Es el resultado de restar al valor comercial del inmueble, el valor del terreno.
F22: =N7 -> Tradicional
H23: Titular | I23: =IF(N7="Cofinavit","Cotitular","") ->  | L23: RECURSOS PARA ADQUIRIR LA VIVIENDA
G24: Ingreso mensual bruto: | H24: 40000 | J24: =IF($H$24<COFINAVIT!$C$2,COFINAVIT!G14,"") -> 
G25: Subcuenta vivienda: | H25: 400000 | M25: =G25 -> Subcuenta vivienda: | N25: =$H$25+$I$25 -> 400000
G26: Crédito INFONAVIT: | H26: 800000 | J26: =IF((H26)>COFINAVIT!$G$10,"Máximo $885,445.60"," ") ->  | K26: =IF((I26)>COFINAVIT!$G$10,"Máximo $885,445.60"," ") ->  | M26: =G26 -> Crédito INFONAVIT: | N26: =$H$26+$I$26 -> 800000
G27: Desc INFONAVIT: | H27: 5000 | J27: Ingresos Adicionales | M27: =G31 -> Crédito Banorte: | N27: =$H$31 -> 609560
G28: Enganche opcional: | M28: =G30 -> Enganche obligado: | N28: =$H$30 -> 0
G29: Desc ecotecnologías: | H29: =Ecotecnologias!G4 -> 406.77 | M29: =G28 -> Enganche opcional: | N29: =$H$28 -> 0
G30: Enganche obligado: | H30: =IF(((N11)-(H25+I25+H26+I26+H28+H31))<0,0,((N11)-(H25+I25+H26+I26+H28+H31))) -> 0 | I30: =COFINAVIT!$C$33 -> 40000 | J30: Gastos Infonavit
G31: Crédito Banorte: | H31: =IF(F15>0,F15,COFINAVIT!$C$28) -> 609560 | I31: =$H$31/$N$11 -> 0.7 | J31: Aforo | K31: =+IF(I31>90%,"Máximo 95%","") ->  | M31: Total | N31: =IF(SUM(N25:N29)>F32,F32,SUM(N25:N29)) -> 870800
F32: =+N11*1 -> 870800 | K32: =+IF(SUM(N25:N29)>N11,"La Suma de los Recursos no puede ser mayor al valor de vivienda, ajusta el crédito Banorte","") -> La Suma de los Recursos no puede ser mayor al valor de vivienda, ajusta el crédito Banorte
E33: Cuenta Infonavit más Crédito Bancario | L33: RECURSOS PARA ADQUIRIR LA VIVIENDA
H34: Titular | I34: Cotitular
B35: Tasa interés Infonavit: | E35: 0.1045 | G35: Ingreso mensual bruto: | J35: =IF($H$35<[7]COFINAVIT!$C$2,[7]COFINAVIT!G14,"") -> Ingreso mínimo $8,583.74 | M35: =G36 -> Subcuenta vivienda: | N35: =$H$36+$I$36 -> 0
B36: Plazo Crédito Infonavit: | E36: =H49 -> 240 | G36: Subcuenta vivienda: | M36: =G38 -> Crédito INFONAVIT: | N36: =$H$38+$I$37 -> 182868
B37: Capital e intereses: | E37: =PMT(E35/12,E36,-H38) -> 1819.579595 | G37: Crédito estimado: | H37: =COFINAVIT!C43 -> 609560 | M37: =G39 -> Crédito Banorte: | N37: =$H$39 -> 426692
B38: Comisión Admon. Infonavit: | E38: =(H38*0.01)/12 -> 152.39 | G38: Crédito INFONAVIT: | H38: =COFINAVIT!$C$44 -> 182868 | J38: =IF((H38)>[7]COFINAVIT!$G$10,"Máximo $885,445.60"," ") ->  | K38: =IF((I37)>[7]COFINAVIT!$G$10,"Máximo $885,445.60"," ") ->  | M38: =G40 -> Enganche: | N38: =$H$40 -> 261240
B39: Mensualidad Infonavit: | E39: =+E37+E38 -> 1971.969595 | G39: Crédito Banorte: | H39: =COFINAVIT!$C$46 -> 426692 | I39: =$H$39/$N$11 -> 0.49 | J39: Aforo Banorte
B40: Mensualidad BANORTE: | E40: =HLOOKUP(F62,I55:L57,3,0) -> 6080.105173 | G40: Enganche: | H40: =COFINAVIT!C57 -> 261240
B41: Mensualidad Estimada: | E41: =+E39+E40 -> 8052.074768 | K41: =+IF(I39>95%,"Máximo 95%","") ->  | M41: Total | N41: =IF(SUM(N35:N39)>F42,F42,SUM(N35:N39)) -> 870800
F42: =+N11*1 -> 870800 | K42: =+IF(SUM(N35:N39)>N11,"La Suma de los Recursos no puede ser mayor al valor de vivienda, ajusta el crédito Banorte","") -> 
B44: Condiciones Financieras
K45: =IF(N7="Cofinavit",J30,"") ->  | L45: =IF($N$7="Cofinavit",$I$30,0) -> 0
G46: Producto: | H46: =IF(F11='Tabla Parámetros'!O3,'Tabla Parámetros'!O3,IF(F11='Tabla Parámetros'!O4,'Tabla Parámetros'!O4,IF(F11='Tabla Parámetros'!O5,'Tabla Parámetros'!O5,IF(F11='Tabla Parámetros'!O6,'Tabla Parámetros'!O6,)))) -> Hipoteca Fuerte | K46: Comisión Apertura: | L46: =IF($F$9="Terreno_Urbanizado",($H$48*$N$15)*1.16,IF($F$9="Liquidez",($H$48*$N$15)*1.16,$H$48*$N$15)) -> 0 | M46: =IF(N17="SI","Financiada","") -> 
G47: Valor Vivienda: | H47: =N11 -> 870800 | K47: Avalúo: | L47: =+'Tabla Parámetros'!T90 -> 2612.4
G48: Monto de Crédito: | H48: =IF(N7='Tabla Parámetros'!C32,Caratula!H31,IF(N7='Tabla Parámetros'!C33,Caratula!H39,Caratula!F15)) -> 609560 | K48: =IF(F9="Mejora","*Honorarios Notariales:",IF(F9="Mejora_más_Remodelación","*Honorarios Notariales:","*Gastos Notariales Estimados:")) -> *Gastos Notariales Estimados: | L48: =IF($F$9="Mejora",VLOOKUP(Caratula!$F$21,Notariales!$B$2:$E$33,4,0),IF(Caratula!$F$9="Mejora_más_Remodelación",VLOOKUP(Caratula!$F$21,Notariales!$B$2:$E$33,4,0),IF($F$9="Liquidez",$H$48*$H$50,IF($F$9='Tabla Parámetros'!$J$7,Caratula!$H$48*Caratula!$H$50,$N$11*$H$50)))) -> 34832 | M48: =IF(L48=0,"","Sin IVA") -> Sin IVA
G49: Plazo: | H49: =F19 -> 240 | K49: Comisión Investigación: | L49: =IF(H46='Tabla Parámetros'!W1,'Tabla Parámetros'!W21,'Tabla Parámetros'!Y9) -> 750
G50: =IF($F$9="Mejora"," ",IF($F$9="Mejora_más_Remodelación"," ","*Gastos Notariales:")) -> *Gastos Notariales: | H50: 0.04 | K50: Enganche: | L50: =IF(N7="Cofinavit",H28+H30,IF(N7="Cuenta INFONAVIT + BANORTE",H40,F17)) -> 261240
G51: Seguro Vida y Daños: | H51: =$N$9 -> Básico | K51: =IF(N7="",G32,"") ->  | L51: =IF(N7="",H32,0) -> 0
B52: * El valor final lo informa el Notario a la firma de contrato. | G52: Desembolso Inicial Estimado: | L52: =IF(N17="SI",(L45+L47+L48+L49+L50)-L51,(L45+L46+L47+L48+L49+L50)-L51) -> 299434.4 | M52: =IF($L$52<0,"Saldo a Favor del Cliente","") -> 
J54: Baja
G55: *Tasa Interés anual fija | J55: ='Pago x mil'!$F$12 -> 0.09
G56: Pago por Mil | J56: ='Pago x mil'!$F$13 -> 9.074580309
B57: *La Tasa otorgada será en base a la evaluación de crédito y se mantiene fija toda la vida del crédito | G57: Mensualidad Inicial | J57: ='Pago x mil'!$F$21 -> 6080.105173
G58: Ingreso Requerido | J58: ='Pago x mil'!$F$22 -> 12160.21035
B60: Tabla de Amortización
B62: Selecciona la Tasa a cotizar | F62: 0.09 | J62: 0 | L62: Selecciona tipo de prepago | N62: Reduce Plazo y Pago
L63: Su crédito se amortizará en | N63: =IF($F$9='Tabla Parámetros'!$J$7,SUM(Caratula!R332:R571),IF($F$9='Tabla Parámetros'!$J$9,SUM(Caratula!R332:R571),IF($F$9='Tabla Parámetros'!J8,SUM(Caratula!R332:R571),SUM(Q67:Q306)))) -> 240 | O63: meses
B64: CAT Promedio | D64: =IF(F11='Tabla Parámetros'!G45,'Tabla Parámetros'!G50,IF(Caratula!F11='Tabla Parámetros'!G65,'Tabla Parámetros'!G70,IF(Caratula!F11='Tabla Parámetros'!B52,'Tabla Parámetros'!G61,IF(Caratula!F11='Tabla Parámetros'!B53,'Tabla Parámetros'!G61,)))) -> 0.1081557941 | E64: Sin IVA Informativo
B66: No. | C66: Fecha | D66: Días | E66: Tasa | F66: Saldo Inicial | G66: Capital | H66: Interés | I66: =IF($F$9="Liquidez",'Tabla Fijos'!$I$10,IF($F$9="Terreno_Urbanizado",'Tabla Fijos'!$I$10,IF($J$9="SI",'Tabla Fijos'!$I$10,""))) ->  | J66: Seguro de Vida | K66: Seguro de Daños y Contenidos | L66: Comisión Diferida | M66: =IF($N$7='Tabla Parámetros'!$C$31,'Tabla Fijos'!$N$10,"") ->  | N66: Aportación a Capital | O66: Pago Mensual | P66: Saldo Final
A67: 1 | B67: 1 | C67: =IF($B67="","",'Fecha Pago'!K4) -> 2022-07-03 | D67: =IF($B$67="","",'Fecha Pago'!L4) -> 5 | E67: =IF(B67="","",$F$62) -> 0.09 | F67: =IF($A67=0,$H$48,IF(A67="","",VLOOKUP($A67,'Tabla Fijos'!$B$12:$Q$251,5,0))) -> 609560 | G67: =IF($A67=0,0,IF(A67="","",VLOOKUP($A67,'Tabla Fijos'!$B$12:$Q$251,6,0))) -> 898.8451731 | H67: =IF($A67=0,0,IF(A67="","",VLOOKUP($A67,'Tabla Fijos'!$B$12:$Q$251,7,0))) -> 761.95 | I67: =IF($A67=0,0,IF(A67="","",VLOOKUP($A67,'Tabla Fijos'!$B$12:$Q$251,8,0))) -> 0 | J67: =IF($A67=0,0,IF(A67="","",VLOOKUP($A67,'Tabla Fijos'!$B$12:$Q$251,10,0))) -> 60.956 | K67: =IF($A67=0,0,IF(A67="","",VLOOKUP($A67,'Tabla Fijos'!$B$12:$Q$251,11,0))) -> 30.478 | L67: =IF($A67=0,0,IF(A67="","",VLOOKUP($A67,'Tabla Fijos'!$B$12:$Q$251,12,0))) -> 0 | M67: =IF($A67=0,0,IF(A67="","",VLOOKUP($A67,'Tabla Fijos'!$B$12:$Q$251,13,0))) -> 0 | O67: =IF(B67="","",G67+H67+I67+J67+K67+L67-M67) -> 1752.229173 | P67: =IF(B67="","",F67-G67) -> 608661.1548 | Q67: =IF(OR($B67="",$F67<=0),0,1) -> 1
A68: =IF(A67="","",IF(A67=$F$19,"",A67+1)) -> 2 | B68: =IF(B67="","",IF(B67=$H$49,"",B67+1)) -> 2 | C68: =IF($B68="","",'Fecha Pago'!K5) -> 2022-08-03 | D68: =IF($B$67="","",'Fecha Pago'!L5) -> 30.4 | E68: =IF(B68="","",$F$62) -> 0.09 | F68: =IF($A68=0,$H$48,IF(A68="","",VLOOKUP($A68,'Tabla Fijos'!$B$12:$Q$251,5,0))) -> 608661.1548 | G68: =IF($A68=0,0,IF(A68="","",VLOOKUP($A68,'Tabla Fijos'!$B$12:$Q$251,6,0))) -> 905.6763965 | H68: =IF($A68=0,0,IF(A68="","",VLOOKUP($A68,'Tabla Fijos'!$B$12:$Q$251,7,0))) -> 4625.824777 | I68: =IF($A68=0,0,IF(A68="","",VLOOKUP($A68,'Tabla Fijos'!$B$12:$Q$251,8,0))) -> 0 | J68: =IF($A68=0,0,IF(A68="","",VLOOKUP($A68,'Tabla Fijos'!$B$12:$Q$251,10,0))) -> 365.1966929 | K68: =IF($A68=0,0,IF(A68="","",VLOOKUP($A68,'Tabla Fijos'!$B$12:$Q$251,11,0))) -> 182.868 | L68: =IF($A68=0,0,IF(A68="","",VLOOKUP($A68,'Tabla Fijos'!$B$12:$Q$251,12,0))) -> 0 | M68: =IF($A68=0,0,IF(A68="","",VLOOKUP($A68,'Tabla Fijos'!$B$12:$Q$251,13,0))) -> 0 | O68: =IF(B68="","",G68+H68+I68+J68+K68+L68-M68) -> 6079.565866 | P68: 607755.4784 | Q68: =IF(OR($B68="",$F68<=0),0,1) -> 1
A69: 3 | B69: =IF(B68="","",IF(B68=$H$49,"",B68+1)) -> 3 | C69: =IF($B69="","",'Fecha Pago'!K6) -> 2022-09-03 | D69: =IF($B$67="","",'Fecha Pago'!L6) -> 30.4 | E69: 0.09 | F69: =IF($A69=0,$H$48,IF(A69="","",VLOOKUP($A69,'Tabla Fijos'!$B$12:$Q$251,5,0))) -> 607755.4784 | G69: =IF($A69=0,0,IF(A69="","",VLOOKUP($A69,'Tabla Fijos'!$B$12:$Q$251,6,0))) -> 912.5595371 | H69: =IF($A69=0,0,IF(A69="","",VLOOKUP($A69,'Tabla Fijos'!$B$12:$Q$251,7,0))) -> 4618.941636 | I69: =IF($A69=0,0,IF(A69="","",VLOOKUP($A69,'Tabla Fijos'!$B$12:$Q$251,8,0))) -> 0 | J69: =IF($A69=0,0,IF(A69="","",VLOOKUP($A69,'Tabla Fijos'!$B$12:$Q$251,10,0))) -> 364.6532871 | K69: =IF($A69=0,0,IF(A69="","",VLOOKUP($A69,'Tabla Fijos'!$B$12:$Q$251,11,0))) -> 182.868 | L69: =IF($A69=0,0,IF(A69="","",VLOOKUP($A69,'Tabla Fijos'!$B$12:$Q$251,12,0))) -> 0 | M69: =IF($A69=0,0,IF(A69="","",VLOOKUP($A69,'Tabla Fijos'!$B$12:$Q$251,13,0))) -> 0 | O69: =IF(B69="","",G69+H69+I69+J69+K69+L69-M69) -> 6079.02246 | P69: 606842.9189 | Q69: 1
A70: =IF(A69="","",IF(A69=$F$19,"",A69+1)) -> 4 | B70: 4 | C70: =IF($B70="","",'Fecha Pago'!K7) -> 2022-10-03 | D70: =IF($B$67="","",'Fecha Pago'!L7) -> 30.4 | E70: 0.09 | F70: =IF($A70=0,$H$48,IF(A70="","",VLOOKUP($A70,'Tabla Fijos'!$B$12:$Q$251,5,0))) -> 606842.9189 | G70: =IF($A70=0,0,IF(A70="","",VLOOKUP($A70,'Tabla Fijos'!$B$12:$Q$251,6,0))) -> 919.4949896 | H70: =IF($A70=0,0,IF(A70="","",VLOOKUP($A70,'Tabla Fijos'!$B$12:$Q$251,7,0))) -> 4612.006184 | I70: =IF($A70=0,0,IF(A70="","",VLOOKUP($A70,'Tabla Fijos'!$B$12:$Q$251,8,0))) -> 0 | J70: =IF($A70=0,0,IF(A70="","",VLOOKUP($A70,'Tabla Fijos'!$B$12:$Q$251,10,0))) -> 364.1057513 | K70: =IF($A70=0,0,IF(A70="","",VLOOKUP($A70,'Tabla Fijos'!$B$12:$Q$251,11,0))) -> 182.868 | L70: =IF($A70=0,0,IF(A70="","",VLOOKUP($A70,'Tabla Fijos'!$B$12:$Q$251,12,0))) -> 0 | M70: =IF($A70=0,0,IF(A70="","",VLOOKUP($A70,'Tabla Fijos'!$B$12:$Q$251,13,0))) -> 0 | O70: 6078.474924 | P70: 605923.4239 | Q70: 1
A71: =IF(A70="","",IF(A70=$F$19,"",A70+1)) -> 5 | B71: 5 | C71: =IF($B71="","",'Fecha Pago'!K8) -> 2022-11-03 | D71: =IF($B$67="","",'Fecha Pago'!L8) -> 30.4 | E71: 0.09 | F71: =IF($A71=0,$H$48,IF(A71="","",VLOOKUP($A71,'Tabla Fijos'!$B$12:$Q$251,5,0))) -> 605923.4239 | G71: =IF($A71=0,0,IF(A71="","",VLOOKUP($A71,'Tabla Fijos'!$B$12:$Q$251,6,0))) -> 926.4831515 | H71: =IF($A71=0,0,IF(A71="","",VLOOKUP($A71,'Tabla Fijos'!$B$12:$Q$251,7,0))) -> 4605.018022 | I71: =IF($A71=0,0,IF(A71="","",VLOOKUP($A71,'Tabla Fijos'!$B$12:$Q$251,8,0))) -> 0 | J71: =IF($A71=0,0,IF(A71="","",VLOOKUP($A71,'Tabla Fijos'!$B$12:$Q$251,10,0))) -> 363.5540543 | K71: =IF($A71=0,0,IF(A71="","",VLOOKUP($A71,'Tabla Fijos'!$B$12:$Q$251,11,0))) -> 182.868 | L71: =IF($A71=0,0,IF(A71="","",VLOOKUP($A71,'Tabla Fijos'!$B$12:$Q$251,12,0))) -> 0 | M71: =IF($A71=0,0,IF(A71="","",VLOOKUP($A71,'Tabla Fijos'!$B$12:$Q$251,13,0))) -> 0 | O71: 6077.923227 | P71: 604996.9408 | Q71: 1
A72: 6 | B72: 6 | C72: =IF($B72="","",'Fecha Pago'!K9) -> 2022-12-03 | D72: =IF($B$67="","",'Fecha Pago'!L9) -> 30.4 | E72: 0.09 | F72: =IF($A72=0,$H$48,IF(A72="","",VLOOKUP($A72,'Tabla Fijos'!$B$12:$Q$251,5,0))) -> 604996.9408 | G72: =IF($A72=0,0,IF(A72="","",VLOOKUP($A72,'Tabla Fijos'!$B$12:$Q$251,6,0))) -> 933.5244234 | H72: =IF($A72=0,0,IF(A72="","",VLOOKUP($A72,'Tabla Fijos'!$B$12:$Q$251,7,0))) -> 4597.97675 | I72: =IF($A72=0,0,IF(A72="","",VLOOKUP($A72,'Tabla Fijos'!$B$12:$Q$251,8,0))) -> 0 | J72: =IF($A72=0,0,IF(A72="","",VLOOKUP($A72,'Tabla Fijos'!$B$12:$Q$251,10,0))) -> 362.9981645 | K72: =IF($A72=0,0,IF(A72="","",VLOOKUP($A72,'Tabla Fijos'!$B$12:$Q$251,11,0))) -> 182.868 | L72: =IF($A72=0,0,IF(A72="","",VLOOKUP($A72,'Tabla Fijos'!$B$12:$Q$251,12,0))) -> 0 | M72: =IF($A72=0,0,IF(A72="","",VLOOKUP($A72,'Tabla Fijos'!$B$12:$Q$251,13,0))) -> 0 | O72: 6077.367338 | P72: 604063.4163 | Q72: 1
A73: 7 | B73: 7 | C73: =IF($B73="","",'Fecha Pago'!K10) -> 2023-01-03 | D73: =IF($B$67="","",'Fecha Pago'!L10) -> 30.4 | E73: 0.09 | F73: =IF($A73=0,$H$48,IF(A73="","",VLOOKUP($A73,'Tabla Fijos'!$B$12:$Q$251,5,0))) -> 604063.4163 | G73: =IF($A73=0,0,IF(A73="","",VLOOKUP($A73,'Tabla Fijos'!$B$12:$Q$251,6,0))) -> 940.619209 | H73: =IF($A73=0,0,IF(A73="","",VLOOKUP($A73,'Tabla Fijos'!$B$12:$Q$251,7,0))) -> 4590.881964 | I73: =IF($A73=0,0,IF(A73="","",VLOOKUP($A73,'Tabla Fijos'!$B$12:$Q$251,8,0))) -> 0 | J73: =IF($A73=0,0,IF(A73="","",VLOOKUP($A73,'Tabla Fijos'!$B$12:$Q$251,10,0))) -> 362.4380498 | K73: =IF($A73=0,0,IF(A73="","",VLOOKUP($A73,'Tabla Fijos'!$B$12:$Q$251,11,0))) -> 182.868 | L73: =IF($A73=0,0,IF(A73="","",VLOOKUP($A73,'Tabla Fijos'!$B$12:$Q$251,12,0))) -> 0 | M73: =IF($A73=0,0,IF(A73="","",VLOOKUP($A73,'Tabla Fijos'!$B$12:$Q$251,13,0))) -> 0 | O73: 6076.807223 | P73: 603122.7971 | Q73: 1
A74: 8 | B74: 8 | C74: =IF($B74="","",'Fecha Pago'!K11) -> 2023-02-03 | D74: =IF($B$67="","",'Fecha Pago'!L11) -> 30.4 | E74: 0.09 | F74: =IF($A74=0,$H$48,IF(A74="","",VLOOKUP($A74,'Tabla Fijos'!$B$12:$Q$251,5,0))) -> 603122.7971 | G74: =IF($A74=0,0,IF(A74="","",VLOOKUP($A74,'Tabla Fijos'!$B$12:$Q$251,6,0))) -> 947.767915 | H74: =IF($A74=0,0,IF(A74="","",VLOOKUP($A74,'Tabla Fijos'!$B$12:$Q$251,7,0))) -> 4583.733258 | I74: =IF($A74=0,0,IF(A74="","",VLOOKUP($A74,'Tabla Fijos'!$B$12:$Q$251,8,0))) -> 0 | J74: =IF($A74=0,0,IF(A74="","",VLOOKUP($A74,'Tabla Fijos'!$B$12:$Q$251,10,0))) -> 361.8736783 | K74: =IF($A74=0,0,IF(A74="","",VLOOKUP($A74,'Tabla Fijos'!$B$12:$Q$251,11,0))) -> 182.868 | L74: =IF($A74=0,0,IF(A74="","",VLOOKUP($A74,'Tabla Fijos'!$B$12:$Q$251,12,0))) -> 0 | M74: =IF($A74=0,0,IF(A74="","",VLOOKUP($A74,'Tabla Fijos'!$B$12:$Q$251,13,0))) -> 0 | O74: 6076.242851 | P74: 602175.0292 | Q74: 1
A75: 9 | B75: 9 | C75: =IF($B75="","",'Fecha Pago'!K12) -> 2023-03-03 | D75: =IF($B$67="","",'Fecha Pago'!L12) -> 30.4 | E75: 0.09 | F75: =IF($A75=0,$H$48,IF(A75="","",VLOOKUP($A75,'Tabla Fijos'!$B$12:$Q$251,5,0))) -> 602175.0292 | G75: =IF($A75=0,0,IF(A75="","",VLOOKUP($A75,'Tabla Fijos'!$B$12:$Q$251,6,0))) -> 954.9709512 | H75: =IF($A75=0,0,IF(A75="","",VLOOKUP($A75,'Tabla Fijos'!$B$12:$Q$251,7,0))) -> 4576.530222 | I75: =IF($A75=0,0,IF(A75="","",VLOOKUP($A75,'Tabla Fijos'!$B$12:$Q$251,8,0))) -> 0 | J75: =IF($A75=0,0,IF(A75="","",VLOOKUP($A75,'Tabla Fijos'!$B$12:$Q$251,10,0))) -> 361.3050175 | K75: =IF($A75=0,0,IF(A75="","",VLOOKUP($A75,'Tabla Fijos'!$B$12:$Q$251,11,0))) -> 182.868 | L75: =IF($A75=0,0,IF(A75="","",VLOOKUP($A75,'Tabla Fijos'!$B$12:$Q$251,12,0))) -> 0 | M75: =IF($A75=0,0,IF(A75="","",VLOOKUP($A75,'Tabla Fijos'!$B$12:$Q$251,13,0))) -> 0 | O75: 6075.674191 | P75: 601220.0583 | Q75: 1
A76: 10 | B76: 10 | C76: =IF($B76="","",'Fecha Pago'!K13) -> 2023-04-03 | D76: =IF($B$67="","",'Fecha Pago'!L13) -> 30.4 | E76: 0.09 | F76: =IF($A76=0,$H$48,IF(A76="","",VLOOKUP($A76,'Tabla Fijos'!$B$12:$Q$251,5,0))) -> 601220.0583 | G76: =IF($A76=0,0,IF(A76="","",VLOOKUP($A76,'Tabla Fijos'!$B$12:$Q$251,6,0))) -> 962.2287304 | H76: =IF($A76=0,0,IF(A76="","",VLOOKUP($A76,'Tabla Fijos'!$B$12:$Q$251,7,0))) -> 4569.272443 | I76: =IF($A76=0,0,IF(A76="","",VLOOKUP($A76,'Tabla Fijos'!$B$12:$Q$251,8,0))) -> 0 | J76: =IF($A76=0,0,IF(A76="","",VLOOKUP($A76,'Tabla Fijos'!$B$12:$Q$251,10,0))) -> 360.732035 | K76: =IF($A76=0,0,IF(A76="","",VLOOKUP($A76,'Tabla Fijos'!$B$12:$Q$251,11,0))) -> 182.868 | L76: =IF($A76=0,0,IF(A76="","",VLOOKUP($A76,'Tabla Fijos'!$B$12:$Q$251,12,0))) -> 0 | M76: =IF($A76=0,0,IF(A76="","",VLOOKUP($A76,'Tabla Fijos'!$B$12:$Q$251,13,0))) -> 0 | O76: 6075.101208 | P76: 600257.8295 | Q76: 1
A77: 11 | B77: 11 | C77: =IF($B77="","",'Fecha Pago'!K14) -> 2023-05-03 | D77: =IF($B$67="","",'Fecha Pago'!L14) -> 30.4 | E77: 0.09 | F77: =IF($A77=0,$H$48,IF(A77="","",VLOOKUP($A77,'Tabla Fijos'!$B$12:$Q$251,5,0))) -> 600257.8295 | G77: =IF($A77=0,0,IF(A77="","",VLOOKUP($A77,'Tabla Fijos'!$B$12:$Q$251,6,0))) -> 969.5416688 | H77: =IF($A77=0,0,IF(A77="","",VLOOKUP($A77,'Tabla Fijos'!$B$12:$Q$251,7,0))) -> 4561.959504 | I77: =IF($A77=0,0,IF(A77="","",VLOOKUP($A77,'Tabla Fijos'!$B$12:$Q$251,8,0))) -> 0 | J77: =IF($A77=0,0,IF(A77="","",VLOOKUP($A77,'Tabla Fijos'!$B$12:$Q$251,10,0))) -> 360.1546977 | K77: =IF($A77=0,0,IF(A77="","",VLOOKUP($A77,'Tabla Fijos'!$B$12:$Q$251,11,0))) -> 182.868 | L77: =IF($A77=0,0,IF(A77="","",VLOOKUP($A77,'Tabla Fijos'!$B$12:$Q$251,12,0))) -> 0 | M77: =IF($A77=0,0,IF(A77="","",VLOOKUP($A77,'Tabla Fijos'!$B$12:$Q$251,13,0))) -> 0 | O77: 6074.523871 | P77: 599288.2879 | Q77: 1
A78: 12 | B78: 12 | C78: =IF($B78="","",'Fecha Pago'!K15) -> 2023-06-03 | D78: =IF($B$67="","",'Fecha Pago'!L15) -> 30.4 | E78: 0.09 | F78: =IF($A78=0,$H$48,IF(A78="","",VLOOKUP($A78,'Tabla Fijos'!$B$12:$Q$251,5,0))) -> 599288.2879 | G78: =IF($A78=0,0,IF(A78="","",VLOOKUP($A78,'Tabla Fijos'!$B$12:$Q$251,6,0))) -> 976.9101855 | H78: =IF($A78=0,0,IF(A78="","",VLOOKUP($A78,'Tabla Fijos'!$B$12:$Q$251,7,0))) -> 4554.590988 | I78: =IF($A78=0,0,IF(A78="","",VLOOKUP($A78,'Tabla Fijos'!$B$12:$Q$251,8,0))) -> 0 | J78: =IF($A78=0,0,IF(A78="","",VLOOKUP($A78,'Tabla Fijos'!$B$12:$Q$251,10,0))) -> 359.5729727 | K78: =IF($A78=0,0,IF(A78="","",VLOOKUP($A78,'Tabla Fijos'!$B$12:$Q$251,11,0))) -> 182.868 | L78: =IF($A78=0,0,IF(A78="","",VLOOKUP($A78,'Tabla Fijos'!$B$12:$Q$251,12,0))) -> 0 | M78: =IF($A78=0,0,IF(A78="","",VLOOKUP($A78,'Tabla Fijos'!$B$12:$Q$251,13,0))) -> 0 | O78: 6073.942146 | P78: 598311.3777 | Q78: 1
A79: 13 | B79: 13 | C79: =IF($B79="","",'Fecha Pago'!K16) -> 2023-07-03 | D79: =IF($B$67="","",'Fecha Pago'!L16) -> 30.4 | E79: 0.09 | F79: =IF($A79=0,$H$48,IF(A79="","",VLOOKUP($A79,'Tabla Fijos'!$B$12:$Q$251,5,0))) -> 598311.3777 | G79: =IF($A79=0,0,IF(A79="","",VLOOKUP($A79,'Tabla Fijos'!$B$12:$Q$251,6,0))) -> 984.3347029 | H79: =IF($A79=0,0,IF(A79="","",VLOOKUP($A79,'Tabla Fijos'!$B$12:$Q$251,7,0))) -> 4547.16647 | I79: =IF($A79=0,0,IF(A79="","",VLOOKUP($A79,'Tabla Fijos'!$B$12:$Q$251,8,0))) -> 0 | J79: =IF($A79=0,0,IF(A79="","",VLOOKUP($A79,'Tabla Fijos'!$B$12:$Q$251,10,0))) -> 358.9868266 | K79: =IF($A79=0,0,IF(A79="","",VLOOKUP($A79,'Tabla Fijos'!$B$12:$Q$251,11,0))) -> 182.868 | L79: =IF($A79=0,0,IF(A79="","",VLOOKUP($A79,'Tabla Fijos'!$B$12:$Q$251,12,0))) -> 0 | M79: =IF($A79=0,0,IF(A79="","",VLOOKUP($A79,'Tabla Fijos'!$B$12:$Q$251,13,0))) -> 0 | O79: 6073.356 | P79: 597327.043 | Q79: 1
A80: 14 | B80: 14 | C80: =IF($B80="","",'Fecha Pago'!K17) -> 2023-08-03 | D80: =IF($B$67="","",'Fecha Pago'!L17) -> 30.4 | E80: 0.09 | F80: =IF($A80=0,$H$48,IF(A80="","",VLOOKUP($A80,'Tabla Fijos'!$B$12:$Q$251,5,0))) -> 597327.043 | G80: =IF($A80=0,0,IF(A80="","",VLOOKUP($A80,'Tabla Fijos'!$B$12:$Q$251,6,0))) -> 991.8156466 | H80: =IF($A80=0,0,IF(A80="","",VLOOKUP($A80,'Tabla Fijos'!$B$12:$Q$251,7,0))) -> 4539.685527 | I80: =IF($A80=0,0,IF(A80="","",VLOOKUP($A80,'Tabla Fijos'!$B$12:$Q$251,8,0))) -> 0 | J80: =IF($A80=0,0,IF(A80="","",VLOOKUP($A80,'Tabla Fijos'!$B$12:$Q$251,10,0))) -> 358.3962258 | K80: =IF($A80=0,0,IF(A80="","",VLOOKUP($A80,'Tabla Fijos'!$B$12:$Q$251,11,0))) -> 182.868 | L80: =IF($A80=0,0,IF(A80="","",VLOOKUP($A80,'Tabla Fijos'!$B$12:$Q$251,12,0))) -> 0 | M80: =IF($A80=0,0,IF(A80="","",VLOOKUP($A80,'Tabla Fijos'!$B$12:$Q$251,13,0))) -> 0 | O80: 6072.765399 | P80: 596335.2273 | Q80: 1
A81: 15 | B81: 15 | C81: =IF($B81="","",'Fecha Pago'!K18) -> 2023-09-03 | D81: =IF($B$67="","",'Fecha Pago'!L18) -> 30.4 | E81: 0.09 | F81: =IF($A81=0,$H$48,IF(A81="","",VLOOKUP($A81,'Tabla Fijos'!$B$12:$Q$251,5,0))) -> 596335.2273 | G81: =IF($A81=0,0,IF(A81="","",VLOOKUP($A81,'Tabla Fijos'!$B$12:$Q$251,6,0))) -> 999.3534455 | H81: =IF($A81=0,0,IF(A81="","",VLOOKUP($A81,'Tabla Fijos'!$B$12:$Q$251,7,0))) -> 4532.147728 | I81: =IF($A81=0,0,IF(A81="","",VLOOKUP($A81,'Tabla Fijos'!$B$12:$Q$251,8,0))) -> 0 | J81: =IF($A81=0,0,IF(A81="","",VLOOKUP($A81,'Tabla Fijos'!$B$12:$Q$251,10,0))) -> 357.8011364 | K81: =IF($A81=0,0,IF(A81="","",VLOOKUP($A81,'Tabla Fijos'!$B$12:$Q$251,11,0))) -> 182.868 | L81: =IF($A81=0,0,IF(A81="","",VLOOKUP($A81,'Tabla Fijos'!$B$12:$Q$251,12,0))) -> 0 | M81: =IF($A81=0,0,IF(A81="","",VLOOKUP($A81,'Tabla Fijos'!$B$12:$Q$251,13,0))) -> 0 | O81: 6072.17031 | P81: 595335.8739 | Q81: 1
A82: 16 | B82: 16 | C82: =IF($B82="","",'Fecha Pago'!K19) -> 2023-10-03 | D82: =IF($B$67="","",'Fecha Pago'!L19) -> 30.4 | E82: 0.09 | F82: =IF($A82=0,$H$48,IF(A82="","",VLOOKUP($A82,'Tabla Fijos'!$B$12:$Q$251,5,0))) -> 595335.8739 | G82: =IF($A82=0,0,IF(A82="","",VLOOKUP($A82,'Tabla Fijos'!$B$12:$Q$251,6,0))) -> 1006.948532 | H82: =IF($A82=0,0,IF(A82="","",VLOOKUP($A82,'Tabla Fijos'!$B$12:$Q$251,7,0))) -> 4524.552641 | I82: =IF($A82=0,0,IF(A82="","",VLOOKUP($A82,'Tabla Fijos'!$B$12:$Q$251,8,0))) -> 0 | J82: =IF($A82=0,0,IF(A82="","",VLOOKUP($A82,'Tabla Fijos'!$B$12:$Q$251,10,0))) -> 357.2015243 | K82: =IF($A82=0,0,IF(A82="","",VLOOKUP($A82,'Tabla Fijos'!$B$12:$Q$251,11,0))) -> 182.868 | L82: =IF($A82=0,0,IF(A82="","",VLOOKUP($A82,'Tabla Fijos'!$B$12:$Q$251,12,0))) -> 0 | M82: =IF($A82=0,0,IF(A82="","",VLOOKUP($A82,'Tabla Fijos'!$B$12:$Q$251,13,0))) -> 0 | O82: 6071.570697 | P82: 594328.9253 | Q82: 1
A83: 17 | B83: 17 | C83: =IF($B83="","",'Fecha Pago'!K20) -> 2023-11-03 | D83: =IF($B$67="","",'Fecha Pago'!L20) -> 30.4 | E83: 0.09 | F83: =IF($A83=0,$H$48,IF(A83="","",VLOOKUP($A83,'Tabla Fijos'!$B$12:$Q$251,5,0))) -> 594328.9253 | G83: =IF($A83=0,0,IF(A83="","",VLOOKUP($A83,'Tabla Fijos'!$B$12:$Q$251,6,0))) -> 1014.601341 | H83: =IF($A83=0,0,IF(A83="","",VLOOKUP($A83,'Tabla Fijos'!$B$12:$Q$251,7,0))) -> 4516.899833 | I83: =IF($A83=0,0,IF(A83="","",VLOOKUP($A83,'Tabla Fijos'!$B$12:$Q$251,8,0))) -> 0 | J83: =IF($A83=0,0,IF(A83="","",VLOOKUP($A83,'Tabla Fijos'!$B$12:$Q$251,10,0))) -> 356.5973552 | K83: =IF($A83=0,0,IF(A83="","",VLOOKUP($A83,'Tabla Fijos'!$B$12:$Q$251,11,0))) -> 182.868 | L83: =IF($A83=0,0,IF(A83="","",VLOOKUP($A83,'Tabla Fijos'!$B$12:$Q$251,12,0))) -> 0 | M83: =IF($A83=0,0,IF(A83="","",VLOOKUP($A83,'Tabla Fijos'!$B$12:$Q$251,13,0))) -> 0 | O83: 6070.966528 | P83: 593314.324 | Q83: 1
A84: 18 | B84: 18 | C84: =IF($B84="","",'Fecha Pago'!K21) -> 2023-12-03 | D84: =IF($B$67="","",'Fecha Pago'!L21) -> 30.4 | E84: 0.09 | F84: =IF($A84=0,$H$48,IF(A84="","",VLOOKUP($A84,'Tabla Fijos'!$B$12:$Q$251,5,0))) -> 593314.324 | G84: =IF($A84=0,0,IF(A84="","",VLOOKUP($A84,'Tabla Fijos'!$B$12:$Q$251,6,0))) -> 1022.312311 | H84: =IF($A84=0,0,IF(A84="","",VLOOKUP($A84,'Tabla Fijos'!$B$12:$Q$251,7,0))) -> 4509.188862 | I84: =IF($A84=0,0,IF(A84="","",VLOOKUP($A84,'Tabla Fijos'!$B$12:$Q$251,8,0))) -> 0 | J84: =IF($A84=0,0,IF(A84="","",VLOOKUP($A84,'Tabla Fijos'!$B$12:$Q$251,10,0))) -> 355.9885944 | K84: =IF($A84=0,0,IF(A84="","",VLOOKUP($A84,'Tabla Fijos'!$B$12:$Q$251,11,0))) -> 182.868 | L84: =IF($A84=0,0,IF(A84="","",VLOOKUP($A84,'Tabla Fijos'!$B$12:$Q$251,12,0))) -> 0 | M84: =IF($A84=0,0,IF(A84="","",VLOOKUP($A84,'Tabla Fijos'!$B$12:$Q$251,13,0))) -> 0 | O84: 6070.357768 | P84: 592292.0117 | Q84: 1
A85: 19 | B85: 19 | C85: =IF($B85="","",'Fecha Pago'!K22) -> 2024-01-03 | D85: =IF($B$67="","",'Fecha Pago'!L22) -> 30.4 | E85: 0.09 | F85: =IF($A85=0,$H$48,IF(A85="","",VLOOKUP($A85,'Tabla Fijos'!$B$12:$Q$251,5,0))) -> 592292.0117 | G85: =IF($A85=0,0,IF(A85="","",VLOOKUP($A85,'Tabla Fijos'!$B$12:$Q$251,6,0))) -> 1030.081884 | H85: =IF($A85=0,0,IF(A85="","",VLOOKUP($A85,'Tabla Fijos'!$B$12:$Q$251,7,0))) -> 4501.419289 | I85: =IF($A85=0,0,IF(A85="","",VLOOKUP($A85,'Tabla Fijos'!$B$12:$Q$251,8,0))) -> 0 | J85: =IF($A85=0,0,IF(A85="","",VLOOKUP($A85,'Tabla Fijos'!$B$12:$Q$251,10,0))) -> 355.375207 | K85: =IF($A85=0,0,IF(A85="","",VLOOKUP($A85,'Tabla Fijos'!$B$12:$Q$251,11,0))) -> 182.868 | L85: =IF($A85=0,0,IF(A85="","",VLOOKUP($A85,'Tabla Fijos'!$B$12:$Q$251,12,0))) -> 0 | M85: =IF($A85=0,0,IF(A85="","",VLOOKUP($A85,'Tabla Fijos'!$B$12:$Q$251,13,0))) -> 0 | O85: 6069.74438 | P85: 591261.9298 | Q85: 1
A86: 20 | B86: 20 | C86: =IF($B86="","",'Fecha Pago'!K23) -> 2024-02-03 | D86: =IF($B$67="","",'Fecha Pago'!L23) -> 30.4 | E86: 0.09 | F86: =IF($A86=0,$H$48,IF(A86="","",VLOOKUP($A86,'Tabla Fijos'!$B$12:$Q$251,5,0))) -> 591261.9298 | G86: =IF($A86=0,0,IF(A86="","",VLOOKUP($A86,'Tabla Fijos'!$B$12:$Q$251,6,0))) -> 1037.910507 | H86: =IF($A86=0,0,IF(A86="","",VLOOKUP($A86,'Tabla Fijos'!$B$12:$Q$251,7,0))) -> 4493.590667 | I86: =IF($A86=0,0,IF(A86="","",VLOOKUP($A86,'Tabla Fijos'!$B$12:$Q$251,8,0))) -> 0 | J86: =IF($A86=0,0,IF(A86="","",VLOOKUP($A86,'Tabla Fijos'!$B$12:$Q$251,10,0))) -> 354.7571579 | K86: =IF($A86=0,0,IF(A86="","",VLOOKUP($A86,'Tabla Fijos'!$B$12:$Q$251,11,0))) -> 182.868 | L86: =IF($A86=0,0,IF(A86="","",VLOOKUP($A86,'Tabla Fijos'!$B$12:$Q$251,12,0))) -> 0 | M86: =IF($A86=0,0,IF(A86="","",VLOOKUP($A86,'Tabla Fijos'!$B$12:$Q$251,13,0))) -> 0 | O86: 6069.126331 | P86: 590224.0193 | Q86: 1
A87: 21 | B87: 21 | C87: =IF($B87="","",'Fecha Pago'!K24) -> 2024-03-03 | D87: =IF($B$67="","",'Fecha Pago'!L24) -> 30.4 | E87: 0.09 | F87: =IF($A87=0,$H$48,IF(A87="","",VLOOKUP($A87,'Tabla Fijos'!$B$12:$Q$251,5,0))) -> 590224.0193 | G87: =IF($A87=0,0,IF(A87="","",VLOOKUP($A87,'Tabla Fijos'!$B$12:$Q$251,6,0))) -> 1045.798626 | H87: =IF($A87=0,0,IF(A87="","",VLOOKUP($A87,'Tabla Fijos'!$B$12:$Q$251,7,0))) -> 4485.702547 | I87: =IF($A87=0,0,IF(A87="","",VLOOKUP($A87,'Tabla Fijos'!$B$12:$Q$251,8,0))) -> 0 | J87: =IF($A87=0,0,IF(A87="","",VLOOKUP($A87,'Tabla Fijos'!$B$12:$Q$251,10,0))) -> 354.1344116 | K87: =IF($A87=0,0,IF(A87="","",VLOOKUP($A87,'Tabla Fijos'!$B$12:$Q$251,11,0))) -> 182.868 | L87: =IF($A87=0,0,IF(A87="","",VLOOKUP($A87,'Tabla Fijos'!$B$12:$Q$251,12,0))) -> 0 | M87: =IF($A87=0,0,IF(A87="","",VLOOKUP($A87,'Tabla Fijos'!$B$12:$Q$251,13,0))) -> 0 | O87: 6068.503585 | P87: 589178.2207 | Q87: 1
A88: 22 | B88: 22 | C88: =IF($B88="","",'Fecha Pago'!K25) -> 2024-04-03 | D88: =IF($B$67="","",'Fecha Pago'!L25) -> 30.4 | E88: 0.09 | F88: =IF($A88=0,$H$48,IF(A88="","",VLOOKUP($A88,'Tabla Fijos'!$B$12:$Q$251,5,0))) -> 589178.2207 | G88: =IF($A88=0,0,IF(A88="","",VLOOKUP($A88,'Tabla Fijos'!$B$12:$Q$251,6,0))) -> 1053.746696 | H88: =IF($A88=0,0,IF(A88="","",VLOOKUP($A88,'Tabla Fijos'!$B$12:$Q$251,7,0))) -> 4477.754477 | I88: =IF($A88=0,0,IF(A88="","",VLOOKUP($A88,'Tabla Fijos'!$B$12:$Q$251,8,0))) -> 0 | J88: =IF($A88=0,0,IF(A88="","",VLOOKUP($A88,'Tabla Fijos'!$B$12:$Q$251,10,0))) -> 353.5069324 | K88: =IF($A88=0,0,IF(A88="","",VLOOKUP($A88,'Tabla Fijos'!$B$12:$Q$251,11,0))) -> 182.868 | L88: =IF($A88=0,0,IF(A88="","",VLOOKUP($A88,'Tabla Fijos'!$B$12:$Q$251,12,0))) -> 0 | M88: =IF($A88=0,0,IF(A88="","",VLOOKUP($A88,'Tabla Fijos'!$B$12:$Q$251,13,0))) -> 0 | O88: 6067.876106 | P88: 588124.474 | Q88: 1
A89: 23 | B89: 23 | C89: =IF($B89="","",'Fecha Pago'!K26) -> 2024-05-03 | D89: =IF($B$67="","",'Fecha Pago'!L26) -> 30.4 | E89: 0.09 | F89: =IF($A89=0,$H$48,IF(A89="","",VLOOKUP($A89,'Tabla Fijos'!$B$12:$Q$251,5,0))) -> 588124.474 | G89: =IF($A89=0,0,IF(A89="","",VLOOKUP($A89,'Tabla Fijos'!$B$12:$Q$251,6,0))) -> 1061.755171 | H89: =IF($A89=0,0,IF(A89="","",VLOOKUP($A89,'Tabla Fijos'!$B$12:$Q$251,7,0))) -> 4469.746002 | I89: =IF($A89=0,0,IF(A89="","",VLOOKUP($A89,'Tabla Fijos'!$B$12:$Q$251,8,0))) -> 0 | J89: =IF($A89=0,0,IF(A89="","",VLOOKUP($A89,'Tabla Fijos'!$B$12:$Q$251,10,0))) -> 352.8746844 | K89: =IF($A89=0,0,IF(A89="","",VLOOKUP($A89,'Tabla Fijos'!$B$12:$Q$251,11,0))) -> 182.868 | L89: =IF($A89=0,0,IF(A89="","",VLOOKUP($A89,'Tabla Fijos'!$B$12:$Q$251,12,0))) -> 0 | M89: =IF($A89=0,0,IF(A89="","",VLOOKUP($A89,'Tabla Fijos'!$B$12:$Q$251,13,0))) -> 0 | O89: 6067.243858 | P89: 587062.7188 | Q89: 1
A90: 24 | B90: 24 | C90: =IF($B90="","",'Fecha Pago'!K27) -> 2024-06-03 | D90: =IF($B$67="","",'Fecha Pago'!L27) -> 30.4 | E90: 0.09 | F90: =IF($A90=0,$H$48,IF(A90="","",VLOOKUP($A90,'Tabla Fijos'!$B$12:$Q$251,5,0))) -> 587062.7188 | G90: =IF($A90=0,0,IF(A90="","",VLOOKUP($A90,'Tabla Fijos'!$B$12:$Q$251,6,0))) -> 1069.82451 | H90: =IF($A90=0,0,IF(A90="","",VLOOKUP($A90,'Tabla Fijos'!$B$12:$Q$251,7,0))) -> 4461.676663 | I90: =IF($A90=0,0,IF(A90="","",VLOOKUP($A90,'Tabla Fijos'!$B$12:$Q$251,8,0))) -> 0 | J90: =IF($A90=0,0,IF(A90="","",VLOOKUP($A90,'Tabla Fijos'!$B$12:$Q$251,10,0))) -> 352.2376313 | K90: =IF($A90=0,0,IF(A90="","",VLOOKUP($A90,'Tabla Fijos'!$B$12:$Q$251,11,0))) -> 182.868 | L90: =IF($A90=0,0,IF(A90="","",VLOOKUP($A90,'Tabla Fijos'!$B$12:$Q$251,12,0))) -> 0 | M90: =IF($A90=0,0,IF(A90="","",VLOOKUP($A90,'Tabla Fijos'!$B$12:$Q$251,13,0))) -> 0 | O90: 6066.606804 | P90: 585992.8943 | Q90: 1
A91: 25 | B91: 25 | C91: =IF($B91="","",'Fecha Pago'!K28) -> 2024-07-03 | D91: =IF($B$67="","",'Fecha Pago'!L28) -> 30.4 | E91: 0.09 | F91: =IF($A91=0,$H$48,IF(A91="","",VLOOKUP($A91,'Tabla Fijos'!$B$12:$Q$251,5,0))) -> 585992.8943 | G91: =IF($A91=0,0,IF(A91="","",VLOOKUP($A91,'Tabla Fijos'!$B$12:$Q$251,6,0))) -> 1077.955176 | H91: =IF($A91=0,0,IF(A91="","",VLOOKUP($A91,'Tabla Fijos'!$B$12:$Q$251,7,0))) -> 4453.545997 | I91: =IF($A91=0,0,IF(A91="","",VLOOKUP($A91,'Tabla Fijos'!$B$12:$Q$251,8,0))) -> 0 | J91: =IF($A91=0,0,IF(A91="","",VLOOKUP($A91,'Tabla Fijos'!$B$12:$Q$251,10,0))) -> 351.5957366 | K91: =IF($A91=0,0,IF(A91="","",VLOOKUP($A91,'Tabla Fijos'!$B$12:$Q$251,11,0))) -> 182.868 | L91: =IF($A91=0,0,IF(A91="","",VLOOKUP($A91,'Tabla Fijos'!$B$12:$Q$251,12,0))) -> 0 | M91: =IF($A91=0,0,IF(A91="","",VLOOKUP($A91,'Tabla Fijos'!$B$12:$Q$251,13,0))) -> 0 | O91: 6065.96491 | P91: 584914.9391 | Q91: 1
A92: 26 | B92: 26 | C92: =IF($B92="","",'Fecha Pago'!K29) -> 2024-08-03 | D92: =IF($B$67="","",'Fecha Pago'!L29) -> 30.4 | E92: 0.09 | F92: =IF($A92=0,$H$48,IF(A92="","",VLOOKUP($A92,'Tabla Fijos'!$B$12:$Q$251,5,0))) -> 584914.9391 | G92: =IF($A92=0,0,IF(A92="","",VLOOKUP($A92,'Tabla Fijos'!$B$12:$Q$251,6,0))) -> 1086.147636 | H92: =IF($A92=0,0,IF(A92="","",VLOOKUP($A92,'Tabla Fijos'!$B$12:$Q$251,7,0))) -> 4445.353537 | I92: =IF($A92=0,0,IF(A92="","",VLOOKUP($A92,'Tabla Fijos'!$B$12:$Q$251,8,0))) -> 0 | J92: =IF($A92=0,0,IF(A92="","",VLOOKUP($A92,'Tabla Fijos'!$B$12:$Q$251,10,0))) -> 350.9489635 | K92: =IF($A92=0,0,IF(A92="","",VLOOKUP($A92,'Tabla Fijos'!$B$12:$Q$251,11,0))) -> 182.868 | L92: =IF($A92=0,0,IF(A92="","",VLOOKUP($A92,'Tabla Fijos'!$B$12:$Q$251,12,0))) -> 0 | M92: =IF($A92=0,0,IF(A92="","",VLOOKUP($A92,'Tabla Fijos'!$B$12:$Q$251,13,0))) -> 0 | O92: 6065.318137 | P92: 583828.7915 | Q92: 1
A93: 27 | B93: 27 | C93: =IF($B93="","",'Fecha Pago'!K30) -> 2024-09-03 | D93: =IF($B$67="","",'Fecha Pago'!L30) -> 30.4 | E93: 0.09 | F93: =IF($A93=0,$H$48,IF(A93="","",VLOOKUP($A93,'Tabla Fijos'!$B$12:$Q$251,5,0))) -> 583828.7915 | G93: =IF($A93=0,0,IF(A93="","",VLOOKUP($A93,'Tabla Fijos'!$B$12:$Q$251,6,0))) -> 1094.402358 | H93: =IF($A93=0,0,IF(A93="","",VLOOKUP($A93,'Tabla Fijos'!$B$12:$Q$251,7,0))) -> 4437.098815 | I93: =IF($A93=0,0,IF(A93="","",VLOOKUP($A93,'Tabla Fijos'!$B$12:$Q$251,8,0))) -> 0 | J93: =IF($A93=0,0,IF(A93="","",VLOOKUP($A93,'Tabla Fijos'!$B$12:$Q$251,10,0))) -> 350.2972749 | K93: =IF($A93=0,0,IF(A93="","",VLOOKUP($A93,'Tabla Fijos'!$B$12:$Q$251,11,0))) -> 182.868 | L93: =IF($A93=0,0,IF(A93="","",VLOOKUP($A93,'Tabla Fijos'!$B$12:$Q$251,12,0))) -> 0 | M93: =IF($A93=0,0,IF(A93="","",VLOOKUP($A93,'Tabla Fijos'!$B$12:$Q$251,13,0))) -> 0 | O93: 6064.666448 | P93: 582734.3891 | Q93: 1
A94: 28 | B94: 28 | C94: =IF($B94="","",'Fecha Pago'!K31) -> 2024-10-03 | D94: =IF($B$67="","",'Fecha Pago'!L31) -> 30.4 | E94: 0.09 | F94: =IF($A94=0,$H$48,IF(A94="","",VLOOKUP($A94,'Tabla Fijos'!$B$12:$Q$251,5,0))) -> 582734.3891 | G94: =IF($A94=0,0,IF(A94="","",VLOOKUP($A94,'Tabla Fijos'!$B$12:$Q$251,6,0))) -> 1102.719816 | H94: =IF($A94=0,0,IF(A94="","",VLOOKUP($A94,'Tabla Fijos'!$B$12:$Q$251,7,0))) -> 4428.781357 | I94: =IF($A94=0,0,IF(A94="","",VLOOKUP($A94,'Tabla Fijos'!$B$12:$Q$251,8,0))) -> 0 | J94: =IF($A94=0,0,IF(A94="","",VLOOKUP($A94,'Tabla Fijos'!$B$12:$Q$251,10,0))) -> 349.6406335 | K94: =IF($A94=0,0,IF(A94="","",VLOOKUP($A94,'Tabla Fijos'!$B$12:$Q$251,11,0))) -> 182.868 | L94: =IF($A94=0,0,IF(A94="","",VLOOKUP($A94,'Tabla Fijos'!$B$12:$Q$251,12,0))) -> 0 | M94: =IF($A94=0,0,IF(A94="","",VLOOKUP($A94,'Tabla Fijos'!$B$12:$Q$251,13,0))) -> 0 | O94: 6064.009807 | P94: 581631.6693 | Q94: 1
A95: 29 | B95: 29 | C95: =IF($B95="","",'Fecha Pago'!K32) -> 2024-11-03 | D95: =IF($B$67="","",'Fecha Pago'!L32) -> 30.4 | E95: 0.09 | F95: =IF($A95=0,$H$48,IF(A95="","",VLOOKUP($A95,'Tabla Fijos'!$B$12:$Q$251,5,0))) -> 581631.6693 | G95: =IF($A95=0,0,IF(A95="","",VLOOKUP($A95,'Tabla Fijos'!$B$12:$Q$251,6,0))) -> 1111.100486 | H95: =IF($A95=0,0,IF(A95="","",VLOOKUP($A95,'Tabla Fijos'!$B$12:$Q$251,7,0))) -> 4420.400687 | I95: =IF($A95=0,0,IF(A95="","",VLOOKUP($A95,'Tabla Fijos'!$B$12:$Q$251,8,0))) -> 0 | J95: =IF($A95=0,0,IF(A95="","",VLOOKUP($A95,'Tabla Fijos'!$B$12:$Q$251,10,0))) -> 348.9790016 | K95: =IF($A95=0,0,IF(A95="","",VLOOKUP($A95,'Tabla Fijos'!$B$12:$Q$251,11,0))) -> 182.868 | L95: =IF($A95=0,0,IF(A95="","",VLOOKUP($A95,'Tabla Fijos'!$B$12:$Q$251,12,0))) -> 0 | M95: =IF($A95=0,0,IF(A95="","",VLOOKUP($A95,'Tabla Fijos'!$B$12:$Q$251,13,0))) -> 0 | O95: 6063.348175 | P95: 580520.5688 | Q95: 1
A96: 30 | B96: 30 | C96: =IF($B96="","",'Fecha Pago'!K33) -> 2024-12-03 | D96: =IF($B$67="","",'Fecha Pago'!L33) -> 30.4 | E96: 0.09 | F96: =IF($A96=0,$H$48,IF(A96="","",VLOOKUP($A96,'Tabla Fijos'!$B$12:$Q$251,5,0))) -> 580520.5688 | G96: =IF($A96=0,0,IF(A96="","",VLOOKUP($A96,'Tabla Fijos'!$B$12:$Q$251,6,0))) -> 1119.54485 | H96: =IF($A96=0,0,IF(A96="","",VLOOKUP($A96,'Tabla Fijos'!$B$12:$Q$251,7,0))) -> 4411.956323 | I96: =IF($A96=0,0,IF(A96="","",VLOOKUP($A96,'Tabla Fijos'!$B$12:$Q$251,8,0))) -> 0 | J96: =IF($A96=0,0,IF(A96="","",VLOOKUP($A96,'Tabla Fijos'!$B$12:$Q$251,10,0))) -> 348.3123413 | K96: =IF($A96=0,0,IF(A96="","",VLOOKUP($A96,'Tabla Fijos'!$B$12:$Q$251,11,0))) -> 182.868 | L96: =IF($A96=0,0,IF(A96="","",VLOOKUP($A96,'Tabla Fijos'!$B$12:$Q$251,12,0))) -> 0 | M96: =IF($A96=0,0,IF(A96="","",VLOOKUP($A96,'Tabla Fijos'!$B$12:$Q$251,13,0))) -> 0 | O96: 6062.681514 | P96: 579401.024 | Q96: 1
A97: 31 | B97: 31 | C97: =IF($B97="","",'Fecha Pago'!K34) -> 2025-01-03 | D97: =IF($B$67="","",'Fecha Pago'!L34) -> 30.4 | E97: 0.09 | F97: =IF($A97=0,$H$48,IF(A97="","",VLOOKUP($A97,'Tabla Fijos'!$B$12:$Q$251,5,0))) -> 579401.024 | G97: =IF($A97=0,0,IF(A97="","",VLOOKUP($A97,'Tabla Fijos'!$B$12:$Q$251,6,0))) -> 1128.053391 | H97: =IF($A97=0,0,IF(A97="","",VLOOKUP($A97,'Tabla Fijos'!$B$12:$Q$251,7,0))) -> 4403.447782 | I97: =IF($A97=0,0,IF(A97="","",VLOOKUP($A97,'Tabla Fijos'!$B$12:$Q$251,8,0))) -> 0 | J97: =IF($A97=0,0,IF(A97="","",VLOOKUP($A97,'Tabla Fijos'!$B$12:$Q$251,10,0))) -> 347.6406144 | K97: =IF($A97=0,0,IF(A97="","",VLOOKUP($A97,'Tabla Fijos'!$B$12:$Q$251,11,0))) -> 182.868 | L97: =IF($A97=0,0,IF(A97="","",VLOOKUP($A97,'Tabla Fijos'!$B$12:$Q$251,12,0))) -> 0 | M97: =IF($A97=0,0,IF(A97="","",VLOOKUP($A97,'Tabla Fijos'!$B$12:$Q$251,13,0))) -> 0 | O97: 6062.009788 | P97: 578272.9706 | Q97: 1
A98: 32 | B98: 32 | C98: =IF($B98="","",'Fecha Pago'!K35) -> 2025-02-03 | D98: =IF($B$67="","",'Fecha Pago'!L35) -> 30.4 | E98: 0.09 | F98: =IF($A98=0,$H$48,IF(A98="","",VLOOKUP($A98,'Tabla Fijos'!$B$12:$Q$251,5,0))) -> 578272.9706 | G98: =IF($A98=0,0,IF(A98="","",VLOOKUP($A98,'Tabla Fijos'!$B$12:$Q$251,6,0))) -> 1136.626597 | H98: =IF($A98=0,0,IF(A98="","",VLOOKUP($A98,'Tabla Fijos'!$B$12:$Q$251,7,0))) -> 4394.874576 | I98: =IF($A98=0,0,IF(A98="","",VLOOKUP($A98,'Tabla Fijos'!$B$12:$Q$251,8,0))) -> 0 | J98: =IF($A98=0,0,IF(A98="","",VLOOKUP($A98,'Tabla Fijos'!$B$12:$Q$251,10,0))) -> 346.9637823 | K98: =IF($A98=0,0,IF(A98="","",VLOOKUP($A98,'Tabla Fijos'!$B$12:$Q$251,11,0))) -> 182.868 | L98: =IF($A98=0,0,IF(A98="","",VLOOKUP($A98,'Tabla Fijos'!$B$12:$Q$251,12,0))) -> 0 | M98: =IF($A98=0,0,IF(A98="","",VLOOKUP($A98,'Tabla Fijos'!$B$12:$Q$251,13,0))) -> 0 | O98: 6061.332955 | P98: 577136.344 | Q98: 1
A99: 33 | B99: 33 | C99: =IF($B99="","",'Fecha Pago'!K36) -> 2025-03-03 | D99: =IF($B$67="","",'Fecha Pago'!L36) -> 30.4 | E99: 0.09 | F99: =IF($A99=0,$H$48,IF(A99="","",VLOOKUP($A99,'Tabla Fijos'!$B$12:$Q$251,5,0))) -> 577136.344 | G99: =IF($A99=0,0,IF(A99="","",VLOOKUP($A99,'Tabla Fijos'!$B$12:$Q$251,6,0))) -> 1145.264959 | H99: =IF($A99=0,0,IF(A99="","",VLOOKUP($A99,'Tabla Fijos'!$B$12:$Q$251,7,0))) -> 4386.236214 | I99: =IF($A99=0,0,IF(A99="","",VLOOKUP($A99,'Tabla Fijos'!$B$12:$Q$251,8,0))) -> 0 | J99: =IF($A99=0,0,IF(A99="","",VLOOKUP($A99,'Tabla Fijos'!$B$12:$Q$251,10,0))) -> 346.2818064 | K99: =IF($A99=0,0,IF(A99="","",VLOOKUP($A99,'Tabla Fijos'!$B$12:$Q$251,11,0))) -> 182.868 | L99: =IF($A99=0,0,IF(A99="","",VLOOKUP($A99,'Tabla Fijos'!$B$12:$Q$251,12,0))) -> 0 | M99: =IF($A99=0,0,IF(A99="","",VLOOKUP($A99,'Tabla Fijos'!$B$12:$Q$251,13,0))) -> 0 | O99: 6060.65098 | P99: 575991.079 | Q99: 1
A100: 34 | B100: 34 | C100: =IF($B100="","",'Fecha Pago'!K37) -> 2025-04-03 | D100: =IF($B$67="","",'Fecha Pago'!L37) -> 30.4 | E100: 0.09 | F100: =IF($A100=0,$H$48,IF(A100="","",VLOOKUP($A100,'Tabla Fijos'!$B$12:$Q$251,5,0))) -> 575991.079 | G100: =IF($A100=0,0,IF(A100="","",VLOOKUP($A100,'Tabla Fijos'!$B$12:$Q$251,6,0))) -> 1153.968973 | H100: =IF($A100=0,0,IF(A100="","",VLOOKUP($A100,'Tabla Fijos'!$B$12:$Q$251,7,0))) -> 4377.532201 | I100: =IF($A100=0,0,IF(A100="","",VLOOKUP($A100,'Tabla Fijos'!$B$12:$Q$251,8,0))) -> 0 | J100: =IF($A100=0,0,IF(A100="","",VLOOKUP($A100,'Tabla Fijos'!$B$12:$Q$251,10,0))) -> 345.5946474 | K100: =IF($A100=0,0,IF(A100="","",VLOOKUP($A100,'Tabla Fijos'!$B$12:$Q$251,11,0))) -> 182.868 | L100: =IF($A100=0,0,IF(A100="","",VLOOKUP($A100,'Tabla Fijos'!$B$12:$Q$251,12,0))) -> 0 | M100: =IF($A100=0,0,IF(A100="","",VLOOKUP($A100,'Tabla Fijos'!$B$12:$Q$251,13,0))) -> 0 | O100: 6059.963821 | P100: 574837.1101 | Q100: 1
A101: 35 | B101: 35 | C101: =IF($B101="","",'Fecha Pago'!K38) -> 2025-05-03 | D101: =IF($B$67="","",'Fecha Pago'!L38) -> 30.4 | E101: 0.09 | F101: =IF($A101=0,$H$48,IF(A101="","",VLOOKUP($A101,'Tabla Fijos'!$B$12:$Q$251,5,0))) -> 574837.1101 | G101: =IF($A101=0,0,IF(A101="","",VLOOKUP($A101,'Tabla Fijos'!$B$12:$Q$251,6,0))) -> 1162.739137 | H101: =IF($A101=0,0,IF(A101="","",VLOOKUP($A101,'Tabla Fijos'!$B$12:$Q$251,7,0))) -> 4368.762036 | I101: =IF($A101=0,0,IF(A101="","",VLOOKUP($A101,'Tabla Fijos'!$B$12:$Q$251,8,0))) -> 0 | J101: =IF($A101=0,0,IF(A101="","",VLOOKUP($A101,'Tabla Fijos'!$B$12:$Q$251,10,0))) -> 344.902266 | K101: =IF($A101=0,0,IF(A101="","",VLOOKUP($A101,'Tabla Fijos'!$B$12:$Q$251,11,0))) -> 182.868 | L101: =IF($A101=0,0,IF(A101="","",VLOOKUP($A101,'Tabla Fijos'!$B$12:$Q$251,12,0))) -> 0 | M101: =IF($A101=0,0,IF(A101="","",VLOOKUP($A101,'Tabla Fijos'!$B$12:$Q$251,13,0))) -> 0 | O101: 6059.271439 | P101: 573674.3709 | Q101: 1
A102: 36 | B102: 36 | C102: =IF($B102="","",'Fecha Pago'!K39) -> 2025-06-03 | D102: =IF($B$67="","",'Fecha Pago'!L39) -> 30.4 | E102: 0.09 | F102: =IF($A102=0,$H$48,IF(A102="","",VLOOKUP($A102,'Tabla Fijos'!$B$12:$Q$251,5,0))) -> 573674.3709 | G102: =IF($A102=0,0,IF(A102="","",VLOOKUP($A102,'Tabla Fijos'!$B$12:$Q$251,6,0))) -> 1171.575954 | H102: =IF($A102=0,0,IF(A102="","",VLOOKUP($A102,'Tabla Fijos'!$B$12:$Q$251,7,0))) -> 4359.925219 | I102: =IF($A102=0,0,IF(A102="","",VLOOKUP($A102,'Tabla Fijos'!$B$12:$Q$251,8,0))) -> 0 | J102: =IF($A102=0,0,IF(A102="","",VLOOKUP($A102,'Tabla Fijos'!$B$12:$Q$251,10,0))) -> 344.2046226 | K102: =IF($A102=0,0,IF(A102="","",VLOOKUP($A102,'Tabla Fijos'!$B$12:$Q$251,11,0))) -> 182.868 | L102: =IF($A102=0,0,IF(A102="","",VLOOKUP($A102,'Tabla Fijos'!$B$12:$Q$251,12,0))) -> 0 | M102: =IF($A102=0,0,IF(A102="","",VLOOKUP($A102,'Tabla Fijos'!$B$12:$Q$251,13,0))) -> 0 | O102: 6058.573796 | P102: 572502.795 | Q102: 1
A103: 37 | B103: 37 | C103: =IF($B103="","",'Fecha Pago'!K40) -> 2025-07-03 | D103: =IF($B$67="","",'Fecha Pago'!L40) -> 30.4 | E103: 0.09 | F103: =IF($A103=0,$H$48,IF(A103="","",VLOOKUP($A103,'Tabla Fijos'!$B$12:$Q$251,5,0))) -> 572502.795 | G103: =IF($A103=0,0,IF(A103="","",VLOOKUP($A103,'Tabla Fijos'!$B$12:$Q$251,6,0))) -> 1180.479931 | H103: =IF($A103=0,0,IF(A103="","",VLOOKUP($A103,'Tabla Fijos'!$B$12:$Q$251,7,0))) -> 4351.021242 | I103: =IF($A103=0,0,IF(A103="","",VLOOKUP($A103,'Tabla Fijos'!$B$12:$Q$251,8,0))) -> 0 | J103: =IF($A103=0,0,IF(A103="","",VLOOKUP($A103,'Tabla Fijos'!$B$12:$Q$251,10,0))) -> 343.501677 | K103: =IF($A103=0,0,IF(A103="","",VLOOKUP($A103,'Tabla Fijos'!$B$12:$Q$251,11,0))) -> 182.868 | L103: =IF($A103=0,0,IF(A103="","",VLOOKUP($A103,'Tabla Fijos'!$B$12:$Q$251,12,0))) -> 0 | M103: =IF($A103=0,0,IF(A103="","",VLOOKUP($A103,'Tabla Fijos'!$B$12:$Q$251,13,0))) -> 0 | O103: 6057.87085 | P103: 571322.315 | Q103: 1
A104: 38 | B104: 38 | C104: =IF($B104="","",'Fecha Pago'!K41) -> 2025-08-03 | D104: =IF($B$67="","",'Fecha Pago'!L41) -> 30.4 | E104: 0.09 | F104: =IF($A104=0,$H$48,IF(A104="","",VLOOKUP($A104,'Tabla Fijos'!$B$12:$Q$251,5,0))) -> 571322.315 | G104: =IF($A104=0,0,IF(A104="","",VLOOKUP($A104,'Tabla Fijos'!$B$12:$Q$251,6,0))) -> 1189.451579 | H104: =IF($A104=0,0,IF(A104="","",VLOOKUP($A104,'Tabla Fijos'!$B$12:$Q$251,7,0))) -> 4342.049594 | I104: =IF($A104=0,0,IF(A104="","",VLOOKUP($A104,'Tabla Fijos'!$B$12:$Q$251,8,0))) -> 0 | J104: =IF($A104=0,0,IF(A104="","",VLOOKUP($A104,'Tabla Fijos'!$B$12:$Q$251,10,0))) -> 342.793389 | K104: =IF($A104=0,0,IF(A104="","",VLOOKUP($A104,'Tabla Fijos'!$B$12:$Q$251,11,0))) -> 182.868 | L104: =IF($A104=0,0,IF(A104="","",VLOOKUP($A104,'Tabla Fijos'!$B$12:$Q$251,12,0))) -> 0 | M104: =IF($A104=0,0,IF(A104="","",VLOOKUP($A104,'Tabla Fijos'!$B$12:$Q$251,13,0))) -> 0 | O104: 6057.162562 | P104: 570132.8635 | Q104: 1
A105: 39 | B105: 39 | C105: =IF($B105="","",'Fecha Pago'!K42) -> 2025-09-03 | D105: =IF($B$67="","",'Fecha Pago'!L42) -> 30.4 | E105: 0.09 | F105: =IF($A105=0,$H$48,IF(A105="","",VLOOKUP($A105,'Tabla Fijos'!$B$12:$Q$251,5,0))) -> 570132.8635 | G105: =IF($A105=0,0,IF(A105="","",VLOOKUP($A105,'Tabla Fijos'!$B$12:$Q$251,6,0))) -> 1198.491411 | H105: =IF($A105=0,0,IF(A105="","",VLOOKUP($A105,'Tabla Fijos'!$B$12:$Q$251,7,0))) -> 4333.009762 | I105: =IF($A105=0,0,IF(A105="","",VLOOKUP($A105,'Tabla Fijos'!$B$12:$Q$251,8,0))) -> 0 | J105: =IF($A105=0,0,IF(A105="","",VLOOKUP($A105,'Tabla Fijos'!$B$12:$Q$251,10,0))) -> 342.0797181 | K105: =IF($A105=0,0,IF(A105="","",VLOOKUP($A105,'Tabla Fijos'!$B$12:$Q$251,11,0))) -> 182.868 | L105: =IF($A105=0,0,IF(A105="","",VLOOKUP($A105,'Tabla Fijos'!$B$12:$Q$251,12,0))) -> 0 | M105: =IF($A105=0,0,IF(A105="","",VLOOKUP($A105,'Tabla Fijos'!$B$12:$Q$251,13,0))) -> 0 | O105: 6056.448891 | P105: 568934.372 | Q105: 1
A106: 40 | B106: 40 | C106: =IF($B106="","",'Fecha Pago'!K43) -> 2025-10-03 | D106: =IF($B$67="","",'Fecha Pago'!L43) -> 30.4 | E106: 0.09 | F106: =IF($A106=0,$H$48,IF(A106="","",VLOOKUP($A106,'Tabla Fijos'!$B$12:$Q$251,5,0))) -> 568934.372 | G106: =IF($A106=0,0,IF(A106="","",VLOOKUP($A106,'Tabla Fijos'!$B$12:$Q$251,6,0))) -> 1207.599946 | H106: =IF($A106=0,0,IF(A106="","",VLOOKUP($A106,'Tabla Fijos'!$B$12:$Q$251,7,0))) -> 4323.901228 | I106: =IF($A106=0,0,IF(A106="","",VLOOKUP($A106,'Tabla Fijos'!$B$12:$Q$251,8,0))) -> 0 | J106: =IF($A106=0,0,IF(A106="","",VLOOKUP($A106,'Tabla Fijos'!$B$12:$Q$251,10,0))) -> 341.3606232 | K106: =IF($A106=0,0,IF(A106="","",VLOOKUP($A106,'Tabla Fijos'!$B$12:$Q$251,11,0))) -> 182.868 | L106: =IF($A106=0,0,IF(A106="","",VLOOKUP($A106,'Tabla Fijos'!$B$12:$Q$251,12,0))) -> 0 | M106: =IF($A106=0,0,IF(A106="","",VLOOKUP($A106,'Tabla Fijos'!$B$12:$Q$251,13,0))) -> 0 | O106: 6055.729796 | P106: 567726.7721 | Q106: 1
A107: 41 | B107: 41 | C107: =IF($B107="","",'Fecha Pago'!K44) -> 2025-11-03 | D107: =IF($B$67="","",'Fecha Pago'!L44) -> 30.4 | E107: 0.09 | F107: =IF($A107=0,$H$48,IF(A107="","",VLOOKUP($A107,'Tabla Fijos'!$B$12:$Q$251,5,0))) -> 567726.7721 | G107: =IF($A107=0,0,IF(A107="","",VLOOKUP($A107,'Tabla Fijos'!$B$12:$Q$251,6,0))) -> 1216.777705 | H107: =IF($A107=0,0,IF(A107="","",VLOOKUP($A107,'Tabla Fijos'!$B$12:$Q$251,7,0))) -> 4314.723468 | I107: =IF($A107=0,0,IF(A107="","",VLOOKUP($A107,'Tabla Fijos'!$B$12:$Q$251,8,0))) -> 0 | J107: =IF($A107=0,0,IF(A107="","",VLOOKUP($A107,'Tabla Fijos'!$B$12:$Q$251,10,0))) -> 340.6360633 | K107: =IF($A107=0,0,IF(A107="","",VLOOKUP($A107,'Tabla Fijos'!$B$12:$Q$251,11,0))) -> 182.868 | L107: =IF($A107=0,0,IF(A107="","",VLOOKUP($A107,'Tabla Fijos'!$B$12:$Q$251,12,0))) -> 0 | M107: =IF($A107=0,0,IF(A107="","",VLOOKUP($A107,'Tabla Fijos'!$B$12:$Q$251,13,0))) -> 0 | O107: 6055.005236 | P107: 566509.9944 | Q107: 1
A108: 42 | B108: 42 | C108: =IF($B108="","",'Fecha Pago'!K45) -> 2025-12-03 | D108: =IF($B$67="","",'Fecha Pago'!L45) -> 30.4 | E108: 0.09 | F108: =IF($A108=0,$H$48,IF(A108="","",VLOOKUP($A108,'Tabla Fijos'!$B$12:$Q$251,5,0))) -> 566509.9944 | G108: =IF($A108=0,0,IF(A108="","",VLOOKUP($A108,'Tabla Fijos'!$B$12:$Q$251,6,0))) -> 1226.025216 | H108: =IF($A108=0,0,IF(A108="","",VLOOKUP($A108,'Tabla Fijos'!$B$12:$Q$251,7,0))) -> 4305.475957 | I108: =IF($A108=0,0,IF(A108="","",VLOOKUP($A108,'Tabla Fijos'!$B$12:$Q$251,8,0))) -> 0 | J108: =IF($A108=0,0,IF(A108="","",VLOOKUP($A108,'Tabla Fijos'!$B$12:$Q$251,10,0))) -> 339.9059966 | K108: =IF($A108=0,0,IF(A108="","",VLOOKUP($A108,'Tabla Fijos'!$B$12:$Q$251,11,0))) -> 182.868 | L108: =IF($A108=0,0,IF(A108="","",VLOOKUP($A108,'Tabla Fijos'!$B$12:$Q$251,12,0))) -> 0 | M108: =IF($A108=0,0,IF(A108="","",VLOOKUP($A108,'Tabla Fijos'!$B$12:$Q$251,13,0))) -> 0 | O108: 6054.27517 | P108: 565283.9692 | Q108: 1
A109: 43 | B109: 43 | C109: =IF($B109="","",'Fecha Pago'!K46) -> 2026-01-03 | D109: =IF($B$67="","",'Fecha Pago'!L46) -> 30.4 | E109: 0.09 | F109: =IF($A109=0,$H$48,IF(A109="","",VLOOKUP($A109,'Tabla Fijos'!$B$12:$Q$251,5,0))) -> 565283.9692 | G109: =IF($A109=0,0,IF(A109="","",VLOOKUP($A109,'Tabla Fijos'!$B$12:$Q$251,6,0))) -> 1235.343007 | H109: =IF($A109=0,0,IF(A109="","",VLOOKUP($A109,'Tabla Fijos'!$B$12:$Q$251,7,0))) -> 4296.158166 | I109: =IF($A109=0,0,IF(A109="","",VLOOKUP($A109,'Tabla Fijos'!$B$12:$Q$251,8,0))) -> 0 | J109: =IF($A109=0,0,IF(A109="","",VLOOKUP($A109,'Tabla Fijos'!$B$12:$Q$251,10,0))) -> 339.1703815 | K109: =IF($A109=0,0,IF(A109="","",VLOOKUP($A109,'Tabla Fijos'!$B$12:$Q$251,11,0))) -> 182.868 | L109: =IF($A109=0,0,IF(A109="","",VLOOKUP($A109,'Tabla Fijos'!$B$12:$Q$251,12,0))) -> 0 | M109: =IF($A109=0,0,IF(A109="","",VLOOKUP($A109,'Tabla Fijos'!$B$12:$Q$251,13,0))) -> 0 | O109: 6053.539555 | P109: 564048.6262 | Q109: 1
A110: 44 | B110: 44 | C110: =IF($B110="","",'Fecha Pago'!K47) -> 2026-02-03 | D110: =IF($B$67="","",'Fecha Pago'!L47) -> 30.4 | E110: 0.09 | F110: =IF($A110=0,$H$48,IF(A110="","",VLOOKUP($A110,'Tabla Fijos'!$B$12:$Q$251,5,0))) -> 564048.6262 | G110: =IF($A110=0,0,IF(A110="","",VLOOKUP($A110,'Tabla Fijos'!$B$12:$Q$251,6,0))) -> 1244.731614 | H110: =IF($A110=0,0,IF(A110="","",VLOOKUP($A110,'Tabla Fijos'!$B$12:$Q$251,7,0))) -> 4286.769559 | I110: =IF($A110=0,0,IF(A110="","",VLOOKUP($A110,'Tabla Fijos'!$B$12:$Q$251,8,0))) -> 0 | J110: =IF($A110=0,0,IF(A110="","",VLOOKUP($A110,'Tabla Fijos'!$B$12:$Q$251,10,0))) -> 338.4291757 | K110: =IF($A110=0,0,IF(A110="","",VLOOKUP($A110,'Tabla Fijos'!$B$12:$Q$251,11,0))) -> 182.868 | L110: =IF($A110=0,0,IF(A110="","",VLOOKUP($A110,'Tabla Fijos'!$B$12:$Q$251,12,0))) -> 0 | M110: =IF($A110=0,0,IF(A110="","",VLOOKUP($A110,'Tabla Fijos'!$B$12:$Q$251,13,0))) -> 0 | O110: 6052.798349 | P110: 562803.8946 | Q110: 1
A111: 45 | B111: 45 | C111: =IF($B111="","",'Fecha Pago'!K48) -> 2026-03-03 | D111: =IF($B$67="","",'Fecha Pago'!L48) -> 30.4 | E111: 0.09 | F111: =IF($A111=0,$H$48,IF(A111="","",VLOOKUP($A111,'Tabla Fijos'!$B$12:$Q$251,5,0))) -> 562803.8946 | G111: =IF($A111=0,0,IF(A111="","",VLOOKUP($A111,'Tabla Fijos'!$B$12:$Q$251,6,0))) -> 1254.191575 | H111: =IF($A111=0,0,IF(A111="","",VLOOKUP($A111,'Tabla Fijos'!$B$12:$Q$251,7,0))) -> 4277.309599 | I111: =IF($A111=0,0,IF(A111="","",VLOOKUP($A111,'Tabla Fijos'!$B$12:$Q$251,8,0))) -> 0 | J111: =IF($A111=0,0,IF(A111="","",VLOOKUP($A111,'Tabla Fijos'!$B$12:$Q$251,10,0))) -> 337.6823367 | K111: =IF($A111=0,0,IF(A111="","",VLOOKUP($A111,'Tabla Fijos'!$B$12:$Q$251,11,0))) -> 182.868 | L111: =IF($A111=0,0,IF(A111="","",VLOOKUP($A111,'Tabla Fijos'!$B$12:$Q$251,12,0))) -> 0 | M111: =IF($A111=0,0,IF(A111="","",VLOOKUP($A111,'Tabla Fijos'!$B$12:$Q$251,13,0))) -> 0 | O111: 6052.05151 | P111: 561549.703 | Q111: 1
A112: 46 | B112: 46 | C112: =IF($B112="","",'Fecha Pago'!K49) -> 2026-04-03 | D112: =IF($B$67="","",'Fecha Pago'!L49) -> 30.4 | E112: 0.09 | F112: =IF($A112=0,$H$48,IF(A112="","",VLOOKUP($A112,'Tabla Fijos'!$B$12:$Q$251,5,0))) -> 561549.703 | G112: =IF($A112=0,0,IF(A112="","",VLOOKUP($A112,'Tabla Fijos'!$B$12:$Q$251,6,0))) -> 1263.72343 | H112: =IF($A112=0,0,IF(A112="","",VLOOKUP($A112,'Tabla Fijos'!$B$12:$Q$251,7,0))) -> 4267.777743 | I112: =IF($A112=0,0,IF(A112="","",VLOOKUP($A112,'Tabla Fijos'!$B$12:$Q$251,8,0))) -> 0 | J112: =IF($A112=0,0,IF(A112="","",VLOOKUP($A112,'Tabla Fijos'!$B$12:$Q$251,10,0))) -> 336.9298218 | K112: =IF($A112=0,0,IF(A112="","",VLOOKUP($A112,'Tabla Fijos'!$B$12:$Q$251,11,0))) -> 182.868 | L112: =IF($A112=0,0,IF(A112="","",VLOOKUP($A112,'Tabla Fijos'!$B$12:$Q$251,12,0))) -> 0 | M112: =IF($A112=0,0,IF(A112="","",VLOOKUP($A112,'Tabla Fijos'!$B$12:$Q$251,13,0))) -> 0 | O112: 6051.298995 | P112: 560285.9795 | Q112: 1
A113: 47 | B113: 47 | C113: =IF($B113="","",'Fecha Pago'!K50) -> 2026-05-03 | D113: =IF($B$67="","",'Fecha Pago'!L50) -> 30.4 | E113: 0.09 | F113: =IF($A113=0,$H$48,IF(A113="","",VLOOKUP($A113,'Tabla Fijos'!$B$12:$Q$251,5,0))) -> 560285.9795 | G113: =IF($A113=0,0,IF(A113="","",VLOOKUP($A113,'Tabla Fijos'!$B$12:$Q$251,6,0))) -> 1273.327729 | H113: =IF($A113=0,0,IF(A113="","",VLOOKUP($A113,'Tabla Fijos'!$B$12:$Q$251,7,0))) -> 4258.173445 | I113: =IF($A113=0,0,IF(A113="","",VLOOKUP($A113,'Tabla Fijos'!$B$12:$Q$251,8,0))) -> 0 | J113: =IF($A113=0,0,IF(A113="","",VLOOKUP($A113,'Tabla Fijos'!$B$12:$Q$251,10,0))) -> 336.1715877 | K113: =IF($A113=0,0,IF(A113="","",VLOOKUP($A113,'Tabla Fijos'!$B$12:$Q$251,11,0))) -> 182.868 | L113: =IF($A113=0,0,IF(A113="","",VLOOKUP($A113,'Tabla Fijos'!$B$12:$Q$251,12,0))) -> 0 | M113: =IF($A113=0,0,IF(A113="","",VLOOKUP($A113,'Tabla Fijos'!$B$12:$Q$251,13,0))) -> 0 | O113: 6050.540761 | P113: 559012.6518 | Q113: 1
A114: 48 | B114: 48 | C114: =IF($B114="","",'Fecha Pago'!K51) -> 2026-06-03 | D114: =IF($B$67="","",'Fecha Pago'!L51) -> 30.4 | E114: 0.09 | F114: =IF($A114=0,$H$48,IF(A114="","",VLOOKUP($A114,'Tabla Fijos'!$B$12:$Q$251,5,0))) -> 559012.6518 | G114: =IF($A114=0,0,IF(A114="","",VLOOKUP($A114,'Tabla Fijos'!$B$12:$Q$251,6,0))) -> 1283.005019 | H114: =IF($A114=0,0,IF(A114="","",VLOOKUP($A114,'Tabla Fijos'!$B$12:$Q$251,7,0))) -> 4248.496154 | I114: =IF($A114=0,0,IF(A114="","",VLOOKUP($A114,'Tabla Fijos'!$B$12:$Q$251,8,0))) -> 0 | J114: =IF($A114=0,0,IF(A114="","",VLOOKUP($A114,'Tabla Fijos'!$B$12:$Q$251,10,0))) -> 335.4075911 | K114: =IF($A114=0,0,IF(A114="","",VLOOKUP($A114,'Tabla Fijos'!$B$12:$Q$251,11,0))) -> 182.868 | L114: =IF($A114=0,0,IF(A114="","",VLOOKUP($A114,'Tabla Fijos'!$B$12:$Q$251,12,0))) -> 0 | M114: =IF($A114=0,0,IF(A114="","",VLOOKUP($A114,'Tabla Fijos'!$B$12:$Q$251,13,0))) -> 0 | O114: 6049.776764 | P114: 557729.6468 | Q114: 1
A115: 49 | B115: 49 | C115: =IF($B115="","",'Fecha Pago'!K52) -> 2026-07-03 | D115: =IF($B$67="","",'Fecha Pago'!L52) -> 30.4 | E115: 0.09 | F115: =IF($A115=0,$H$48,IF(A115="","",VLOOKUP($A115,'Tabla Fijos'!$B$12:$Q$251,5,0))) -> 557729.6468 | G115: =IF($A115=0,0,IF(A115="","",VLOOKUP($A115,'Tabla Fijos'!$B$12:$Q$251,6,0))) -> 1292.755857 | H115: =IF($A115=0,0,IF(A115="","",VLOOKUP($A115,'Tabla Fijos'!$B$12:$Q$251,7,0))) -> 4238.745316 | I115: =IF($A115=0,0,IF(A115="","",VLOOKUP($A115,'Tabla Fijos'!$B$12:$Q$251,8,0))) -> 0 | J115: =IF($A115=0,0,IF(A115="","",VLOOKUP($A115,'Tabla Fijos'!$B$12:$Q$251,10,0))) -> 334.6377881 | K115: =IF($A115=0,0,IF(A115="","",VLOOKUP($A115,'Tabla Fijos'!$B$12:$Q$251,11,0))) -> 182.868 | L115: =IF($A115=0,0,IF(A115="","",VLOOKUP($A115,'Tabla Fijos'!$B$12:$Q$251,12,0))) -> 0 | M115: =IF($A115=0,0,IF(A115="","",VLOOKUP($A115,'Tabla Fijos'!$B$12:$Q$251,13,0))) -> 0 | O115: 6049.006961 | P115: 556436.8909 | Q115: 1
A116: 50 | B116: 50 | C116: =IF($B116="","",'Fecha Pago'!K53) -> 2026-08-03 | D116: =IF($B$67="","",'Fecha Pago'!L53) -> 30.4 | E116: 0.09 | F116: =IF($A116=0,$H$48,IF(A116="","",VLOOKUP($A116,'Tabla Fijos'!$B$12:$Q$251,5,0))) -> 556436.8909 | G116: =IF($A116=0,0,IF(A116="","",VLOOKUP($A116,'Tabla Fijos'!$B$12:$Q$251,6,0))) -> 1302.580802 | H116: =IF($A116=0,0,IF(A116="","",VLOOKUP($A116,'Tabla Fijos'!$B$12:$Q$251,7,0))) -> 4228.920371 | I116: =IF($A116=0,0,IF(A116="","",VLOOKUP($A116,'Tabla Fijos'!$B$12:$Q$251,8,0))) -> 0 | J116: =IF($A116=0,0,IF(A116="","",VLOOKUP($A116,'Tabla Fijos'!$B$12:$Q$251,10,0))) -> 333.8621346 | K116: =IF($A116=0,0,IF(A116="","",VLOOKUP($A116,'Tabla Fijos'!$B$12:$Q$251,11,0))) -> 182.868 | L116: =IF($A116=0,0,IF(A116="","",VLOOKUP($A116,'Tabla Fijos'!$B$12:$Q$251,12,0))) -> 0 | M116: =IF($A116=0,0,IF(A116="","",VLOOKUP($A116,'Tabla Fijos'!$B$12:$Q$251,13,0))) -> 0 | O116: 6048.231308 | P116: 555134.3101 | Q116: 1
A117: 51 | B117: 51 | C117: =IF($B117="","",'Fecha Pago'!K54) -> 2026-09-03 | D117: =IF($B$67="","",'Fecha Pago'!L54) -> 30.4 | E117: 0.09 | F117: =IF($A117=0,$H$48,IF(A117="","",VLOOKUP($A117,'Tabla Fijos'!$B$12:$Q$251,5,0))) -> 555134.3101 | G117: =IF($A117=0,0,IF(A117="","",VLOOKUP($A117,'Tabla Fijos'!$B$12:$Q$251,6,0))) -> 1312.480416 | H117: =IF($A117=0,0,IF(A117="","",VLOOKUP($A117,'Tabla Fijos'!$B$12:$Q$251,7,0))) -> 4219.020757 | I117: =IF($A117=0,0,IF(A117="","",VLOOKUP($A117,'Tabla Fijos'!$B$12:$Q$251,8,0))) -> 0 | J117: =IF($A117=0,0,IF(A117="","",VLOOKUP($A117,'Tabla Fijos'!$B$12:$Q$251,10,0))) -> 333.0805861 | K117: =IF($A117=0,0,IF(A117="","",VLOOKUP($A117,'Tabla Fijos'!$B$12:$Q$251,11,0))) -> 182.868 | L117: =IF($A117=0,0,IF(A117="","",VLOOKUP($A117,'Tabla Fijos'!$B$12:$Q$251,12,0))) -> 0 | M117: =IF($A117=0,0,IF(A117="","",VLOOKUP($A117,'Tabla Fijos'!$B$12:$Q$251,13,0))) -> 0 | O117: 6047.449759 | P117: 553821.8297 | Q117: 1
A118: 52 | B118: 52 | C118: =IF($B118="","",'Fecha Pago'!K55) -> 2026-10-03 | D118: =IF($B$67="","",'Fecha Pago'!L55) -> 30.4 | E118: 0.09 | F118: =IF($A118=0,$H$48,IF(A118="","",VLOOKUP($A118,'Tabla Fijos'!$B$12:$Q$251,5,0))) -> 553821.8297 | G118: =IF($A118=0,0,IF(A118="","",VLOOKUP($A118,'Tabla Fijos'!$B$12:$Q$251,6,0))) -> 1322.455267 | H118: =IF($A118=0,0,IF(A118="","",VLOOKUP($A118,'Tabla Fijos'!$B$12:$Q$251,7,0))) -> 4209.045906 | I118: =IF($A118=0,0,IF(A118="","",VLOOKUP($A118,'Tabla Fijos'!$B$12:$Q$251,8,0))) -> 0 | J118: =IF($A118=0,0,IF(A118="","",VLOOKUP($A118,'Tabla Fijos'!$B$12:$Q$251,10,0))) -> 332.2930978 | K118: =IF($A118=0,0,IF(A118="","",VLOOKUP($A118,'Tabla Fijos'!$B$12:$Q$251,11,0))) -> 182.868 | L118: =IF($A118=0,0,IF(A118="","",VLOOKUP($A118,'Tabla Fijos'!$B$12:$Q$251,12,0))) -> 0 | M118: =IF($A118=0,0,IF(A118="","",VLOOKUP($A118,'Tabla Fijos'!$B$12:$Q$251,13,0))) -> 0 | O118: 6046.662271 | P118: 552499.3745 | Q118: 1
A119: 53 | B119: 53 | C119: =IF($B119="","",'Fecha Pago'!K56) -> 2026-11-03 | D119: =IF($B$67="","",'Fecha Pago'!L56) -> 30.4 | E119: 0.09 | F119: =IF($A119=0,$H$48,IF(A119="","",VLOOKUP($A119,'Tabla Fijos'!$B$12:$Q$251,5,0))) -> 552499.3745 | G119: =IF($A119=0,0,IF(A119="","",VLOOKUP($A119,'Tabla Fijos'!$B$12:$Q$251,6,0))) -> 1332.505927 | H119: =IF($A119=0,0,IF(A119="","",VLOOKUP($A119,'Tabla Fijos'!$B$12:$Q$251,7,0))) -> 4198.995246 | I119: =IF($A119=0,0,IF(A119="","",VLOOKUP($A119,'Tabla Fijos'!$B$12:$Q$251,8,0))) -> 0 | J119: =IF($A119=0,0,IF(A119="","",VLOOKUP($A119,'Tabla Fijos'!$B$12:$Q$251,10,0))) -> 331.4996247 | K119: =IF($A119=0,0,IF(A119="","",VLOOKUP($A119,'Tabla Fijos'!$B$12:$Q$251,11,0))) -> 182.868 | L119: =IF($A119=0,0,IF(A119="","",VLOOKUP($A119,'Tabla Fijos'!$B$12:$Q$251,12,0))) -> 0 | M119: =IF($A119=0,0,IF(A119="","",VLOOKUP($A119,'Tabla Fijos'!$B$12:$Q$251,13,0))) -> 0 | O119: 6045.868798 | P119: 551166.8685 | Q119: 1
A120: 54 | B120: 54 | C120: =IF($B120="","",'Fecha Pago'!K57) -> 2026-12-03 | D120: =IF($B$67="","",'Fecha Pago'!L57) -> 30.4 | E120: 0.09 | F120: =IF($A120=0,$H$48,IF(A120="","",VLOOKUP($A120,'Tabla Fijos'!$B$12:$Q$251,5,0))) -> 551166.8685 | G120: =IF($A120=0,0,IF(A120="","",VLOOKUP($A120,'Tabla Fijos'!$B$12:$Q$251,6,0))) -> 1342.632972 | H120: =IF($A120=0,0,IF(A120="","",VLOOKUP($A120,'Tabla Fijos'!$B$12:$Q$251,7,0))) -> 4188.868201 | I120: =IF($A120=0,0,IF(A120="","",VLOOKUP($A120,'Tabla Fijos'!$B$12:$Q$251,8,0))) -> 0 | J120: =IF($A120=0,0,IF(A120="","",VLOOKUP($A120,'Tabla Fijos'!$B$12:$Q$251,10,0))) -> 330.7001211 | K120: =IF($A120=0,0,IF(A120="","",VLOOKUP($A120,'Tabla Fijos'!$B$12:$Q$251,11,0))) -> 182.868 | L120: =IF($A120=0,0,IF(A120="","",VLOOKUP($A120,'Tabla Fijos'!$B$12:$Q$251,12,0))) -> 0 | M120: =IF($A120=0,0,IF(A120="","",VLOOKUP($A120,'Tabla Fijos'!$B$12:$Q$251,13,0))) -> 0 | O120: 6045.069294 | P120: 549824.2356 | Q120: 1
A121: 55 | B121: 55 | C121: =IF($B121="","",'Fecha Pago'!K58) -> 2027-01-03 | D121: =IF($B$67="","",'Fecha Pago'!L58) -> 30.4 | E121: 0.09 | F121: =IF($A121=0,$H$48,IF(A121="","",VLOOKUP($A121,'Tabla Fijos'!$B$12:$Q$251,5,0))) -> 549824.2356 | G121: =IF($A121=0,0,IF(A121="","",VLOOKUP($A121,'Tabla Fijos'!$B$12:$Q$251,6,0))) -> 1352.836983 | H121: =IF($A121=0,0,IF(A121="","",VLOOKUP($A121,'Tabla Fijos'!$B$12:$Q$251,7,0))) -> 4178.66419 | I121: =IF($A121=0,0,IF(A121="","",VLOOKUP($A121,'Tabla Fijos'!$B$12:$Q$251,8,0))) -> 0 | J121: =IF($A121=0,0,IF(A121="","",VLOOKUP($A121,'Tabla Fijos'!$B$12:$Q$251,10,0))) -> 329.8945413 | K121: =IF($A121=0,0,IF(A121="","",VLOOKUP($A121,'Tabla Fijos'!$B$12:$Q$251,11,0))) -> 182.868 | L121: =IF($A121=0,0,IF(A121="","",VLOOKUP($A121,'Tabla Fijos'!$B$12:$Q$251,12,0))) -> 0 | M121: =IF($A121=0,0,IF(A121="","",VLOOKUP($A121,'Tabla Fijos'!$B$12:$Q$251,13,0))) -> 0 | O121: 6044.263714 | P121: 548471.3986 | Q121: 1
A122: 56 | B122: 56 | C122: =IF($B122="","",'Fecha Pago'!K59) -> 2027-02-03 | D122: =IF($B$67="","",'Fecha Pago'!L59) -> 30.4 | E122: 0.09 | F122: =IF($A122=0,$H$48,IF(A122="","",VLOOKUP($A122,'Tabla Fijos'!$B$12:$Q$251,5,0))) -> 548471.3986 | G122: =IF($A122=0,0,IF(A122="","",VLOOKUP($A122,'Tabla Fijos'!$B$12:$Q$251,6,0))) -> 1363.118544 | H122: =IF($A122=0,0,IF(A122="","",VLOOKUP($A122,'Tabla Fijos'!$B$12:$Q$251,7,0))) -> 4168.382629 | I122: =IF($A122=0,0,IF(A122="","",VLOOKUP($A122,'Tabla Fijos'!$B$12:$Q$251,8,0))) -> 0 | J122: =IF($A122=0,0,IF(A122="","",VLOOKUP($A122,'Tabla Fijos'!$B$12:$Q$251,10,0))) -> 329.0828391 | K122: =IF($A122=0,0,IF(A122="","",VLOOKUP($A122,'Tabla Fijos'!$B$12:$Q$251,11,0))) -> 182.868 | L122: =IF($A122=0,0,IF(A122="","",VLOOKUP($A122,'Tabla Fijos'!$B$12:$Q$251,12,0))) -> 0 | M122: =IF($A122=0,0,IF(A122="","",VLOOKUP($A122,'Tabla Fijos'!$B$12:$Q$251,13,0))) -> 0 | O122: 6043.452012 | P122: 547108.28 | Q122: 1
A123: 57 | B123: 57 | C123: =IF($B123="","",'Fecha Pago'!K60) -> 2027-03-03 | D123: =IF($B$67="","",'Fecha Pago'!L60) -> 30.4 | E123: 0.09 | F123: =IF($A123=0,$H$48,IF(A123="","",VLOOKUP($A123,'Tabla Fijos'!$B$12:$Q$251,5,0))) -> 547108.28 | G123: =IF($A123=0,0,IF(A123="","",VLOOKUP($A123,'Tabla Fijos'!$B$12:$Q$251,6,0))) -> 1373.478245 | H123: =IF($A123=0,0,IF(A123="","",VLOOKUP($A123,'Tabla Fijos'!$B$12:$Q$251,7,0))) -> 4158.022928 | I123: =IF($A123=0,0,IF(A123="","",VLOOKUP($A123,'Tabla Fijos'!$B$12:$Q$251,8,0))) -> 0 | J123: =IF($A123=0,0,IF(A123="","",VLOOKUP($A123,'Tabla Fijos'!$B$12:$Q$251,10,0))) -> 328.264968 | K123: =IF($A123=0,0,IF(A123="","",VLOOKUP($A123,'Tabla Fijos'!$B$12:$Q$251,11,0))) -> 182.868 | L123: =IF($A123=0,0,IF(A123="","",VLOOKUP($A123,'Tabla Fijos'!$B$12:$Q$251,12,0))) -> 0 | M123: =IF($A123=0,0,IF(A123="","",VLOOKUP($A123,'Tabla Fijos'!$B$12:$Q$251,13,0))) -> 0 | O123: 6042.634141 | P123: 545734.8018 | Q123: 1
A124: 58 | B124: 58 | C124: =IF($B124="","",'Fecha Pago'!K61) -> 2027-04-03 | D124: =IF($B$67="","",'Fecha Pago'!L61) -> 30.4 | E124: 0.09 | F124: =IF($A124=0,$H$48,IF(A124="","",VLOOKUP($A124,'Tabla Fijos'!$B$12:$Q$251,5,0))) -> 545734.8018 | G124: =IF($A124=0,0,IF(A124="","",VLOOKUP($A124,'Tabla Fijos'!$B$12:$Q$251,6,0))) -> 1383.91668 | H124: =IF($A124=0,0,IF(A124="","",VLOOKUP($A124,'Tabla Fijos'!$B$12:$Q$251,7,0))) -> 4147.584494 | I124: =IF($A124=0,0,IF(A124="","",VLOOKUP($A124,'Tabla Fijos'!$B$12:$Q$251,8,0))) -> 0 | J124: =IF($A124=0,0,IF(A124="","",VLOOKUP($A124,'Tabla Fijos'!$B$12:$Q$251,10,0))) -> 327.4408811 | K124: =IF($A124=0,0,IF(A124="","",VLOOKUP($A124,'Tabla Fijos'!$B$12:$Q$251,11,0))) -> 182.868 | L124: =IF($A124=0,0,IF(A124="","",VLOOKUP($A124,'Tabla Fijos'!$B$12:$Q$251,12,0))) -> 0 | M124: =IF($A124=0,0,IF(A124="","",VLOOKUP($A124,'Tabla Fijos'!$B$12:$Q$251,13,0))) -> 0 | O124: 6041.810054 | P124: 544350.8851 | Q124: 1
A125: 59 | B125: 59 | C125: =IF($B125="","",'Fecha Pago'!K62) -> 2027-05-03 | D125: =IF($B$67="","",'Fecha Pago'!L62) -> 30.4 | E125: 0.09 | F125: =IF($A125=0,$H$48,IF(A125="","",VLOOKUP($A125,'Tabla Fijos'!$B$12:$Q$251,5,0))) -> 544350.8851 | G125: =IF($A125=0,0,IF(A125="","",VLOOKUP($A125,'Tabla Fijos'!$B$12:$Q$251,6,0))) -> 1394.434446 | H125: =IF($A125=0,0,IF(A125="","",VLOOKUP($A125,'Tabla Fijos'!$B$12:$Q$251,7,0))) -> 4137.066727 | I125: =IF($A125=0,0,IF(A125="","",VLOOKUP($A125,'Tabla Fijos'!$B$12:$Q$251,8,0))) -> 0 | J125: =IF($A125=0,0,IF(A125="","",VLOOKUP($A125,'Tabla Fijos'!$B$12:$Q$251,10,0))) -> 326.6105311 | K125: =IF($A125=0,0,IF(A125="","",VLOOKUP($A125,'Tabla Fijos'!$B$12:$Q$251,11,0))) -> 182.868 | L125: =IF($A125=0,0,IF(A125="","",VLOOKUP($A125,'Tabla Fijos'!$B$12:$Q$251,12,0))) -> 0 | M125: =IF($A125=0,0,IF(A125="","",VLOOKUP($A125,'Tabla Fijos'!$B$12:$Q$251,13,0))) -> 0 | O125: 6040.979704 | P125: 542956.4507 | Q125: 1
A126: 60 | B126: 60 | C126: =IF($B126="","",'Fecha Pago'!K63) -> 2027-06-03 | D126: =IF($B$67="","",'Fecha Pago'!L63) -> 30.4 | E126: 0.09 | F126: =IF($A126=0,$H$48,IF(A126="","",VLOOKUP($A126,'Tabla Fijos'!$B$12:$Q$251,5,0))) -> 542956.4507 | G126: =IF($A126=0,0,IF(A126="","",VLOOKUP($A126,'Tabla Fijos'!$B$12:$Q$251,6,0))) -> 1405.032148 | H126: =IF($A126=0,0,IF(A126="","",VLOOKUP($A126,'Tabla Fijos'!$B$12:$Q$251,7,0))) -> 4126.469025 | I126: =IF($A126=0,0,IF(A126="","",VLOOKUP($A126,'Tabla Fijos'!$B$12:$Q$251,8,0))) -> 0 | J126: =IF($A126=0,0,IF(A126="","",VLOOKUP($A126,'Tabla Fijos'!$B$12:$Q$251,10,0))) -> 325.7738704 | K126: =IF($A126=0,0,IF(A126="","",VLOOKUP($A126,'Tabla Fijos'!$B$12:$Q$251,11,0))) -> 182.868 | L126: =IF($A126=0,0,IF(A126="","",VLOOKUP($A126,'Tabla Fijos'!$B$12:$Q$251,12,0))) -> 0 | M126: =IF($A126=0,0,IF(A126="","",VLOOKUP($A126,'Tabla Fijos'!$B$12:$Q$251,13,0))) -> 0 | O126: 6040.143044 | P126: 541551.4185 | Q126: 1
A127: 61 | B127: 61 | C127: =IF($B127="","",'Fecha Pago'!K64) -> 2027-07-03 | D127: =IF($B$67="","",'Fecha Pago'!L64) -> 30.4 | E127: 0.09 | F127: =IF($A127=0,$H$48,IF(A127="","",VLOOKUP($A127,'Tabla Fijos'!$B$12:$Q$251,5,0))) -> 541551.4185 | G127: =IF($A127=0,0,IF(A127="","",VLOOKUP($A127,'Tabla Fijos'!$B$12:$Q$251,6,0))) -> 1415.710392 | H127: =IF($A127=0,0,IF(A127="","",VLOOKUP($A127,'Tabla Fijos'!$B$12:$Q$251,7,0))) -> 4115.790781 | I127: =IF($A127=0,0,IF(A127="","",VLOOKUP($A127,'Tabla Fijos'!$B$12:$Q$251,8,0))) -> 0 | J127: =IF($A127=0,0,IF(A127="","",VLOOKUP($A127,'Tabla Fijos'!$B$12:$Q$251,10,0))) -> 324.9308511 | K127: =IF($A127=0,0,IF(A127="","",VLOOKUP($A127,'Tabla Fijos'!$B$12:$Q$251,11,0))) -> 182.868 | L127: =IF($A127=0,0,IF(A127="","",VLOOKUP($A127,'Tabla Fijos'!$B$12:$Q$251,12,0))) -> 0 | M127: =IF($A127=0,0,IF(A127="","",VLOOKUP($A127,'Tabla Fijos'!$B$12:$Q$251,13,0))) -> 0 | O127: 6039.300024 | P127: 540135.7081 | Q127: 1
A128: 62 | B128: 62 | C128: =IF($B128="","",'Fecha Pago'!K65) -> 2027-08-03 | D128: =IF($B$67="","",'Fecha Pago'!L65) -> 30.4 | E128: 0.09 | F128: =IF($A128=0,$H$48,IF(A128="","",VLOOKUP($A128,'Tabla Fijos'!$B$12:$Q$251,5,0))) -> 540135.7081 | G128: =IF($A128=0,0,IF(A128="","",VLOOKUP($A128,'Tabla Fijos'!$B$12:$Q$251,6,0))) -> 1426.469791 | H128: =IF($A128=0,0,IF(A128="","",VLOOKUP($A128,'Tabla Fijos'!$B$12:$Q$251,7,0))) -> 4105.031382 | I128: =IF($A128=0,0,IF(A128="","",VLOOKUP($A128,'Tabla Fijos'!$B$12:$Q$251,8,0))) -> 0 | J128: =IF($A128=0,0,IF(A128="","",VLOOKUP($A128,'Tabla Fijos'!$B$12:$Q$251,10,0))) -> 324.0814249 | K128: =IF($A128=0,0,IF(A128="","",VLOOKUP($A128,'Tabla Fijos'!$B$12:$Q$251,11,0))) -> 182.868 | L128: =IF($A128=0,0,IF(A128="","",VLOOKUP($A128,'Tabla Fijos'!$B$12:$Q$251,12,0))) -> 0 | M128: =IF($A128=0,0,IF(A128="","",VLOOKUP($A128,'Tabla Fijos'!$B$12:$Q$251,13,0))) -> 0 | O128: 6038.450598 | P128: 538709.2383 | Q128: 1
A129: 63 | B129: 63 | C129: =IF($B129="","",'Fecha Pago'!K66) -> 2027-09-03 | D129: =IF($B$67="","",'Fecha Pago'!L66) -> 30.4 | E129: 0.09 | F129: =IF($A129=0,$H$48,IF(A129="","",VLOOKUP($A129,'Tabla Fijos'!$B$12:$Q$251,5,0))) -> 538709.2383 | G129: =IF($A129=0,0,IF(A129="","",VLOOKUP($A129,'Tabla Fijos'!$B$12:$Q$251,6,0))) -> 1437.310962 | H129: =IF($A129=0,0,IF(A129="","",VLOOKUP($A129,'Tabla Fijos'!$B$12:$Q$251,7,0))) -> 4094.190211 | I129: =IF($A129=0,0,IF(A129="","",VLOOKUP($A129,'Tabla Fijos'!$B$12:$Q$251,8,0))) -> 0 | J129: =IF($A129=0,0,IF(A129="","",VLOOKUP($A129,'Tabla Fijos'!$B$12:$Q$251,10,0))) -> 323.225543 | K129: =IF($A129=0,0,IF(A129="","",VLOOKUP($A129,'Tabla Fijos'!$B$12:$Q$251,11,0))) -> 182.868 | L129: =IF($A129=0,0,IF(A129="","",VLOOKUP($A129,'Tabla Fijos'!$B$12:$Q$251,12,0))) -> 0 | M129: =IF($A129=0,0,IF(A129="","",VLOOKUP($A129,'Tabla Fijos'!$B$12:$Q$251,13,0))) -> 0 | O129: 6037.594716 | P129: 537271.9274 | Q129: 1
A130: 64 | B130: 64 | C130: =IF($B130="","",'Fecha Pago'!K67) -> 2027-10-03 | D130: =IF($B$67="","",'Fecha Pago'!L67) -> 30.4 | E130: 0.09 | F130: =IF($A130=0,$H$48,IF(A130="","",VLOOKUP($A130,'Tabla Fijos'!$B$12:$Q$251,5,0))) -> 537271.9274 | G130: =IF($A130=0,0,IF(A130="","",VLOOKUP($A130,'Tabla Fijos'!$B$12:$Q$251,6,0))) -> 1448.234525 | H130: =IF($A130=0,0,IF(A130="","",VLOOKUP($A130,'Tabla Fijos'!$B$12:$Q$251,7,0))) -> 4083.266648 | I130: =IF($A130=0,0,IF(A130="","",VLOOKUP($A130,'Tabla Fijos'!$B$12:$Q$251,8,0))) -> 0 | J130: =IF($A130=0,0,IF(A130="","",VLOOKUP($A130,'Tabla Fijos'!$B$12:$Q$251,10,0))) -> 322.3631564 | K130: =IF($A130=0,0,IF(A130="","",VLOOKUP($A130,'Tabla Fijos'!$B$12:$Q$251,11,0))) -> 182.868 | L130: =IF($A130=0,0,IF(A130="","",VLOOKUP($A130,'Tabla Fijos'!$B$12:$Q$251,12,0))) -> 0 | M130: =IF($A130=0,0,IF(A130="","",VLOOKUP($A130,'Tabla Fijos'!$B$12:$Q$251,13,0))) -> 0 | O130: 6036.73233 | P130: 535823.6928 | Q130: 1
A131: 65 | B131: 65 | C131: =IF($B131="","",'Fecha Pago'!K68) -> 2027-11-03 | D131: =IF($B$67="","",'Fecha Pago'!L68) -> 30.4 | E131: 0.09 | F131: =IF($A131=0,$H$48,IF(A131="","",VLOOKUP($A131,'Tabla Fijos'!$B$12:$Q$251,5,0))) -> 535823.6928 | G131: =IF($A131=0,0,IF(A131="","",VLOOKUP($A131,'Tabla Fijos'!$B$12:$Q$251,6,0))) -> 1459.241108 | H131: =IF($A131=0,0,IF(A131="","",VLOOKUP($A131,'Tabla Fijos'!$B$12:$Q$251,7,0))) -> 4072.260066 | I131: =IF($A131=0,0,IF(A131="","",VLOOKUP($A131,'Tabla Fijos'!$B$12:$Q$251,8,0))) -> 0 | J131: =IF($A131=0,0,IF(A131="","",VLOOKUP($A131,'Tabla Fijos'!$B$12:$Q$251,10,0))) -> 321.4942157 | K131: =IF($A131=0,0,IF(A131="","",VLOOKUP($A131,'Tabla Fijos'!$B$12:$Q$251,11,0))) -> 182.868 | L131: =IF($A131=0,0,IF(A131="","",VLOOKUP($A131,'Tabla Fijos'!$B$12:$Q$251,12,0))) -> 0 | M131: =IF($A131=0,0,IF(A131="","",VLOOKUP($A131,'Tabla Fijos'!$B$12:$Q$251,13,0))) -> 0 | O131: 6035.863389 | P131: =IF(B131="","",F131-G131) -> 534364.4517 | Q131: 1
A132: 66 | B132: 66 | C132: =IF($B132="","",'Fecha Pago'!K69) -> 2027-12-03 | D132: =IF($B$67="","",'Fecha Pago'!L69) -> 30.4 | E132: =IF(B132="","",$F$62) -> 0.09 | F132: =IF($A132=0,$H$48,IF(A132="","",VLOOKUP($A132,'Tabla Fijos'!$B$12:$Q$251,5,0))) -> 534364.4517 | G132: =IF($A132=0,0,IF(A132="","",VLOOKUP($A132,'Tabla Fijos'!$B$12:$Q$251,6,0))) -> 1470.33134 | H132: =IF($A132=0,0,IF(A132="","",VLOOKUP($A132,'Tabla Fijos'!$B$12:$Q$251,7,0))) -> 4061.169833 | I132: =IF($A132=0,0,IF(A132="","",VLOOKUP($A132,'Tabla Fijos'!$B$12:$Q$251,8,0))) -> 0 | J132: =IF($A132=0,0,IF(A132="","",VLOOKUP($A132,'Tabla Fijos'!$B$12:$Q$251,10,0))) -> 320.618671 | K132: =IF($A132=0,0,IF(A132="","",VLOOKUP($A132,'Tabla Fijos'!$B$12:$Q$251,11,0))) -> 182.868 | L132: =IF($A132=0,0,IF(A132="","",VLOOKUP($A132,'Tabla Fijos'!$B$12:$Q$251,12,0))) -> 0 | M132: =IF($A132=0,0,IF(A132="","",VLOOKUP($A132,'Tabla Fijos'!$B$12:$Q$251,13,0))) -> 0 | O132: =IF(B132="","",G132+H132+I132+J132+K132+L132-M132) -> 6034.987844 | P132: 532894.1204 | Q132: =IF(OR($B132="",$F132<=0),0,1) -> 1
A133: 67 | B133: =IF(B132="","",IF(B132=$H$49,"",B132+1)) -> 67 | C133: =IF($B133="","",'Fecha Pago'!K70) -> 2028-01-03 | D133: =IF($B$67="","",'Fecha Pago'!L70) -> 30.4 | E133: 0.09 | F133: =IF($A133=0,$H$48,IF(A133="","",VLOOKUP($A133,'Tabla Fijos'!$B$12:$Q$251,5,0))) -> 532894.1204 | G133: =IF($A133=0,0,IF(A133="","",VLOOKUP($A133,'Tabla Fijos'!$B$12:$Q$251,6,0))) -> 1481.505858 | H133: =IF($A133=0,0,IF(A133="","",VLOOKUP($A133,'Tabla Fijos'!$B$12:$Q$251,7,0))) -> 4049.995315 | I133: =IF($A133=0,0,IF(A133="","",VLOOKUP($A133,'Tabla Fijos'!$B$12:$Q$251,8,0))) -> 0 | J133: =IF($A133=0,0,IF(A133="","",VLOOKUP($A133,'Tabla Fijos'!$B$12:$Q$251,10,0))) -> 319.7364722 | K133: =IF($A133=0,0,IF(A133="","",VLOOKUP($A133,'Tabla Fijos'!$B$12:$Q$251,11,0))) -> 182.868 | L133: =IF($A133=0,0,IF(A133="","",VLOOKUP($A133,'Tabla Fijos'!$B$12:$Q$251,12,0))) -> 0 | M133: =IF($A133=0,0,IF(A133="","",VLOOKUP($A133,'Tabla Fijos'!$B$12:$Q$251,13,0))) -> 0 | O133: 6034.105645 | P133: 531412.6145 | Q133: 1
A134: 68 | B134: 68 | C134: =IF($B134="","",'Fecha Pago'!K71) -> 2028-02-03 | D134: =IF($B$67="","",'Fecha Pago'!L71) -> 30.4 | E134: 0.09 | F134: =IF($A134=0,$H$48,IF(A134="","",VLOOKUP($A134,'Tabla Fijos'!$B$12:$Q$251,5,0))) -> 531412.6145 | G134: =IF($A134=0,0,IF(A134="","",VLOOKUP($A134,'Tabla Fijos'!$B$12:$Q$251,6,0))) -> 1492.765303 | H134: =IF($A134=0,0,IF(A134="","",VLOOKUP($A134,'Tabla Fijos'!$B$12:$Q$251,7,0))) -> 4038.73587 | I134: =IF($A134=0,0,IF(A134="","",VLOOKUP($A134,'Tabla Fijos'!$B$12:$Q$251,8,0))) -> 0 | J134: =IF($A134=0,0,IF(A134="","",VLOOKUP($A134,'Tabla Fijos'!$B$12:$Q$251,10,0))) -> 318.8475687 | K134: =IF($A134=0,0,IF(A134="","",VLOOKUP($A134,'Tabla Fijos'!$B$12:$Q$251,11,0))) -> 182.868 | L134: =IF($A134=0,0,IF(A134="","",VLOOKUP($A134,'Tabla Fijos'!$B$12:$Q$251,12,0))) -> 0 | M134: =IF($A134=0,0,IF(A134="","",VLOOKUP($A134,'Tabla Fijos'!$B$12:$Q$251,13,0))) -> 0 | O134: 6033.216742 | P134: 529919.8492 | Q134: 1
A135: =IF(A134="","",IF(A134=$F$19,"",A134+1)) -> 69 | B135: 69 | C135: =IF($B135="","",'Fecha Pago'!K72) -> 2028-03-03 | D135: =IF($B$67="","",'Fecha Pago'!L72) -> 30.4 | E135: 0.09 | F135: =IF($A135=0,$H$48,IF(A135="","",VLOOKUP($A135,'Tabla Fijos'!$B$12:$Q$251,5,0))) -> 529919.8492 | G135: =IF($A135=0,0,IF(A135="","",VLOOKUP($A135,'Tabla Fijos'!$B$12:$Q$251,6,0))) -> 1504.110319 | H135: =IF($A135=0,0,IF(A135="","",VLOOKUP($A135,'Tabla Fijos'!$B$12:$Q$251,7,0))) -> 4027.390854 | I135: =IF($A135=0,0,IF(A135="","",VLOOKUP($A135,'Tabla Fijos'!$B$12:$Q$251,8,0))) -> 0 | J135: =IF($A135=0,0,IF(A135="","",VLOOKUP($A135,'Tabla Fijos'!$B$12:$Q$251,10,0))) -> 317.9519095 | K135: =IF($A135=0,0,IF(A135="","",VLOOKUP($A135,'Tabla Fijos'!$B$12:$Q$251,11,0))) -> 182.868 | L135: =IF($A135=0,0,IF(A135="","",VLOOKUP($A135,'Tabla Fijos'!$B$12:$Q$251,12,0))) -> 0 | M135: =IF($A135=0,0,IF(A135="","",VLOOKUP($A135,'Tabla Fijos'!$B$12:$Q$251,13,0))) -> 0 | O135: 6032.321083 | P135: 528415.7389 | Q135: 1
A136: 70 | B136: 70 | C136: =IF($B136="","",'Fecha Pago'!K73) -> 2028-04-03 | D136: =IF($B$67="","",'Fecha Pago'!L73) -> 30.4 | E136: 0.09 | F136: =IF($A136=0,$H$48,IF(A136="","",VLOOKUP($A136,'Tabla Fijos'!$B$12:$Q$251,5,0))) -> 528415.7389 | G136: =IF($A136=0,0,IF(A136="","",VLOOKUP($A136,'Tabla Fijos'!$B$12:$Q$251,6,0))) -> 1515.541557 | H136: =IF($A136=0,0,IF(A136="","",VLOOKUP($A136,'Tabla Fijos'!$B$12:$Q$251,7,0))) -> 4015.959616 | I136: =IF($A136=0,0,IF(A136="","",VLOOKUP($A136,'Tabla Fijos'!$B$12:$Q$251,8,0))) -> 0 | J136: =IF($A136=0,0,IF(A136="","",VLOOKUP($A136,'Tabla Fijos'!$B$12:$Q$251,10,0))) -> 317.0494433 | K136: =IF($A136=0,0,IF(A136="","",VLOOKUP($A136,'Tabla Fijos'!$B$12:$Q$251,11,0))) -> 182.868 | L136: =IF($A136=0,0,IF(A136="","",VLOOKUP($A136,'Tabla Fijos'!$B$12:$Q$251,12,0))) -> 0 | M136: =IF($A136=0,0,IF(A136="","",VLOOKUP($A136,'Tabla Fijos'!$B$12:$Q$251,13,0))) -> 0 | O136: 6031.418616 | P136: 526900.1974 | Q136: 1
A137: 71 | B137: 71 | C137: =IF($B137="","",'Fecha Pago'!K74) -> 2028-05-03 | D137: =IF($B$67="","",'Fecha Pago'!L74) -> 30.4 | E137: 0.09 | F137: =IF($A137=0,$H$48,IF(A137="","",VLOOKUP($A137,'Tabla Fijos'!$B$12:$Q$251,5,0))) -> 526900.1974 | G137: =IF($A137=0,0,IF(A137="","",VLOOKUP($A137,'Tabla Fijos'!$B$12:$Q$251,6,0))) -> 1527.059673 | H137: =IF($A137=0,0,IF(A137="","",VLOOKUP($A137,'Tabla Fijos'!$B$12:$Q$251,7,0))) -> 4004.4415 | I137: =IF($A137=0,0,IF(A137="","",VLOOKUP($A137,'Tabla Fijos'!$B$12:$Q$251,8,0))) -> 0 | J137: =IF($A137=0,0,IF(A137="","",VLOOKUP($A137,'Tabla Fijos'!$B$12:$Q$251,10,0))) -> 316.1401184 | K137: =IF($A137=0,0,IF(A137="","",VLOOKUP($A137,'Tabla Fijos'!$B$12:$Q$251,11,0))) -> 182.868 | L137: =IF($A137=0,0,IF(A137="","",VLOOKUP($A137,'Tabla Fijos'!$B$12:$Q$251,12,0))) -> 0 | M137: =IF($A137=0,0,IF(A137="","",VLOOKUP($A137,'Tabla Fijos'!$B$12:$Q$251,13,0))) -> 0 | O137: 6030.509292 | P137: 525373.1377 | Q137: 1
A138: 72 | B138: 72 | C138: =IF($B138="","",'Fecha Pago'!K75) -> 2028-06-03 | D138: =IF($B$67="","",'Fecha Pago'!L75) -> 30.4 | E138: 0.09 | F138: =IF($A138=0,$H$48,IF(A138="","",VLOOKUP($A138,'Tabla Fijos'!$B$12:$Q$251,5,0))) -> 525373.1377 | G138: =IF($A138=0,0,IF(A138="","",VLOOKUP($A138,'Tabla Fijos'!$B$12:$Q$251,6,0))) -> 1538.665327 | H138: =IF($A138=0,0,IF(A138="","",VLOOKUP($A138,'Tabla Fijos'!$B$12:$Q$251,7,0))) -> 3992.835846 | I138: =IF($A138=0,0,IF(A138="","",VLOOKUP($A138,'Tabla Fijos'!$B$12:$Q$251,8,0))) -> 0 | J138: =IF($A138=0,0,IF(A138="","",VLOOKUP($A138,'Tabla Fijos'!$B$12:$Q$251,10,0))) -> 315.2238826 | K138: =IF($A138=0,0,IF(A138="","",VLOOKUP($A138,'Tabla Fijos'!$B$12:$Q$251,11,0))) -> 182.868 | L138: =IF($A138=0,0,IF(A138="","",VLOOKUP($A138,'Tabla Fijos'!$B$12:$Q$251,12,0))) -> 0 | M138: =IF($A138=0,0,IF(A138="","",VLOOKUP($A138,'Tabla Fijos'!$B$12:$Q$251,13,0))) -> 0 | O138: 6029.593056 | P138: 523834.4724 | Q138: 1
A139: 73 | B139: 73 | C139: =IF($B139="","",'Fecha Pago'!K76) -> 2028-07-03 | D139: =IF($B$67="","",'Fecha Pago'!L76) -> 30.4 | E139: 0.09 | F139: =IF($A139=0,$H$48,IF(A139="","",VLOOKUP($A139,'Tabla Fijos'!$B$12:$Q$251,5,0))) -> 523834.4724 | G139: =IF($A139=0,0,IF(A139="","",VLOOKUP($A139,'Tabla Fijos'!$B$12:$Q$251,6,0))) -> 1550.359183 | H139: =IF($A139=0,0,IF(A139="","",VLOOKUP($A139,'Tabla Fijos'!$B$12:$Q$251,7,0))) -> 3981.14199 | I139: =IF($A139=0,0,IF(A139="","",VLOOKUP($A139,'Tabla Fijos'!$B$12:$Q$251,8,0))) -> 0 | J139: =IF($A139=0,0,IF(A139="","",VLOOKUP($A139,'Tabla Fijos'!$B$12:$Q$251,10,0))) -> 314.3006834 | K139: =IF($A139=0,0,IF(A139="","",VLOOKUP($A139,'Tabla Fijos'!$B$12:$Q$251,11,0))) -> 182.868 | L139: =IF($A139=0,0,IF(A139="","",VLOOKUP($A139,'Tabla Fijos'!$B$12:$Q$251,12,0))) -> 0 | M139: =IF($A139=0,0,IF(A139="","",VLOOKUP($A139,'Tabla Fijos'!$B$12:$Q$251,13,0))) -> 0 | O139: 6028.669857 | P139: 522284.1132 | Q139: 1
A140: 74 | B140: 74 | C140: =IF($B140="","",'Fecha Pago'!K77) -> 2028-08-03 | D140: =IF($B$67="","",'Fecha Pago'!L77) -> 30.4 | E140: 0.09 | F140: =IF($A140=0,$H$48,IF(A140="","",VLOOKUP($A140,'Tabla Fijos'!$B$12:$Q$251,5,0))) -> 522284.1132 | G140: =IF($A140=0,0,IF(A140="","",VLOOKUP($A140,'Tabla Fijos'!$B$12:$Q$251,6,0))) -> 1562.141913 | H140: =IF($A140=0,0,IF(A140="","",VLOOKUP($A140,'Tabla Fijos'!$B$12:$Q$251,7,0))) -> 3969.35926 | I140: =IF($A140=0,0,IF(A140="","",VLOOKUP($A140,'Tabla Fijos'!$B$12:$Q$251,8,0))) -> 0 | J140: =IF($A140=0,0,IF(A140="","",VLOOKUP($A140,'Tabla Fijos'!$B$12:$Q$251,10,0))) -> 313.3704679 | K140: =IF($A140=0,0,IF(A140="","",VLOOKUP($A140,'Tabla Fijos'!$B$12:$Q$251,11,0))) -> 182.868 | L140: =IF($A140=0,0,IF(A140="","",VLOOKUP($A140,'Tabla Fijos'!$B$12:$Q$251,12,0))) -> 0 | M140: =IF($A140=0,0,IF(A140="","",VLOOKUP($A140,'Tabla Fijos'!$B$12:$Q$251,13,0))) -> 0 | O140: 6027.739641 | P140: 520721.9713 | Q140: 1
A141: 75 | B141: 75 | C141: =IF($B141="","",'Fecha Pago'!K78) -> 2028-09-03 | D141: =IF($B$67="","",'Fecha Pago'!L78) -> 30.4 | E141: 0.09 | F141: =IF($A141=0,$H$48,IF(A141="","",VLOOKUP($A141,'Tabla Fijos'!$B$12:$Q$251,5,0))) -> 520721.9713 | G141: =IF($A141=0,0,IF(A141="","",VLOOKUP($A141,'Tabla Fijos'!$B$12:$Q$251,6,0))) -> 1574.014192 | H141: =IF($A141=0,0,IF(A141="","",VLOOKUP($A141,'Tabla Fijos'!$B$12:$Q$251,7,0))) -> 3957.486982 | I141: =IF($A141=0,0,IF(A141="","",VLOOKUP($A141,'Tabla Fijos'!$B$12:$Q$251,8,0))) -> 0 | J141: =IF($A141=0,0,IF(A141="","",VLOOKUP($A141,'Tabla Fijos'!$B$12:$Q$251,10,0))) -> 312.4331828 | K141: =IF($A141=0,0,IF(A141="","",VLOOKUP($A141,'Tabla Fijos'!$B$12:$Q$251,11,0))) -> 182.868 | L141: =IF($A141=0,0,IF(A141="","",VLOOKUP($A141,'Tabla Fijos'!$B$12:$Q$251,12,0))) -> 0 | M141: =IF($A141=0,0,IF(A141="","",VLOOKUP($A141,'Tabla Fijos'!$B$12:$Q$251,13,0))) -> 0 | O141: 6026.802356 | P141: 519147.9571 | Q141: 1
A142: 76 | B142: 76 | C142: =IF($B142="","",'Fecha Pago'!K79) -> 2028-10-03 | D142: =IF($B$67="","",'Fecha Pago'!L79) -> 30.4 | E142: 0.09 | F142: =IF($A142=0,$H$48,IF(A142="","",VLOOKUP($A142,'Tabla Fijos'!$B$12:$Q$251,5,0))) -> 519147.9571 | G142: =IF($A142=0,0,IF(A142="","",VLOOKUP($A142,'Tabla Fijos'!$B$12:$Q$251,6,0))) -> 1585.976699 | H142: =IF($A142=0,0,IF(A142="","",VLOOKUP($A142,'Tabla Fijos'!$B$12:$Q$251,7,0))) -> 3945.524474 | I142: =IF($A142=0,0,IF(A142="","",VLOOKUP($A142,'Tabla Fijos'!$B$12:$Q$251,8,0))) -> 0 | J142: =IF($A142=0,0,IF(A142="","",VLOOKUP($A142,'Tabla Fijos'!$B$12:$Q$251,10,0))) -> 311.4887742 | K142: =IF($A142=0,0,IF(A142="","",VLOOKUP($A142,'Tabla Fijos'!$B$12:$Q$251,11,0))) -> 182.868 | L142: =IF($A142=0,0,IF(A142="","",VLOOKUP($A142,'Tabla Fijos'!$B$12:$Q$251,12,0))) -> 0 | M142: =IF($A142=0,0,IF(A142="","",VLOOKUP($A142,'Tabla Fijos'!$B$12:$Q$251,13,0))) -> 0 | O142: 6025.857947 | P142: 517561.9804 | Q142: 1
A143: 77 | B143: 77 | C143: =IF($B143="","",'Fecha Pago'!K80) -> 2028-11-03 | D143: =IF($B$67="","",'Fecha Pago'!L80) -> 30.4 | E143: 0.09 | F143: =IF($A143=0,$H$48,IF(A143="","",VLOOKUP($A143,'Tabla Fijos'!$B$12:$Q$251,5,0))) -> 517561.9804 | G143: =IF($A143=0,0,IF(A143="","",VLOOKUP($A143,'Tabla Fijos'!$B$12:$Q$251,6,0))) -> 1598.030122 | H143: =IF($A143=0,0,IF(A143="","",VLOOKUP($A143,'Tabla Fijos'!$B$12:$Q$251,7,0))) -> 3933.471051 | I143: =IF($A143=0,0,IF(A143="","",VLOOKUP($A143,'Tabla Fijos'!$B$12:$Q$251,8,0))) -> 0 | J143: =IF($A143=0,0,IF(A143="","",VLOOKUP($A143,'Tabla Fijos'!$B$12:$Q$251,10,0))) -> 310.5371882 | K143: =IF($A143=0,0,IF(A143="","",VLOOKUP($A143,'Tabla Fijos'!$B$12:$Q$251,11,0))) -> 182.868 | L143: =IF($A143=0,0,IF(A143="","",VLOOKUP($A143,'Tabla Fijos'!$B$12:$Q$251,12,0))) -> 0 | M143: =IF($A143=0,0,IF(A143="","",VLOOKUP($A143,'Tabla Fijos'!$B$12:$Q$251,13,0))) -> 0 | O143: 6024.906361 | P143: 515963.9502 | Q143: 1
A144: 78 | B144: 78 | C144: =IF($B144="","",'Fecha Pago'!K81) -> 2028-12-03 | D144: =IF($B$67="","",'Fecha Pago'!L81) -> 30.4 | E144: 0.09 | F144: =IF($A144=0,$H$48,IF(A144="","",VLOOKUP($A144,'Tabla Fijos'!$B$12:$Q$251,5,0))) -> 515963.9502 | G144: =IF($A144=0,0,IF(A144="","",VLOOKUP($A144,'Tabla Fijos'!$B$12:$Q$251,6,0))) -> 1610.175151 | H144: =IF($A144=0,0,IF(A144="","",VLOOKUP($A144,'Tabla Fijos'!$B$12:$Q$251,7,0))) -> 3921.326022 | I144: =IF($A144=0,0,IF(A144="","",VLOOKUP($A144,'Tabla Fijos'!$B$12:$Q$251,8,0))) -> 0 | J144: =IF($A144=0,0,IF(A144="","",VLOOKUP($A144,'Tabla Fijos'!$B$12:$Q$251,10,0))) -> 309.5783701 | K144: =IF($A144=0,0,IF(A144="","",VLOOKUP($A144,'Tabla Fijos'!$B$12:$Q$251,11,0))) -> 182.868 | L144: =IF($A144=0,0,IF(A144="","",VLOOKUP($A144,'Tabla Fijos'!$B$12:$Q$251,12,0))) -> 0 | M144: =IF($A144=0,0,IF(A144="","",VLOOKUP($A144,'Tabla Fijos'!$B$12:$Q$251,13,0))) -> 0 | O144: 6023.947543 | P144: 514353.7751 | Q144: 1
A145: 79 | B145: 79 | C145: =IF($B145="","",'Fecha Pago'!K82) -> 2029-01-03 | D145: =IF($B$67="","",'Fecha Pago'!L82) -> 30.4 | E145: 0.09 | F145: =IF($A145=0,$H$48,IF(A145="","",VLOOKUP($A145,'Tabla Fijos'!$B$12:$Q$251,5,0))) -> 514353.7751 | G145: =IF($A145=0,0,IF(A145="","",VLOOKUP($A145,'Tabla Fijos'!$B$12:$Q$251,6,0))) -> 1622.412482 | H145: =IF($A145=0,0,IF(A145="","",VLOOKUP($A145,'Tabla Fijos'!$B$12:$Q$251,7,0))) -> 3909.088691 | I145: =IF($A145=0,0,IF(A145="","",VLOOKUP($A145,'Tabla Fijos'!$B$12:$Q$251,8,0))) -> 0 | J145: =IF($A145=0,0,IF(A145="","",VLOOKUP($A145,'Tabla Fijos'!$B$12:$Q$251,10,0))) -> 308.6122651 | K145: =IF($A145=0,0,IF(A145="","",VLOOKUP($A145,'Tabla Fijos'!$B$12:$Q$251,11,0))) -> 182.868 | L145: =IF($A145=0,0,IF(A145="","",VLOOKUP($A145,'Tabla Fijos'!$B$12:$Q$251,12,0))) -> 0 | M145: =IF($A145=0,0,IF(A145="","",VLOOKUP($A145,'Tabla Fijos'!$B$12:$Q$251,13,0))) -> 0 | O145: 6022.981438 | P145: 512731.3626 | Q145: 1
A146: 80 | B146: 80 | C146: =IF($B146="","",'Fecha Pago'!K83) -> 2029-02-03 | D146: =IF($B$67="","",'Fecha Pago'!L83) -> 30.4 | E146: 0.09 | F146: =IF($A146=0,$H$48,IF(A146="","",VLOOKUP($A146,'Tabla Fijos'!$B$12:$Q$251,5,0))) -> 512731.3626 | G146: =IF($A146=0,0,IF(A146="","",VLOOKUP($A146,'Tabla Fijos'!$B$12:$Q$251,6,0))) -> 1634.742817 | H146: =IF($A146=0,0,IF(A146="","",VLOOKUP($A146,'Tabla Fijos'!$B$12:$Q$251,7,0))) -> 3896.758356 | I146: =IF($A146=0,0,IF(A146="","",VLOOKUP($A146,'Tabla Fijos'!$B$12:$Q$251,8,0))) -> 0 | J146: =IF($A146=0,0,IF(A146="","",VLOOKUP($A146,'Tabla Fijos'!$B$12:$Q$251,10,0))) -> 307.6388176 | K146: =IF($A146=0,0,IF(A146="","",VLOOKUP($A146,'Tabla Fijos'!$B$12:$Q$251,11,0))) -> 182.868 | L146: =IF($A146=0,0,IF(A146="","",VLOOKUP($A146,'Tabla Fijos'!$B$12:$Q$251,12,0))) -> 0 | M146: =IF($A146=0,0,IF(A146="","",VLOOKUP($A146,'Tabla Fijos'!$B$12:$Q$251,13,0))) -> 0 | O146: 6022.007991 | P146: 511096.6198 | Q146: 1
A147: 81 | B147: 81 | C147: =IF($B147="","",'Fecha Pago'!K84) -> 2029-03-03 | D147: =IF($B$67="","",'Fecha Pago'!L84) -> 30.4 | E147: 0.09 | F147: =IF($A147=0,$H$48,IF(A147="","",VLOOKUP($A147,'Tabla Fijos'!$B$12:$Q$251,5,0))) -> 511096.6198 | G147: =IF($A147=0,0,IF(A147="","",VLOOKUP($A147,'Tabla Fijos'!$B$12:$Q$251,6,0))) -> 1647.166863 | H147: =IF($A147=0,0,IF(A147="","",VLOOKUP($A147,'Tabla Fijos'!$B$12:$Q$251,7,0))) -> 3884.33431 | I147: =IF($A147=0,0,IF(A147="","",VLOOKUP($A147,'Tabla Fijos'!$B$12:$Q$251,8,0))) -> 0 | J147: =IF($A147=0,0,IF(A147="","",VLOOKUP($A147,'Tabla Fijos'!$B$12:$Q$251,10,0))) -> 306.6579719 | K147: =IF($A147=0,0,IF(A147="","",VLOOKUP($A147,'Tabla Fijos'!$B$12:$Q$251,11,0))) -> 182.868 | L147: =IF($A147=0,0,IF(A147="","",VLOOKUP($A147,'Tabla Fijos'!$B$12:$Q$251,12,0))) -> 0 | M147: =IF($A147=0,0,IF(A147="","",VLOOKUP($A147,'Tabla Fijos'!$B$12:$Q$251,13,0))) -> 0 | O147: 6021.027145 | P147: 509449.4529 | Q147: 1
A148: 82 | B148: 82 | C148: =IF($B148="","",'Fecha Pago'!K85) -> 2029-04-03 | D148: =IF($B$67="","",'Fecha Pago'!L85) -> 30.4 | E148: 0.09 | F148: =IF($A148=0,$H$48,IF(A148="","",VLOOKUP($A148,'Tabla Fijos'!$B$12:$Q$251,5,0))) -> 509449.4529 | G148: =IF($A148=0,0,IF(A148="","",VLOOKUP($A148,'Tabla Fijos'!$B$12:$Q$251,6,0))) -> 1659.685331 | H148: =IF($A148=0,0,IF(A148="","",VLOOKUP($A148,'Tabla Fijos'!$B$12:$Q$251,7,0))) -> 3871.815842 | I148: =IF($A148=0,0,IF(A148="","",VLOOKUP($A148,'Tabla Fijos'!$B$12:$Q$251,8,0))) -> 0 | J148: =IF($A148=0,0,IF(A148="","",VLOOKUP($A148,'Tabla Fijos'!$B$12:$Q$251,10,0))) -> 305.6696718 | K148: =IF($A148=0,0,IF(A148="","",VLOOKUP($A148,'Tabla Fijos'!$B$12:$Q$251,11,0))) -> 182.868 | L148: =IF($A148=0,0,IF(A148="","",VLOOKUP($A148,'Tabla Fijos'!$B$12:$Q$251,12,0))) -> 0 | M148: =IF($A148=0,0,IF(A148="","",VLOOKUP($A148,'Tabla Fijos'!$B$12:$Q$251,13,0))) -> 0 | O148: 6020.038845 | P148: 507789.7676 | Q148: 1
A149: 83 | B149: 83 | C149: =IF($B149="","",'Fecha Pago'!K86) -> 2029-05-03 | D149: =IF($B$67="","",'Fecha Pago'!L86) -> 30.4 | E149: 0.09 | F149: =IF($A149=0,$H$48,IF(A149="","",VLOOKUP($A149,'Tabla Fijos'!$B$12:$Q$251,5,0))) -> 507789.7676 | G149: =IF($A149=0,0,IF(A149="","",VLOOKUP($A149,'Tabla Fijos'!$B$12:$Q$251,6,0))) -> 1672.298939 | H149: =IF($A149=0,0,IF(A149="","",VLOOKUP($A149,'Tabla Fijos'!$B$12:$Q$251,7,0))) -> 3859.202234 | I149: =IF($A149=0,0,IF(A149="","",VLOOKUP($A149,'Tabla Fijos'!$B$12:$Q$251,8,0))) -> 0 | J149: =IF($A149=0,0,IF(A149="","",VLOOKUP($A149,'Tabla Fijos'!$B$12:$Q$251,10,0))) -> 304.6738606 | K149: =IF($A149=0,0,IF(A149="","",VLOOKUP($A149,'Tabla Fijos'!$B$12:$Q$251,11,0))) -> 182.868 | L149: =IF($A149=0,0,IF(A149="","",VLOOKUP($A149,'Tabla Fijos'!$B$12:$Q$251,12,0))) -> 0 | M149: =IF($A149=0,0,IF(A149="","",VLOOKUP($A149,'Tabla Fijos'!$B$12:$Q$251,13,0))) -> 0 | O149: 6019.043034 | P149: 506117.4687 | Q149: 1
A150: 84 | B150: 84 | C150: =IF($B150="","",'Fecha Pago'!K87) -> 2029-06-03 | D150: =IF($B$67="","",'Fecha Pago'!L87) -> 30.4 | E150: 0.09 | F150: =IF($A150=0,$H$48,IF(A150="","",VLOOKUP($A150,'Tabla Fijos'!$B$12:$Q$251,5,0))) -> 506117.4687 | G150: =IF($A150=0,0,IF(A150="","",VLOOKUP($A150,'Tabla Fijos'!$B$12:$Q$251,6,0))) -> 1685.008411 | H150: =IF($A150=0,0,IF(A150="","",VLOOKUP($A150,'Tabla Fijos'!$B$12:$Q$251,7,0))) -> 3846.492762 | I150: =IF($A150=0,0,IF(A150="","",VLOOKUP($A150,'Tabla Fijos'!$B$12:$Q$251,8,0))) -> 0 | J150: =IF($A150=0,0,IF(A150="","",VLOOKUP($A150,'Tabla Fijos'!$B$12:$Q$251,10,0))) -> 303.6704812 | K150: =IF($A150=0,0,IF(A150="","",VLOOKUP($A150,'Tabla Fijos'!$B$12:$Q$251,11,0))) -> 182.868 | L150: =IF($A150=0,0,IF(A150="","",VLOOKUP($A150,'Tabla Fijos'!$B$12:$Q$251,12,0))) -> 0 | M150: =IF($A150=0,0,IF(A150="","",VLOOKUP($A150,'Tabla Fijos'!$B$12:$Q$251,13,0))) -> 0 | O150: 6018.039654 | P150: 504432.4603 | Q150: 1
A151: 85 | B151: 85 | C151: =IF($B151="","",'Fecha Pago'!K88) -> 2029-07-03 | D151: =IF($B$67="","",'Fecha Pago'!L88) -> 30.4 | E151: 0.09 | F151: =IF($A151=0,$H$48,IF(A151="","",VLOOKUP($A151,'Tabla Fijos'!$B$12:$Q$251,5,0))) -> 504432.4603 | G151: =IF($A151=0,0,IF(A151="","",VLOOKUP($A151,'Tabla Fijos'!$B$12:$Q$251,6,0))) -> 1697.814475 | H151: =IF($A151=0,0,IF(A151="","",VLOOKUP($A151,'Tabla Fijos'!$B$12:$Q$251,7,0))) -> 3833.686698 | I151: =IF($A151=0,0,IF(A151="","",VLOOKUP($A151,'Tabla Fijos'!$B$12:$Q$251,8,0))) -> 0 | J151: =IF($A151=0,0,IF(A151="","",VLOOKUP($A151,'Tabla Fijos'!$B$12:$Q$251,10,0))) -> 302.6594762 | K151: =IF($A151=0,0,IF(A151="","",VLOOKUP($A151,'Tabla Fijos'!$B$12:$Q$251,11,0))) -> 182.868 | L151: =IF($A151=0,0,IF(A151="","",VLOOKUP($A151,'Tabla Fijos'!$B$12:$Q$251,12,0))) -> 0 | M151: =IF($A151=0,0,IF(A151="","",VLOOKUP($A151,'Tabla Fijos'!$B$12:$Q$251,13,0))) -> 0 | O151: 6017.028649 | P151: 502734.6458 | Q151: 1
A152: 86 | B152: 86 | C152: =IF($B152="","",'Fecha Pago'!K89) -> 2029-08-03 | D152: =IF($B$67="","",'Fecha Pago'!L89) -> 30.4 | E152: 0.09 | F152: =IF($A152=0,$H$48,IF(A152="","",VLOOKUP($A152,'Tabla Fijos'!$B$12:$Q$251,5,0))) -> 502734.6458 | G152: =IF($A152=0,0,IF(A152="","",VLOOKUP($A152,'Tabla Fijos'!$B$12:$Q$251,6,0))) -> 1710.717865 | H152: =IF($A152=0,0,IF(A152="","",VLOOKUP($A152,'Tabla Fijos'!$B$12:$Q$251,7,0))) -> 3820.783308 | I152: =IF($A152=0,0,IF(A152="","",VLOOKUP($A152,'Tabla Fijos'!$B$12:$Q$251,8,0))) -> 0 | J152: =IF($A152=0,0,IF(A152="","",VLOOKUP($A152,'Tabla Fijos'!$B$12:$Q$251,10,0))) -> 301.6407875 | K152: =IF($A152=0,0,IF(A152="","",VLOOKUP($A152,'Tabla Fijos'!$B$12:$Q$251,11,0))) -> 182.868 | L152: =IF($A152=0,0,IF(A152="","",VLOOKUP($A152,'Tabla Fijos'!$B$12:$Q$251,12,0))) -> 0 | M152: =IF($A152=0,0,IF(A152="","",VLOOKUP($A152,'Tabla Fijos'!$B$12:$Q$251,13,0))) -> 0 | O152: 6016.009961 | P152: 501023.9279 | Q152: 1
A153: 87 | B153: 87 | C153: =IF($B153="","",'Fecha Pago'!K90) -> 2029-09-03 | D153: =IF($B$67="","",'Fecha Pago'!L90) -> 30.4 | E153: 0.09 | F153: =IF($A153=0,$H$48,IF(A153="","",VLOOKUP($A153,'Tabla Fijos'!$B$12:$Q$251,5,0))) -> 501023.9279 | G153: =IF($A153=0,0,IF(A153="","",VLOOKUP($A153,'Tabla Fijos'!$B$12:$Q$251,6,0))) -> 1723.719321 | H153: =IF($A153=0,0,IF(A153="","",VLOOKUP($A153,'Tabla Fijos'!$B$12:$Q$251,7,0))) -> 3807.781852 | I153: =IF($A153=0,0,IF(A153="","",VLOOKUP($A153,'Tabla Fijos'!$B$12:$Q$251,8,0))) -> 0 | J153: =IF($A153=0,0,IF(A153="","",VLOOKUP($A153,'Tabla Fijos'!$B$12:$Q$251,10,0))) -> 300.6143567 | K153: =IF($A153=0,0,IF(A153="","",VLOOKUP($A153,'Tabla Fijos'!$B$12:$Q$251,11,0))) -> 182.868 | L153: =IF($A153=0,0,IF(A153="","",VLOOKUP($A153,'Tabla Fijos'!$B$12:$Q$251,12,0))) -> 0 | M153: =IF($A153=0,0,IF(A153="","",VLOOKUP($A153,'Tabla Fijos'!$B$12:$Q$251,13,0))) -> 0 | O153: 6014.98353 | P153: 499300.2086 | Q153: 1
A154: 88 | B154: 88 | C154: =IF($B154="","",'Fecha Pago'!K91) -> 2029-10-03 | D154: =IF($B$67="","",'Fecha Pago'!L91) -> 30.4 | E154: 0.09 | F154: =IF($A154=0,$H$48,IF(A154="","",VLOOKUP($A154,'Tabla Fijos'!$B$12:$Q$251,5,0))) -> 499300.2086 | G154: =IF($A154=0,0,IF(A154="","",VLOOKUP($A154,'Tabla Fijos'!$B$12:$Q$251,6,0))) -> 1736.819588 | H154: =IF($A154=0,0,IF(A154="","",VLOOKUP($A154,'Tabla Fijos'!$B$12:$Q$251,7,0))) -> 3794.681585 | I154: =IF($A154=0,0,IF(A154="","",VLOOKUP($A154,'Tabla Fijos'!$B$12:$Q$251,8,0))) -> 0 | J154: =IF($A154=0,0,IF(A154="","",VLOOKUP($A154,'Tabla Fijos'!$B$12:$Q$251,10,0))) -> 299.5801252 | K154: =IF($A154=0,0,IF(A154="","",VLOOKUP($A154,'Tabla Fijos'!$B$12:$Q$251,11,0))) -> 182.868 | L154: =IF($A154=0,0,IF(A154="","",VLOOKUP($A154,'Tabla Fijos'!$B$12:$Q$251,12,0))) -> 0 | M154: =IF($A154=0,0,IF(A154="","",VLOOKUP($A154,'Tabla Fijos'!$B$12:$Q$251,13,0))) -> 0 | O154: 6013.949298 | P154: 497563.389 | Q154: 1
A155: 89 | B155: 89 | C155: =IF($B155="","",'Fecha Pago'!K92) -> 2029-11-03 | D155: =IF($B$67="","",'Fecha Pago'!L92) -> 30.4 | E155: 0.09 | F155: =IF($A155=0,$H$48,IF(A155="","",VLOOKUP($A155,'Tabla Fijos'!$B$12:$Q$251,5,0))) -> 497563.389 | G155: =IF($A155=0,0,IF(A155="","",VLOOKUP($A155,'Tabla Fijos'!$B$12:$Q$251,6,0))) -> 1750.019417 | H155: =IF($A155=0,0,IF(A155="","",VLOOKUP($A155,'Tabla Fijos'!$B$12:$Q$251,7,0))) -> 3781.481756 | I155: =IF($A155=0,0,IF(A155="","",VLOOKUP($A155,'Tabla Fijos'!$B$12:$Q$251,8,0))) -> 0 | J155: =IF($A155=0,0,IF(A155="","",VLOOKUP($A155,'Tabla Fijos'!$B$12:$Q$251,10,0))) -> 298.5380334 | K155: =IF($A155=0,0,IF(A155="","",VLOOKUP($A155,'Tabla Fijos'!$B$12:$Q$251,11,0))) -> 182.868 | L155: =IF($A155=0,0,IF(A155="","",VLOOKUP($A155,'Tabla Fijos'!$B$12:$Q$251,12,0))) -> 0 | M155: =IF($A155=0,0,IF(A155="","",VLOOKUP($A155,'Tabla Fijos'!$B$12:$Q$251,13,0))) -> 0 | O155: 6012.907207 | P155: 495813.3696 | Q155: 1
A156: 90 | B156: 90 | C156: =IF($B156="","",'Fecha Pago'!K93) -> 2029-12-03 | D156: =IF($B$67="","",'Fecha Pago'!L93) -> 30.4 | E156: 0.09 | F156: =IF($A156=0,$H$48,IF(A156="","",VLOOKUP($A156,'Tabla Fijos'!$B$12:$Q$251,5,0))) -> 495813.3696 | G156: =IF($A156=0,0,IF(A156="","",VLOOKUP($A156,'Tabla Fijos'!$B$12:$Q$251,6,0))) -> 1763.319564 | H156: =IF($A156=0,0,IF(A156="","",VLOOKUP($A156,'Tabla Fijos'!$B$12:$Q$251,7,0))) -> 3768.181609 | I156: =IF($A156=0,0,IF(A156="","",VLOOKUP($A156,'Tabla Fijos'!$B$12:$Q$251,8,0))) -> 0 | J156: =IF($A156=0,0,IF(A156="","",VLOOKUP($A156,'Tabla Fijos'!$B$12:$Q$251,10,0))) -> 297.4880218 | K156: =IF($A156=0,0,IF(A156="","",VLOOKUP($A156,'Tabla Fijos'!$B$12:$Q$251,11,0))) -> 182.868 | L156: =IF($A156=0,0,IF(A156="","",VLOOKUP($A156,'Tabla Fijos'!$B$12:$Q$251,12,0))) -> 0 | M156: =IF($A156=0,0,IF(A156="","",VLOOKUP($A156,'Tabla Fijos'!$B$12:$Q$251,13,0))) -> 0 | O156: 6011.857195 | P156: 494050.05 | Q156: 1
A157: 91 | B157: 91 | C157: =IF($B157="","",'Fecha Pago'!K94) -> 2030-01-03 | D157: =IF($B$67="","",'Fecha Pago'!L94) -> 30.4 | E157: 0.09 | F157: =IF($A157=0,$H$48,IF(A157="","",VLOOKUP($A157,'Tabla Fijos'!$B$12:$Q$251,5,0))) -> 494050.05 | G157: =IF($A157=0,0,IF(A157="","",VLOOKUP($A157,'Tabla Fijos'!$B$12:$Q$251,6,0))) -> 1776.720793 | H157: =IF($A157=0,0,IF(A157="","",VLOOKUP($A157,'Tabla Fijos'!$B$12:$Q$251,7,0))) -> 3754.78038 | I157: =IF($A157=0,0,IF(A157="","",VLOOKUP($A157,'Tabla Fijos'!$B$12:$Q$251,8,0))) -> 0 | J157: =IF($A157=0,0,IF(A157="","",VLOOKUP($A157,'Tabla Fijos'!$B$12:$Q$251,10,0))) -> 296.43003 | K157: =IF($A157=0,0,IF(A157="","",VLOOKUP($A157,'Tabla Fijos'!$B$12:$Q$251,11,0))) -> 182.868 | L157: =IF($A157=0,0,IF(A157="","",VLOOKUP($A157,'Tabla Fijos'!$B$12:$Q$251,12,0))) -> 0 | M157: =IF($A157=0,0,IF(A157="","",VLOOKUP($A157,'Tabla Fijos'!$B$12:$Q$251,13,0))) -> 0 | O157: 6010.799203 | P157: 492273.3292 | Q157: 1
A158: 92 | B158: 92 | C158: =IF($B158="","",'Fecha Pago'!K95) -> 2030-02-03 | D158: =IF($B$67="","",'Fecha Pago'!L95) -> 30.4 | E158: 0.09 | F158: =IF($A158=0,$H$48,IF(A158="","",VLOOKUP($A158,'Tabla Fijos'!$B$12:$Q$251,5,0))) -> 492273.3292 | G158: =IF($A158=0,0,IF(A158="","",VLOOKUP($A158,'Tabla Fijos'!$B$12:$Q$251,6,0))) -> 1790.223871 | H158: =IF($A158=0,0,IF(A158="","",VLOOKUP($A158,'Tabla Fijos'!$B$12:$Q$251,7,0))) -> 3741.277302 | I158: =IF($A158=0,0,IF(A158="","",VLOOKUP($A158,'Tabla Fijos'!$B$12:$Q$251,8,0))) -> 0 | J158: =IF($A158=0,0,IF(A158="","",VLOOKUP($A158,'Tabla Fijos'!$B$12:$Q$251,10,0))) -> 295.3639975 | K158: =IF($A158=0,0,IF(A158="","",VLOOKUP($A158,'Tabla Fijos'!$B$12:$Q$251,11,0))) -> 182.868 | L158: =IF($A158=0,0,IF(A158="","",VLOOKUP($A158,'Tabla Fijos'!$B$12:$Q$251,12,0))) -> 0 | M158: =IF($A158=0,0,IF(A158="","",VLOOKUP($A158,'Tabla Fijos'!$B$12:$Q$251,13,0))) -> 0 | O158: 6009.733171 | P158: 490483.1054 | Q158: 1
A159: 93 | B159: 93 | C159: =IF($B159="","",'Fecha Pago'!K96) -> 2030-03-03 | D159: =IF($B$67="","",'Fecha Pago'!L96) -> 30.4 | E159: 0.09 | F159: =IF($A159=0,$H$48,IF(A159="","",VLOOKUP($A159,'Tabla Fijos'!$B$12:$Q$251,5,0))) -> 490483.1054 | G159: =IF($A159=0,0,IF(A159="","",VLOOKUP($A159,'Tabla Fijos'!$B$12:$Q$251,6,0))) -> 1803.829572 | H159: =IF($A159=0,0,IF(A159="","",VLOOKUP($A159,'Tabla Fijos'!$B$12:$Q$251,7,0))) -> 3727.671601 | I159: =IF($A159=0,0,IF(A159="","",VLOOKUP($A159,'Tabla Fijos'!$B$12:$Q$251,8,0))) -> 0 | J159: =IF($A159=0,0,IF(A159="","",VLOOKUP($A159,'Tabla Fijos'!$B$12:$Q$251,10,0))) -> 294.2898632 | K159: =IF($A159=0,0,IF(A159="","",VLOOKUP($A159,'Tabla Fijos'!$B$12:$Q$251,11,0))) -> 182.868 | L159: =IF($A159=0,0,IF(A159="","",VLOOKUP($A159,'Tabla Fijos'!$B$12:$Q$251,12,0))) -> 0 | M159: =IF($A159=0,0,IF(A159="","",VLOOKUP($A159,'Tabla Fijos'!$B$12:$Q$251,13,0))) -> 0 | O159: 6008.659036 | P159: 488679.2758 | Q159: 1
A160: 94 | B160: 94 | C160: =IF($B160="","",'Fecha Pago'!K97) -> 2030-04-03 | D160: =IF($B$67="","",'Fecha Pago'!L97) -> 30.4 | E160: 0.09 | F160: =IF($A160=0,$H$48,IF(A160="","",VLOOKUP($A160,'Tabla Fijos'!$B$12:$Q$251,5,0))) -> 488679.2758 | G160: =IF($A160=0,0,IF(A160="","",VLOOKUP($A160,'Tabla Fijos'!$B$12:$Q$251,6,0))) -> 1817.538677 | H160: =IF($A160=0,0,IF(A160="","",VLOOKUP($A160,'Tabla Fijos'!$B$12:$Q$251,7,0))) -> 3713.962496 | I160: =IF($A160=0,0,IF(A160="","",VLOOKUP($A160,'Tabla Fijos'!$B$12:$Q$251,8,0))) -> 0 | J160: =IF($A160=0,0,IF(A160="","",VLOOKUP($A160,'Tabla Fijos'!$B$12:$Q$251,10,0))) -> 293.2075655 | K160: =IF($A160=0,0,IF(A160="","",VLOOKUP($A160,'Tabla Fijos'!$B$12:$Q$251,11,0))) -> 182.868 | L160: =IF($A160=0,0,IF(A160="","",VLOOKUP($A160,'Tabla Fijos'!$B$12:$Q$251,12,0))) -> 0 | M160: =IF($A160=0,0,IF(A160="","",VLOOKUP($A160,'Tabla Fijos'!$B$12:$Q$251,13,0))) -> 0 | O160: 6007.576739 | P160: 486861.7371 | Q160: 1
A161: 95 | B161: 95 | C161: =IF($B161="","",'Fecha Pago'!K98) -> 2030-05-03 | D161: =IF($B$67="","",'Fecha Pago'!L98) -> 30.4 | E161: 0.09 | F161: =IF($A161=0,$H$48,IF(A161="","",VLOOKUP($A161,'Tabla Fijos'!$B$12:$Q$251,5,0))) -> 486861.7371 | G161: =IF($A161=0,0,IF(A161="","",VLOOKUP($A161,'Tabla Fijos'!$B$12:$Q$251,6,0))) -> 1831.351971 | H161: =IF($A161=0,0,IF(A161="","",VLOOKUP($A161,'Tabla Fijos'!$B$12:$Q$251,7,0))) -> 3700.149202 | I161: =IF($A161=0,0,IF(A161="","",VLOOKUP($A161,'Tabla Fijos'!$B$12:$Q$251,8,0))) -> 0 | J161: =IF($A161=0,0,IF(A161="","",VLOOKUP($A161,'Tabla Fijos'!$B$12:$Q$251,10,0))) -> 292.1170423 | K161: =IF($A161=0,0,IF(A161="","",VLOOKUP($A161,'Tabla Fijos'!$B$12:$Q$251,11,0))) -> 182.868 | L161: =IF($A161=0,0,IF(A161="","",VLOOKUP($A161,'Tabla Fijos'!$B$12:$Q$251,12,0))) -> 0 | M161: =IF($A161=0,0,IF(A161="","",VLOOKUP($A161,'Tabla Fijos'!$B$12:$Q$251,13,0))) -> 0 | O161: 6006.486215 | P161: 485030.3851 | Q161: 1
A162: 96 | B162: 96 | C162: =IF($B162="","",'Fecha Pago'!K99) -> 2030-06-03 | D162: =IF($B$67="","",'Fecha Pago'!L99) -> 30.4 | E162: 0.09 | F162: =IF($A162=0,$H$48,IF(A162="","",VLOOKUP($A162,'Tabla Fijos'!$B$12:$Q$251,5,0))) -> 485030.3851 | G162: =IF($A162=0,0,IF(A162="","",VLOOKUP($A162,'Tabla Fijos'!$B$12:$Q$251,6,0))) -> 1845.270246 | H162: =IF($A162=0,0,IF(A162="","",VLOOKUP($A162,'Tabla Fijos'!$B$12:$Q$251,7,0))) -> 3686.230927 | I162: =IF($A162=0,0,IF(A162="","",VLOOKUP($A162,'Tabla Fijos'!$B$12:$Q$251,8,0))) -> 0 | J162: =IF($A162=0,0,IF(A162="","",VLOOKUP($A162,'Tabla Fijos'!$B$12:$Q$251,10,0))) -> 291.0182311 | K162: =IF($A162=0,0,IF(A162="","",VLOOKUP($A162,'Tabla Fijos'!$B$12:$Q$251,11,0))) -> 182.868 | L162: =IF($A162=0,0,IF(A162="","",VLOOKUP($A162,'Tabla Fijos'!$B$12:$Q$251,12,0))) -> 0 | M162: =IF($A162=0,0,IF(A162="","",VLOOKUP($A162,'Tabla Fijos'!$B$12:$Q$251,13,0))) -> 0 | O162: 6005.387404 | P162: 483185.1149 | Q162: 1
A163: 97 | B163: 97 | C163: =IF($B163="","",'Fecha Pago'!K100) -> 2030-07-03 | D163: =IF($B$67="","",'Fecha Pago'!L100) -> 30.4 | E163: 0.09 | F163: =IF($A163=0,$H$48,IF(A163="","",VLOOKUP($A163,'Tabla Fijos'!$B$12:$Q$251,5,0))) -> 483185.1149 | G163: =IF($A163=0,0,IF(A163="","",VLOOKUP($A163,'Tabla Fijos'!$B$12:$Q$251,6,0))) -> 1859.2943 | H163: =IF($A163=0,0,IF(A163="","",VLOOKUP($A163,'Tabla Fijos'!$B$12:$Q$251,7,0))) -> 3672.206873 | I163: =IF($A163=0,0,IF(A163="","",VLOOKUP($A163,'Tabla Fijos'!$B$12:$Q$251,8,0))) -> 0 | J163: =IF($A163=0,0,IF(A163="","",VLOOKUP($A163,'Tabla Fijos'!$B$12:$Q$251,10,0))) -> 289.9110689 | K163: =IF($A163=0,0,IF(A163="","",VLOOKUP($A163,'Tabla Fijos'!$B$12:$Q$251,11,0))) -> 182.868 | L163: =IF($A163=0,0,IF(A163="","",VLOOKUP($A163,'Tabla Fijos'!$B$12:$Q$251,12,0))) -> 0 | M163: =IF($A163=0,0,IF(A163="","",VLOOKUP($A163,'Tabla Fijos'!$B$12:$Q$251,13,0))) -> 0 | O163: 6004.280242 | P163: 481325.8206 | Q163: 1
A164: 98 | B164: 98 | C164: =IF($B164="","",'Fecha Pago'!K101) -> 2030-08-03 | D164: =IF($B$67="","",'Fecha Pago'!L101) -> 30.4 | E164: 0.09 | F164: =IF($A164=0,$H$48,IF(A164="","",VLOOKUP($A164,'Tabla Fijos'!$B$12:$Q$251,5,0))) -> 481325.8206 | G164: =IF($A164=0,0,IF(A164="","",VLOOKUP($A164,'Tabla Fijos'!$B$12:$Q$251,6,0))) -> 1873.424937 | H164: =IF($A164=0,0,IF(A164="","",VLOOKUP($A164,'Tabla Fijos'!$B$12:$Q$251,7,0))) -> 3658.076237 | I164: =IF($A164=0,0,IF(A164="","",VLOOKUP($A164,'Tabla Fijos'!$B$12:$Q$251,8,0))) -> 0 | J164: =IF($A164=0,0,IF(A164="","",VLOOKUP($A164,'Tabla Fijos'!$B$12:$Q$251,10,0))) -> 288.7954924 | K164: =IF($A164=0,0,IF(A164="","",VLOOKUP($A164,'Tabla Fijos'!$B$12:$Q$251,11,0))) -> 182.868 | L164: =IF($A164=0,0,IF(A164="","",VLOOKUP($A164,'Tabla Fijos'!$B$12:$Q$251,12,0))) -> 0 | M164: =IF($A164=0,0,IF(A164="","",VLOOKUP($A164,'Tabla Fijos'!$B$12:$Q$251,13,0))) -> 0 | O164: 6003.164665 | P164: 479452.3957 | Q164: 1
A165: 99 | B165: 99 | C165: =IF($B165="","",'Fecha Pago'!K102) -> 2030-09-03 | D165: =IF($B$67="","",'Fecha Pago'!L102) -> 30.4 | E165: 0.09 | F165: =IF($A165=0,$H$48,IF(A165="","",VLOOKUP($A165,'Tabla Fijos'!$B$12:$Q$251,5,0))) -> 479452.3957 | G165: =IF($A165=0,0,IF(A165="","",VLOOKUP($A165,'Tabla Fijos'!$B$12:$Q$251,6,0))) -> 1887.662966 | H165: =IF($A165=0,0,IF(A165="","",VLOOKUP($A165,'Tabla Fijos'!$B$12:$Q$251,7,0))) -> 3643.838207 | I165: =IF($A165=0,0,IF(A165="","",VLOOKUP($A165,'Tabla Fijos'!$B$12:$Q$251,8,0))) -> 0 | J165: =IF($A165=0,0,IF(A165="","",VLOOKUP($A165,'Tabla Fijos'!$B$12:$Q$251,10,0))) -> 287.6714374 | K165: =IF($A165=0,0,IF(A165="","",VLOOKUP($A165,'Tabla Fijos'!$B$12:$Q$251,11,0))) -> 182.868 | L165: =IF($A165=0,0,IF(A165="","",VLOOKUP($A165,'Tabla Fijos'!$B$12:$Q$251,12,0))) -> 0 | M165: =IF($A165=0,0,IF(A165="","",VLOOKUP($A165,'Tabla Fijos'!$B$12:$Q$251,13,0))) -> 0 | O165: 6002.040611 | P165: 477564.7327 | Q165: 1
A166: 100 | B166: 100 | C166: =IF($B166="","",'Fecha Pago'!K103) -> 2030-10-03 | D166: =IF($B$67="","",'Fecha Pago'!L103) -> 30.4 | E166: 0.09 | F166: =IF($A166=0,$H$48,IF(A166="","",VLOOKUP($A166,'Tabla Fijos'!$B$12:$Q$251,5,0))) -> 477564.7327 | G166: =IF($A166=0,0,IF(A166="","",VLOOKUP($A166,'Tabla Fijos'!$B$12:$Q$251,6,0))) -> 1902.009205 | H166: =IF($A166=0,0,IF(A166="","",VLOOKUP($A166,'Tabla Fijos'!$B$12:$Q$251,7,0))) -> 3629.491968 | I166: =IF($A166=0,0,IF(A166="","",VLOOKUP($A166,'Tabla Fijos'!$B$12:$Q$251,8,0))) -> 0 | J166: =IF($A166=0,0,IF(A166="","",VLOOKUP($A166,'Tabla Fijos'!$B$12:$Q$251,10,0))) -> 286.5388396 | K166: =IF($A166=0,0,IF(A166="","",VLOOKUP($A166,'Tabla Fijos'!$B$12:$Q$251,11,0))) -> 182.868 | L166: =IF($A166=0,0,IF(A166="","",VLOOKUP($A166,'Tabla Fijos'!$B$12:$Q$251,12,0))) -> 0 | M166: =IF($A166=0,0,IF(A166="","",VLOOKUP($A166,'Tabla Fijos'!$B$12:$Q$251,13,0))) -> 0 | O166: 6000.908013 | P166: 475662.7235 | Q166: 1
A167: 101 | B167: 101 | C167: =IF($B167="","",'Fecha Pago'!K104) -> 2030-11-03 | D167: =IF($B$67="","",'Fecha Pago'!L104) -> 30.4 | E167: 0.09 | F167: =IF($A167=0,$H$48,IF(A167="","",VLOOKUP($A167,'Tabla Fijos'!$B$12:$Q$251,5,0))) -> 475662.7235 | G167: =IF($A167=0,0,IF(A167="","",VLOOKUP($A167,'Tabla Fijos'!$B$12:$Q$251,6,0))) -> 1916.464475 | H167: =IF($A167=0,0,IF(A167="","",VLOOKUP($A167,'Tabla Fijos'!$B$12:$Q$251,7,0))) -> 3615.036698 | I167: =IF($A167=0,0,IF(A167="","",VLOOKUP($A167,'Tabla Fijos'!$B$12:$Q$251,8,0))) -> 0 | J167: =IF($A167=0,0,IF(A167="","",VLOOKUP($A167,'Tabla Fijos'!$B$12:$Q$251,10,0))) -> 285.3976341 | K167: =IF($A167=0,0,IF(A167="","",VLOOKUP($A167,'Tabla Fijos'!$B$12:$Q$251,11,0))) -> 182.868 | L167: =IF($A167=0,0,IF(A167="","",VLOOKUP($A167,'Tabla Fijos'!$B$12:$Q$251,12,0))) -> 0 | M167: =IF($A167=0,0,IF(A167="","",VLOOKUP($A167,'Tabla Fijos'!$B$12:$Q$251,13,0))) -> 0 | O167: 5999.766807 | P167: 473746.259 | Q167: 1
A168: 102 | B168: 102 | C168: =IF($B168="","",'Fecha Pago'!K105) -> 2030-12-03 | D168: =IF($B$67="","",'Fecha Pago'!L105) -> 30.4 | E168: 0.09 | F168: =IF($A168=0,$H$48,IF(A168="","",VLOOKUP($A168,'Tabla Fijos'!$B$12:$Q$251,5,0))) -> 473746.259 | G168: =IF($A168=0,0,IF(A168="","",VLOOKUP($A168,'Tabla Fijos'!$B$12:$Q$251,6,0))) -> 1931.029605 | H168: =IF($A168=0,0,IF(A168="","",VLOOKUP($A168,'Tabla Fijos'!$B$12:$Q$251,7,0))) -> 3600.471568 | I168: =IF($A168=0,0,IF(A168="","",VLOOKUP($A168,'Tabla Fijos'!$B$12:$Q$251,8,0))) -> 0 | J168: =IF($A168=0,0,IF(A168="","",VLOOKUP($A168,'Tabla Fijos'!$B$12:$Q$251,10,0))) -> 284.2477554 | K168: =IF($A168=0,0,IF(A168="","",VLOOKUP($A168,'Tabla Fijos'!$B$12:$Q$251,11,0))) -> 182.868 | L168: =IF($A168=0,0,IF(A168="","",VLOOKUP($A168,'Tabla Fijos'!$B$12:$Q$251,12,0))) -> 0 | M168: =IF($A168=0,0,IF(A168="","",VLOOKUP($A168,'Tabla Fijos'!$B$12:$Q$251,13,0))) -> 0 | O168: 5998.616929 | P168: 471815.2294 | Q168: 1
A169: 103 | B169: 103 | C169: =IF($B169="","",'Fecha Pago'!K106) -> 2031-01-03 | D169: =IF($B$67="","",'Fecha Pago'!L106) -> 30.4 | E169: 0.09 | F169: =IF($A169=0,$H$48,IF(A169="","",VLOOKUP($A169,'Tabla Fijos'!$B$12:$Q$251,5,0))) -> 471815.2294 | G169: =IF($A169=0,0,IF(A169="","",VLOOKUP($A169,'Tabla Fijos'!$B$12:$Q$251,6,0))) -> 1945.70543 | H169: =IF($A169=0,0,IF(A169="","",VLOOKUP($A169,'Tabla Fijos'!$B$12:$Q$251,7,0))) -> 3585.795743 | I169: =IF($A169=0,0,IF(A169="","",VLOOKUP($A169,'Tabla Fijos'!$B$12:$Q$251,8,0))) -> 0 | J169: =IF($A169=0,0,IF(A169="","",VLOOKUP($A169,'Tabla Fijos'!$B$12:$Q$251,10,0))) -> 283.0891376 | K169: =IF($A169=0,0,IF(A169="","",VLOOKUP($A169,'Tabla Fijos'!$B$12:$Q$251,11,0))) -> 182.868 | L169: =IF($A169=0,0,IF(A169="","",VLOOKUP($A169,'Tabla Fijos'!$B$12:$Q$251,12,0))) -> 0 | M169: =IF($A169=0,0,IF(A169="","",VLOOKUP($A169,'Tabla Fijos'!$B$12:$Q$251,13,0))) -> 0 | O169: 5997.458311 | P169: 469869.524 | Q169: 1
A170: 104 | B170: 104 | C170: =IF($B170="","",'Fecha Pago'!K107) -> 2031-02-03 | D170: =IF($B$67="","",'Fecha Pago'!L107) -> 30.4 | E170: 0.09 | F170: =IF($A170=0,$H$48,IF(A170="","",VLOOKUP($A170,'Tabla Fijos'!$B$12:$Q$251,5,0))) -> 469869.524 | G170: =IF($A170=0,0,IF(A170="","",VLOOKUP($A170,'Tabla Fijos'!$B$12:$Q$251,6,0))) -> 1960.492791 | H170: =IF($A170=0,0,IF(A170="","",VLOOKUP($A170,'Tabla Fijos'!$B$12:$Q$251,7,0))) -> 3571.008382 | I170: =IF($A170=0,0,IF(A170="","",VLOOKUP($A170,'Tabla Fijos'!$B$12:$Q$251,8,0))) -> 0 | J170: =IF($A170=0,0,IF(A170="","",VLOOKUP($A170,'Tabla Fijos'!$B$12:$Q$251,10,0))) -> 281.9217144 | K170: =IF($A170=0,0,IF(A170="","",VLOOKUP($A170,'Tabla Fijos'!$B$12:$Q$251,11,0))) -> 182.868 | L170: =IF($A170=0,0,IF(A170="","",VLOOKUP($A170,'Tabla Fijos'!$B$12:$Q$251,12,0))) -> 0 | M170: =IF($A170=0,0,IF(A170="","",VLOOKUP($A170,'Tabla Fijos'!$B$12:$Q$251,13,0))) -> 0 | O170: 5996.290888 | P170: 467909.0312 | Q170: 1
A171: 105 | B171: 105 | C171: =IF($B171="","",'Fecha Pago'!K108) -> 2031-03-03 | D171: =IF($B$67="","",'Fecha Pago'!L108) -> 30.4 | E171: 0.09 | F171: =IF($A171=0,$H$48,IF(A171="","",VLOOKUP($A171,'Tabla Fijos'!$B$12:$Q$251,5,0))) -> 467909.0312 | G171: =IF($A171=0,0,IF(A171="","",VLOOKUP($A171,'Tabla Fijos'!$B$12:$Q$251,6,0))) -> 1975.392536 | H171: =IF($A171=0,0,IF(A171="","",VLOOKUP($A171,'Tabla Fijos'!$B$12:$Q$251,7,0))) -> 3556.108637 | I171: =IF($A171=0,0,IF(A171="","",VLOOKUP($A171,'Tabla Fijos'!$B$12:$Q$251,8,0))) -> 0 | J171: =IF($A171=0,0,IF(A171="","",VLOOKUP($A171,'Tabla Fijos'!$B$12:$Q$251,10,0))) -> 280.7454187 | K171: =IF($A171=0,0,IF(A171="","",VLOOKUP($A171,'Tabla Fijos'!$B$12:$Q$251,11,0))) -> 182.868 | L171: =IF($A171=0,0,IF(A171="","",VLOOKUP($A171,'Tabla Fijos'!$B$12:$Q$251,12,0))) -> 0 | M171: =IF($A171=0,0,IF(A171="","",VLOOKUP($A171,'Tabla Fijos'!$B$12:$Q$251,13,0))) -> 0 | O171: 5995.114592 | P171: 465933.6386 | Q171: 1
A172: 106 | B172: 106 | C172: =IF($B172="","",'Fecha Pago'!K109) -> 2031-04-03 | D172: =IF($B$67="","",'Fecha Pago'!L109) -> 30.4 | E172: 0.09 | F172: =IF($A172=0,$H$48,IF(A172="","",VLOOKUP($A172,'Tabla Fijos'!$B$12:$Q$251,5,0))) -> 465933.6386 | G172: =IF($A172=0,0,IF(A172="","",VLOOKUP($A172,'Tabla Fijos'!$B$12:$Q$251,6,0))) -> 1990.405519 | H172: =IF($A172=0,0,IF(A172="","",VLOOKUP($A172,'Tabla Fijos'!$B$12:$Q$251,7,0))) -> 3541.095654 | I172: =IF($A172=0,0,IF(A172="","",VLOOKUP($A172,'Tabla Fijos'!$B$12:$Q$251,8,0))) -> 0 | J172: =IF($A172=0,0,IF(A172="","",VLOOKUP($A172,'Tabla Fijos'!$B$12:$Q$251,10,0))) -> 279.5601832 | K172: =IF($A172=0,0,IF(A172="","",VLOOKUP($A172,'Tabla Fijos'!$B$12:$Q$251,11,0))) -> 182.868 | L172: =IF($A172=0,0,IF(A172="","",VLOOKUP($A172,'Tabla Fijos'!$B$12:$Q$251,12,0))) -> 0 | M172: =IF($A172=0,0,IF(A172="","",VLOOKUP($A172,'Tabla Fijos'!$B$12:$Q$251,13,0))) -> 0 | O172: 5993.929356 | P172: 463943.2331 | Q172: 1
A173: 107 | B173: 107 | C173: =IF($B173="","",'Fecha Pago'!K110) -> 2031-05-03 | D173: =IF($B$67="","",'Fecha Pago'!L110) -> 30.4 | E173: 0.09 | F173: =IF($A173=0,$H$48,IF(A173="","",VLOOKUP($A173,'Tabla Fijos'!$B$12:$Q$251,5,0))) -> 463943.2331 | G173: =IF($A173=0,0,IF(A173="","",VLOOKUP($A173,'Tabla Fijos'!$B$12:$Q$251,6,0))) -> 2005.532601 | H173: =IF($A173=0,0,IF(A173="","",VLOOKUP($A173,'Tabla Fijos'!$B$12:$Q$251,7,0))) -> 3525.968572 | I173: =IF($A173=0,0,IF(A173="","",VLOOKUP($A173,'Tabla Fijos'!$B$12:$Q$251,8,0))) -> 0 | J173: =IF($A173=0,0,IF(A173="","",VLOOKUP($A173,'Tabla Fijos'!$B$12:$Q$251,10,0))) -> 278.3659399 | K173: =IF($A173=0,0,IF(A173="","",VLOOKUP($A173,'Tabla Fijos'!$B$12:$Q$251,11,0))) -> 182.868 | L173: =IF($A173=0,0,IF(A173="","",VLOOKUP($A173,'Tabla Fijos'!$B$12:$Q$251,12,0))) -> 0 | M173: =IF($A173=0,0,IF(A173="","",VLOOKUP($A173,'Tabla Fijos'!$B$12:$Q$251,13,0))) -> 0 | O173: 5992.735113 | P173: 461937.7005 | Q173: 1
A174: 108 | B174: 108 | C174: =IF($B174="","",'Fecha Pago'!K111) -> 2031-06-03 | D174: =IF($B$67="","",'Fecha Pago'!L111) -> 30.4 | E174: 0.09 | F174: =IF($A174=0,$H$48,IF(A174="","",VLOOKUP($A174,'Tabla Fijos'!$B$12:$Q$251,5,0))) -> 461937.7005 | G174: =IF($A174=0,0,IF(A174="","",VLOOKUP($A174,'Tabla Fijos'!$B$12:$Q$251,6,0))) -> 2020.774649 | H174: =IF($A174=0,0,IF(A174="","",VLOOKUP($A174,'Tabla Fijos'!$B$12:$Q$251,7,0))) -> 3510.726524 | I174: =IF($A174=0,0,IF(A174="","",VLOOKUP($A174,'Tabla Fijos'!$B$12:$Q$251,8,0))) -> 0 | J174: =IF($A174=0,0,IF(A174="","",VLOOKUP($A174,'Tabla Fijos'!$B$12:$Q$251,10,0))) -> 277.1626203 | K174: =IF($A174=0,0,IF(A174="","",VLOOKUP($A174,'Tabla Fijos'!$B$12:$Q$251,11,0))) -> 182.868 | L174: =IF($A174=0,0,IF(A174="","",VLOOKUP($A174,'Tabla Fijos'!$B$12:$Q$251,12,0))) -> 0 | M174: =IF($A174=0,0,IF(A174="","",VLOOKUP($A174,'Tabla Fijos'!$B$12:$Q$251,13,0))) -> 0 | O174: 5991.531793 | P174: 459916.9259 | Q174: 1
A175: 109 | B175: 109 | C175: =IF($B175="","",'Fecha Pago'!K112) -> 2031-07-03 | D175: =IF($B$67="","",'Fecha Pago'!L112) -> 30.4 | E175: 0.09 | F175: =IF($A175=0,$H$48,IF(A175="","",VLOOKUP($A175,'Tabla Fijos'!$B$12:$Q$251,5,0))) -> 459916.9259 | G175: =IF($A175=0,0,IF(A175="","",VLOOKUP($A175,'Tabla Fijos'!$B$12:$Q$251,6,0))) -> 2036.132536 | H175: =IF($A175=0,0,IF(A175="","",VLOOKUP($A175,'Tabla Fijos'!$B$12:$Q$251,7,0))) -> 3495.368637 | I175: =IF($A175=0,0,IF(A175="","",VLOOKUP($A175,'Tabla Fijos'!$B$12:$Q$251,8,0))) -> 0 | J175: =IF($A175=0,0,IF(A175="","",VLOOKUP($A175,'Tabla Fijos'!$B$12:$Q$251,10,0))) -> 275.9501555 | K175: =IF($A175=0,0,IF(A175="","",VLOOKUP($A175,'Tabla Fijos'!$B$12:$Q$251,11,0))) -> 182.868 | L175: =IF($A175=0,0,IF(A175="","",VLOOKUP($A175,'Tabla Fijos'!$B$12:$Q$251,12,0))) -> 0 | M175: =IF($A175=0,0,IF(A175="","",VLOOKUP($A175,'Tabla Fijos'!$B$12:$Q$251,13,0))) -> 0 | O175: 5990.319329 | P175: 457880.7933 | Q175: 1
A176: 110 | B176: 110 | C176: =IF($B176="","",'Fecha Pago'!K113) -> 2031-08-03 | D176: =IF($B$67="","",'Fecha Pago'!L113) -> 30.4 | E176: 0.09 | F176: =IF($A176=0,$H$48,IF(A176="","",VLOOKUP($A176,'Tabla Fijos'!$B$12:$Q$251,5,0))) -> 457880.7933 | G176: =IF($A176=0,0,IF(A176="","",VLOOKUP($A176,'Tabla Fijos'!$B$12:$Q$251,6,0))) -> 2051.607144 | H176: =IF($A176=0,0,IF(A176="","",VLOOKUP($A176,'Tabla Fijos'!$B$12:$Q$251,7,0))) -> 3479.894029 | I176: =IF($A176=0,0,IF(A176="","",VLOOKUP($A176,'Tabla Fijos'!$B$12:$Q$251,8,0))) -> 0 | J176: =IF($A176=0,0,IF(A176="","",VLOOKUP($A176,'Tabla Fijos'!$B$12:$Q$251,10,0))) -> 274.728476 | K176: =IF($A176=0,0,IF(A176="","",VLOOKUP($A176,'Tabla Fijos'!$B$12:$Q$251,11,0))) -> 182.868 | L176: =IF($A176=0,0,IF(A176="","",VLOOKUP($A176,'Tabla Fijos'!$B$12:$Q$251,12,0))) -> 0 | M176: =IF($A176=0,0,IF(A176="","",VLOOKUP($A176,'Tabla Fijos'!$B$12:$Q$251,13,0))) -> 0 | O176: 5989.097649 | P176: 455829.1862 | Q176: 1
A177: 111 | B177: 111 | C177: =IF($B177="","",'Fecha Pago'!K114) -> 2031-09-03 | D177: =IF($B$67="","",'Fecha Pago'!L114) -> 30.4 | E177: 0.09 | F177: =IF($A177=0,$H$48,IF(A177="","",VLOOKUP($A177,'Tabla Fijos'!$B$12:$Q$251,5,0))) -> 455829.1862 | G177: =IF($A177=0,0,IF(A177="","",VLOOKUP($A177,'Tabla Fijos'!$B$12:$Q$251,6,0))) -> 2067.199358 | H177: =IF($A177=0,0,IF(A177="","",VLOOKUP($A177,'Tabla Fijos'!$B$12:$Q$251,7,0))) -> 3464.301815 | I177: =IF($A177=0,0,IF(A177="","",VLOOKUP($A177,'Tabla Fijos'!$B$12:$Q$251,8,0))) -> 0 | J177: =IF($A177=0,0,IF(A177="","",VLOOKUP($A177,'Tabla Fijos'!$B$12:$Q$251,10,0))) -> 273.4975117 | K177: =IF($A177=0,0,IF(A177="","",VLOOKUP($A177,'Tabla Fijos'!$B$12:$Q$251,11,0))) -> 182.868 | L177: =IF($A177=0,0,IF(A177="","",VLOOKUP($A177,'Tabla Fijos'!$B$12:$Q$251,12,0))) -> 0 | M177: =IF($A177=0,0,IF(A177="","",VLOOKUP($A177,'Tabla Fijos'!$B$12:$Q$251,13,0))) -> 0 | O177: 5987.866685 | P177: 453761.9868 | Q177: 1
A178: 112 | B178: 112 | C178: =IF($B178="","",'Fecha Pago'!K115) -> 2031-10-03 | D178: =IF($B$67="","",'Fecha Pago'!L115) -> 30.4 | E178: 0.09 | F178: =IF($A178=0,$H$48,IF(A178="","",VLOOKUP($A178,'Tabla Fijos'!$B$12:$Q$251,5,0))) -> 453761.9868 | G178: =IF($A178=0,0,IF(A178="","",VLOOKUP($A178,'Tabla Fijos'!$B$12:$Q$251,6,0))) -> 2082.910073 | H178: =IF($A178=0,0,IF(A178="","",VLOOKUP($A178,'Tabla Fijos'!$B$12:$Q$251,7,0))) -> 3448.5911 | I178: =IF($A178=0,0,IF(A178="","",VLOOKUP($A178,'Tabla Fijos'!$B$12:$Q$251,8,0))) -> 0 | J178: =IF($A178=0,0,IF(A178="","",VLOOKUP($A178,'Tabla Fijos'!$B$12:$Q$251,10,0))) -> 272.2571921 | K178: =IF($A178=0,0,IF(A178="","",VLOOKUP($A178,'Tabla Fijos'!$B$12:$Q$251,11,0))) -> 182.868 | L178: =IF($A178=0,0,IF(A178="","",VLOOKUP($A178,'Tabla Fijos'!$B$12:$Q$251,12,0))) -> 0 | M178: =IF($A178=0,0,IF(A178="","",VLOOKUP($A178,'Tabla Fijos'!$B$12:$Q$251,13,0))) -> 0 | O178: 5986.626365 | P178: 451679.0768 | Q178: 1
A179: 113 | B179: 113 | C179: =IF($B179="","",'Fecha Pago'!K116) -> 2031-11-03 | D179: =IF($B$67="","",'Fecha Pago'!L116) -> 30.4 | E179: 0.09 | F179: =IF($A179=0,$H$48,IF(A179="","",VLOOKUP($A179,'Tabla Fijos'!$B$12:$Q$251,5,0))) -> 451679.0768 | G179: =IF($A179=0,0,IF(A179="","",VLOOKUP($A179,'Tabla Fijos'!$B$12:$Q$251,6,0))) -> 2098.74019 | H179: =IF($A179=0,0,IF(A179="","",VLOOKUP($A179,'Tabla Fijos'!$B$12:$Q$251,7,0))) -> 3432.760983 | I179: =IF($A179=0,0,IF(A179="","",VLOOKUP($A179,'Tabla Fijos'!$B$12:$Q$251,8,0))) -> 0 | J179: =IF($A179=0,0,IF(A179="","",VLOOKUP($A179,'Tabla Fijos'!$B$12:$Q$251,10,0))) -> 271.0074461 | K179: =IF($A179=0,0,IF(A179="","",VLOOKUP($A179,'Tabla Fijos'!$B$12:$Q$251,11,0))) -> 182.868 | L179: =IF($A179=0,0,IF(A179="","",VLOOKUP($A179,'Tabla Fijos'!$B$12:$Q$251,12,0))) -> 0 | M179: =IF($A179=0,0,IF(A179="","",VLOOKUP($A179,'Tabla Fijos'!$B$12:$Q$251,13,0))) -> 0 | O179: 5985.376619 | P179: 449580.3366 | Q179: 1
A180: 114 | B180: 114 | C180: =IF($B180="","",'Fecha Pago'!K117) -> 2031-12-03 | D180: =IF($B$67="","",'Fecha Pago'!L117) -> 30.4 | E180: 0.09 | F180: =IF($A180=0,$H$48,IF(A180="","",VLOOKUP($A180,'Tabla Fijos'!$B$12:$Q$251,5,0))) -> 449580.3366 | G180: =IF($A180=0,0,IF(A180="","",VLOOKUP($A180,'Tabla Fijos'!$B$12:$Q$251,6,0))) -> 2114.690615 | H180: =IF($A180=0,0,IF(A180="","",VLOOKUP($A180,'Tabla Fijos'!$B$12:$Q$251,7,0))) -> 3416.810558 | I180: =IF($A180=0,0,IF(A180="","",VLOOKUP($A180,'Tabla Fijos'!$B$12:$Q$251,8,0))) -> 0 | J180: =IF($A180=0,0,IF(A180="","",VLOOKUP($A180,'Tabla Fijos'!$B$12:$Q$251,10,0))) -> 269.7482019 | K180: =IF($A180=0,0,IF(A180="","",VLOOKUP($A180,'Tabla Fijos'!$B$12:$Q$251,11,0))) -> 182.868 | L180: =IF($A180=0,0,IF(A180="","",VLOOKUP($A180,'Tabla Fijos'!$B$12:$Q$251,12,0))) -> 0 | M180: =IF($A180=0,0,IF(A180="","",VLOOKUP($A180,'Tabla Fijos'!$B$12:$Q$251,13,0))) -> 0 | O180: 5984.117375 | P180: 447465.646 | Q180: 1
A181: 115 | B181: 115 | C181: =IF($B181="","",'Fecha Pago'!K118) -> 2032-01-03 | D181: =IF($B$67="","",'Fecha Pago'!L118) -> 30.4 | E181: 0.09 | F181: =IF($A181=0,$H$48,IF(A181="","",VLOOKUP($A181,'Tabla Fijos'!$B$12:$Q$251,5,0))) -> 447465.646 | G181: =IF($A181=0,0,IF(A181="","",VLOOKUP($A181,'Tabla Fijos'!$B$12:$Q$251,6,0))) -> 2130.762264 | H181: =IF($A181=0,0,IF(A181="","",VLOOKUP($A181,'Tabla Fijos'!$B$12:$Q$251,7,0))) -> 3400.738909 | I181: =IF($A181=0,0,IF(A181="","",VLOOKUP($A181,'Tabla Fijos'!$B$12:$Q$251,8,0))) -> 0 | J181: =IF($A181=0,0,IF(A181="","",VLOOKUP($A181,'Tabla Fijos'!$B$12:$Q$251,10,0))) -> 268.4793876 | K181: =IF($A181=0,0,IF(A181="","",VLOOKUP($A181,'Tabla Fijos'!$B$12:$Q$251,11,0))) -> 182.868 | L181: =IF($A181=0,0,IF(A181="","",VLOOKUP($A181,'Tabla Fijos'!$B$12:$Q$251,12,0))) -> 0 | M181: =IF($A181=0,0,IF(A181="","",VLOOKUP($A181,'Tabla Fijos'!$B$12:$Q$251,13,0))) -> 0 | O181: 5982.848561 | P181: 445334.8837 | Q181: 1
A182: 116 | B182: 116 | C182: =IF($B182="","",'Fecha Pago'!K119) -> 2032-02-03 | D182: =IF($B$67="","",'Fecha Pago'!L119) -> 30.4 | E182: 0.09 | F182: =IF($A182=0,$H$48,IF(A182="","",VLOOKUP($A182,'Tabla Fijos'!$B$12:$Q$251,5,0))) -> 445334.8837 | G182: =IF($A182=0,0,IF(A182="","",VLOOKUP($A182,'Tabla Fijos'!$B$12:$Q$251,6,0))) -> 2146.956057 | H182: =IF($A182=0,0,IF(A182="","",VLOOKUP($A182,'Tabla Fijos'!$B$12:$Q$251,7,0))) -> 3384.545116 | I182: =IF($A182=0,0,IF(A182="","",VLOOKUP($A182,'Tabla Fijos'!$B$12:$Q$251,8,0))) -> 0 | J182: =IF($A182=0,0,IF(A182="","",VLOOKUP($A182,'Tabla Fijos'!$B$12:$Q$251,10,0))) -> 267.2009302 | K182: =IF($A182=0,0,IF(A182="","",VLOOKUP($A182,'Tabla Fijos'!$B$12:$Q$251,11,0))) -> 182.868 | L182: =IF($A182=0,0,IF(A182="","",VLOOKUP($A182,'Tabla Fijos'!$B$12:$Q$251,12,0))) -> 0 | M182: =IF($A182=0,0,IF(A182="","",VLOOKUP($A182,'Tabla Fijos'!$B$12:$Q$251,13,0))) -> 0 | O182: 5981.570103 | P182: 443187.9276 | Q182: 1
A183: 117 | B183: 117 | C183: =IF($B183="","",'Fecha Pago'!K120) -> 2032-03-03 | D183: =IF($B$67="","",'Fecha Pago'!L120) -> 30.4 | E183: 0.09 | F183: =IF($A183=0,$H$48,IF(A183="","",VLOOKUP($A183,'Tabla Fijos'!$B$12:$Q$251,5,0))) -> 443187.9276 | G183: =IF($A183=0,0,IF(A183="","",VLOOKUP($A183,'Tabla Fijos'!$B$12:$Q$251,6,0))) -> 2163.272923 | H183: =IF($A183=0,0,IF(A183="","",VLOOKUP($A183,'Tabla Fijos'!$B$12:$Q$251,7,0))) -> 3368.22825 | I183: =IF($A183=0,0,IF(A183="","",VLOOKUP($A183,'Tabla Fijos'!$B$12:$Q$251,8,0))) -> 0 | J183: =IF($A183=0,0,IF(A183="","",VLOOKUP($A183,'Tabla Fijos'!$B$12:$Q$251,10,0))) -> 265.9127566 | K183: =IF($A183=0,0,IF(A183="","",VLOOKUP($A183,'Tabla Fijos'!$B$12:$Q$251,11,0))) -> 182.868 | L183: =IF($A183=0,0,IF(A183="","",VLOOKUP($A183,'Tabla Fijos'!$B$12:$Q$251,12,0))) -> 0 | M183: =IF($A183=0,0,IF(A183="","",VLOOKUP($A183,'Tabla Fijos'!$B$12:$Q$251,13,0))) -> 0 | O183: 5980.28193 | P183: 441024.6547 | Q183: 1
A184: 118 | B184: 118 | C184: =IF($B184="","",'Fecha Pago'!K121) -> 2032-04-03 | D184: =IF($B$67="","",'Fecha Pago'!L121) -> 30.4 | E184: 0.09 | F184: =IF($A184=0,$H$48,IF(A184="","",VLOOKUP($A184,'Tabla Fijos'!$B$12:$Q$251,5,0))) -> 441024.6547 | G184: =IF($A184=0,0,IF(A184="","",VLOOKUP($A184,'Tabla Fijos'!$B$12:$Q$251,6,0))) -> 2179.713797 | H184: =IF($A184=0,0,IF(A184="","",VLOOKUP($A184,'Tabla Fijos'!$B$12:$Q$251,7,0))) -> 3351.787376 | I184: =IF($A184=0,0,IF(A184="","",VLOOKUP($A184,'Tabla Fijos'!$B$12:$Q$251,8,0))) -> 0 | J184: =IF($A184=0,0,IF(A184="","",VLOOKUP($A184,'Tabla Fijos'!$B$12:$Q$251,10,0))) -> 264.6147928 | K184: =IF($A184=0,0,IF(A184="","",VLOOKUP($A184,'Tabla Fijos'!$B$12:$Q$251,11,0))) -> 182.868 | L184: =IF($A184=0,0,IF(A184="","",VLOOKUP($A184,'Tabla Fijos'!$B$12:$Q$251,12,0))) -> 0 | M184: =IF($A184=0,0,IF(A184="","",VLOOKUP($A184,'Tabla Fijos'!$B$12:$Q$251,13,0))) -> 0 | O184: 5978.983966 | P184: 438844.9409 | Q184: 1
A185: 119 | B185: 119 | C185: =IF($B185="","",'Fecha Pago'!K122) -> 2032-05-03 | D185: =IF($B$67="","",'Fecha Pago'!L122) -> 30.4 | E185: 0.09 | F185: =IF($A185=0,$H$48,IF(A185="","",VLOOKUP($A185,'Tabla Fijos'!$B$12:$Q$251,5,0))) -> 438844.9409 | G185: =IF($A185=0,0,IF(A185="","",VLOOKUP($A185,'Tabla Fijos'!$B$12:$Q$251,6,0))) -> 2196.279622 | H185: =IF($A185=0,0,IF(A185="","",VLOOKUP($A185,'Tabla Fijos'!$B$12:$Q$251,7,0))) -> 3335.221551 | I185: =IF($A185=0,0,IF(A185="","",VLOOKUP($A185,'Tabla Fijos'!$B$12:$Q$251,8,0))) -> 0 | J185: =IF($A185=0,0,IF(A185="","",VLOOKUP($A185,'Tabla Fijos'!$B$12:$Q$251,10,0))) -> 263.3069646 | K185: =IF($A185=0,0,IF(A185="","",VLOOKUP($A185,'Tabla Fijos'!$B$12:$Q$251,11,0))) -> 182.868 | L185: =IF($A185=0,0,IF(A185="","",VLOOKUP($A185,'Tabla Fijos'!$B$12:$Q$251,12,0))) -> 0 | M185: =IF($A185=0,0,IF(A185="","",VLOOKUP($A185,'Tabla Fijos'!$B$12:$Q$251,13,0))) -> 0 | O185: 5977.676138 | P185: 436648.6613 | Q185: 1
A186: 120 | B186: 120 | C186: =IF($B186="","",'Fecha Pago'!K123) -> 2032-06-03 | D186: =IF($B$67="","",'Fecha Pago'!L123) -> 30.4 | E186: 0.09 | F186: =IF($A186=0,$H$48,IF(A186="","",VLOOKUP($A186,'Tabla Fijos'!$B$12:$Q$251,5,0))) -> 436648.6613 | G186: =IF($A186=0,0,IF(A186="","",VLOOKUP($A186,'Tabla Fijos'!$B$12:$Q$251,6,0))) -> 2212.971347 | H186: =IF($A186=0,0,IF(A186="","",VLOOKUP($A186,'Tabla Fijos'!$B$12:$Q$251,7,0))) -> 3318.529826 | I186: =IF($A186=0,0,IF(A186="","",VLOOKUP($A186,'Tabla Fijos'!$B$12:$Q$251,8,0))) -> 0 | J186: =IF($A186=0,0,IF(A186="","",VLOOKUP($A186,'Tabla Fijos'!$B$12:$Q$251,10,0))) -> 261.9891968 | K186: =IF($A186=0,0,IF(A186="","",VLOOKUP($A186,'Tabla Fijos'!$B$12:$Q$251,11,0))) -> 182.868 | L186: =IF($A186=0,0,IF(A186="","",VLOOKUP($A186,'Tabla Fijos'!$B$12:$Q$251,12,0))) -> 0 | M186: =IF($A186=0,0,IF(A186="","",VLOOKUP($A186,'Tabla Fijos'!$B$12:$Q$251,13,0))) -> 0 | O186: 5976.35837 | P186: 434435.69 | Q186: 1
A187: 121 | B187: 121 | C187: =IF($B187="","",'Fecha Pago'!K124) -> 2032-07-03 | D187: =IF($B$67="","",'Fecha Pago'!L124) -> 30.4 | E187: 0.09 | F187: =IF($A187=0,$H$48,IF(A187="","",VLOOKUP($A187,'Tabla Fijos'!$B$12:$Q$251,5,0))) -> 434435.69 | G187: =IF($A187=0,0,IF(A187="","",VLOOKUP($A187,'Tabla Fijos'!$B$12:$Q$251,6,0))) -> 2229.78993 | H187: =IF($A187=0,0,IF(A187="","",VLOOKUP($A187,'Tabla Fijos'!$B$12:$Q$251,7,0))) -> 3301.711244 | I187: =IF($A187=0,0,IF(A187="","",VLOOKUP($A187,'Tabla Fijos'!$B$12:$Q$251,8,0))) -> 0 | J187: =IF($A187=0,0,IF(A187="","",VLOOKUP($A187,'Tabla Fijos'!$B$12:$Q$251,10,0))) -> 260.661414 | K187: =IF($A187=0,0,IF(A187="","",VLOOKUP($A187,'Tabla Fijos'!$B$12:$Q$251,11,0))) -> 182.868 | L187: =IF($A187=0,0,IF(A187="","",VLOOKUP($A187,'Tabla Fijos'!$B$12:$Q$251,12,0))) -> 0 | M187: =IF($A187=0,0,IF(A187="","",VLOOKUP($A187,'Tabla Fijos'!$B$12:$Q$251,13,0))) -> 0 | O187: 5975.030587 | P187: 432205.9 | Q187: 1
A188: 122 | B188: 122 | C188: =IF($B188="","",'Fecha Pago'!K125) -> 2032-08-03 | D188: =IF($B$67="","",'Fecha Pago'!L125) -> 30.4 | E188: 0.09 | F188: =IF($A188=0,$H$48,IF(A188="","",VLOOKUP($A188,'Tabla Fijos'!$B$12:$Q$251,5,0))) -> 432205.9 | G188: =IF($A188=0,0,IF(A188="","",VLOOKUP($A188,'Tabla Fijos'!$B$12:$Q$251,6,0))) -> 2246.736333 | H188: =IF($A188=0,0,IF(A188="","",VLOOKUP($A188,'Tabla Fijos'!$B$12:$Q$251,7,0))) -> 3284.76484 | I188: =IF($A188=0,0,IF(A188="","",VLOOKUP($A188,'Tabla Fijos'!$B$12:$Q$251,8,0))) -> 0 | J188: =IF($A188=0,0,IF(A188="","",VLOOKUP($A188,'Tabla Fijos'!$B$12:$Q$251,10,0))) -> 259.32354 | K188: =IF($A188=0,0,IF(A188="","",VLOOKUP($A188,'Tabla Fijos'!$B$12:$Q$251,11,0))) -> 182.868 | L188: =IF($A188=0,0,IF(A188="","",VLOOKUP($A188,'Tabla Fijos'!$B$12:$Q$251,12,0))) -> 0 | M188: =IF($A188=0,0,IF(A188="","",VLOOKUP($A188,'Tabla Fijos'!$B$12:$Q$251,13,0))) -> 0 | O188: 5973.692713 | P188: 429959.1637 | Q188: 1
A189: 123 | B189: 123 | C189: =IF($B189="","",'Fecha Pago'!K126) -> 2032-09-03 | D189: =IF($B$67="","",'Fecha Pago'!L126) -> 30.4 | E189: 0.09 | F189: =IF($A189=0,$H$48,IF(A189="","",VLOOKUP($A189,'Tabla Fijos'!$B$12:$Q$251,5,0))) -> 429959.1637 | G189: =IF($A189=0,0,IF(A189="","",VLOOKUP($A189,'Tabla Fijos'!$B$12:$Q$251,6,0))) -> 2263.811529 | H189: =IF($A189=0,0,IF(A189="","",VLOOKUP($A189,'Tabla Fijos'!$B$12:$Q$251,7,0))) -> 3267.689644 | I189: =IF($A189=0,0,IF(A189="","",VLOOKUP($A189,'Tabla Fijos'!$B$12:$Q$251,8,0))) -> 0 | J189: =IF($A189=0,0,IF(A189="","",VLOOKUP($A189,'Tabla Fijos'!$B$12:$Q$251,10,0))) -> 257.9754982 | K189: =IF($A189=0,0,IF(A189="","",VLOOKUP($A189,'Tabla Fijos'!$B$12:$Q$251,11,0))) -> 182.868 | L189: =IF($A189=0,0,IF(A189="","",VLOOKUP($A189,'Tabla Fijos'!$B$12:$Q$251,12,0))) -> 0 | M189: =IF($A189=0,0,IF(A189="","",VLOOKUP($A189,'Tabla Fijos'!$B$12:$Q$251,13,0))) -> 0 | O189: 5972.344671 | P189: 427695.3522 | Q189: 1
A190: 124 | B190: 124 | C190: =IF($B190="","",'Fecha Pago'!K127) -> 2032-10-03 | D190: =IF($B$67="","",'Fecha Pago'!L127) -> 30.4 | E190: 0.09 | F190: =IF($A190=0,$H$48,IF(A190="","",VLOOKUP($A190,'Tabla Fijos'!$B$12:$Q$251,5,0))) -> 427695.3522 | G190: =IF($A190=0,0,IF(A190="","",VLOOKUP($A190,'Tabla Fijos'!$B$12:$Q$251,6,0))) -> 2281.016497 | H190: =IF($A190=0,0,IF(A190="","",VLOOKUP($A190,'Tabla Fijos'!$B$12:$Q$251,7,0))) -> 3250.484676 | I190: =IF($A190=0,0,IF(A190="","",VLOOKUP($A190,'Tabla Fijos'!$B$12:$Q$251,8,0))) -> 0 | J190: =IF($A190=0,0,IF(A190="","",VLOOKUP($A190,'Tabla Fijos'!$B$12:$Q$251,10,0))) -> 256.6172113 | K190: =IF($A190=0,0,IF(A190="","",VLOOKUP($A190,'Tabla Fijos'!$B$12:$Q$251,11,0))) -> 182.868 | L190: =IF($A190=0,0,IF(A190="","",VLOOKUP($A190,'Tabla Fijos'!$B$12:$Q$251,12,0))) -> 0 | M190: =IF($A190=0,0,IF(A190="","",VLOOKUP($A190,'Tabla Fijos'!$B$12:$Q$251,13,0))) -> 0 | O190: 5970.986384 | P190: 425414.3357 | Q190: 1
A191: 125 | B191: 125 | C191: =IF($B191="","",'Fecha Pago'!K128) -> 2032-11-03 | D191: =IF($B$67="","",'Fecha Pago'!L128) -> 30.4 | E191: 0.09 | F191: =IF($A191=0,$H$48,IF(A191="","",VLOOKUP($A191,'Tabla Fijos'!$B$12:$Q$251,5,0))) -> 425414.3357 | G191: =IF($A191=0,0,IF(A191="","",VLOOKUP($A191,'Tabla Fijos'!$B$12:$Q$251,6,0))) -> 2298.352222 | H191: =IF($A191=0,0,IF(A191="","",VLOOKUP($A191,'Tabla Fijos'!$B$12:$Q$251,7,0))) -> 3233.148951 | I191: =IF($A191=0,0,IF(A191="","",VLOOKUP($A191,'Tabla Fijos'!$B$12:$Q$251,8,0))) -> 0 | J191: =IF($A191=0,0,IF(A191="","",VLOOKUP($A191,'Tabla Fijos'!$B$12:$Q$251,10,0))) -> 255.2486014 | K191: =IF($A191=0,0,IF(A191="","",VLOOKUP($A191,'Tabla Fijos'!$B$12:$Q$251,11,0))) -> 182.868 | L191: =IF($A191=0,0,IF(A191="","",VLOOKUP($A191,'Tabla Fijos'!$B$12:$Q$251,12,0))) -> 0 | M191: =IF($A191=0,0,IF(A191="","",VLOOKUP($A191,'Tabla Fijos'!$B$12:$Q$251,13,0))) -> 0 | O191: 5969.617775 | P191: 423115.9834 | Q191: 1
A192: 126 | B192: 126 | C192: =IF($B192="","",'Fecha Pago'!K129) -> 2032-12-03 | D192: =IF($B$67="","",'Fecha Pago'!L129) -> 30.4 | E192: 0.09 | F192: =IF($A192=0,$H$48,IF(A192="","",VLOOKUP($A192,'Tabla Fijos'!$B$12:$Q$251,5,0))) -> 423115.9834 | G192: =IF($A192=0,0,IF(A192="","",VLOOKUP($A192,'Tabla Fijos'!$B$12:$Q$251,6,0))) -> 2315.819699 | H192: =IF($A192=0,0,IF(A192="","",VLOOKUP($A192,'Tabla Fijos'!$B$12:$Q$251,7,0))) -> 3215.681474 | I192: =IF($A192=0,0,IF(A192="","",VLOOKUP($A192,'Tabla Fijos'!$B$12:$Q$251,8,0))) -> 0 | J192: =IF($A192=0,0,IF(A192="","",VLOOKUP($A192,'Tabla Fijos'!$B$12:$Q$251,10,0))) -> 253.8695901 | K192: =IF($A192=0,0,IF(A192="","",VLOOKUP($A192,'Tabla Fijos'!$B$12:$Q$251,11,0))) -> 182.868 | L192: =IF($A192=0,0,IF(A192="","",VLOOKUP($A192,'Tabla Fijos'!$B$12:$Q$251,12,0))) -> 0 | M192: =IF($A192=0,0,IF(A192="","",VLOOKUP($A192,'Tabla Fijos'!$B$12:$Q$251,13,0))) -> 0 | O192: 5968.238763 | P192: 420800.1637 | Q192: 1
A193: 127 | B193: 127 | C193: =IF($B193="","",'Fecha Pago'!K130) -> 2033-01-03 | D193: =IF($B$67="","",'Fecha Pago'!L130) -> 30.4 | E193: 0.09 | F193: =IF($A193=0,$H$48,IF(A193="","",VLOOKUP($A193,'Tabla Fijos'!$B$12:$Q$251,5,0))) -> 420800.1637 | G193: =IF($A193=0,0,IF(A193="","",VLOOKUP($A193,'Tabla Fijos'!$B$12:$Q$251,6,0))) -> 2333.419929 | H193: =IF($A193=0,0,IF(A193="","",VLOOKUP($A193,'Tabla Fijos'!$B$12:$Q$251,7,0))) -> 3198.081244 | I193: =IF($A193=0,0,IF(A193="","",VLOOKUP($A193,'Tabla Fijos'!$B$12:$Q$251,8,0))) -> 0 | J193: =IF($A193=0,0,IF(A193="","",VLOOKUP($A193,'Tabla Fijos'!$B$12:$Q$251,10,0))) -> 252.4800982 | K193: =IF($A193=0,0,IF(A193="","",VLOOKUP($A193,'Tabla Fijos'!$B$12:$Q$251,11,0))) -> 182.868 | L193: =IF($A193=0,0,IF(A193="","",VLOOKUP($A193,'Tabla Fijos'!$B$12:$Q$251,12,0))) -> 0 | M193: =IF($A193=0,0,IF(A193="","",VLOOKUP($A193,'Tabla Fijos'!$B$12:$Q$251,13,0))) -> 0 | O193: 5966.849271 | P193: 418466.7438 | Q193: 1
A194: 128 | B194: 128 | C194: =IF($B194="","",'Fecha Pago'!K131) -> 2033-02-03 | D194: =IF($B$67="","",'Fecha Pago'!L131) -> 30.4 | E194: 0.09 | F194: =IF($A194=0,$H$48,IF(A194="","",VLOOKUP($A194,'Tabla Fijos'!$B$12:$Q$251,5,0))) -> 418466.7438 | G194: =IF($A194=0,0,IF(A194="","",VLOOKUP($A194,'Tabla Fijos'!$B$12:$Q$251,6,0))) -> 2351.15392 | H194: =IF($A194=0,0,IF(A194="","",VLOOKUP($A194,'Tabla Fijos'!$B$12:$Q$251,7,0))) -> 3180.347253 | I194: =IF($A194=0,0,IF(A194="","",VLOOKUP($A194,'Tabla Fijos'!$B$12:$Q$251,8,0))) -> 0 | J194: =IF($A194=0,0,IF(A194="","",VLOOKUP($A194,'Tabla Fijos'!$B$12:$Q$251,10,0))) -> 251.0800463 | K194: =IF($A194=0,0,IF(A194="","",VLOOKUP($A194,'Tabla Fijos'!$B$12:$Q$251,11,0))) -> 182.868 | L194: =IF($A194=0,0,IF(A194="","",VLOOKUP($A194,'Tabla Fijos'!$B$12:$Q$251,12,0))) -> 0 | M194: =IF($A194=0,0,IF(A194="","",VLOOKUP($A194,'Tabla Fijos'!$B$12:$Q$251,13,0))) -> 0 | O194: 5965.449219 | P194: 416115.5899 | Q194: 1
A195: 129 | B195: 129 | C195: =IF($B195="","",'Fecha Pago'!K132) -> 2033-03-03 | D195: =IF($B$67="","",'Fecha Pago'!L132) -> 30.4 | E195: 0.09 | F195: =IF($A195=0,$H$48,IF(A195="","",VLOOKUP($A195,'Tabla Fijos'!$B$12:$Q$251,5,0))) -> 416115.5899 | G195: =IF($A195=0,0,IF(A195="","",VLOOKUP($A195,'Tabla Fijos'!$B$12:$Q$251,6,0))) -> 2369.02269 | H195: =IF($A195=0,0,IF(A195="","",VLOOKUP($A195,'Tabla Fijos'!$B$12:$Q$251,7,0))) -> 3162.478483 | I195: =IF($A195=0,0,IF(A195="","",VLOOKUP($A195,'Tabla Fijos'!$B$12:$Q$251,8,0))) -> 0 | J195: =IF($A195=0,0,IF(A195="","",VLOOKUP($A195,'Tabla Fijos'!$B$12:$Q$251,10,0))) -> 249.6693539 | K195: =IF($A195=0,0,IF(A195="","",VLOOKUP($A195,'Tabla Fijos'!$B$12:$Q$251,11,0))) -> 182.868 | L195: =IF($A195=0,0,IF(A195="","",VLOOKUP($A195,'Tabla Fijos'!$B$12:$Q$251,12,0))) -> 0 | M195: =IF($A195=0,0,IF(A195="","",VLOOKUP($A195,'Tabla Fijos'!$B$12:$Q$251,13,0))) -> 0 | O195: 5964.038527 | P195: =IF(B195="","",F195-G195) -> 413746.5672 | Q195: 1
A196: 130 | B196: 130 | C196: =IF($B196="","",'Fecha Pago'!K133) -> 2033-04-03 | D196: =IF($B$67="","",'Fecha Pago'!L133) -> 30.4 | E196: =IF(B196="","",$F$62) -> 0.09 | F196: =IF($A196=0,$H$48,IF(A196="","",VLOOKUP($A196,'Tabla Fijos'!$B$12:$Q$251,5,0))) -> 413746.5672 | G196: =IF($A196=0,0,IF(A196="","",VLOOKUP($A196,'Tabla Fijos'!$B$12:$Q$251,6,0))) -> 2387.027262 | H196: =IF($A196=0,0,IF(A196="","",VLOOKUP($A196,'Tabla Fijos'!$B$12:$Q$251,7,0))) -> 3144.473911 | I196: =IF($A196=0,0,IF(A196="","",VLOOKUP($A196,'Tabla Fijos'!$B$12:$Q$251,8,0))) -> 0 | J196: =IF($A196=0,0,IF(A196="","",VLOOKUP($A196,'Tabla Fijos'!$B$12:$Q$251,10,0))) -> 248.2479403 | K196: =IF($A196=0,0,IF(A196="","",VLOOKUP($A196,'Tabla Fijos'!$B$12:$Q$251,11,0))) -> 182.868 | L196: =IF($A196=0,0,IF(A196="","",VLOOKUP($A196,'Tabla Fijos'!$B$12:$Q$251,12,0))) -> 0 | M196: =IF($A196=0,0,IF(A196="","",VLOOKUP($A196,'Tabla Fijos'!$B$12:$Q$251,13,0))) -> 0 | O196: =IF(B196="","",G196+H196+I196+J196+K196+L196-M196) -> 5962.617113 | P196: 411359.5399 | Q196: =IF(OR($B196="",$F196<=0),0,1) -> 1
A197: 131 | B197: =IF(B196="","",IF(B196=$H$49,"",B196+1)) -> 131 | C197: =IF($B197="","",'Fecha Pago'!K134) -> 2033-05-03 | D197: =IF($B$67="","",'Fecha Pago'!L134) -> 30.4 | E197: 0.09 | F197: =IF($A197=0,$H$48,IF(A197="","",VLOOKUP($A197,'Tabla Fijos'!$B$12:$Q$251,5,0))) -> 411359.5399 | G197: =IF($A197=0,0,IF(A197="","",VLOOKUP($A197,'Tabla Fijos'!$B$12:$Q$251,6,0))) -> 2405.16867 | H197: =IF($A197=0,0,IF(A197="","",VLOOKUP($A197,'Tabla Fijos'!$B$12:$Q$251,7,0))) -> 3126.332504 | I197: =IF($A197=0,0,IF(A197="","",VLOOKUP($A197,'Tabla Fijos'!$B$12:$Q$251,8,0))) -> 0 | J197: =IF($A197=0,0,IF(A197="","",VLOOKUP($A197,'Tabla Fijos'!$B$12:$Q$251,10,0))) -> 246.815724 | K197: =IF($A197=0,0,IF(A197="","",VLOOKUP($A197,'Tabla Fijos'!$B$12:$Q$251,11,0))) -> 182.868 | L197: =IF($A197=0,0,IF(A197="","",VLOOKUP($A197,'Tabla Fijos'!$B$12:$Q$251,12,0))) -> 0 | M197: =IF($A197=0,0,IF(A197="","",VLOOKUP($A197,'Tabla Fijos'!$B$12:$Q$251,13,0))) -> 0 | O197: 5961.184897 | P197: 408954.3713 | Q197: 1
A198: 132 | B198: 132 | C198: =IF($B198="","",'Fecha Pago'!K135) -> 2033-06-03 | D198: =IF($B$67="","",'Fecha Pago'!L135) -> 30.4 | E198: 0.09 | F198: =IF($A198=0,$H$48,IF(A198="","",VLOOKUP($A198,'Tabla Fijos'!$B$12:$Q$251,5,0))) -> 408954.3713 | G198: =IF($A198=0,0,IF(A198="","",VLOOKUP($A198,'Tabla Fijos'!$B$12:$Q$251,6,0))) -> 2423.447951 | H198: =IF($A198=0,0,IF(A198="","",VLOOKUP($A198,'Tabla Fijos'!$B$12:$Q$251,7,0))) -> 3108.053222 | I198: =IF($A198=0,0,IF(A198="","",VLOOKUP($A198,'Tabla Fijos'!$B$12:$Q$251,8,0))) -> 0 | J198: =IF($A198=0,0,IF(A198="","",VLOOKUP($A198,'Tabla Fijos'!$B$12:$Q$251,10,0))) -> 245.3726228 | K198: =IF($A198=0,0,IF(A198="","",VLOOKUP($A198,'Tabla Fijos'!$B$12:$Q$251,11,0))) -> 182.868 | L198: =IF($A198=0,0,IF(A198="","",VLOOKUP($A198,'Tabla Fijos'!$B$12:$Q$251,12,0))) -> 0 | M198: =IF($A198=0,0,IF(A198="","",VLOOKUP($A198,'Tabla Fijos'!$B$12:$Q$251,13,0))) -> 0 | O198: 5959.741796 | P198: 406530.9233 | Q198: 1
A199: =IF(A198="","",IF(A198=$F$19,"",A198+1)) -> 133 | B199: 133 | C199: =IF($B199="","",'Fecha Pago'!K136) -> 2033-07-03 | D199: =IF($B$67="","",'Fecha Pago'!L136) -> 30.4 | E199: 0.09 | F199: =IF($A199=0,$H$48,IF(A199="","",VLOOKUP($A199,'Tabla Fijos'!$B$12:$Q$251,5,0))) -> 406530.9233 | G199: =IF($A199=0,0,IF(A199="","",VLOOKUP($A199,'Tabla Fijos'!$B$12:$Q$251,6,0))) -> 2441.866156 | H199: =IF($A199=0,0,IF(A199="","",VLOOKUP($A199,'Tabla Fijos'!$B$12:$Q$251,7,0))) -> 3089.635017 | I199: =IF($A199=0,0,IF(A199="","",VLOOKUP($A199,'Tabla Fijos'!$B$12:$Q$251,8,0))) -> 0 | J199: =IF($A199=0,0,IF(A199="","",VLOOKUP($A199,'Tabla Fijos'!$B$12:$Q$251,10,0))) -> 243.918554 | K199: =IF($A199=0,0,IF(A199="","",VLOOKUP($A199,'Tabla Fijos'!$B$12:$Q$251,11,0))) -> 182.868 | L199: =IF($A199=0,0,IF(A199="","",VLOOKUP($A199,'Tabla Fijos'!$B$12:$Q$251,12,0))) -> 0 | M199: =IF($A199=0,0,IF(A199="","",VLOOKUP($A199,'Tabla Fijos'!$B$12:$Q$251,13,0))) -> 0 | O199: 5958.287727 | P199: 404089.0572 | Q199: 1
A200: 134 | B200: 134 | C200: =IF($B200="","",'Fecha Pago'!K137) -> 2033-08-03 | D200: =IF($B$67="","",'Fecha Pago'!L137) -> 30.4 | E200: 0.09 | F200: =IF($A200=0,$H$48,IF(A200="","",VLOOKUP($A200,'Tabla Fijos'!$B$12:$Q$251,5,0))) -> 404089.0572 | G200: =IF($A200=0,0,IF(A200="","",VLOOKUP($A200,'Tabla Fijos'!$B$12:$Q$251,6,0))) -> 2460.424339 | H200: =IF($A200=0,0,IF(A200="","",VLOOKUP($A200,'Tabla Fijos'!$B$12:$Q$251,7,0))) -> 3071.076834 | I200: =IF($A200=0,0,IF(A200="","",VLOOKUP($A200,'Tabla Fijos'!$B$12:$Q$251,8,0))) -> 0 | J200: =IF($A200=0,0,IF(A200="","",VLOOKUP($A200,'Tabla Fijos'!$B$12:$Q$251,10,0))) -> 242.4534343 | K200: =IF($A200=0,0,IF(A200="","",VLOOKUP($A200,'Tabla Fijos'!$B$12:$Q$251,11,0))) -> 182.868 | L200: =IF($A200=0,0,IF(A200="","",VLOOKUP($A200,'Tabla Fijos'!$B$12:$Q$251,12,0))) -> 0 | M200: =IF($A200=0,0,IF(A200="","",VLOOKUP($A200,'Tabla Fijos'!$B$12:$Q$251,13,0))) -> 0 | O200: 5956.822607 | P200: 401628.6328 | Q200: 1
A201: 135 | B201: 135 | C201: =IF($B201="","",'Fecha Pago'!K138) -> 2033-09-03 | D201: =IF($B$67="","",'Fecha Pago'!L138) -> 30.4 | E201: 0.09 | F201: =IF($A201=0,$H$48,IF(A201="","",VLOOKUP($A201,'Tabla Fijos'!$B$12:$Q$251,5,0))) -> 401628.6328 | G201: =IF($A201=0,0,IF(A201="","",VLOOKUP($A201,'Tabla Fijos'!$B$12:$Q$251,6,0))) -> 2479.123564 | H201: =IF($A201=0,0,IF(A201="","",VLOOKUP($A201,'Tabla Fijos'!$B$12:$Q$251,7,0))) -> 3052.377609 | I201: =IF($A201=0,0,IF(A201="","",VLOOKUP($A201,'Tabla Fijos'!$B$12:$Q$251,8,0))) -> 0 | J201: =IF($A201=0,0,IF(A201="","",VLOOKUP($A201,'Tabla Fijos'!$B$12:$Q$251,10,0))) -> 240.9771797 | K201: =IF($A201=0,0,IF(A201="","",VLOOKUP($A201,'Tabla Fijos'!$B$12:$Q$251,11,0))) -> 182.868 | L201: =IF($A201=0,0,IF(A201="","",VLOOKUP($A201,'Tabla Fijos'!$B$12:$Q$251,12,0))) -> 0 | M201: =IF($A201=0,0,IF(A201="","",VLOOKUP($A201,'Tabla Fijos'!$B$12:$Q$251,13,0))) -> 0 | O201: 5955.346353 | P201: 399149.5093 | Q201: 1
A202: 136 | B202: 136 | C202: =IF($B202="","",'Fecha Pago'!K139) -> 2033-10-03 | D202: =IF($B$67="","",'Fecha Pago'!L139) -> 30.4 | E202: 0.09 | F202: =IF($A202=0,$H$48,IF(A202="","",VLOOKUP($A202,'Tabla Fijos'!$B$12:$Q$251,5,0))) -> 399149.5093 | G202: =IF($A202=0,0,IF(A202="","",VLOOKUP($A202,'Tabla Fijos'!$B$12:$Q$251,6,0))) -> 2497.964903 | H202: =IF($A202=0,0,IF(A202="","",VLOOKUP($A202,'Tabla Fijos'!$B$12:$Q$251,7,0))) -> 3033.53627 | I202: =IF($A202=0,0,IF(A202="","",VLOOKUP($A202,'Tabla Fijos'!$B$12:$Q$251,8,0))) -> 0 | J202: =IF($A202=0,0,IF(A202="","",VLOOKUP($A202,'Tabla Fijos'!$B$12:$Q$251,10,0))) -> 239.4897056 | K202: =IF($A202=0,0,IF(A202="","",VLOOKUP($A202,'Tabla Fijos'!$B$12:$Q$251,11,0))) -> 182.868 | L202: =IF($A202=0,0,IF(A202="","",VLOOKUP($A202,'Tabla Fijos'!$B$12:$Q$251,12,0))) -> 0 | M202: =IF($A202=0,0,IF(A202="","",VLOOKUP($A202,'Tabla Fijos'!$B$12:$Q$251,13,0))) -> 0 | O202: 5953.858879 | P202: 396651.5444 | Q202: 1
A203: 137 | B203: 137 | C203: =IF($B203="","",'Fecha Pago'!K140) -> 2033-11-03 | D203: =IF($B$67="","",'Fecha Pago'!L140) -> 30.4 | E203: 0.09 | F203: =IF($A203=0,$H$48,IF(A203="","",VLOOKUP($A203,'Tabla Fijos'!$B$12:$Q$251,5,0))) -> 396651.5444 | G203: =IF($A203=0,0,IF(A203="","",VLOOKUP($A203,'Tabla Fijos'!$B$12:$Q$251,6,0))) -> 2516.949436 | H203: =IF($A203=0,0,IF(A203="","",VLOOKUP($A203,'Tabla Fijos'!$B$12:$Q$251,7,0))) -> 3014.551737 | I203: =IF($A203=0,0,IF(A203="","",VLOOKUP($A203,'Tabla Fijos'!$B$12:$Q$251,8,0))) -> 0 | J203: =IF($A203=0,0,IF(A203="","",VLOOKUP($A203,'Tabla Fijos'!$B$12:$Q$251,10,0))) -> 237.9909266 | K203: =IF($A203=0,0,IF(A203="","",VLOOKUP($A203,'Tabla Fijos'!$B$12:$Q$251,11,0))) -> 182.868 | L203: =IF($A203=0,0,IF(A203="","",VLOOKUP($A203,'Tabla Fijos'!$B$12:$Q$251,12,0))) -> 0 | M203: =IF($A203=0,0,IF(A203="","",VLOOKUP($A203,'Tabla Fijos'!$B$12:$Q$251,13,0))) -> 0 | O203: 5952.3601 | P203: 394134.5949 | Q203: 1
A204: 138 | B204: 138 | C204: =IF($B204="","",'Fecha Pago'!K141) -> 2033-12-03 | D204: =IF($B$67="","",'Fecha Pago'!L141) -> 30.4 | E204: 0.09 | F204: =IF($A204=0,$H$48,IF(A204="","",VLOOKUP($A204,'Tabla Fijos'!$B$12:$Q$251,5,0))) -> 394134.5949 | G204: =IF($A204=0,0,IF(A204="","",VLOOKUP($A204,'Tabla Fijos'!$B$12:$Q$251,6,0))) -> 2536.078252 | H204: =IF($A204=0,0,IF(A204="","",VLOOKUP($A204,'Tabla Fijos'!$B$12:$Q$251,7,0))) -> 2995.422921 | I204: =IF($A204=0,0,IF(A204="","",VLOOKUP($A204,'Tabla Fijos'!$B$12:$Q$251,8,0))) -> 0 | J204: =IF($A204=0,0,IF(A204="","",VLOOKUP($A204,'Tabla Fijos'!$B$12:$Q$251,10,0))) -> 236.480757 | K204: =IF($A204=0,0,IF(A204="","",VLOOKUP($A204,'Tabla Fijos'!$B$12:$Q$251,11,0))) -> 182.868 | L204: =IF($A204=0,0,IF(A204="","",VLOOKUP($A204,'Tabla Fijos'!$B$12:$Q$251,12,0))) -> 0 | M204: =IF($A204=0,0,IF(A204="","",VLOOKUP($A204,'Tabla Fijos'!$B$12:$Q$251,13,0))) -> 0 | O204: 5950.84993 | P204: 391598.5167 | Q204: 1
A205: 139 | B205: 139 | C205: =IF($B205="","",'Fecha Pago'!K142) -> 2034-01-03 | D205: =IF($B$67="","",'Fecha Pago'!L142) -> 30.4 | E205: 0.09 | F205: =IF($A205=0,$H$48,IF(A205="","",VLOOKUP($A205,'Tabla Fijos'!$B$12:$Q$251,5,0))) -> 391598.5167 | G205: =IF($A205=0,0,IF(A205="","",VLOOKUP($A205,'Tabla Fijos'!$B$12:$Q$251,6,0))) -> 2555.352446 | H205: =IF($A205=0,0,IF(A205="","",VLOOKUP($A205,'Tabla Fijos'!$B$12:$Q$251,7,0))) -> 2976.148727 | I205: =IF($A205=0,0,IF(A205="","",VLOOKUP($A205,'Tabla Fijos'!$B$12:$Q$251,8,0))) -> 0 | J205: =IF($A205=0,0,IF(A205="","",VLOOKUP($A205,'Tabla Fijos'!$B$12:$Q$251,10,0))) -> 234.95911 | K205: =IF($A205=0,0,IF(A205="","",VLOOKUP($A205,'Tabla Fijos'!$B$12:$Q$251,11,0))) -> 182.868 | L205: =IF($A205=0,0,IF(A205="","",VLOOKUP($A205,'Tabla Fijos'!$B$12:$Q$251,12,0))) -> 0 | M205: =IF($A205=0,0,IF(A205="","",VLOOKUP($A205,'Tabla Fijos'!$B$12:$Q$251,13,0))) -> 0 | O205: 5949.328283 | P205: 389043.1642 | Q205: 1
A206: 140 | B206: 140 | C206: =IF($B206="","",'Fecha Pago'!K143) -> 2034-02-03 | D206: =IF($B$67="","",'Fecha Pago'!L143) -> 30.4 | E206: 0.09 | F206: =IF($A206=0,$H$48,IF(A206="","",VLOOKUP($A206,'Tabla Fijos'!$B$12:$Q$251,5,0))) -> 389043.1642 | G206: =IF($A206=0,0,IF(A206="","",VLOOKUP($A206,'Tabla Fijos'!$B$12:$Q$251,6,0))) -> 2574.773125 | H206: =IF($A206=0,0,IF(A206="","",VLOOKUP($A206,'Tabla Fijos'!$B$12:$Q$251,7,0))) -> 2956.728048 | I206: =IF($A206=0,0,IF(A206="","",VLOOKUP($A206,'Tabla Fijos'!$B$12:$Q$251,8,0))) -> 0 | J206: =IF($A206=0,0,IF(A206="","",VLOOKUP($A206,'Tabla Fijos'!$B$12:$Q$251,10,0))) -> 233.4258985 | K206: =IF($A206=0,0,IF(A206="","",VLOOKUP($A206,'Tabla Fijos'!$B$12:$Q$251,11,0))) -> 182.868 | L206: =IF($A206=0,0,IF(A206="","",VLOOKUP($A206,'Tabla Fijos'!$B$12:$Q$251,12,0))) -> 0 | M206: =IF($A206=0,0,IF(A206="","",VLOOKUP($A206,'Tabla Fijos'!$B$12:$Q$251,13,0))) -> 0 | O206: 5947.795072 | P206: 386468.3911 | Q206: 1
A207: 141 | B207: 141 | C207: =IF($B207="","",'Fecha Pago'!K144) -> 2034-03-03 | D207: =IF($B$67="","",'Fecha Pago'!L144) -> 30.4 | E207: 0.09 | F207: =IF($A207=0,$H$48,IF(A207="","",VLOOKUP($A207,'Tabla Fijos'!$B$12:$Q$251,5,0))) -> 386468.3911 | G207: =IF($A207=0,0,IF(A207="","",VLOOKUP($A207,'Tabla Fijos'!$B$12:$Q$251,6,0))) -> 2594.341401 | H207: =IF($A207=0,0,IF(A207="","",VLOOKUP($A207,'Tabla Fijos'!$B$12:$Q$251,7,0))) -> 2937.159772 | I207: =IF($A207=0,0,IF(A207="","",VLOOKUP($A207,'Tabla Fijos'!$B$12:$Q$251,8,0))) -> 0 | J207: =IF($A207=0,0,IF(A207="","",VLOOKUP($A207,'Tabla Fijos'!$B$12:$Q$251,10,0))) -> 231.8810347 | K207: =IF($A207=0,0,IF(A207="","",VLOOKUP($A207,'Tabla Fijos'!$B$12:$Q$251,11,0))) -> 182.868 | L207: =IF($A207=0,0,IF(A207="","",VLOOKUP($A207,'Tabla Fijos'!$B$12:$Q$251,12,0))) -> 0 | M207: =IF($A207=0,0,IF(A207="","",VLOOKUP($A207,'Tabla Fijos'!$B$12:$Q$251,13,0))) -> 0 | O207: 5946.250208 | P207: 383874.0497 | Q207: 1
A208: 142 | B208: 142 | C208: =IF($B208="","",'Fecha Pago'!K145) -> 2034-04-03 | D208: =IF($B$67="","",'Fecha Pago'!L145) -> 30.4 | E208: 0.09 | F208: =IF($A208=0,$H$48,IF(A208="","",VLOOKUP($A208,'Tabla Fijos'!$B$12:$Q$251,5,0))) -> 383874.0497 | G208: =IF($A208=0,0,IF(A208="","",VLOOKUP($A208,'Tabla Fijos'!$B$12:$Q$251,6,0))) -> 2614.058395 | H208: =IF($A208=0,0,IF(A208="","",VLOOKUP($A208,'Tabla Fijos'!$B$12:$Q$251,7,0))) -> 2917.442778 | I208: =IF($A208=0,0,IF(A208="","",VLOOKUP($A208,'Tabla Fijos'!$B$12:$Q$251,8,0))) -> 0 | J208: =IF($A208=0,0,IF(A208="","",VLOOKUP($A208,'Tabla Fijos'!$B$12:$Q$251,10,0))) -> 230.3244298 | K208: =IF($A208=0,0,IF(A208="","",VLOOKUP($A208,'Tabla Fijos'!$B$12:$Q$251,11,0))) -> 182.868 | L208: =IF($A208=0,0,IF(A208="","",VLOOKUP($A208,'Tabla Fijos'!$B$12:$Q$251,12,0))) -> 0 | M208: =IF($A208=0,0,IF(A208="","",VLOOKUP($A208,'Tabla Fijos'!$B$12:$Q$251,13,0))) -> 0 | O208: 5944.693603 | P208: 381259.9913 | Q208: 1
A209: 143 | B209: 143 | C209: =IF($B209="","",'Fecha Pago'!K146) -> 2034-05-03 | D209: =IF($B$67="","",'Fecha Pago'!L146) -> 30.4 | E209: 0.09 | F209: =IF($A209=0,$H$48,IF(A209="","",VLOOKUP($A209,'Tabla Fijos'!$B$12:$Q$251,5,0))) -> 381259.9913 | G209: =IF($A209=0,0,IF(A209="","",VLOOKUP($A209,'Tabla Fijos'!$B$12:$Q$251,6,0))) -> 2633.925239 | H209: =IF($A209=0,0,IF(A209="","",VLOOKUP($A209,'Tabla Fijos'!$B$12:$Q$251,7,0))) -> 2897.575934 | I209: =IF($A209=0,0,IF(A209="","",VLOOKUP($A209,'Tabla Fijos'!$B$12:$Q$251,8,0))) -> 0 | J209: =IF($A209=0,0,IF(A209="","",VLOOKUP($A209,'Tabla Fijos'!$B$12:$Q$251,10,0))) -> 228.7559948 | K209: =IF($A209=0,0,IF(A209="","",VLOOKUP($A209,'Tabla Fijos'!$B$12:$Q$251,11,0))) -> 182.868 | L209: =IF($A209=0,0,IF(A209="","",VLOOKUP($A209,'Tabla Fijos'!$B$12:$Q$251,12,0))) -> 0 | M209: =IF($A209=0,0,IF(A209="","",VLOOKUP($A209,'Tabla Fijos'!$B$12:$Q$251,13,0))) -> 0 | O209: 5943.125168 | P209: 378626.0661 | Q209: 1
A210: 144 | B210: 144 | C210: =IF($B210="","",'Fecha Pago'!K147) -> 2034-06-03 | D210: =IF($B$67="","",'Fecha Pago'!L147) -> 30.4 | E210: 0.09 | F210: =IF($A210=0,$H$48,IF(A210="","",VLOOKUP($A210,'Tabla Fijos'!$B$12:$Q$251,5,0))) -> 378626.0661 | G210: =IF($A210=0,0,IF(A210="","",VLOOKUP($A210,'Tabla Fijos'!$B$12:$Q$251,6,0))) -> 2653.943071 | H210: =IF($A210=0,0,IF(A210="","",VLOOKUP($A210,'Tabla Fijos'!$B$12:$Q$251,7,0))) -> 2877.558102 | I210: =IF($A210=0,0,IF(A210="","",VLOOKUP($A210,'Tabla Fijos'!$B$12:$Q$251,8,0))) -> 0 | J210: =IF($A210=0,0,IF(A210="","",VLOOKUP($A210,'Tabla Fijos'!$B$12:$Q$251,10,0))) -> 227.1756396 | K210: =IF($A210=0,0,IF(A210="","",VLOOKUP($A210,'Tabla Fijos'!$B$12:$Q$251,11,0))) -> 182.868 | L210: =IF($A210=0,0,IF(A210="","",VLOOKUP($A210,'Tabla Fijos'!$B$12:$Q$251,12,0))) -> 0 | M210: =IF($A210=0,0,IF(A210="","",VLOOKUP($A210,'Tabla Fijos'!$B$12:$Q$251,13,0))) -> 0 | O210: 5941.544813 | P210: 375972.123 | Q210: 1
A211: 145 | B211: 145 | C211: =IF($B211="","",'Fecha Pago'!K148) -> 2034-07-03 | D211: =IF($B$67="","",'Fecha Pago'!L148) -> 30.4 | E211: 0.09 | F211: =IF($A211=0,$H$48,IF(A211="","",VLOOKUP($A211,'Tabla Fijos'!$B$12:$Q$251,5,0))) -> 375972.123 | G211: =IF($A211=0,0,IF(A211="","",VLOOKUP($A211,'Tabla Fijos'!$B$12:$Q$251,6,0))) -> 2674.113038 | H211: =IF($A211=0,0,IF(A211="","",VLOOKUP($A211,'Tabla Fijos'!$B$12:$Q$251,7,0))) -> 2857.388135 | I211: =IF($A211=0,0,IF(A211="","",VLOOKUP($A211,'Tabla Fijos'!$B$12:$Q$251,8,0))) -> 0 | J211: =IF($A211=0,0,IF(A211="","",VLOOKUP($A211,'Tabla Fijos'!$B$12:$Q$251,10,0))) -> 225.5832738 | K211: =IF($A211=0,0,IF(A211="","",VLOOKUP($A211,'Tabla Fijos'!$B$12:$Q$251,11,0))) -> 182.868 | L211: =IF($A211=0,0,IF(A211="","",VLOOKUP($A211,'Tabla Fijos'!$B$12:$Q$251,12,0))) -> 0 | M211: =IF($A211=0,0,IF(A211="","",VLOOKUP($A211,'Tabla Fijos'!$B$12:$Q$251,13,0))) -> 0 | O211: 5939.952447 | P211: 373298.01 | Q211: 1
A212: 146 | B212: 146 | C212: =IF($B212="","",'Fecha Pago'!K149) -> 2034-08-03 | D212: =IF($B$67="","",'Fecha Pago'!L149) -> 30.4 | E212: 0.09 | F212: =IF($A212=0,$H$48,IF(A212="","",VLOOKUP($A212,'Tabla Fijos'!$B$12:$Q$251,5,0))) -> 373298.01 | G212: =IF($A212=0,0,IF(A212="","",VLOOKUP($A212,'Tabla Fijos'!$B$12:$Q$251,6,0))) -> 2694.436297 | H212: =IF($A212=0,0,IF(A212="","",VLOOKUP($A212,'Tabla Fijos'!$B$12:$Q$251,7,0))) -> 2837.064876 | I212: =IF($A212=0,0,IF(A212="","",VLOOKUP($A212,'Tabla Fijos'!$B$12:$Q$251,8,0))) -> 0 | J212: =IF($A212=0,0,IF(A212="","",VLOOKUP($A212,'Tabla Fijos'!$B$12:$Q$251,10,0))) -> 223.978806 | K212: =IF($A212=0,0,IF(A212="","",VLOOKUP($A212,'Tabla Fijos'!$B$12:$Q$251,11,0))) -> 182.868 | L212: =IF($A212=0,0,IF(A212="","",VLOOKUP($A212,'Tabla Fijos'!$B$12:$Q$251,12,0))) -> 0 | M212: =IF($A212=0,0,IF(A212="","",VLOOKUP($A212,'Tabla Fijos'!$B$12:$Q$251,13,0))) -> 0 | O212: 5938.347979 | P212: 370603.5737 | Q212: 1
A213: 147 | B213: 147 | C213: =IF($B213="","",'Fecha Pago'!K150) -> 2034-09-03 | D213: =IF($B$67="","",'Fecha Pago'!L150) -> 30.4 | E213: 0.09 | F213: =IF($A213=0,$H$48,IF(A213="","",VLOOKUP($A213,'Tabla Fijos'!$B$12:$Q$251,5,0))) -> 370603.5737 | G213: =IF($A213=0,0,IF(A213="","",VLOOKUP($A213,'Tabla Fijos'!$B$12:$Q$251,6,0))) -> 2714.914013 | H213: =IF($A213=0,0,IF(A213="","",VLOOKUP($A213,'Tabla Fijos'!$B$12:$Q$251,7,0))) -> 2816.58716 | I213: =IF($A213=0,0,IF(A213="","",VLOOKUP($A213,'Tabla Fijos'!$B$12:$Q$251,8,0))) -> 0 | J213: =IF($A213=0,0,IF(A213="","",VLOOKUP($A213,'Tabla Fijos'!$B$12:$Q$251,10,0))) -> 222.3621442 | K213: =IF($A213=0,0,IF(A213="","",VLOOKUP($A213,'Tabla Fijos'!$B$12:$Q$251,11,0))) -> 182.868 | L213: =IF($A213=0,0,IF(A213="","",VLOOKUP($A213,'Tabla Fijos'!$B$12:$Q$251,12,0))) -> 0 | M213: =IF($A213=0,0,IF(A213="","",VLOOKUP($A213,'Tabla Fijos'!$B$12:$Q$251,13,0))) -> 0 | O213: 5936.731317 | P213: 367888.6596 | Q213: 1
A214: 148 | B214: 148 | C214: =IF($B214="","",'Fecha Pago'!K151) -> 2034-10-03 | D214: =IF($B$67="","",'Fecha Pago'!L151) -> 30.4 | E214: 0.09 | F214: =IF($A214=0,$H$48,IF(A214="","",VLOOKUP($A214,'Tabla Fijos'!$B$12:$Q$251,5,0))) -> 367888.6596 | G214: =IF($A214=0,0,IF(A214="","",VLOOKUP($A214,'Tabla Fijos'!$B$12:$Q$251,6,0))) -> 2735.54736 | H214: =IF($A214=0,0,IF(A214="","",VLOOKUP($A214,'Tabla Fijos'!$B$12:$Q$251,7,0))) -> 2795.953813 | I214: =IF($A214=0,0,IF(A214="","",VLOOKUP($A214,'Tabla Fijos'!$B$12:$Q$251,8,0))) -> 0 | J214: =IF($A214=0,0,IF(A214="","",VLOOKUP($A214,'Tabla Fijos'!$B$12:$Q$251,10,0))) -> 220.7331958 | K214: =IF($A214=0,0,IF(A214="","",VLOOKUP($A214,'Tabla Fijos'!$B$12:$Q$251,11,0))) -> 182.868 | L214: =IF($A214=0,0,IF(A214="","",VLOOKUP($A214,'Tabla Fijos'!$B$12:$Q$251,12,0))) -> 0 | M214: =IF($A214=0,0,IF(A214="","",VLOOKUP($A214,'Tabla Fijos'!$B$12:$Q$251,13,0))) -> 0 | O214: 5935.102369 | P214: 365153.1123 | Q214: 1
... 610 more rows

Sheet Tabla Notaría
B4: Cliente: | C4: =IF(Caratula!K1="","",Caratula!$K$1) ->  | M4: Hipoteca Fuerte | O4: =Caratula!F9&Caratula!N7 -> AdquisiciónTradicional
B5: Esquema: | C5: Crédito Hipotecario | D5: =IF(Caratula!$F$11='Tabla Notaría'!M4,VLOOKUP('Tabla Notaría'!O4,'Tabla Notaría'!O6:Q25,3,0),IF(Caratula!$F$11='Tabla Notaría'!M27,VLOOKUP('Tabla Notaría'!O4,'Tabla Notaría'!O27:Q27,3,0),IF(Caratula!$F$11='Tabla Notaría'!M28,VLOOKUP('Tabla Notaría'!O4,'Tabla Notaría'!O28:Q28,3,0),IF(Caratula!$F$11='Tabla Notaría'!M30,VLOOKUP('Tabla Notaría'!O30,'Tabla Notaría'!O32:Q52,3,0))))) -> Tasa fija con amortización creciente | M5: Destino | N5: Programas
B6: Tasa de Interés Anual (Fija): | C6: =Caratula!$F$62 -> 0.09 | M6: Adquisición | N6: Tradicional | O6: =M6&N6 -> AdquisiciónTradicional | Q6: Tasa fija con amortización creciente
B7: Monto Total de Crédito: | C7: =IF(Caratula!$N$17='Tabla Parámetros'!$N$10,Caratula!$H$48+Caratula!$L$46,IF(Caratula!$N$17='Tabla Parámetros'!$N$11,Caratula!H48,)) -> 609560 | M7: Adquisición | N7: Apoyo INFONAVIT | O7: =M7&N7 -> AdquisiciónApoyo INFONAVIT | Q7: Tasa fija Apoyo Infonavit
B8: Destino del Crédito: | C8: =Caratula!$F$9 -> Adquisición | D8: =Caratula!$F$11 -> Hipoteca Fuerte | M8: Adquisición | N8: Cofinavit | O8: AdquisiciónCofinavit | Q8: Tasa fija Cofinanciamiento INFONAVIT
B10: Tabla de amortización en pesos | M10: Adquisición | N10: Cuenta INFONAVIT + BANORTE | O10: AdquisiciónCuenta INFONAVIT + BANORTE | Q10: Tasa fija Cuenta INFONAVIT + BANORTE con amortización creciente
B11: No. | C11: Saldo | D11: Amortización a Capital | E11: Saldo Nuevo | M11: Mejora | N11: Tradicional | O11: MejoraTradicional | Q11: Tasa fija con amortización creciente
B12: 1 | C12: =IF(Caratula!$F$9='Tabla Parámetros'!$G$34,Caratula!F332,IF(Caratula!$F$9='Tabla Parámetros'!$G$35,Caratula!F332,IF(Caratula!$F$9='Tabla Parámetros'!$G$36,Caratula!F332,Caratula!F67))) -> 609560 | D12: =IF(B12="","",'Tabla Fijos CAT'!G12) -> 898.8451731 | E12: =IF(B12="","",C12-D12) -> 608661.1548 | M12: Mejora | N12: Apoyo INFONAVIT | O12: MejoraApoyo INFONAVIT | Q12: Tasa fija Apoyo Infonavit
B13: =IF(B12=Caratula!$H$49,"",IF(B12="","",'Tabla Notaría'!B12+1)) -> 2 | C13: =IF(B13="","",C12-D12) -> 608661.1548 | D13: =IF(B13="","",'Tabla Fijos CAT'!G13) -> 905.6763965 | E13: 607755.4784
B14: =IF(B13=Caratula!$H$49,"",IF(B13="","",'Tabla Notaría'!B13+1)) -> 3 | C14: =IF(B14="","",C13-D13) -> 607755.4784 | D14: =IF(B14="","",'Tabla Fijos CAT'!G14) -> 912.5595371 | E14: 606842.9189 | M14: Mejora_más_Remodelación | N14: Tradicional | O14: Mejora_más_RemodelaciónTradicional | Q14: Tasa fija con amortización creciente
B15: =IF(B14=Caratula!$H$49,"",IF(B14="","",'Tabla Notaría'!B14+1)) -> 4 | C15: 606842.9189 | D15: =IF(B15="","",'Tabla Fijos CAT'!G15) -> 919.4949896 | E15: 605923.4239
B16: =IF(B15=Caratula!$H$49,"",IF(B15="","",'Tabla Notaría'!B15+1)) -> 5 | C16: 605923.4239 | D16: =IF(B16="","",'Tabla Fijos CAT'!G16) -> 926.4831515 | E16: 604996.9408 | M16: Remodelación | N16: Tradicional | O16: RemodelaciónTradicional | Q16: Tasa fija con amortización creciente
B17: =IF(B16=Caratula!$H$49,"",IF(B16="","",'Tabla Notaría'!B16+1)) -> 6 | C17: 604996.9408 | D17: =IF(B17="","",'Tabla Fijos CAT'!G17) -> 933.5244234 | E17: 604063.4163
B18: =IF(B17=Caratula!$H$49,"",IF(B17="","",'Tabla Notaría'!B17+1)) -> 7 | C18: 604063.4163 | D18: =IF(B18="","",'Tabla Fijos CAT'!G18) -> 940.619209 | E18: 603122.7971 | M18: Construcción | N18: Tradicional | O18: ConstrucciónTradicional | Q18: Tasa fija con amortización creciente
B19: =IF(B18=Caratula!$H$49,"",IF(B18="","",'Tabla Notaría'!B18+1)) -> 8 | C19: 603122.7971 | D19: =IF(B19="","",'Tabla Fijos CAT'!G19) -> 947.767915 | E19: 602175.0292 | M19: Construcción | N19: Apoyo INFONAVIT | O19: ConstrucciónApoyo INFONAVIT | Q19: Tasa fija Apoyo Infonavit
B20: =IF(B19=Caratula!$H$49,"",IF(B19="","",'Tabla Notaría'!B19+1)) -> 9 | C20: 602175.0292 | D20: =IF(B20="","",'Tabla Fijos CAT'!G20) -> 954.9709512 | E20: 601220.0583
B21: =IF(B20=Caratula!$H$49,"",IF(B20="","",'Tabla Notaría'!B20+1)) -> 10 | C21: 601220.0583 | D21: =IF(B21="","",'Tabla Fijos CAT'!G21) -> 962.2287304 | E21: 600257.8295 | M21: Terreno_más_Construcción | N21: Tradicional | O21: Terreno_más_ConstrucciónTradicional | Q21: Tasa fija con amortización creciente
B22: =IF(B21=Caratula!$H$49,"",IF(B21="","",'Tabla Notaría'!B21+1)) -> 11 | C22: 600257.8295 | D22: =IF(B22="","",'Tabla Fijos CAT'!G22) -> 969.5416688 | E22: 599288.2879 | M22: Terreno_más_Construcción | N22: Apoyo INFONAVIT | O22: Terreno_más_ConstrucciónApoyo INFONAVIT | Q22: Tasa fija Apoyo Infonavit
B23: =IF(B22=Caratula!$H$49,"",IF(B22="","",'Tabla Notaría'!B22+1)) -> 12 | C23: 599288.2879 | D23: =IF(B23="","",'Tabla Fijos CAT'!G23) -> 976.9101855 | E23: 598311.3777
B24: =IF(B23=Caratula!$H$49,"",IF(B23="","",'Tabla Notaría'!B23+1)) -> 13 | C24: 598311.3777 | D24: =IF(B24="","",'Tabla Fijos CAT'!G24) -> 984.3347029 | E24: 597327.043 | M24: Compra_Venta_Termino_Obra | N24: Tradicional | O24: Compra_Venta_Termino_ObraTradicional | Q24: Tasa fija con amortización creciente
B25: =IF(B24=Caratula!$H$49,"",IF(B24="","",'Tabla Notaría'!B24+1)) -> 14 | C25: 597327.043 | D25: =IF(B25="","",'Tabla Fijos CAT'!G25) -> 991.8156466 | E25: 596335.2273 | M25: Compra_Venta_Termino_Obra | N25: Apoyo INFONAVIT | O25: Compra_Venta_Termino_ObraApoyo INFONAVIT | Q25: Tasa fija Apoyo Infonavit
B26: =IF(B25=Caratula!$H$49,"",IF(B25="","",'Tabla Notaría'!B25+1)) -> 15 | C26: 596335.2273 | D26: =IF(B26="","",'Tabla Fijos CAT'!G26) -> 999.3534455 | E26: 595335.8739
B27: =IF(B26=Caratula!$H$49,"",IF(B26="","",'Tabla Notaría'!B26+1)) -> 16 | C27: 595335.8739 | D27: =IF(B27="","",'Tabla Fijos CAT'!G27) -> 1006.948532 | E27: 594328.9253 | M27: Liquidez | N27: Tradicional | O27: LiquidezTradicional | Q27: Tasa fija con amortización creciente
B28: =IF(B27=Caratula!$H$49,"",IF(B27="","",'Tabla Notaría'!B27+1)) -> 17 | C28: 594328.9253 | D28: =IF(B28="","",'Tabla Fijos CAT'!G28) -> 1014.601341 | E28: 593314.324 | M28: Terreno_Urbanizado | N28: Tradicional | O28: Terreno_UrbanizadoTradicional | Q28: Tasa fija con amortización creciente
B29: =IF(B28=Caratula!$H$49,"",IF(B28="","",'Tabla Notaría'!B28+1)) -> 18 | C29: 593314.324 | D29: =IF(B29="","",'Tabla Fijos CAT'!G29) -> 1022.312311 | E29: 592292.0117
B30: =IF(B29=Caratula!$H$49,"",IF(B29="","",'Tabla Notaría'!B29+1)) -> 19 | C30: 592292.0117 | D30: =IF(B30="","",'Tabla Fijos CAT'!G30) -> 1030.081884 | E30: 591261.9298 | M30: Más por Menos | O30: =Caratula!F9&Caratula!N7 -> AdquisiciónTradicional
B31: =IF(B30=Caratula!$H$49,"",IF(B30="","",'Tabla Notaría'!B30+1)) -> 20 | C31: 591261.9298 | D31: =IF(B31="","",'Tabla Fijos CAT'!G31) -> 1037.910507 | E31: 590224.0193 | M31: Destino | N31: Programas
B32: =IF(B31=Caratula!$H$49,"",IF(B31="","",'Tabla Notaría'!B31+1)) -> 21 | C32: 590224.0193 | D32: =IF(B32="","",'Tabla Fijos CAT'!G32) -> 1045.798626 | E32: 589178.2207 | M32: Adquisición | N32: Tradicional | O32: =M32&N32 -> AdquisiciónTradicional | Q32: Pagos crecientes amortización creciente
B33: =IF(B32=Caratula!$H$49,"",IF(B32="","",'Tabla Notaría'!B32+1)) -> 22 | C33: 589178.2207 | D33: =IF(B33="","",'Tabla Fijos CAT'!G33) -> 1053.746696 | E33: 588124.474 | M33: Adquisición | N33: Apoyo INFONAVIT | O33: AdquisiciónApoyo INFONAVIT | Q33: Pagos crecientes Apoyo INFONAVIT
B34: =IF(B33=Caratula!$H$49,"",IF(B33="","",'Tabla Notaría'!B33+1)) -> 23 | C34: 588124.474 | D34: =IF(B34="","",'Tabla Fijos CAT'!G34) -> 1061.755171 | E34: 587062.7188 | M34: Adquisición | N34: Cofinavit | O34: AdquisiciónCofinavit | Q34: Pagos crecientes Cofinanciamiento INFONAVIT
B35: =IF(B34=Caratula!$H$49,"",IF(B34="","",'Tabla Notaría'!B34+1)) -> 24 | C35: 587062.7188 | D35: =IF(B35="","",'Tabla Fijos CAT'!G35) -> 1069.82451 | E35: 585992.8943 | M35: Adquisición | N35: Alia2+ | O35: AdquisiciónAlia2+ | Q35: Pagos crecientes Alia2+
B36: =IF(B35=Caratula!$H$49,"",IF(B35="","",'Tabla Notaría'!B35+1)) -> 25 | C36: 585992.8943 | D36: =IF(B36="","",'Tabla Fijos CAT'!G36) -> 1077.955176 | E36: 584914.9391 | M36: Adquisición | N36: Respalda2 | O36: AdquisiciónRespalda2 | Q36: Pagos crecientes Respalda2
B37: =IF(B36=Caratula!$H$49,"",IF(B36="","",'Tabla Notaría'!B36+1)) -> 26 | C37: 584914.9391 | D37: =IF(B37="","",'Tabla Fijos CAT'!G37) -> 1086.147636 | E37: 583828.7915
B38: =IF(B37=Caratula!$H$49,"",IF(B37="","",'Tabla Notaría'!B37+1)) -> 27 | C38: 583828.7915 | D38: =IF(B38="","",'Tabla Fijos CAT'!G38) -> 1094.402358 | E38: 582734.3891 | M38: Mejora | N38: Tradicional | O38: MejoraTradicional | Q38: Pagos crecientes amortización creciente
B39: =IF(B38=Caratula!$H$49,"",IF(B38="","",'Tabla Notaría'!B38+1)) -> 28 | C39: 582734.3891 | D39: =IF(B39="","",'Tabla Fijos CAT'!G39) -> 1102.719816 | E39: 581631.6693 | M39: Mejora | N39: Apoyo INFONAVIT | O39: MejoraApoyo INFONAVIT | Q39: Pagos crecientes Apoyo INFONAVIT
B40: =IF(B39=Caratula!$H$49,"",IF(B39="","",'Tabla Notaría'!B39+1)) -> 29 | C40: 581631.6693 | D40: =IF(B40="","",'Tabla Fijos CAT'!G40) -> 1111.100486 | E40: 580520.5688
B41: =IF(B40=Caratula!$H$49,"",IF(B40="","",'Tabla Notaría'!B40+1)) -> 30 | C41: 580520.5688 | D41: =IF(B41="","",'Tabla Fijos CAT'!G41) -> 1119.54485 | E41: 579401.024 | M41: Mejora más Remodelación | N41: Tradicional | O41: Mejora más RemodelaciónTradicional | Q41: Pagos crecientes amortización creciente
B42: =IF(B41=Caratula!$H$49,"",IF(B41="","",'Tabla Notaría'!B41+1)) -> 31 | C42: 579401.024 | D42: =IF(B42="","",'Tabla Fijos CAT'!G42) -> 1128.053391 | E42: 578272.9706
B43: =IF(B42=Caratula!$H$49,"",IF(B42="","",'Tabla Notaría'!B42+1)) -> 32 | C43: 578272.9706 | D43: =IF(B43="","",'Tabla Fijos CAT'!G43) -> 1136.626597 | E43: 577136.344 | M43: Remodelación | N43: Tradicional | O43: RemodelaciónTradicional | Q43: Pagos crecientes amortización creciente
B44: =IF(B43=Caratula!$H$49,"",IF(B43="","",'Tabla Notaría'!B43+1)) -> 33 | C44: 577136.344 | D44: =IF(B44="","",'Tabla Fijos CAT'!G44) -> 1145.264959 | E44: 575991.079
B45: =IF(B44=Caratula!$H$49,"",IF(B44="","",'Tabla Notaría'!B44+1)) -> 34 | C45: 575991.079 | D45: =IF(B45="","",'Tabla Fijos CAT'!G45) -> 1153.968973 | E45: 574837.1101 | M45: Construcción | N45: Tradicional | O45: ConstrucciónTradicional | Q45: Pagos crecientes amortización creciente
B46: =IF(B45=Caratula!$H$49,"",IF(B45="","",'Tabla Notaría'!B45+1)) -> 35 | C46: 574837.1101 | D46: =IF(B46="","",'Tabla Fijos CAT'!G46) -> 1162.739137 | E46: 573674.3709 | M46: Construcción | N46: Apoyo INFONAVIT | O46: ConstrucciónApoyo INFONAVIT | Q46: Pagos crecientes Apoyo INFONAVIT
B47: =IF(B46=Caratula!$H$49,"",IF(B46="","",'Tabla Notaría'!B46+1)) -> 36 | C47: 573674.3709 | D47: =IF(B47="","",'Tabla Fijos CAT'!G47) -> 1171.575954 | E47: 572502.795
B48: =IF(B47=Caratula!$H$49,"",IF(B47="","",'Tabla Notaría'!B47+1)) -> 37 | C48: 572502.795 | D48: =IF(B48="","",'Tabla Fijos CAT'!G48) -> 1180.479931 | E48: 571322.315 | M48: Terreno_más_Construcción | N48: Tradicional | O48: Terreno_más_ConstrucciónTradicional | Q48: Pagos crecientes amortización creciente
B49: =IF(B48=Caratula!$H$49,"",IF(B48="","",'Tabla Notaría'!B48+1)) -> 38 | C49: 571322.315 | D49: =IF(B49="","",'Tabla Fijos CAT'!G49) -> 1189.451579 | E49: 570132.8635 | M49: Terreno_más_Construcción | N49: Apoyo INFONAVIT | O49: Terreno_más_ConstrucciónApoyo INFONAVIT | Q49: Pagos crecientes Apoyo INFONAVIT
B50: =IF(B49=Caratula!$H$49,"",IF(B49="","",'Tabla Notaría'!B49+1)) -> 39 | C50: 570132.8635 | D50: =IF(B50="","",'Tabla Fijos CAT'!G50) -> 1198.491411 | E50: 568934.372
B51: =IF(B50=Caratula!$H$49,"",IF(B50="","",'Tabla Notaría'!B50+1)) -> 40 | C51: 568934.372 | D51: =IF(B51="","",'Tabla Fijos CAT'!G51) -> 1207.599946 | E51: 567726.7721 | M51: Compra_Venta_Termino_Obra | N51: Tradicional | O51: Compra_Venta_Termino_ObraTradicional | Q51: Pagos crecientes amortización creciente
B52: =IF(B51=Caratula!$H$49,"",IF(B51="","",'Tabla Notaría'!B51+1)) -> 41 | C52: 567726.7721 | D52: =IF(B52="","",'Tabla Fijos CAT'!G52) -> 1216.777705 | E52: 566509.9944 | M52: Compra_Venta_Termino_Obra | N52: Apoyo INFONAVIT | O52: Compra_Venta_Termino_ObraApoyo INFONAVIT | Q52: Pagos crecientes Apoyo INFONAVIT
B53: =IF(B52=Caratula!$H$49,"",IF(B52="","",'Tabla Notaría'!B52+1)) -> 42 | C53: 566509.9944 | D53: =IF(B53="","",'Tabla Fijos CAT'!G53) -> 1226.025216 | E53: 565283.9692
B54: =IF(B53=Caratula!$H$49,"",IF(B53="","",'Tabla Notaría'!B53+1)) -> 43 | C54: 565283.9692 | D54: =IF(B54="","",'Tabla Fijos CAT'!G54) -> 1235.343007 | E54: 564048.6262
B55: =IF(B54=Caratula!$H$49,"",IF(B54="","",'Tabla Notaría'!B54+1)) -> 44 | C55: 564048.6262 | D55: =IF(B55="","",'Tabla Fijos CAT'!G55) -> 1244.731614 | E55: 562803.8946
B56: =IF(B55=Caratula!$H$49,"",IF(B55="","",'Tabla Notaría'!B55+1)) -> 45 | C56: 562803.8946 | D56: =IF(B56="","",'Tabla Fijos CAT'!G56) -> 1254.191575 | E56: 561549.703
B57: =IF(B56=Caratula!$H$49,"",IF(B56="","",'Tabla Notaría'!B56+1)) -> 46 | C57: 561549.703 | D57: =IF(B57="","",'Tabla Fijos CAT'!G57) -> 1263.72343 | E57: 560285.9795
B58: =IF(B57=Caratula!$H$49,"",IF(B57="","",'Tabla Notaría'!B57+1)) -> 47 | C58: 560285.9795 | D58: =IF(B58="","",'Tabla Fijos CAT'!G58) -> 1273.327729 | E58: 559012.6518
B59: =IF(B58=Caratula!$H$49,"",IF(B58="","",'Tabla Notaría'!B58+1)) -> 48 | C59: 559012.6518 | D59: =IF(B59="","",'Tabla Fijos CAT'!G59) -> 1283.005019 | E59: 557729.6468
B60: =IF(B59=Caratula!$H$49,"",IF(B59="","",'Tabla Notaría'!B59+1)) -> 49 | C60: 557729.6468 | D60: =IF(B60="","",'Tabla Fijos CAT'!G60) -> 1292.755857 | E60: 556436.8909
B61: =IF(B60=Caratula!$H$49,"",IF(B60="","",'Tabla Notaría'!B60+1)) -> 50 | C61: 556436.8909 | D61: =IF(B61="","",'Tabla Fijos CAT'!G61) -> 1302.580802 | E61: 555134.3101
B62: =IF(B61=Caratula!$H$49,"",IF(B61="","",'Tabla Notaría'!B61+1)) -> 51 | C62: 555134.3101 | D62: =IF(B62="","",'Tabla Fijos CAT'!G62) -> 1312.480416 | E62: 553821.8297
B63: =IF(B62=Caratula!$H$49,"",IF(B62="","",'Tabla Notaría'!B62+1)) -> 52 | C63: 553821.8297 | D63: =IF(B63="","",'Tabla Fijos CAT'!G63) -> 1322.455267 | E63: 552499.3745
B64: =IF(B63=Caratula!$H$49,"",IF(B63="","",'Tabla Notaría'!B63+1)) -> 53 | C64: 552499.3745 | D64: =IF(B64="","",'Tabla Fijos CAT'!G64) -> 1332.505927 | E64: 551166.8685
B65: =IF(B64=Caratula!$H$49,"",IF(B64="","",'Tabla Notaría'!B64+1)) -> 54 | C65: 551166.8685 | D65: =IF(B65="","",'Tabla Fijos CAT'!G65) -> 1342.632972 | E65: 549824.2356
B66: =IF(B65=Caratula!$H$49,"",IF(B65="","",'Tabla Notaría'!B65+1)) -> 55 | C66: 549824.2356 | D66: =IF(B66="","",'Tabla Fijos CAT'!G66) -> 1352.836983 | E66: 548471.3986
B67: =IF(B66=Caratula!$H$49,"",IF(B66="","",'Tabla Notaría'!B66+1)) -> 56 | C67: 548471.3986 | D67: =IF(B67="","",'Tabla Fijos CAT'!G67) -> 1363.118544 | E67: 547108.28
B68: =IF(B67=Caratula!$H$49,"",IF(B67="","",'Tabla Notaría'!B67+1)) -> 57 | C68: 547108.28 | D68: =IF(B68="","",'Tabla Fijos CAT'!G68) -> 1373.478245 | E68: 545734.8018
B69: =IF(B68=Caratula!$H$49,"",IF(B68="","",'Tabla Notaría'!B68+1)) -> 58 | C69: 545734.8018 | D69: =IF(B69="","",'Tabla Fijos CAT'!G69) -> 1383.91668 | E69: 544350.8851
B70: =IF(B69=Caratula!$H$49,"",IF(B69="","",'Tabla Notaría'!B69+1)) -> 59 | C70: 544350.8851 | D70: =IF(B70="","",'Tabla Fijos CAT'!G70) -> 1394.434446 | E70: 542956.4507
B71: =IF(B70=Caratula!$H$49,"",IF(B70="","",'Tabla Notaría'!B70+1)) -> 60 | C71: 542956.4507 | D71: =IF(B71="","",'Tabla Fijos CAT'!G71) -> 1405.032148 | E71: 541551.4185
B72: =IF(B71=Caratula!$H$49,"",IF(B71="","",'Tabla Notaría'!B71+1)) -> 61 | C72: 541551.4185 | D72: =IF(B72="","",'Tabla Fijos CAT'!G72) -> 1415.710392 | E72: 540135.7081
B73: =IF(B72=Caratula!$H$49,"",IF(B72="","",'Tabla Notaría'!B72+1)) -> 62 | C73: 540135.7081 | D73: =IF(B73="","",'Tabla Fijos CAT'!G73) -> 1426.469791 | E73: 538709.2383
B74: =IF(B73=Caratula!$H$49,"",IF(B73="","",'Tabla Notaría'!B73+1)) -> 63 | C74: 538709.2383 | D74: =IF(B74="","",'Tabla Fijos CAT'!G74) -> 1437.310962 | E74: 537271.9274
B75: =IF(B74=Caratula!$H$49,"",IF(B74="","",'Tabla Notaría'!B74+1)) -> 64 | C75: 537271.9274 | D75: =IF(B75="","",'Tabla Fijos CAT'!G75) -> 1448.234525 | E75: 535823.6928
B76: =IF(B75=Caratula!$H$49,"",IF(B75="","",'Tabla Notaría'!B75+1)) -> 65 | C76: 535823.6928 | D76: =IF(B76="","",'Tabla Fijos CAT'!G76) -> 1459.241108 | E76: =IF(B76="","",C76-D76) -> 534364.4517
B77: =IF(B76=Caratula!$H$49,"",IF(B76="","",'Tabla Notaría'!B76+1)) -> 66 | C77: 534364.4517 | D77: =IF(B77="","",'Tabla Fijos CAT'!G77) -> 1470.33134 | E77: 532894.1204
B78: =IF(B77=Caratula!$H$49,"",IF(B77="","",'Tabla Notaría'!B77+1)) -> 67 | C78: =IF(B78="","",C77-D77) -> 532894.1204 | D78: =IF(B78="","",'Tabla Fijos CAT'!G78) -> 1481.505858 | E78: 531412.6145
B79: =IF(B78=Caratula!$H$49,"",IF(B78="","",'Tabla Notaría'!B78+1)) -> 68 | C79: 531412.6145 | D79: =IF(B79="","",'Tabla Fijos CAT'!G79) -> 1492.765303 | E79: 529919.8492
B80: =IF(B79=Caratula!$H$49,"",IF(B79="","",'Tabla Notaría'!B79+1)) -> 69 | C80: 529919.8492 | D80: =IF(B80="","",'Tabla Fijos CAT'!G80) -> 1504.110319 | E80: 528415.7389
B81: =IF(B80=Caratula!$H$49,"",IF(B80="","",'Tabla Notaría'!B80+1)) -> 70 | C81: 528415.7389 | D81: =IF(B81="","",'Tabla Fijos CAT'!G81) -> 1515.541557 | E81: 526900.1974
B82: =IF(B81=Caratula!$H$49,"",IF(B81="","",'Tabla Notaría'!B81+1)) -> 71 | C82: 526900.1974 | D82: =IF(B82="","",'Tabla Fijos CAT'!G82) -> 1527.059673 | E82: 525373.1377
B83: =IF(B82=Caratula!$H$49,"",IF(B82="","",'Tabla Notaría'!B82+1)) -> 72 | C83: 525373.1377 | D83: =IF(B83="","",'Tabla Fijos CAT'!G83) -> 1538.665327 | E83: 523834.4724
B84: =IF(B83=Caratula!$H$49,"",IF(B83="","",'Tabla Notaría'!B83+1)) -> 73 | C84: 523834.4724 | D84: =IF(B84="","",'Tabla Fijos CAT'!G84) -> 1550.359183 | E84: 522284.1132
B85: =IF(B84=Caratula!$H$49,"",IF(B84="","",'Tabla Notaría'!B84+1)) -> 74 | C85: 522284.1132 | D85: =IF(B85="","",'Tabla Fijos CAT'!G85) -> 1562.141913 | E85: 520721.9713
B86: =IF(B85=Caratula!$H$49,"",IF(B85="","",'Tabla Notaría'!B85+1)) -> 75 | C86: 520721.9713 | D86: =IF(B86="","",'Tabla Fijos CAT'!G86) -> 1574.014192 | E86: 519147.9571
B87: =IF(B86=Caratula!$H$49,"",IF(B86="","",'Tabla Notaría'!B86+1)) -> 76 | C87: 519147.9571 | D87: =IF(B87="","",'Tabla Fijos CAT'!G87) -> 1585.976699 | E87: 517561.9804
B88: =IF(B87=Caratula!$H$49,"",IF(B87="","",'Tabla Notaría'!B87+1)) -> 77 | C88: 517561.9804 | D88: =IF(B88="","",'Tabla Fijos CAT'!G88) -> 1598.030122 | E88: 515963.9502
B89: =IF(B88=Caratula!$H$49,"",IF(B88="","",'Tabla Notaría'!B88+1)) -> 78 | C89: 515963.9502 | D89: =IF(B89="","",'Tabla Fijos CAT'!G89) -> 1610.175151 | E89: 514353.7751
B90: =IF(B89=Caratula!$H$49,"",IF(B89="","",'Tabla Notaría'!B89+1)) -> 79 | C90: 514353.7751 | D90: =IF(B90="","",'Tabla Fijos CAT'!G90) -> 1622.412482 | E90: 512731.3626
B91: =IF(B90=Caratula!$H$49,"",IF(B90="","",'Tabla Notaría'!B90+1)) -> 80 | C91: 512731.3626 | D91: =IF(B91="","",'Tabla Fijos CAT'!G91) -> 1634.742817 | E91: 511096.6198
B92: =IF(B91=Caratula!$H$49,"",IF(B91="","",'Tabla Notaría'!B91+1)) -> 81 | C92: 511096.6198 | D92: =IF(B92="","",'Tabla Fijos CAT'!G92) -> 1647.166863 | E92: 509449.4529
B93: =IF(B92=Caratula!$H$49,"",IF(B92="","",'Tabla Notaría'!B92+1)) -> 82 | C93: 509449.4529 | D93: =IF(B93="","",'Tabla Fijos CAT'!G93) -> 1659.685331 | E93: 507789.7676
B94: =IF(B93=Caratula!$H$49,"",IF(B93="","",'Tabla Notaría'!B93+1)) -> 83 | C94: 507789.7676 | D94: =IF(B94="","",'Tabla Fijos CAT'!G94) -> 1672.298939 | E94: 506117.4687
B95: =IF(B94=Caratula!$H$49,"",IF(B94="","",'Tabla Notaría'!B94+1)) -> 84 | C95: 506117.4687 | D95: =IF(B95="","",'Tabla Fijos CAT'!G95) -> 1685.008411 | E95: 504432.4603
B96: =IF(B95=Caratula!$H$49,"",IF(B95="","",'Tabla Notaría'!B95+1)) -> 85 | C96: 504432.4603 | D96: =IF(B96="","",'Tabla Fijos CAT'!G96) -> 1697.814475 | E96: 502734.6458
B97: =IF(B96=Caratula!$H$49,"",IF(B96="","",'Tabla Notaría'!B96+1)) -> 86 | C97: 502734.6458 | D97: =IF(B97="","",'Tabla Fijos CAT'!G97) -> 1710.717865 | E97: 501023.9279
B98: =IF(B97=Caratula!$H$49,"",IF(B97="","",'Tabla Notaría'!B97+1)) -> 87 | C98: 501023.9279 | D98: =IF(B98="","",'Tabla Fijos CAT'!G98) -> 1723.719321 | E98: 499300.2086
B99: =IF(B98=Caratula!$H$49,"",IF(B98="","",'Tabla Notaría'!B98+1)) -> 88 | C99: 499300.2086 | D99: =IF(B99="","",'Tabla Fijos CAT'!G99) -> 1736.819588 | E99: 497563.389
B100: =IF(B99=Caratula!$H$49,"",IF(B99="","",'Tabla Notaría'!B99+1)) -> 89 | C100: 497563.389 | D100: =IF(B100="","",'Tabla Fijos CAT'!G100) -> 1750.019417 | E100: 495813.3696
B101: =IF(B100=Caratula!$H$49,"",IF(B100="","",'Tabla Notaría'!B100+1)) -> 90 | C101: 495813.3696 | D101: =IF(B101="","",'Tabla Fijos CAT'!G101) -> 1763.319564 | E101: 494050.05
B102: =IF(B101=Caratula!$H$49,"",IF(B101="","",'Tabla Notaría'!B101+1)) -> 91 | C102: 494050.05 | D102: =IF(B102="","",'Tabla Fijos CAT'!G102) -> 1776.720793 | E102: 492273.3292
B103: =IF(B102=Caratula!$H$49,"",IF(B102="","",'Tabla Notaría'!B102+1)) -> 92 | C103: 492273.3292 | D103: =IF(B103="","",'Tabla Fijos CAT'!G103) -> 1790.223871 | E103: 490483.1054
B104: =IF(B103=Caratula!$H$49,"",IF(B103="","",'Tabla Notaría'!B103+1)) -> 93 | C104: 490483.1054 | D104: =IF(B104="","",'Tabla Fijos CAT'!G104) -> 1803.829572 | E104: 488679.2758
B105: =IF(B104=Caratula!$H$49,"",IF(B104="","",'Tabla Notaría'!B104+1)) -> 94 | C105: 488679.2758 | D105: =IF(B105="","",'Tabla Fijos CAT'!G105) -> 1817.538677 | E105: 486861.7371
B106: =IF(B105=Caratula!$H$49,"",IF(B105="","",'Tabla Notaría'!B105+1)) -> 95 | C106: 486861.7371 | D106: =IF(B106="","",'Tabla Fijos CAT'!G106) -> 1831.351971 | E106: 485030.3851
B107: =IF(B106=Caratula!$H$49,"",IF(B106="","",'Tabla Notaría'!B106+1)) -> 96 | C107: 485030.3851 | D107: =IF(B107="","",'Tabla Fijos CAT'!G107) -> 1845.270246 | E107: 483185.1149
B108: =IF(B107=Caratula!$H$49,"",IF(B107="","",'Tabla Notaría'!B107+1)) -> 97 | C108: 483185.1149 | D108: =IF(B108="","",'Tabla Fijos CAT'!G108) -> 1859.2943 | E108: 481325.8206
B109: =IF(B108=Caratula!$H$49,"",IF(B108="","",'Tabla Notaría'!B108+1)) -> 98 | C109: 481325.8206 | D109: =IF(B109="","",'Tabla Fijos CAT'!G109) -> 1873.424937 | E109: 479452.3957
B110: =IF(B109=Caratula!$H$49,"",IF(B109="","",'Tabla Notaría'!B109+1)) -> 99 | C110: 479452.3957 | D110: =IF(B110="","",'Tabla Fijos CAT'!G110) -> 1887.662966 | E110: 477564.7327
B111: =IF(B110=Caratula!$H$49,"",IF(B110="","",'Tabla Notaría'!B110+1)) -> 100 | C111: 477564.7327 | D111: =IF(B111="","",'Tabla Fijos CAT'!G111) -> 1902.009205 | E111: 475662.7235
B112: =IF(B111=Caratula!$H$49,"",IF(B111="","",'Tabla Notaría'!B111+1)) -> 101 | C112: 475662.7235 | D112: =IF(B112="","",'Tabla Fijos CAT'!G112) -> 1916.464475 | E112: 473746.259
B113: =IF(B112=Caratula!$H$49,"",IF(B112="","",'Tabla Notaría'!B112+1)) -> 102 | C113: 473746.259 | D113: =IF(B113="","",'Tabla Fijos CAT'!G113) -> 1931.029605 | E113: 471815.2294
B114: =IF(B113=Caratula!$H$49,"",IF(B113="","",'Tabla Notaría'!B113+1)) -> 103 | C114: 471815.2294 | D114: =IF(B114="","",'Tabla Fijos CAT'!G114) -> 1945.70543 | E114: 469869.524
B115: =IF(B114=Caratula!$H$49,"",IF(B114="","",'Tabla Notaría'!B114+1)) -> 104 | C115: 469869.524 | D115: =IF(B115="","",'Tabla Fijos CAT'!G115) -> 1960.492791 | E115: 467909.0312
B116: =IF(B115=Caratula!$H$49,"",IF(B115="","",'Tabla Notaría'!B115+1)) -> 105 | C116: 467909.0312 | D116: =IF(B116="","",'Tabla Fijos CAT'!G116) -> 1975.392536 | E116: 465933.6386
B117: =IF(B116=Caratula!$H$49,"",IF(B116="","",'Tabla Notaría'!B116+1)) -> 106 | C117: 465933.6386 | D117: =IF(B117="","",'Tabla Fijos CAT'!G117) -> 1990.405519 | E117: 463943.2331
B118: =IF(B117=Caratula!$H$49,"",IF(B117="","",'Tabla Notaría'!B117+1)) -> 107 | C118: 463943.2331 | D118: =IF(B118="","",'Tabla Fijos CAT'!G118) -> 2005.532601 | E118: 461937.7005
B119: =IF(B118=Caratula!$H$49,"",IF(B118="","",'Tabla Notaría'!B118+1)) -> 108 | C119: 461937.7005 | D119: =IF(B119="","",'Tabla Fijos CAT'!G119) -> 2020.774649 | E119: 459916.9259
B120: =IF(B119=Caratula!$H$49,"",IF(B119="","",'Tabla Notaría'!B119+1)) -> 109 | C120: 459916.9259 | D120: =IF(B120="","",'Tabla Fijos CAT'!G120) -> 2036.132536 | E120: 457880.7933
B121: =IF(B120=Caratula!$H$49,"",IF(B120="","",'Tabla Notaría'!B120+1)) -> 110 | C121: 457880.7933 | D121: =IF(B121="","",'Tabla Fijos CAT'!G121) -> 2051.607144 | E121: 455829.1862
B122: =IF(B121=Caratula!$H$49,"",IF(B121="","",'Tabla Notaría'!B121+1)) -> 111 | C122: 455829.1862 | D122: =IF(B122="","",'Tabla Fijos CAT'!G122) -> 2067.199358 | E122: 453761.9868
B123: =IF(B122=Caratula!$H$49,"",IF(B122="","",'Tabla Notaría'!B122+1)) -> 112 | C123: 453761.9868 | D123: =IF(B123="","",'Tabla Fijos CAT'!G123) -> 2082.910073 | E123: 451679.0768
B124: =IF(B123=Caratula!$H$49,"",IF(B123="","",'Tabla Notaría'!B123+1)) -> 113 | C124: 451679.0768 | D124: =IF(B124="","",'Tabla Fijos CAT'!G124) -> 2098.74019 | E124: 449580.3366
B125: =IF(B124=Caratula!$H$49,"",IF(B124="","",'Tabla Notaría'!B124+1)) -> 114 | C125: 449580.3366 | D125: =IF(B125="","",'Tabla Fijos CAT'!G125) -> 2114.690615 | E125: 447465.646
B126: =IF(B125=Caratula!$H$49,"",IF(B125="","",'Tabla Notaría'!B125+1)) -> 115 | C126: 447465.646 | D126: =IF(B126="","",'Tabla Fijos CAT'!G126) -> 2130.762264 | E126: 445334.8837
B127: =IF(B126=Caratula!$H$49,"",IF(B126="","",'Tabla Notaría'!B126+1)) -> 116 | C127: 445334.8837 | D127: =IF(B127="","",'Tabla Fijos CAT'!G127) -> 2146.956057 | E127: 443187.9276
B128: =IF(B127=Caratula!$H$49,"",IF(B127="","",'Tabla Notaría'!B127+1)) -> 117 | C128: 443187.9276 | D128: =IF(B128="","",'Tabla Fijos CAT'!G128) -> 2163.272923 | E128: 441024.6547
B129: =IF(B128=Caratula!$H$49,"",IF(B128="","",'Tabla Notaría'!B128+1)) -> 118 | C129: 441024.6547 | D129: =IF(B129="","",'Tabla Fijos CAT'!G129) -> 2179.713797 | E129: 438844.9409
B130: =IF(B129=Caratula!$H$49,"",IF(B129="","",'Tabla Notaría'!B129+1)) -> 119 | C130: 438844.9409 | D130: =IF(B130="","",'Tabla Fijos CAT'!G130) -> 2196.279622 | E130: 436648.6613
B131: =IF(B130=Caratula!$H$49,"",IF(B130="","",'Tabla Notaría'!B130+1)) -> 120 | C131: 436648.6613 | D131: =IF(B131="","",'Tabla Fijos CAT'!G131) -> 2212.971347 | E131: 434435.69
B132: =IF(B131=Caratula!$H$49,"",IF(B131="","",'Tabla Notaría'!B131+1)) -> 121 | C132: 434435.69 | D132: =IF(B132="","",'Tabla Fijos CAT'!G132) -> 2229.78993 | E132: 432205.9
B133: =IF(B132=Caratula!$H$49,"",IF(B132="","",'Tabla Notaría'!B132+1)) -> 122 | C133: 432205.9 | D133: =IF(B133="","",'Tabla Fijos CAT'!G133) -> 2246.736333 | E133: 429959.1637
B134: =IF(B133=Caratula!$H$49,"",IF(B133="","",'Tabla Notaría'!B133+1)) -> 123 | C134: 429959.1637 | D134: =IF(B134="","",'Tabla Fijos CAT'!G134) -> 2263.811529 | E134: 427695.3522
B135: =IF(B134=Caratula!$H$49,"",IF(B134="","",'Tabla Notaría'!B134+1)) -> 124 | C135: 427695.3522 | D135: =IF(B135="","",'Tabla Fijos CAT'!G135) -> 2281.016497 | E135: 425414.3357
B136: =IF(B135=Caratula!$H$49,"",IF(B135="","",'Tabla Notaría'!B135+1)) -> 125 | C136: 425414.3357 | D136: =IF(B136="","",'Tabla Fijos CAT'!G136) -> 2298.352222 | E136: 423115.9834
B137: =IF(B136=Caratula!$H$49,"",IF(B136="","",'Tabla Notaría'!B136+1)) -> 126 | C137: 423115.9834 | D137: =IF(B137="","",'Tabla Fijos CAT'!G137) -> 2315.819699 | E137: 420800.1637
B138: =IF(B137=Caratula!$H$49,"",IF(B137="","",'Tabla Notaría'!B137+1)) -> 127 | C138: 420800.1637 | D138: =IF(B138="","",'Tabla Fijos CAT'!G138) -> 2333.419929 | E138: 418466.7438
B139: =IF(B138=Caratula!$H$49,"",IF(B138="","",'Tabla Notaría'!B138+1)) -> 128 | C139: 418466.7438 | D139: =IF(B139="","",'Tabla Fijos CAT'!G139) -> 2351.15392 | E139: 416115.5899
B140: =IF(B139=Caratula!$H$49,"",IF(B139="","",'Tabla Notaría'!B139+1)) -> 129 | C140: 416115.5899 | D140: =IF(B140="","",'Tabla Fijos CAT'!G140) -> 2369.02269 | E140: =IF(B140="","",C140-D140) -> 413746.5672
B141: =IF(B140=Caratula!$H$49,"",IF(B140="","",'Tabla Notaría'!B140+1)) -> 130 | C141: 413746.5672 | D141: =IF(B141="","",'Tabla Fijos CAT'!G141) -> 2387.027262 | E141: 411359.5399
B142: =IF(B141=Caratula!$H$49,"",IF(B141="","",'Tabla Notaría'!B141+1)) -> 131 | C142: =IF(B142="","",C141-D141) -> 411359.5399 | D142: =IF(B142="","",'Tabla Fijos CAT'!G142) -> 2405.16867 | E142: 408954.3713
B143: =IF(B142=Caratula!$H$49,"",IF(B142="","",'Tabla Notaría'!B142+1)) -> 132 | C143: 408954.3713 | D143: =IF(B143="","",'Tabla Fijos CAT'!G143) -> 2423.447951 | E143: 406530.9233
B144: =IF(B143=Caratula!$H$49,"",IF(B143="","",'Tabla Notaría'!B143+1)) -> 133 | C144: 406530.9233 | D144: =IF(B144="","",'Tabla Fijos CAT'!G144) -> 2441.866156 | E144: 404089.0572
B145: =IF(B144=Caratula!$H$49,"",IF(B144="","",'Tabla Notaría'!B144+1)) -> 134 | C145: 404089.0572 | D145: =IF(B145="","",'Tabla Fijos CAT'!G145) -> 2460.424339 | E145: 401628.6328
B146: =IF(B145=Caratula!$H$49,"",IF(B145="","",'Tabla Notaría'!B145+1)) -> 135 | C146: 401628.6328 | D146: =IF(B146="","",'Tabla Fijos CAT'!G146) -> 2479.123564 | E146: 399149.5093
B147: =IF(B146=Caratula!$H$49,"",IF(B146="","",'Tabla Notaría'!B146+1)) -> 136 | C147: 399149.5093 | D147: =IF(B147="","",'Tabla Fijos CAT'!G147) -> 2497.964903 | E147: 396651.5444
B148: =IF(B147=Caratula!$H$49,"",IF(B147="","",'Tabla Notaría'!B147+1)) -> 137 | C148: 396651.5444 | D148: =IF(B148="","",'Tabla Fijos CAT'!G148) -> 2516.949436 | E148: 394134.5949
B149: =IF(B148=Caratula!$H$49,"",IF(B148="","",'Tabla Notaría'!B148+1)) -> 138 | C149: 394134.5949 | D149: =IF(B149="","",'Tabla Fijos CAT'!G149) -> 2536.078252 | E149: 391598.5167
B150: =IF(B149=Caratula!$H$49,"",IF(B149="","",'Tabla Notaría'!B149+1)) -> 139 | C150: 391598.5167 | D150: =IF(B150="","",'Tabla Fijos CAT'!G150) -> 2555.352446 | E150: 389043.1642
B151: =IF(B150=Caratula!$H$49,"",IF(B150="","",'Tabla Notaría'!B150+1)) -> 140 | C151: 389043.1642 | D151: =IF(B151="","",'Tabla Fijos CAT'!G151) -> 2574.773125 | E151: 386468.3911
B152: =IF(B151=Caratula!$H$49,"",IF(B151="","",'Tabla Notaría'!B151+1)) -> 141 | C152: 386468.3911 | D152: =IF(B152="","",'Tabla Fijos CAT'!G152) -> 2594.341401 | E152: 383874.0497
B153: =IF(B152=Caratula!$H$49,"",IF(B152="","",'Tabla Notaría'!B152+1)) -> 142 | C153: 383874.0497 | D153: =IF(B153="","",'Tabla Fijos CAT'!G153) -> 2614.058395 | E153: 381259.9913
B154: =IF(B153=Caratula!$H$49,"",IF(B153="","",'Tabla Notaría'!B153+1)) -> 143 | C154: 381259.9913 | D154: =IF(B154="","",'Tabla Fijos CAT'!G154) -> 2633.925239 | E154: 378626.0661
B155: =IF(B154=Caratula!$H$49,"",IF(B154="","",'Tabla Notaría'!B154+1)) -> 144 | C155: 378626.0661 | D155: =IF(B155="","",'Tabla Fijos CAT'!G155) -> 2653.943071 | E155: 375972.123
B156: =IF(B155=Caratula!$H$49,"",IF(B155="","",'Tabla Notaría'!B155+1)) -> 145 | C156: 375972.123 | D156: =IF(B156="","",'Tabla Fijos CAT'!G156) -> 2674.113038 | E156: 373298.01
B157: =IF(B156=Caratula!$H$49,"",IF(B156="","",'Tabla Notaría'!B156+1)) -> 146 | C157: 373298.01 | D157: =IF(B157="","",'Tabla Fijos CAT'!G157) -> 2694.436297 | E157: 370603.5737
B158: =IF(B157=Caratula!$H$49,"",IF(B157="","",'Tabla Notaría'!B157+1)) -> 147 | C158: 370603.5737 | D158: =IF(B158="","",'Tabla Fijos CAT'!G158) -> 2714.914013 | E158: 367888.6596
B159: =IF(B158=Caratula!$H$49,"",IF(B158="","",'Tabla Notaría'!B158+1)) -> 148 | C159: 367888.6596 | D159: =IF(B159="","",'Tabla Fijos CAT'!G159) -> 2735.54736 | E159: 365153.1123
B160: =IF(B159=Caratula!$H$49,"",IF(B159="","",'Tabla Notaría'!B159+1)) -> 149 | C160: 365153.1123 | D160: =IF(B160="","",'Tabla Fijos CAT'!G160) -> 2756.33752 | E160: 362396.7748
B161: =IF(B160=Caratula!$H$49,"",IF(B160="","",'Tabla Notaría'!B160+1)) -> 150 | C161: 362396.7748 | D161: =IF(B161="","",'Tabla Fijos CAT'!G161) -> 2777.285685 | E161: 359619.4891
B162: =IF(B161=Caratula!$H$49,"",IF(B161="","",'Tabla Notaría'!B161+1)) -> 151 | C162: 359619.4891 | D162: =IF(B162="","",'Tabla Fijos CAT'!G162) -> 2798.393056 | E162: 356821.096
B163: =IF(B162=Caratula!$H$49,"",IF(B162="","",'Tabla Notaría'!B162+1)) -> 152 | C163: 356821.096 | D163: =IF(B163="","",'Tabla Fijos CAT'!G163) -> 2819.660843 | E163: 354001.4352
B164: =IF(B163=Caratula!$H$49,"",IF(B163="","",'Tabla Notaría'!B163+1)) -> 153 | C164: 354001.4352 | D164: =IF(B164="","",'Tabla Fijos CAT'!G164) -> 2841.090266 | E164: 351160.3449
B165: =IF(B164=Caratula!$H$49,"",IF(B164="","",'Tabla Notaría'!B164+1)) -> 154 | C165: 351160.3449 | D165: =IF(B165="","",'Tabla Fijos CAT'!G165) -> 2862.682552 | E165: 348297.6624
B166: =IF(B165=Caratula!$H$49,"",IF(B165="","",'Tabla Notaría'!B165+1)) -> 155 | C166: 348297.6624 | D166: =IF(B166="","",'Tabla Fijos CAT'!G166) -> 2884.438939 | E166: 345413.2234
B167: =IF(B166=Caratula!$H$49,"",IF(B166="","",'Tabla Notaría'!B166+1)) -> 156 | C167: 345413.2234 | D167: =IF(B167="","",'Tabla Fijos CAT'!G167) -> 2906.360675 | E167: 342506.8627
B168: =IF(B167=Caratula!$H$49,"",IF(B167="","",'Tabla Notaría'!B167+1)) -> 157 | C168: 342506.8627 | D168: =IF(B168="","",'Tabla Fijos CAT'!G168) -> 2928.449016 | E168: 339578.4137
B169: =IF(B168=Caratula!$H$49,"",IF(B168="","",'Tabla Notaría'!B168+1)) -> 158 | C169: 339578.4137 | D169: =IF(B169="","",'Tabla Fijos CAT'!G169) -> 2950.705229 | E169: 336627.7085
B170: =IF(B169=Caratula!$H$49,"",IF(B169="","",'Tabla Notaría'!B169+1)) -> 159 | C170: 336627.7085 | D170: =IF(B170="","",'Tabla Fijos CAT'!G170) -> 2973.130589 | E170: 333654.5779
B171: =IF(B170=Caratula!$H$49,"",IF(B170="","",'Tabla Notaría'!B170+1)) -> 160 | C171: 333654.5779 | D171: =IF(B171="","",'Tabla Fijos CAT'!G171) -> 2995.726381 | E171: 330658.8515
B172: =IF(B171=Caratula!$H$49,"",IF(B171="","",'Tabla Notaría'!B171+1)) -> 161 | C172: 330658.8515 | D172: =IF(B172="","",'Tabla Fijos CAT'!G172) -> 3018.493901 | E172: 327640.3576
B173: =IF(B172=Caratula!$H$49,"",IF(B172="","",'Tabla Notaría'!B172+1)) -> 162 | C173: 327640.3576 | D173: =IF(B173="","",'Tabla Fijos CAT'!G173) -> 3041.434455 | E173: 324598.9232
B174: =IF(B173=Caratula!$H$49,"",IF(B173="","",'Tabla Notaría'!B173+1)) -> 163 | C174: 324598.9232 | D174: =IF(B174="","",'Tabla Fijos CAT'!G174) -> 3064.549357 | E174: 321534.3738
B175: =IF(B174=Caratula!$H$49,"",IF(B174="","",'Tabla Notaría'!B174+1)) -> 164 | C175: 321534.3738 | D175: =IF(B175="","",'Tabla Fijos CAT'!G175) -> 3087.839932 | E175: 318446.5339
B176: =IF(B175=Caratula!$H$49,"",IF(B175="","",'Tabla Notaría'!B175+1)) -> 165 | C176: 318446.5339 | D176: =IF(B176="","",'Tabla Fijos CAT'!G176) -> 3111.307516 | E176: 315335.2264
B177: =IF(B176=Caratula!$H$49,"",IF(B176="","",'Tabla Notaría'!B176+1)) -> 166 | C177: 315335.2264 | D177: =IF(B177="","",'Tabla Fijos CAT'!G177) -> 3134.953453 | E177: 312200.2729
B178: =IF(B177=Caratula!$H$49,"",IF(B177="","",'Tabla Notaría'!B177+1)) -> 167 | C178: 312200.2729 | D178: =IF(B178="","",'Tabla Fijos CAT'!G178) -> 3158.779099 | E178: 309041.4938
B179: =IF(B178=Caratula!$H$49,"",IF(B178="","",'Tabla Notaría'!B178+1)) -> 168 | C179: 309041.4938 | D179: =IF(B179="","",'Tabla Fijos CAT'!G179) -> 3182.78582 | E179: 305858.708
B180: =IF(B179=Caratula!$H$49,"",IF(B179="","",'Tabla Notaría'!B179+1)) -> 169 | C180: 305858.708 | D180: =IF(B180="","",'Tabla Fijos CAT'!G180) -> 3206.974992 | E180: 302651.733
B181: =IF(B180=Caratula!$H$49,"",IF(B180="","",'Tabla Notaría'!B180+1)) -> 170 | C181: 302651.733 | D181: =IF(B181="","",'Tabla Fijos CAT'!G181) -> 3231.348002 | E181: 299420.385
B182: =IF(B181=Caratula!$H$49,"",IF(B181="","",'Tabla Notaría'!B181+1)) -> 171 | C182: 299420.385 | D182: =IF(B182="","",'Tabla Fijos CAT'!G182) -> 3255.906247 | E182: 296164.4788
B183: =IF(B182=Caratula!$H$49,"",IF(B182="","",'Tabla Notaría'!B182+1)) -> 172 | C183: 296164.4788 | D183: =IF(B183="","",'Tabla Fijos CAT'!G183) -> 3280.651135 | E183: 292883.8276
B184: =IF(B183=Caratula!$H$49,"",IF(B183="","",'Tabla Notaría'!B183+1)) -> 173 | C184: 292883.8276 | D184: =IF(B184="","",'Tabla Fijos CAT'!G184) -> 3305.584083 | E184: 289578.2435
B185: =IF(B184=Caratula!$H$49,"",IF(B184="","",'Tabla Notaría'!B184+1)) -> 174 | C185: 289578.2435 | D185: =IF(B185="","",'Tabla Fijos CAT'!G185) -> 3330.706522 | E185: 286247.537
B186: =IF(B185=Caratula!$H$49,"",IF(B185="","",'Tabla Notaría'!B185+1)) -> 175 | C186: 286247.537 | D186: =IF(B186="","",'Tabla Fijos CAT'!G186) -> 3356.019892 | E186: 282891.5171
B187: =IF(B186=Caratula!$H$49,"",IF(B186="","",'Tabla Notaría'!B186+1)) -> 176 | C187: 282891.5171 | D187: =IF(B187="","",'Tabla Fijos CAT'!G187) -> 3381.525643 | E187: 279509.9915
B188: =IF(B187=Caratula!$H$49,"",IF(B187="","",'Tabla Notaría'!B187+1)) -> 177 | C188: 279509.9915 | D188: =IF(B188="","",'Tabla Fijos CAT'!G188) -> 3407.225238 | E188: 276102.7662
B189: =IF(B188=Caratula!$H$49,"",IF(B188="","",'Tabla Notaría'!B188+1)) -> 178 | C189: 276102.7662 | D189: =IF(B189="","",'Tabla Fijos CAT'!G189) -> 3433.12015 | E189: 272669.6461
B190: =IF(B189=Caratula!$H$49,"",IF(B189="","",'Tabla Notaría'!B189+1)) -> 179 | C190: 272669.6461 | D190: =IF(B190="","",'Tabla Fijos CAT'!G190) -> 3459.211863 | E190: 269210.4342
B191: =IF(B190=Caratula!$H$49,"",IF(B190="","",'Tabla Notaría'!B190+1)) -> 180 | C191: 269210.4342 | D191: =IF(B191="","",'Tabla Fijos CAT'!G191) -> 3485.501873 | E191: 265724.9324
B192: =IF(B191=Caratula!$H$49,"",IF(B191="","",'Tabla Notaría'!B191+1)) -> 181 | C192: 265724.9324 | D192: =IF(B192="","",'Tabla Fijos CAT'!G192) -> 3511.991687 | E192: =IF(B192="","",C192-D192) -> 262212.9407
B193: =IF(B192=Caratula!$H$49,"",IF(B192="","",'Tabla Notaría'!B192+1)) -> 182 | C193: 262212.9407 | D193: =IF(B193="","",'Tabla Fijos CAT'!G193) -> 3538.682824 | E193: =IF(B193="","",C193-D193) -> 258674.2579
B194: =IF(B193=Caratula!$H$49,"",IF(B193="","",'Tabla Notaría'!B193+1)) -> 183 | C194: 258674.2579 | D194: =IF(B194="","",'Tabla Fijos CAT'!G194) -> 3565.576813 | E194: 255108.681
B195: =IF(B194=Caratula!$H$49,"",IF(B194="","",'Tabla Notaría'!B194+1)) -> 184 | C195: 255108.681 | D195: =IF(B195="","",'Tabla Fijos CAT'!G195) -> 3592.675197 | E195: 251516.0058
B196: =IF(B195=Caratula!$H$49,"",IF(B195="","",'Tabla Notaría'!B195+1)) -> 185 | C196: 251516.0058 | D196: =IF(B196="","",'Tabla Fijos CAT'!G196) -> 3619.979529 | E196: 247896.0263
B197: =IF(B196=Caratula!$H$49,"",IF(B196="","",'Tabla Notaría'!B196+1)) -> 186 | C197: 247896.0263 | D197: =IF(B197="","",'Tabla Fijos CAT'!G197) -> 3647.491373 | E197: 244248.5349
B198: =IF(B197=Caratula!$H$49,"",IF(B197="","",'Tabla Notaría'!B197+1)) -> 187 | C198: 244248.5349 | D198: =IF(B198="","",'Tabla Fijos CAT'!G198) -> 3675.212308 | E198: 240573.3226
B199: =IF(B198=Caratula!$H$49,"",IF(B198="","",'Tabla Notaría'!B198+1)) -> 188 | C199: 240573.3226 | D199: =IF(B199="","",'Tabla Fijos CAT'!G199) -> 3703.143921 | E199: 236870.1787
B200: =IF(B199=Caratula!$H$49,"",IF(B199="","",'Tabla Notaría'!B199+1)) -> 189 | C200: 236870.1787 | D200: =IF(B200="","",'Tabla Fijos CAT'!G200) -> 3731.287815 | E200: 233138.8909
B201: =IF(B200=Caratula!$H$49,"",IF(B200="","",'Tabla Notaría'!B200+1)) -> 190 | C201: 233138.8909 | D201: =IF(B201="","",'Tabla Fijos CAT'!G201) -> 3759.645602 | E201: 229379.2453
B202: =IF(B201=Caratula!$H$49,"",IF(B201="","",'Tabla Notaría'!B201+1)) -> 191 | C202: 229379.2453 | D202: =IF(B202="","",'Tabla Fijos CAT'!G202) -> 3788.218909 | E202: 225591.0264
B203: =IF(B202=Caratula!$H$49,"",IF(B202="","",'Tabla Notaría'!B202+1)) -> 192 | C203: 225591.0264 | D203: =IF(B203="","",'Tabla Fijos CAT'!G203) -> 3817.009373 | E203: 221774.017
B204: =IF(B203=Caratula!$H$49,"",IF(B203="","",'Tabla Notaría'!B203+1)) -> 193 | C204: 221774.017 | D204: =IF(B204="","",'Tabla Fijos CAT'!G204) -> 3846.018644 | E204: 217927.9984
... 47 more rows

Sheet Tabla Parámetros (hidden)
R1: Básico | W1: Hipoteca Fuerte | Y1: Más por Menos | AF1: 0
B2: Nombre Tasa | C2: Mejora/Mejora + Remodelación | D2: En General | F2: Mes | G2: Tasa | J2: Destinos | L2: Tipo evaluación | N2: Seguros | P2: Tipo de Pago | R2: Factor Vida | S2: Factor Daños | U2: Comisión Apertura | W2: Plazo en meses | Y2: Plazo en meses | AA2: Hipoteca Fuerte | AC2: Reduce Pago | AF2: 1 | AG2: =IF(Caratula!$F$11='Tabla Parámetros'!$AA$2,'Tabla Parámetros'!AG9,IF(Caratula!$F$11='Tabla Parámetros'!$AA$4,'Tabla Parámetros'!AH9,IF(Caratula!$F$11='Tabla Parámetros'!$AA$5,'Tabla Parámetros'!AI9,IF(Caratula!$F$11='Tabla Parámetros'!$AA$3,'Tabla Parámetros'!AJ9,)))) -> Reduce Pago
B3: Mínima | C3: 0.08 | D3: 0.08 | F3: 1 | G3: 0.113 | I3: 1 | J3: Adquisición | L3: Por monto del crédito | M3: 1 | N3: Amplio | O3: Hipoteca Fuerte | P3: Pago Fijo | R3: 7.2 | S3: 3.6 | T3: =T4*1000 -> 3.6 | U3: 0.01 | W3: 60 | Y3: 180 | AA3: Más por Menos | AC3: Reduce Plazo | AF3: 2 | AG3: =IF(Caratula!$F$11='Tabla Parámetros'!$AA$2,'Tabla Parámetros'!AG10,IF(Caratula!$F$11='Tabla Parámetros'!$AA$4,'Tabla Parámetros'!AH10,IF(Caratula!$F$11='Tabla Parámetros'!$AA$5,'Tabla Parámetros'!AI10,IF(Caratula!$F$11='Tabla Parámetros'!$AA$3," ",)))) -> Reduce Plazo
B4: Óptima | C4: 0.09 | D4: 0.09 | F4: 38 | G4: 0.1155 | I4: 2 | J4: Terreno_más_Construcción | L4: Por valor de la vivienda | M4: 2 | N4: Básico | O4: Más por Menos | P4: Pago Creciente | R4: =R3/1000 -> 0.0072 | S4: =S3/1000 -> 0.0036 | T4: =T6*12 -> 0.0036 | U4: Promoción | W4: =W3+12 -> 72 | Y4: 240 | AA4: Liquidez | AC4: Reduce Plazo y Pago | AF4: 3 | AG4: =IF(Caratula!$F$11='Tabla Parámetros'!$AA$2,'Tabla Parámetros'!AG11,IF(Caratula!$F$11='Tabla Parámetros'!$AA$4,'Tabla Parámetros'!AH11,IF(Caratula!$F$11='Tabla Parámetros'!$AA$5,'Tabla Parámetros'!AI11,IF(Caratula!$F$11='Tabla Parámetros'!$AA$3,"",)))) -> Reduce Plazo y Pago
B5: Flexible | C5: 0.1 | D5: 0.1 | F5: 74 | G5: 0.118 | I5: 2 | L5: Por pago mensual | O5: Liquidez | R5: =R4/12 -> 0.0006 | S5: =IF(Caratula!F9=J11,0,$S$6) -> 0.0003 | U5: 0 | W5: =W4+12 -> 84 | AA5: Terreno_Urbanizado
B6: Dinámica | C6: 0.11 | D6: 0.11 | I6: 1 | L6: Por ingreso mensual | N6: SI | O6: Terreno_Urbanizado | R6: =R3/360 -> 0.02 | S6: =S4/12 -> 0.0003 | T6: 0.0003 | U6: Financiada | W6: =W5+12 -> 96
I7: 1 | N7: NO | R7: Amplio | U7: Si | W7: =W6+12 -> 108
B8: Descuento | C8: 0 | D8: 0 | I8: 1 | R8: Factor Vida | S8: Factor Daños | U8: No | W8: 120 | Y8: Comisión Investigación | AG8: Hipoteca Fuerte | AH8: Liquidez | AI8: Terreno Urbanizado | AJ8: Más por Menos
I9: 1 | N9: Comisión Financiada | R9: 10.2996 | S9: 3.6 | U9: Comisión Ministración | W9: =W8+12 -> 132 | Y9: 500 | AG9: Reduce Pago | AH9: Reduce Pago | AI9: Reduce Pago | AJ9: Reduce Plazo
B10: Tasas | F10: Tasas | I10: 3 | N10: SI | R10: =R9/1000/12 -> 0.0008583 | S10: =IF(Caratula!F9=J11,0,0.0003) -> 0.0003 | U10: 0.01 | W10: =W9+12 -> 144 | AG10: Reduce Plazo | AH10: Reduce Plazo | AI10: Reduce Plazo
I11: 3 | N11: NO | U11: Ministraciones | W11: =W10+12 -> 156 | Y11: Comisión Diferida | AG11: Reduce Plazo y Pago | AH11: Reduce Plazo y Pago | AI11: Reduce Plazo y Pago
B12: HIPOTECA FUERTE | F12: HIPOTECA MÁS POR MENOS | W12: =W11+12 -> 168 | Y12: 299
R13: Factor Daños para CAT: | S13: =S5/1.16 -> 0.0002586206897 | T13: Construcción | U13: 4 | W13: 180
B14: Liquidez | C14: 0.157 | D14: 360 | T14: Terreno_más_Construcción | U14: 4 | W14: =W13+12 -> 192 | Y14: Liquidez | AG14: Adquisición
B15: Terreno_Urbanizado | C15: =IF(Caratula!F19<=120,12.5%,13%) -> 0.13 | D15: 250 | S15: =S5/1.16 -> 0.0002586206897 | T15: Compra_Venta_Termino_Obra | U15: 12 | W15: =W14+12 -> 204 | Y15: Comisión Investigación | Z15: Comisión Apertura | AG15: 0.1
S16: =S5/1.16 -> 0.0002586206897 | W16: =W15+12 -> 216 | Y16: 500 | Z16: 0.03 | AG16: 0.15
W17: =W16+12 -> 228 | AG17: 0.2
F18: Enganche | J18: Plazo | K18: Fac Pago p/Mil | L18: Fac Ajuste Pago | N18: Liquidez | P18: Terreno Urbanizado | W18: 240 | Y18: Comisión Diferida | AG18: 0.25
F19: =+Caratula!$N$11-Caratula!$F$15 -> 261240 | J19: 180 | K19: 10.62 | L19: 0.0212 | N19: 5 | O19: 24.27 | P19: 24.16 | Y19: 360 | AG19: 0.3
F20: =+IF(Caratula!F9='Tabla Parámetros'!J3,'Tabla Parámetros'!F19,IF(Caratula!F9='Tabla Parámetros'!J9,'Tabla Parámetros'!F19,IF(Caratula!F9='Tabla Parámetros'!J11,'Tabla Parámetros'!F19,0))) -> 261240 | J20: 240 | K20: 9.57 | L20: 0.0201 | N20: 10 | O20: 16.69 | P20: 16.57 | W20: Comisión Investigación | AG20: 0.35
N21: 15 | O21: 14.62 | P21: 14.48 | W21: 750 | Y21: Terreno_Urbanizado | AG21: 0.4
J22: Meses de Gracia | Y22: Comisión Investigación | Z22: Comisión Apertura | AG22: 0.45
J23: 30 | K23: 1 | W23: Comisión Diferida | Y23: 500 | Z23: 0.015 | AG23: 0.5
P24: Mejora | R24: =Caratula!$L$46+Caratula!$L$47+Caratula!$L$48+Caratula!$L$49 -> 38194.4 | W24: 0 | AG24: 0.55
B25: === HIPOTECA FUERTE === | J25: === HIPOTECA MÁS POR MENOS === | P25: Mejora más Remodelación | Y25: Comisión Diferida | AG25: 0.6
P26: Remodelación | Y26: 250 | AG26: 0.65
P27: Construcción | AG27: 0.7
B28: Hipoteca Fuerte | P28: Compra_Venta_Termino_Obra | Y28: Aforo Liquidez | Z28: Aforo Terreno Urbanizado | AG28: 0.75
B29: Destino | C29: Programas | D29: Aforo Max | F29: Aforo | H29: Comisión Apertura | L29: Programa | M29: Aforo | N29: Vivienda | P29: Liquidez | Y29: 60 | Z29: 60 | AG29: 0.8
B30: Adquisición | C30: Tradicional | D30: 0.9 | E30: 1 | F30: 0.1 | G30: Adquisición | H30: 0.01 | I30: 0 | L30: Cofinavit | M30: 0.93 | N30: 7000001 | O30: =Caratula!N7&Caratula!N17 -> TradicionalNO | P30: Gastos Iniciales | T30: COFINAVIT | V30: Vivienda Rec | Y30: =Y29+12 -> 72 | Z30: 72 | AG30: 0.85
B31: Adquisición | C31: Apoyo INFONAVIT | D31: 0.95 | E31: 2 | F31: 0.2 | G31: Mejora | H31: 0 | I31: 0 | P31: =R31&S31 -> TradicionalSI | Q31: =Caratula!$F$17+Caratula!$L$47+Caratula!$L$48+Caratula!$L$49 -> 299434.4 | R31: Tradicional | S31: SI | T31: =Caratula!N31/Caratula!N11 -> 1 | U31: Sub Viv | V31: =Caratula!$N$25 -> 400000 | Y31: 84 | Z31: 84 | AG31: 0.9
B32: Adquisición | C32: Cofinavit | D32: 0.95 | E32: 3 | F32: 0.3 | G32: Mejora_más_Remodelación | H32: 0 | I32: 0 | P32: =R32&S32 -> TradicionalNO | Q32: =Caratula!$F$17+Caratula!$L$46+Caratula!$L$47+Caratula!$L$48+Caratula!$L$49 -> 299434.4 | R32: Tradicional | S32: NO | T32: =Caratula!N31-Caratula!N11 -> 0 | U32: Créd Info | V32: =Caratula!$N$26 -> 800000 | Y32: 96 | Z32: 96
B33: Adquisición | C33: Cuenta INFONAVIT + BANORTE | D33: 0.95 | E33: 4 | F33: 0.4 | G33: Remodelación | H33: 0.01 | I33: 0 | P33: =R33&S33 -> Apoyo INFONAVITSI | Q33: =Caratula!$F$17+Caratula!$L$47+Caratula!$L$48+Caratula!$L$49 -> 299434.4 | R33: Apoyo INFONAVIT | S33: SI | U33: Créd Bnte | V33: =Caratula!$N$27 -> 609560 | Y33: 108 | Z33: 108
B34: Adquisición | C34: Respalda2 | D34: 0.95 | E34: 5 | F34: 0.5 | G34: Construcción | H34: 0.01 | I34: 0 | P34: Apoyo INFONAVITNO | Q34: =Caratula!$F$17+Caratula!$L$46+Caratula!$L$47+Caratula!$L$48+Caratula!$L$49 -> 299434.4 | R34: Apoyo INFONAVIT | S34: NO | U34: Ap Obl | V34: =Caratula!$N$28 -> 0 | Y34: 120 | Z34: 120
F35: 0.6 | G35: Terreno_más_Construcción | H35: 0.01 | I35: 0 | L35: Elije | P35: CofinavitSI | Q35: =V47 -> 78194.4 | R35: Cofinavit | S35: SI | U35: Ap Opc | V35: =Caratula!$N$29 -> 0 | Y35: =Y34+12 -> 132 | Z35: 132
B36: Mejora | C36: Tradicional | D36: 0.85 | E36: 6 | F36: 0.65 | G36: Compra_Venta_Termino_Obra | H36: 0.01 | I36: 0 | P36: CofinavitNO | Q36: =V47 -> 78194.4 | R36: Cofinavit | S36: NO | U36: Suma | V36: =SUM(V31:V35) -> 1809560 | Y36: 144 | Z36: 144
B37: Mejora | C37: Apoyo INFONAVIT | D37: 0.95 | E37: 7 | F37: 0.7 | G37: Liquidez | H37: 0.03 | I37: 0.03 | P37: Alia2+SI | Q37: =+Caratula!$G$38+Caratula!$G$39+Caratula!$L$47+Caratula!$L$48+Caratula!$L$49 ->  | R37: Alia2+ | S37: SI | U37: A favor del cliente | V37: =Caratula!$N$30 -> 0 | Y37: 156 | Z37: 156
F38: 0.75 | G38: Terreno_Urbanizado | H38: 0.015 | I38: 0.015 | P38: Alia2+NO | Q38: =Caratula!$G$38+Caratula!$G$39+Caratula!$L$46+Caratula!$L$47+Caratula!$L$48+Caratula!$L$49 ->  | R38: Alia2+ | S38: NO | Y38: 168 | Z38: 168
B39: Mejora_más_Remodelación | C39: Tradicional | D39: 0.7 | E39: 8 | F39: 0.8 | P39: =R39&S39 -> Respalda2SI | Q39: =+Caratula!$G$38+Caratula!$G$39+Caratula!$L$47+Caratula!$L$48+Caratula!$L$49 ->  | R39: Respalda2 | S39: SI | V39: Gastos Orig | Y39: 180 | Z39: 180
F40: 0.85 | P40: Respalda2NO | Q40: =Caratula!$G$38+Caratula!$G$39+Caratula!$L$46+Caratula!$L$47+Caratula!$L$48+Caratula!$L$49 ->  | R40: Respalda2 | S40: NO | U40: G Info | V40: =Caratula!$I$30 -> 40000
B41: Remodelación | C41: Tradicional | D41: 0.4 | E41: 9 | F41: 0.9 | U41: G Nota | V41: =Caratula!$L$48 -> 34832
F42: 0.95 | L42: === HIPOTECA MÁS POR MENOS === | U42: Com Apert | V42: =IF(Caratula!N17="SI",0,Caratula!$L$46) -> 0
B43: Construcción | C43: Tradicional | D43: 0.7 | E43: 10 | L43: Construcción | M43: Tradicional | N43: 0.5 | U43: Suma | V43: =SUM(V40:V42) -> 74832
B44: Construcción | C44: Apoyo INFONAVIT | D44: 0.8 | E44: 11 | L44: Construcción | M44: Apoyo INFONAVIT | N44: 0.6 | U44: A favor del cliente | V44: =V37 -> 0
G45: Hipoteca Fuerte | U45: A pagar | V45: =IF(T32>0,V43-T32,V43-V44) -> 74832
B46: Terreno_más_Construcción | C46: Tradicional | D46: 0.85 | E46: 12 | G46: Celda Referencia | J46: CAT | K46: Vida | L46: Daños
B47: Terreno_más_Construcción | C47: Apoyo INFONAVIT | D47: 0.95 | E47: 13 | G47: =Caratula!$F$9&Caratula!$N$7 -> AdquisiciónTradicional | H47: =B30&C30 -> AdquisiciónTradicional | I47: 0.9 | J47: ='Tabla Fijos CAT'!$AB$14 -> 0.1081557941 | K47: ='Tabla Fijos'!$K$8 -> 365.736 | L47: ='Tabla Fijos'!$L$8 -> 182.868 | U47: Des Est | V47: =+Caratula!$L$47+Caratula!$L$49+'Tabla Parámetros'!$V$34+V35+'Tabla Parámetros'!$V$45 -> 78194.4
H48: =B31&C31 -> AdquisiciónApoyo INFONAVIT | I48: 0.95 | J48: ='Tabla Fijos CAT'!$AB$14 -> 0.1081557941 | K48: ='Tabla Fijos'!$K$8 -> 365.736 | L48: ='Tabla Fijos'!$L$8 -> 182.868
B49: Compra_Venta_Termino_Obra | C49: Tradicional | D49: 0.85 | E49: 14 | G49: =MIN(VLOOKUP(G47,H47:I63,2,0),Caratula!$F$15/Caratula!$N$11) -> 0.7 | H49: AdquisiciónCofinavit | J49: ='Tabla Fijos CAT'!$AB$14 -> 0.1081557941 | K49: ='Tabla Fijos'!$K$8 -> 365.736 | L49: ='Tabla Fijos'!$L$8 -> 182.868 | V49: =IF(V47<0,"Saldo a Favor del Cliente","") -> 
B50: Compra_Venta_Termino_Obra | C50: Apoyo INFONAVIT | D50: 0.95 | E50: 15 | G50: =VLOOKUP(G47,H47:J61,3,0) -> 0.1081557941 | H50: =B33&C33 -> AdquisiciónCuenta INFONAVIT + BANORTE | J50: ='Tabla Fijos CAT'!$AB$14 -> 0.1081557941 | K50: ='Tabla Fijos'!$K$8 -> 365.736 | L50: ='Tabla Fijos'!$L$8 -> 182.868
H51: =B34&C34 -> AdquisiciónRespalda2 | J51: ='Tabla Fijos CAT'!$AB$14 -> 0.1081557941 | K51: ='Tabla Fijos'!$K$8 -> 365.736 | L51: ='Tabla Fijos'!$L$8 -> 182.868
B52: Liquidez | C52: Tradicional | D52: 0.7 | E52: 16 | H52: =B36&C36 -> MejoraTradicional | I52: 0.88 | J52: ='Tabla Fijos CAT'!$AB$14 -> 0.1081557941 | K52: ='Tabla Fijos'!$K$8 -> 365.736 | L52: ='Tabla Fijos'!$L$8 -> 182.868 | M52: ¿Destino anterior causa I.V.A.? | O52: ¿Destino anterior es Terreno?
B53: Terreno_Urbanizado | C53: Tradicional | D53: 0.7 | E53: 17 | H53: =B37&C37 -> MejoraApoyo INFONAVIT | I53: 0.95 | J53: ='Tabla Fijos CAT'!$AB$14 -> 0.1081557941 | K53: ='Tabla Fijos'!$K$8 -> 365.736 | L53: ='Tabla Fijos'!$L$8 -> 182.868 | M53: =IF(OR((Caratula!N7="Cofinavit"),(Caratula!N7="Cuenta INFONAVIT + BANORTE")),"","Monto supera Aforo") -> Monto supera Aforo | N53: Monto supera Aforo
H54: =B39&Mejora_más_Remodelación -> Mejora_más_RemodelaciónTradicional | I54: 0.7 | J54: ='Tabla Fijos CAT'!$AB$14 -> 0.1081557941 | K54: ='Tabla Fijos'!$K$8 -> 365.736 | L54: ='Tabla Fijos'!$L$8 -> 182.868 | M54: Enganche No Válido
B55: Más por Menos | H55: =B41&Remodelación -> RemodelaciónTradicional | I55: 0.3 | J55: ='Tabla Fijos CAT'!$AB$14 -> 0.1081557941 | K55: ='Tabla Fijos'!$K$8 -> 365.736 | L55: ='Tabla Fijos'!$L$8 -> 182.868 | M55: Ver en sección Cofinavit
B56: Destino | C56: Programas | D56: Aforo Max | H56: =B43&C43 -> ConstrucciónTradicional | I56: 0.7 | J56: ='Tabla Construcción Fijos CAT'!$V$6 ->  | K56: ='Tabla Construcción Fijos'!$K$3 -> 365.736 | L56: ='Tabla Construcción Fijos'!$L$3 -> 182.868
B57: Adquisición | C57: Tradicional | D57: 0.9 | E57: 18 | H57: =B44&C44 -> ConstrucciónApoyo INFONAVIT | I57: 0.8 | J57: ='Tabla Construcción Fijos CAT'!$V$6 ->  | K57: ='Tabla Construcción Fijos'!$K$3 -> 365.736 | L57: ='Tabla Construcción Fijos'!$L$3 -> 182.868
B58: Adquisición | C58: Apoyo INFONAVIT | D58: 0.95 | E58: 19 | H58: =B46&C46 -> Terreno_más_ConstrucciónTradicional | I58: 0.8 | J58: ='Tabla Construcción Fijos CAT'!$V$6 ->  | K58: ='Tabla Construcción Fijos'!$K$3 -> 365.736 | L58: ='Tabla Construcción Fijos'!$L$3 -> 182.868
B59: Adquisición | C59: Cofinavit | D59: 0.95 | E59: 20 | H59: =B47&C47 -> Terreno_más_ConstrucciónApoyo INFONAVIT | I59: 0.95 | J59: ='Tabla Construcción Fijos CAT'!$V$6 ->  | K59: ='Tabla Construcción Fijos'!$K$3 -> 365.736 | L59: ='Tabla Construcción Fijos'!$L$3 -> 182.868
B60: Adquisición | C60: Alia2+ | D60: 0.95 | E60: 21 | H60: =B49&C49 -> Compra_Venta_Termino_ObraTradicional | I60: 0.9 | J60: ='Tabla Construcción Fijos CAT'!$V$6 ->  | K60: ='Tabla Construcción Fijos'!$K$3 -> 365.736 | L60: ='Tabla Construcción Fijos'!$L$3 -> 182.868
B61: Adquisición | C61: Respalda2 | D61: 0.95 | E61: 22 | G61: =VLOOKUP(G47,H47:J63,3,0) -> 0.1081557941 | H61: =B50&C50 -> Compra_Venta_Termino_ObraApoyo INFONAVIT | I61: 0.95 | J61: ='Tabla Construcción Fijos CAT'!$V$6 ->  | K61: ='Tabla Construcción Fijos'!$K$3 -> 365.736 | L61: ='Tabla Construcción Fijos'!$L$3 -> 182.868
G62: =MIN(VLOOKUP(G47,H62:J63,2,0),Caratula!$F$15/Caratula!$N$11) ->  | H62: =B52&Liquidez -> LiquidezTradicional | I62: 0.6 | J62: ='Tabla Fijos CAT'!$AB$14 -> 0.1081557941 | K62: ='Tabla Fijos'!$K$8 -> 365.736 | L62: ='Tabla Fijos'!$L$8 -> 182.868
B63: Mejora | C63: Tradicional | D63: 0.85 | E63: 23 | G63: =MIN(VLOOKUP(G47,H62:J63,2,0),Caratula!$F$15/Caratula!$N$11) ->  | H63: =B53&Terreno_Urbanizado -> Terreno_UrbanizadoTradicional | I63: 0.6 | J63: ='Tabla Fijos CAT'!$AB$14 -> 0.1081557941 | K63: ='Tabla Fijos'!$K$8 -> 365.736 | L63: ='Tabla Fijos'!$L$8 -> 182.868
B64: Mejora | C64: Apoyo INFONAVIT | D64: 0.95 | E64: 24
G65: Más por Menos
B66: Mejora_más_Remodelación | C66: Tradicional | D66: 0.7 | E66: 25 | G66: Celda Referencia | K66: Vida | L66: Daños
G67: =Caratula!$F$9&Caratula!$N$7 -> AdquisiciónTradicional | H67: =B57&C57 -> AdquisiciónTradicional | I67: 0.9 | J67: ='Tabla Crecientes CAT'!$R$13 ->  | K67: ='Tabla Crecientes'!$K$8 -> 365.736 | L67: ='Tabla Crecientes'!$L$8 -> 182.868
B68: Remodelación | C68: Tradicional | D68: 0.4 | E68: 26 | G68: =MIN(VLOOKUP(G67,H66:I81,2,0),Caratula!$F$15/Caratula!$N$11) -> 0.7 | H68: =B58&C58 -> AdquisiciónApoyo INFONAVIT | I68: 0.95 | J68: ='Tabla Crecientes CAT'!$R$13 ->  | K68: ='Tabla Crecientes'!$K$8 -> 365.736 | L68: ='Tabla Crecientes'!$L$8 -> 182.868
H69: AdquisiciónCofinavit | I69: 0.95 | J69: ='Tabla Crecientes CAT'!$R$13 ->  | K69: ='Tabla Crecientes'!$K$8 -> 365.736 | L69: ='Tabla Crecientes'!$L$8 -> 182.868
B70: Construcción | C70: Tradicional | D70: 0.5 | E70: 27 | G70: =IF(Caratula!$F$62="","",VLOOKUP(G67,H67:J81,3,0)) ->  | H70: AdquisiciónAlia2+ | J70: ='Tabla Crecientes CAT'!$R$13 ->  | K70: ='Tabla Crecientes'!$K$8 -> 365.736 | L70: ='Tabla Crecientes'!$L$8 -> 182.868
B71: Construcción | C71: Apoyo INFONAVIT | D71: 0.6 | E71: 28 | H71: AdquisiciónRespalda2 | J71: ='Tabla Crecientes CAT'!$R$13 ->  | K71: ='Tabla Crecientes'!$K$8 -> 365.736 | L71: ='Tabla Crecientes'!$L$8 -> 182.868
H72: =B63&C63 -> MejoraTradicional | I72: 0.88 | J72: ='Tabla Crecientes CAT'!$R$13 ->  | K72: ='Tabla Crecientes'!$K$8 -> 365.736 | L72: ='Tabla Crecientes'!$L$8 -> 182.868
B73: Terreno_más_Construcción | C73: Tradicional | D73: 0.85 | E73: 29 | H73: =B64&C64 -> MejoraApoyo INFONAVIT | I73: 0.95 | J73: ='Tabla Crecientes CAT'!$R$13 ->  | K73: ='Tabla Crecientes'!$K$8 -> 365.736 | L73: ='Tabla Crecientes'!$L$8 -> 182.868
B74: Terreno_más_Construcción | C74: Apoyo INFONAVIT | D74: 0.95 | E74: 30 | H74: =B66&C66 -> Mejora_más_RemodelaciónTradicional | I74: 0.7 | J74: ='Tabla Crecientes CAT'!$R$13 ->  | K74: ='Tabla Crecientes'!$K$8 -> 365.736 | L74: ='Tabla Crecientes'!$L$8 -> 182.868
H75: =B68&C68 -> RemodelaciónTradicional | I75: 0.3 | J75: ='Tabla Crecientes CAT'!$R$13 ->  | K75: ='Tabla Crecientes'!$K$8 -> 365.736 | L75: ='Tabla Crecientes'!$L$8 -> 182.868
B76: Compra_Venta_Termino_Obra | C76: Tradicional | D76: 0.85 | E76: 31 | H76: =B70&C70 -> ConstrucciónTradicional | I76: 0.5 | J76: ='Tabla Construcción CAT crecient'!$U$6 ->  | K76: ='Tabla Construcción Crecientes'!$K$3 -> 365.736 | L76: ='Tabla Construcción Crecientes'!$L$3 -> 182.868
B77: Compra_Venta_Termino_Obra | C77: Apoyo INFONAVIT | D77: 0.95 | E77: 32 | H77: =B71&C71 -> ConstrucciónApoyo INFONAVIT | I77: 0.6 | J77: ='Tabla Construcción CAT crecient'!$U$6 ->  | K77: ='Tabla Construcción Crecientes'!$K$3 -> 365.736 | L77: ='Tabla Construcción Crecientes'!$L$3 -> 182.868
H78: =B73&C73 -> Terreno_más_ConstrucciónTradicional | I78: 0.8 | J78: ='Tabla Construcción CAT crecient'!$U$6 ->  | K78: ='Tabla Construcción Crecientes'!$K$3 -> 365.736 | L78: ='Tabla Construcción Crecientes'!$L$3 -> 182.868
B79: Liquidez | C79: Tradicional | D79: 0.7 | H79: =B74&C74 -> Terreno_más_ConstrucciónApoyo INFONAVIT | I79: 0.95 | J79: ='Tabla Construcción CAT crecient'!$U$6 ->  | K79: ='Tabla Construcción Crecientes'!$K$3 -> 365.736 | L79: ='Tabla Construcción Crecientes'!$L$3 -> 182.868
B80: Terreno_Urbanizado | C80: Tradicional | D80: 0.7 | H80: =B76&C76 -> Compra_Venta_Termino_ObraTradicional | I80: 0.9 | J80: ='Tabla Construcción CAT crecient'!$U$6 ->  | K80: ='Tabla Construcción Crecientes'!$K$3 -> 365.736 | L80: ='Tabla Construcción Crecientes'!$L$3 -> 182.868
H81: =B77&C77 -> Compra_Venta_Termino_ObraApoyo INFONAVIT | I81: 0.95 | J81: ='Tabla Construcción CAT crecient'!$U$6 ->  | K81: ='Tabla Construcción Crecientes'!$K$3 -> 365.736 | L81: ='Tabla Construcción Crecientes'!$L$3 -> 182.868
B85: Comisiones | G85: === HIPOTECA MÁS POR MENOS === | L85: Parametros avalúo
B86: Apertura | C86: 0.01 | D86: Mejora / Mejora +Remodelación | E86: 0
B87: Diferida | C87: 349 | G87: 299 | L87: Comisión Avalúo Escalonada
B88: Avalúo | C88: $3 al millar + IVA | S88: Resultados
B89: Socioeconómico | C89: 750 | L89: Parámetros | P89: Cálculos | S89: Leyenda Avalúo | T89: =IF(Q96,Q97,Q98) -> 0.30 %
L90: Valor Avalúo | M90: =Caratula!N11 -> 870800 | P90: Tarifa (al millar) | Q90: =VLOOKUP(M90,L95:N100,2,TRUE) -> 3 | S90: Comisión Avalúo | T90: =MAX( Q94,Q91) -> 2612.4
B91: Mínimo Vivienda | C91: 350000 | D91: Construcción | E91: 500000 | F91: Terreno + Construcción | G91: 800000 | P91: Mínimo | Q91: =VLOOKUP(M90,L95:N100,3,TRUE) -> 1200 | T91: =IF(M90<=10000000,0,T90*0.5) -> 0
B92: Mínimo Crédito | C92: 75000 | D92: Remodelación | E92: 150000 | F92: Construcción/Terreno + Construcción | G92: 200000 | L92: Constantes | T92: =+IF(Caratula!F9="Liquidez",'Tabla Parámetros'!T90,IF(Caratula!F9="Terreno_Urbanizado",'Tabla Parámetros'!T90,'Tabla Parámetros'!T91)) -> 0
L93: Millar | M93: 1000 | P93: Factor Tarifa | Q93: =Q90/M93 -> 0.003
P94: Monto por Tarifa | Q94: =M90*Q93 -> 2612.4
B95: Liquidez | D95: Terreno Urbanizado | L95: De | M95: Tarifa (al millar) | N95: Mínimo
L96: 0 | M96: 3 | N96: =1200 * 1 -> 1200 | P96: Tope Mínimo? | Q96: =Q94<Q91 -> FALSE
B97: Apertura | C97: 0.03 | D97: 0.015 | L97: 1000001 | M97: 2.5 | N97: 3000 | P97: Leyenda Tope | Q97: =DOLLAR(Q91) -> $1,200.00
B98: Diferida | C98: 360 | D98: 250 | L98: 5000001 | M98: 2 | N98: 12500 | P98: Leyenda Tarifa | Q98: =TEXT(Q93, "0.00 %") -> 0.30 %
B99: Avalúo | C99: $3 al millar + IVA | L99: 10000001 | M99: 1.5 | N99: 20000
B100: Socioeconómico | C100: 500 | L100: 20000001 | M100: 1 | N100: 30000
B102: Mínimo Vivienda | C102: 500000
B103: Mínimo Crédito | C103: 200000

Sheet Notariales (hidden)
B1: Mejora / Mejora más Remodelación
B2: AGUASCALIENTES | C2: 7,000 Más IVA | D2: =7000*1.16 -> 8120 | E2: =D2/1.16 -> 7000
B3: BAJA CALIFORNIA NORTE | C3: 5,000.00 Más IVA | D3: =5000*1.16 -> 5800 | E3: =D3/1.16 -> 5000
B4: BAJA CALIFORNIA SUR | C4: 5,000.00 Más IVA | D4: =5000*1.16 -> 5800 | E4: 5000
B5: CAMPECHE | C5: 5,000 Más IVA | D5: 5800 | E5: 5000
B6: CHIAPAS | C6: 5,000 Más IVA | D6: 5800 | E6: 5000
B7: CHIHUAHUA | C7: 5,000 Más IVA | D7: 5800 | E7: 5000
B8: COAHUILA | C8: 5,000 Más IVA | D8: 5800 | E8: 5000
B9: COLIMA | C9: 4,000 Más IVA | D9: 5800 | E9: 5000
B10: CIUDAD DE MEXICO | C10: 15,000 ya se incluye el IVA | D10: 15000 | E10: 12931.03448
B11: DURANGO | C11: 5,000 Más IVA | D11: 5800 | E11: 5000
B12: ESTADO DE MEXICO | C12: 15,000 ya se incluye el IVA | D12: 15000 | E12: 12931.03448
B13: GUANAJUATO | C13: 5,000 Más IVA | D13: 5800 | E13: 5000
B14: GUERRERO | C14: 5,000 Más IVA | D14: 5800 | E14: 5000
B15: HIDALGO | C15: 5,000 Más IVA | D15: 5800 | E15: 5000
B16: JALISCO | C16: 5,000 Más IVA | D16: 5800 | E16: 5000
B17: MICHOACAN | C17: 5,000 Más IVA | D17: 5800 | E17: 5000
B18: MORELOS | C18: 5,000 Más IVA | D18: 5800 | E18: 5000
B19: NAYARIT | C19: 6,000 Más IVA | D19: 5800 | E19: 5000
B20: NUEVO LEON | C20: 5,000 Más IVA | D20: 5800 | E20: 5000
B21: OAXACA | C21: 5,000 Más IVA hasta operaciones de 1,999,999.00, Mayores a este serían 7,000 más IVA | D21: 8120 | E21: 7000
B22: PUEBLA | C22: 5,000 Más IVA | D22: 5800 | E22: 5000
B23: QUERETARO | C23: 5,000 Más IVA | D23: 5800 | E23: 5000
B24: QUINTANA ROO | C24: 5,000 Más IVA | D24: 5800 | E24: 5000
B25: SAN LUIS POTOSI | C25: 7,500 Más IVA | E25: 0
B26: SINALOA | C26: 5,000 Más IVA | D26: 5800 | E26: 5000
B27: SONORA | C27: 7,500 Más IVA | D27: =7500*1.16 -> 8700 | E27: 7500
B28: TABASCO | C28: 5,000 Más IVA | D28: 5800 | E28: 5000
B29: TAMAULIPAS | C29: 5,000 Más IVA | D29: 5800 | E29: 5000
B30: TLAXCALA | C30: 5,000 Más IVA | D30: 5800 | E30: 5000
B31: VERACRUZ | C31: 5,000 Más IVA hasta operaciones de 1,999,999.00, Mayores a este serían 7,000 más IVA | D31: 8120 | E31: 7000
B32: YUCATAN | C32: 5,000 Más IVA | D32: 5800 | E32: 5000
B33: ZACATECAS | C33: 5,000 Más IVA | D33: 5800 | E33: 5000

Sheet Sheet1 (hidden)
B2: Adquisición | C2: 1 | E2: Hipoteca Fuerte | F2: 1 | H2: Tradicional | I2: 1 | M2: 0
B3: Mejora | C3: 1 | E3: Más por Menos | F3: 2 | H3: Apoyo INFONAVIT | I3: 2 | M3: 3
B4: Mejora más Remodelación | C4: 1 | E4: Liquidez | F4: 2 | H4: Cofinavit | I4: 3
B5: Remodelación | C5: 1 | E5: Terreno_Urbanizado | F5: 2 | H5: Respalda2 | I5: 4
B6: Construcción | C6: 2 | H6: Cuenta INFONAVIT + BANORTE | I6: 5
B7: Terreno_más_Construcción | C7: 2
B8: Compra_Venta_Termino_Obra | C8: 2
B9: Liquidez | C9: 1
B10: Terreno_Urbanizado | C10: 1
H11: Tradicional | I11: 1
H12: Apoyo INFONAVIT | I12: 2 | K12: =+VLOOKUP(Caratula!N7,Sheet1!H11:I14,2,0) -> 1
H13: Cofinavit | I13: 3
B14: =+VLOOKUP(Caratula!$F$9,Sheet1!B15:C23,2,0) -> 1 | H14: Cuenta INFONAVIT + BANORTE | I14: 4
B15: Adquisición | C15: 1 | L15: =VLOOKUP(Caratula!F62,Sheet1!L17:M22,2,0) -> 1
B16: Mejora | C16: 1 | L16: 0.08 | M16: 1
B17: Mejora_más_Remodelación | C17: 2 | L17: 0.09 | M17: 1
B18: Remodelación | C18: 2 | L18: 0.1 | M18: 2
B19: Construcción | C19: 2 | L19: 0.11 | M19: 2
B20: Terreno_más_Construcción | C20: 2 | L20: 0.125 | M20: 2
B21: Compra_Venta_Termino_Obra | C21: 2 | L21: 0.13 | M21: 2
B22: Liquidez | C22: 2 | L22: 0.157 | M22: 2
B23: Terreno_Urbanizado | C23: 2

Sheet Oferta Vinculante
A2: Banco Mercantil del Norte, S.A. Institución de Banca Múltiple, Grupo Financiero Banorte
A3: Lugar y fecha de recepción de la Oferta Vinculante: | D3: monterrey | E3: =Caratula!$F$7 -> 2022-06-29
A5: La presente Oferta Vinculante establece los términos y condiciones específicos mediante los cuales El Banco se obliga a otorgar el Crédito a:
A6: Capturar nombre del cliente | D6: con R.F.C. | E6: Captura R.F.C. del Solicitante
A7: y domicilio en: | B7: Captura domicilio del Solicitante
A8: La vigencia de esta Oferta Vinculante es de 20 (veinte) días naturales contados a partir de su fecha de recepción, El Banco se obliga a otorgar el Crédito Garantizado a la Vivienda en los términos y condiciones que se indican, siempre y cuando dentro del plazo señalado el Solicitante dé aviso por escrito de la aceptación de la Oferta Vinculante y requisite toda la documentación soporte de la información que se haya declarado en la solicitud y El Banco compruebe: a) la identidad del Solicitante; b) la veracidad y autenticidad de los datos proporcionados en la Solicitud de Crédito; c) la capacidad crediticia conforme a las sanas prácticas bancarias y condiciones de mercado; d) la realización de un avalúo practicado por un valuador autorizado; y e) el cumplimiento de las demás formalidades que requiera la Ley.
A13: En caso de que el Solicitante incumpla con alguno de los requisitos supuestos o documentos señalados, la Oferta Vinculante queda sin efecto y El Banco no estará obligado en forma alguna a otorgar el crédito al Solicitante.
A15: Identificación del crédito | D15: Costo Anual Total (CAT)
A16: Esquema | B16: =Caratula!$N$7 -> Tradicional | D16: =Caratula!$D$64 -> 0.1081557941 | E16: Sin I.V.A. | H16: =IF(Caratula!$F$9="Liquidez",Caratula!$F$9,IF(Caratula!$F$9='Tabla Parámetros'!$J$11,Caratula!$F$9,'Oferta Vinculante'!$H$18)) -> Adquisición Hipoteca (Hipoteca Fuerte)
A17: Destino | B17: =H16 -> Adquisición Hipoteca (Hipoteca Fuerte) | H17: =Caratula!$F$9 -> Adquisición | I17: Hipoteca | J17: =Caratula!$F$11 -> Hipoteca Fuerte
A18: Importe Solicitado | B18: =Caratula!$H$48 -> 609560 | H18: =H17&" "&I17&"("&J17&")" -> Adquisición Hipoteca (Hipoteca Fuerte)
A19: Forma de entrega | B19: Depósito en cuenta.
A20: Descuentos o premios | B20: No Aplica
A21: El valor de la garantía | B21: =Caratula!$N$11 -> 870800
A22: Aforo o % a financiar | B22: =Caratula!$N$19 -> 0.7
H23: Tasa de Interés Anual Fija
A24: =H23&I24 -> Tasa de Interés Anual Fija | D24: Supuestos asumidos en el cálculo del CAT | I24: =IF(Caratula!$F$11='Tabla Parámetros'!$O$4,"*"," ") -> 
A25: Tipo | B25: Fija | D25: Cálculo de interés | E25: Sobre mes de 30.4 días | K25: 1.00%, no genera I.V.A.
A26: Ordinaria | B26: =Caratula!$F$62 -> 0.09 | K26: =IF(Caratula!$F$9='Tabla Parámetros'!$J$7,'Oferta Vinculante'!$K$25,IF(Caratula!$F$9='Tabla Parámetros'!$J$8,'Oferta Vinculante'!$K$25,IF(Caratula!$F$9='Tabla Parámetros'!$J$9,'Oferta Vinculante'!$K$25,"No Aplica"))) -> No Aplica
A27: Moratoria | B27: =$B$26*2 -> 0.18
K28: 1.00%, no genera I.V.A.
A29: Plazo / años | B29: =Caratula!$F$19/12 -> 20 | K29: =Caratula!$N$15 -> 0
A31: Formas de amortización y revisión de tasas | D31: ="Componentes y valores " & VLOOKUP(2,NN.Catalogo,6) & " del CAT" -> Componentes y valores (2) del CAT | K31: Comisión por Apertura | M31: =IF(Caratula!$N$17="SI","Financiada",IF(Caratula!$N$17="NO","Contado",)) -> Contado
A32: Amortización | B32: Mensual | D32: =$K$31&$M$31 -> Comisión por Apertura Contado | K32: Comisión por Avalúo Contado
A33: Revisión de tasa variable | B33: No Aplica | D33: =K32&" "&M32 -> Comisión por Avalúo Contado | K33: Comisión por investigación contado
D34: Comisión por investigación contado | K34: Amortización a capital e Interés
A35: Comisiones aplicables | D35: Amortización a capital e Interés | K35: Seguro de Vida.
A36: Por apertura de crédito | B36: =K29 -> 0 | D36: Seguro de Vida. | K36: Seguro de Daños y Contenidos.
A37: Por prepago | B37: No Aplica | D37: Seguro de Daños y Contenidos. | K37: Comisión diferida por autorización de crédito
A38: Por supervisión de obra | B38: =K26 -> No Aplica | D38: Comisión diferida por autorización de crédito
A39: Por investigación | B39: =Caratula!$L$49 -> 750 | D39: =[1]Cotización!$B$89 & VLOOKUP(3,NN.Catalogo,6) ->  | E39: =Monto_Devolución -> 
A40: Por autorización de crédito diferida
D41: =IF(Mujer_Banorte="Sí","Servicio de Asistencias","") ->  | L41: No genera I.V.A.
A42: Por Cobranza | B42: 5.00% más I.V.A. | D42: =IF(Mujer_Banorte="Sí","Seguro de Enfermedades Graves y Momentos de Vida","") -> 
A43: Por subrogación o sustitución de deudor (en su caso) | B43: 1.50% del saldo insoluto. Para saldos insolutos menores a $100,00.00 el importe es de $1,500.00 | D43: =IF(Destino=Construcción,"Comisión por supervisión de obra contado","") -> 
A45: ="Seguros " & VLOOKUP(4,NN.Catalogo,6) -> Seguros (3) | D45: Costos de servicios prestados | K45: Al millar más I.V.A.
A46: =[1]Tipo_Seguro!o.Leyenda_Vida -> Seguro de Vida, Enfermedades Graves y Momentos de Vida. | B46: ="$"&L47&K47 -> $365.74 No genera I.V.A. | D46: Avalúo | E46: =K46 -> 3 Al millar más I.V.A. | H46: =Caratula!L48 -> 34832 | I46: (monto estimado en virtud de tratarse de cantidades determinadas por el Notario Público, Registro Público de la Propiedad respectivo, de acuerdo al monto de la operación). | K46: ='Tabla Parámetros'!Q90&" "&" "&'Oferta Vinculante'!K45 -> 3 Al millar más I.V.A.
D47: Gastos, derechos y honorarios notariales | E47: =H46 -> 34832 | J47: =IF(Caratula!$F$11='Tabla Parámetros'!$G$45,VLOOKUP('Tabla Parámetros'!$G$47,'Tabla Parámetros'!$H$47:$K$60,4,0),IF(Caratula!$F$11='Tabla Parámetros'!$G$65,VLOOKUP('Tabla Parámetros'!$G$67,'Tabla Parámetros'!$H$67:$K$81,4,0),VLOOKUP('Tabla Parámetros'!$G$61,'Tabla Parámetros'!$H$62:$K$63,4,0))) -> 365.736 | K47: No genera I.V.A. | L47: =ROUNDUP(J47,2) -> 365.74
A48: =[1]Tipo_Seguro!o.Leyenda_OV_Seguros_Daños -> Daños y Contenidos. | B48: ="$"&L48&K48 -> $182.87 I.V.A. incluido | E48: =I46 -> (monto estimado en virtud de tratarse de cantidades determinadas por el Notario Público, Registro Público de la Propiedad respectivo, de acuerdo al monto de la operación). | J48: =IF(Caratula!$F$11='Tabla Parámetros'!$G$45,VLOOKUP('Tabla Parámetros'!$G$47,'Tabla Parámetros'!$H$47:$L$61,5,0),IF(Caratula!$F$11='Tabla Parámetros'!$G$65,VLOOKUP('Tabla Parámetros'!$G$67,'Tabla Parámetros'!$H$67:$L$81,5,0),VLOOKUP('Tabla Parámetros'!$G$61,'Tabla Parámetros'!$H$62:$L$63,5,0))) -> 182.868 | K48: I.V.A. incluido | L48: =ROUNDUP(J48,2) -> 182.87
A50: Desempleo | B50: Gratis durante toda la vida del crédito.(1)
A52: =IF(Mujer_Banorte="Sí","Seguro de Enfermedades Graves y Momentos de Vida","") ->  | B52: =IF(A52="","",""&DOLLAR(+[1]Cotización!$D$209)&" No genera I.V.A.") -> 
A53: (1) Aplica si el Solicitante cubre los requisitos de elegibilidad vigentes en la póliza de vida colectiva.
A54: (2) Los valores son los referidos a cada concepto indicado en el cuerpo de la presente oferta, sin considerar I.V.A.
A55: (3) Enfermedades Graves y Momentos de Vida solo aplica cuando participa una mujer como acreditada o coacreditada al contratarse un crédito nuevo.
A57: =IF(Caratula!$F$11='Tabla Parámetros'!$O$4,'Oferta Vinculante'!$I$57,'Oferta Vinculante'!I56) -> 0 | I57: * Sólo para Hipoteca Más por Menos: La tasa de interés es de 11.30% del mes 1 al 37, de 11.55% del mes 38 al 73, de 11.80% del mes 74 en adelante.
A58: Causas y penas por terminación anticipada:
A60: DÉCIMA SÉPTIMA:- VENCIMIENTO ANTICIPADO.- EL BANCO se reserva la facultad de dar por vencido anticipadamente el plazo fijado en la cláusula de PLAZO DEL CONTRATO, y en consecuencia, el ACREDITADO deberá hacer el pago inmediato del importe del saldo del crédito, intereses ordinarios, moratorios, gastos y demás accesorios legales, si el ACREDITADO faltare al cumplimiento de cualesquiera de las obligaciones contraídas en este contrato, o en los casos en que la Ley así lo previene, o en los siguientes supuestos:-
A64: a).- Si el ACREDITADO dejare de efectuar, en forma total, uno o más de los pagos que se obliga a realizar conforme al presente contrato, sean éstos de capital, intereses, comisiones, gastos u otros accesorios.
A66: b).- Si el ACREDITADO, vende, grava, afecta o transmite por cualquier figura jurídica los derechos de propiedad que tiene respecto del (de los) inmueble(s) dado(s) en garantía hipotecaria, excepto en caso de herencia.
A68: c).- Si el valor del (de los) bien(es) dado(s) en garantía hipotecaria se reduce un 20%-veinte por ciento o más de su valor, tomando como base el (los) avalúo(s) que para el otorgamiento del crédito hubiere mandado practicar EL BANCO de manera que no bastare(n) a cubrir el pago de capital, intereses, comisiones, gastos u otros accesorios pactados en esta escritura.
A71: d).- Si el ACREDITADO destinare el crédito a un fin distinto del expresamente señalado en la cláusula de DESTINO DEL CRÉDITO
A72: =_Inciso_Vigilancia -> 0
A73: e).- Si el(los) inmueble(s) no se inscribe(n) en el Registro Público de la Propiedad y del Comercio de conformidad con lo señalado en la cláusula de GARANTÍA(S), fuere(n) embargado(s) por terceros, o si fuere(n) gravado(s) en ulterior grado, sin autorización expresa y por escrito de EL BANCO.
A75: f).- Si el ACREDITADO introdujere modificaciones al(a los) inmueble(s) que cause(n) una disminución en el valor comercial del (de los) inmueble(s) o si por cualquier causa resultare(n) total o parcialmente destruido(s) el(los) inmueble(s).
A77: g).- Si el ACREDITADO dejare de pagar dos bimestres consecutivos del impuesto predial, o cuotas por servicios de agua o cualquier responsabilidad civil dentro de los diez días siguientes a la notificación que les fuere hecha por las autoridades respectivas.
A79: h).- Si el ACREDITADO no mantuviere vigente el(los) contrato(s) de (de los) seguro(s) en caso de que lo(s) haya contratado con una Aseguradora Externa. Así como también si el ACREDITADO no entrega la(s) póliza(s) y comprobantes de pago de las primas en los términos estipulados en la cláusula de SEGUROS.
A81: i).- Si el ACREDITADO faltare al exacto cumplimiento de las obligaciones que en general ha contraído en este instrumento.
A82: j).- En los demás casos en que conforme a la Ley se hace exigible anticipadamente el cumplimiento de las obligaciones a plazo.
A83: k).- Si el ACREDITADO deja de cumplir con cualquier otro crédito o préstamo que le hubiere otorgado EL BANCO que se dé por vencido anticipadamente o cualquier obligación crediticia a plazo que tenga el ACREDITADO con EL BANCO.
A85: l).- Si el ACREDITADO incumple con uno o más de los pagos que se encuentra obligado a cubrir de conformidad con lo establecido en el presente instrumento derivado de una reclamación presentada por el ACREDITADO con relación a cargos mal aplicados.
A87: Penas:
A88: Intereses moratorios.- Se generarán a partir del día siguiente de la fecha de vencimiento del tercer pago mensual incumplido, hasta la fecha en que se realice el pago, a la tasa de interés anual que resulte de multiplicar por 2-dos, la tasa de interés ordinaria. Si durante la vigencia del contrato vuelve a incumplir después de que se haya puesto al corriente en los pagos, se le volverá a generar el interés moratorio en los términos señalados.
A91: Comisión por cobranza.- Se generará a partir del 6-sexto día natural siguiente a la fecha de vencimiento del pago respectivo, se podrá generar hasta por tres pagos mensuales consecutivos incumplidos y se deberá cubrir al momento de su generación, y será la cantidad que resulte de aplicar el 5%-cinco por ciento sobre el saldo vencido. Si durante la vigencia del contrato vuelve a incumplir después de que se haya puesto al corriente en los pagos, se le volverá a generar la comisión por cobranza en los términos señalados. No se cobrará durante el mismo período, la comisión por cobranza conjunta con los intereses moratorios.
A95: Información relativa a riesgos inherentes al crédito garantizado a la vivienda de que se trate en relación a las posibles variaciones en tasas de interés, inflación y tipo de UDIs.
A97: Para el caso de los créditos con tasa fija no existe riesgo por inflación o tipo de cambio. Para el caso de los créditos con tasa variable el riesgo consiste en la variación de la tasa derivada del incremento en la inflación o tipo de cambio.
A99: Avisos, Leyenda y Notas Aclaratorias:
A100: En caso de que el Solicitante acepte la presente Oferta Vinculante y se formalice el contrato de crédito correspondiente, El Banco acepta expresamente que recibirá el pago adelantado del mismo por parte de cualquiera otra Entidad y le cederá todos sus derechos derivados del contrato correspondiente. Asimismo, El Banco acepta expresamente que admitirá la sustitución de deudor en términos de los artículos 13 y 14 de la Ley de Transparencia y de Fomento a la Competencia en el Crédito Garantizado siempre y cuando el comprador presente al banco, una Solicitud de Crédito y cumpla con los demás requisitos y obligaciones que establecen, el artículo 6 de la Ley de Transparencia y de Fomento a la Competencia en el Crédito Garantizado y la Ley de Instituciones de Crédito.
A105: El Banco puede recibir pagos anticipados parciales o totales del importe del crédito.
A106: El importe del Crédito señalado en la presente Oferta Vinculante podrá ser modificado en caso de que la capacidad crediticia o el valor de la garantía, al momento de la aceptación de la presente oferta por parte del Solicitante o al momento de la formalización del crédito, fuere distinto al declarado en la Solicitud de Crédito, sin embargo, en tales supuestos El Banco procurará mantener la tasa de interés ofrecida en la Oferta Vinculante.
A109: Queda entendido por el Solicitante que una vez transcurridos 30 treinta días naturales siguientes a la fecha de aceptación de la presente oferta, sin haber recibido notificación por escrito por parte de El Banco comunicándole que ha comprobado todas y cada uno de las condiciones señaladas en el penúltimo párrafo del artículo 6 de la Ley de Transparencia y de Fomento a la Competencia en el Crédito Garantizado se entenderá por negado el otorgamiento del crédito contenido en esta oferta.
A112: Una vez que El Banco ha concluido con la revisión de la información y transcurridos 30 treinta días naturales, señalados para ese fin, las partes contarán con 45 cuarenta y cinco días naturales para celebrar y formalizar el Crédito Hipotecario.
A114: Obligaciones y Restricciones
A115: En el caso de que El Banco haya decidido modificar los términos de la Oferta Vinculante, el Solicitante contará con un plazo de 5 días, contados a partir de que reciba el aviso por parte de El Banco para manifestar su conformidad con dichas modificaciones, de lo contrario se tendrán por no aceptadas.
A118: El Solicitante cuenta con el derecho de obtener una copia del clausulado que contenga los derechos y obligaciones de las partes con anterioridad a su firma, una vez que se haya autorizado la celebración del Otorgamiento de Crédito Garantizado a la Vivienda.
A120: Le recordamos mantenerse al corriente en sus pagos mensuales para disfrutar de los beneficios que le ofrece su Crédito Hipotecario El Banco.
I121: =IF(Caratula!$F$19=180,$I$122,IF(Caratula!$F$19=240,$I$123,)) -> Tasa de Interés Anual Inicial del 11.3%, pago al millar inicial de $9.57 con ajuste anual del 2.12%, este incremento anual del pago al millar se aplica directamente al capital del crédito.
A122: =IF(Caratula!$F$11='Tabla Parámetros'!$O$4,'Oferta Vinculante'!$I$121,'Oferta Vinculante'!$I$120) -> 0 | I122: Tasa de Interés Anual Inicial del 11.3%, pago al millar inicial de $10.62 con ajuste anual del 2.12%, este incremento anual del pago al millar se aplica directamente al capital del crédito.
I123: Tasa de Interés Anual Inicial del 11.3%, pago al millar inicial de $9.57 con ajuste anual del 2.12%, este incremento anual del pago al millar se aplica directamente al capital del crédito.
A124: Costo Anual Total de créditos denominados en Moneda Nacional a tasa fija para fines informativos y de comparación exclusivamente. El CAT solo es comparable con el CAT de otros créditos denominados en Moneda Nacional a tasa fija. El CAT no forma parte de los términos y condiciones del crédito, por lo que no es vinculante para la formalización del mismo.
D129: =D3 -> monterrey | E129: =E3 -> 2022-06-29
A131: El Banco
A135: Captura nombre del funcionario facultado | D135: Captura nombre del funcionario facultado
A136: Nombre y firma de funcionario facultado | D136: Nombre y firma de funcionario facultado
A138: Recibí de conformidad
A142: Capturar nombre del Solicitante
A143: Nombre y firma del Solicitante
A145: Obligaciones y Restricciones
A147: Declaro que conozco las obligaciones y restricciones que establece la Ley de Transparencia y Fomento a la Competencia en el Crédito Garantizado, para las Entidades y para los Solicitantes de crédito cuando soliciten una Oferta Vinculante, por lo cual manifiesto mi aceptación a lo siguiente:
A150: 1. Que El Banco puede analizar y tramitar mi crédito de forma normal sin necesidad de que me extienda una Oferta Vinculante.
A152: 2. Que la Oferta Vinculante tendrá una vigencia de solo 20 (veinte) días naturales a partir de que la reciba y que dentro de dicho plazo debo dar aviso por escrito de mi aceptación a la misma.
A155: 3. Que al momento de aceptar la Oferta debo presentar todos los documentos y requisitos necesarios para la contratación del crédito y presentar debidamente requisitada toda la documentación soporte de la información declarada en la solicitud.
A158: 4. Que los términos y condiciones de la Oferta, podrán modificarse si El Banco me da aviso por escrito y una vez recibido manifiesto mi aceptación con dichas modificaciones.
A161: 5. Que aún cuando fuere necesario para la aprobación del crédito El Banco no podrá solicitarme ningún documento adicional a los señalados en la solicitud de crédito, con lo cual mi crédito puede ser negado.
A164: 6. Que El Banco podrá decidir no otorgarme el crédito si no comprueba la veracidad y autenticidad de los datos proporcionados o si la información y documentación no cumple con lo establecido en la Ley.
D168: =D129 -> monterrey | E168: =E129 -> 2022-06-29
A170: Firma de conformidad
A174: Capturar nombre del Solicitante
A175: Nombre y firma del Solicitante

Sheet Estados y Datos Notariales (hidden)
A2: Índice | B2: Nombre | D2: Estado | E2: Completo / Avalúo | F2: Crédito / Crédito | I2: Estado | J2: Tarifa Mejora | K2: Incluye IVA | L2: Aclaración | N2: Estado | O2: Monto | P2: Tarifa Sin IVA | R2: Gastos notariales promedio
A3: 1 | B3: Aguascalientes | D3: Aguascalientes | E3: 0.0334 | F3: 0.0112 | G3: =E3*Caratula!$N$11 -> 29084.72 | I3: Aguascalientes | J3: 7000 | N3: Oaxaca | O3: 0 | P3: 5000 | R3: 0.01
A4: 2 | B4: Baja California Norte | D4: Baja California Norte | E4: 0.044 | F4: 0.01 | G4: =E4*Caratula!$N$11 -> 38315.2 | I4: Baja California Norte | J4: 11600 | N4: Oaxaca | O4: 1999999 | P4: 7000 | R4: 0.015
A5: 3 | B5: Baja California Sur | D5: Baja California Sur | E5: 0.044 | F5: 0.008 | G5: =E5*Caratula!$N$11 -> 38315.2 | I5: Baja California Sur | J5: 11600 | N5: Veracruz | O5: 0 | P5: 5000 | R5: 0.02
A6: 4 | B6: Campeche | D6: Campeche | E6: 0.0307 | F6: 0.012 | G6: =E6*Caratula!$N$11 -> 26733.56 | I6: Campeche | J6: 5000 | N6: Veracruz | O6: 1999999 | P6: 7000 | R6: 0.03
A7: 5 | B7: Coahuila | D7: Coahuila | E7: 0.0689 | F7: 0.017 | G7: =E7*Caratula!$N$11 -> 59998.12 | I7: Coahuila | J7: 5000 | R7: 0.04
A8: 6 | B8: Colima | D8: Colima | E8: 0.038 | F8: 0.012 | G8: =E8*Caratula!$N$11 -> 33090.4 | I8: Colima | J8: 4000 | R8: 0.05
A9: 7 | B9: Chiapas | D9: Chiapas | E9: 0.03 | F9: 0.0048 | G9: =E9*Caratula!$N$11 -> 26124 | I9: Chiapas | J9: 5000 | R9: 0.06
A10: 8 | B10: Chihuahua | D10: Chihuahua | E10: 0.07 | F10: 0.016 | G10: =E10*Caratula!$N$11 -> 60956 | I10: Chihuahua | J10: 5000 | R10: 0.07
A11: 9 | B11: Ciudad de México | D11: Ciudad de México | E11: 0.11 | F11: 0.03 | G11: =E11*Caratula!$N$11 -> 95788 | I11: Ciudad de México | J11: 25000 | K11: TRUE | R11: 0.08
A12: 10 | B12: Durango | D12: Durango | E12: 0.064 | F12: 0.014 | G12: =E12*Caratula!$N$11 -> 55731.2 | I12: Durango | J12: 5000 | R12: 0.09
A13: 11 | B13: Estado de México | D13: Estado de México | E13: 0.12 | F13: 0.035 | G13: =E13*Caratula!$N$11 -> 104496 | I13: Estado de México | J13: 25000 | K13: TRUE | R13: 0.1
A14: 12 | B14: Guanajuato | D14: Guanajuato | E14: 0.036 | F14: 0.012 | G14: =E14*Caratula!$N$11 -> 31348.8 | I14: Guanajuato | J14: 5000 | R14: 0.11
A15: 13 | B15: Guerrero | D15: Guerrero | E15: 0.0502 | F15: 0.0105 | G15: =E15*Caratula!$N$11 -> 43714.16 | I15: Guerrero | J15: 5000 | R15: 0.12
A16: 14 | B16: Hidalgo | D16: Hidalgo | E16: 0.0418 | F16: 0.0079 | G16: =E16*Caratula!$N$11 -> 36399.44 | I16: Hidalgo | J16: 5000
A17: 15 | B17: Jalisco | D17: Jalisco | E17: 0.063 | F17: 0.018 | G17: =E17*Caratula!$N$11 -> 54860.4 | I17: Jalisco | J17: 11500 | L17: $8,500 más IVA en Puerto Vallarta
A18: 16 | B18: Michoacán | D18: Michoacán | E18: 0.024 | F18: 0.019 | G18: =E18*Caratula!$N$11 -> 20899.2 | I18: Michoacán | J18: 5000
A19: 17 | B19: Morelos | D19: Morelos | E19: 0.05 | F19: 0.012 | G19: =E19*Caratula!$N$11 -> 43540 | I19: Morelos | J19: 5000
A20: 18 | B20: Nayarit | D20: Nayarit | E20: 0.048 | F20: 0.011 | G20: =E20*Caratula!$N$11 -> 41798.4 | I20: Nayarit | J20: 6000
A21: 19 | B21: Nuevo León | D21: Nuevo León | E21: 0.06 | F21: 0.0155 | G21: =E21*Caratula!$N$11 -> 52248 | I21: Nuevo León | J21: 5000
A22: 20 | B22: Oaxaca | D22: Oaxaca | E22: 0.0422 | F22: 0.0076 | G22: =E22*Caratula!$N$11 -> 36747.76 | I22: Oaxaca
A23: 21 | B23: Puebla | D23: Puebla | E23: 0.0467 | F23: 0.0086 | G23: =E23*Caratula!$N$11 -> 40666.36 | I23: Puebla | J23: 5000
A24: 22 | B24: Querétaro | D24: Querétaro | E24: 0.079 | F24: 0.012 | G24: =E24*Caratula!$N$11 -> 68793.2 | I24: Querétaro | J24: 5000
A25: 23 | B25: Quintana Roo | D25: Quintana Roo | E25: 0.07 | F25: 0.02 | G25: =E25*Caratula!$N$11 -> 60956 | I25: Quintana Roo | J25: 5000
A26: 24 | B26: San Luis Potosí | D26: San Luis Potosí | E26: 0.047 | F26: 0.014 | G26: =E26*Caratula!$N$11 -> 40927.6 | I26: San Luis Potosí | J26: 7500
A27: 25 | B27: Sinaloa | D27: Sinaloa | E27: 0.051 | F27: 0.011 | G27: =E27*Caratula!$N$11 -> 44410.8 | I27: Sinaloa | J27: 12000
A28: 26 | B28: Sonora | D28: Sonora | E28: 0.044 | F28: 0.012 | G28: =E28*Caratula!$N$11 -> 38315.2 | I28: Sonora | J28: 7500
A29: 27 | B29: Tabasco | D29: Tabasco | E29: 0.0429 | F29: 0.0074 | G29: =E29*Caratula!$N$11 -> 37357.32 | I29: Tabasco | J29: 5000
A30: 28 | B30: Tamaulipas | D30: Tamaulipas | E30: 0.053 | F30: 0.013 | G30: =E30*Caratula!$N$11 -> 46152.4 | I30: Tamaulipas | J30: 5000
A31: 29 | B31: Tlaxcala | D31: Tlaxcala | E31: 0.0406 | F31: 0.0101 | G31: =E31*Caratula!$N$11 -> 35354.48 | I31: Tlaxcala | J31: 5000
A32: 30 | B32: Veracruz | D32: Veracruz | E32: 0.0455 | F32: 0.021 | G32: =E32*Caratula!$N$11 -> 39621.4 | I32: Veracruz
A33: 31 | B33: Yucatán | D33: Yucatán | E33: 0.0477 | F33: 0.0081 | G33: =E33*Caratula!$N$11 -> 41537.16 | I33: Yucatán | J33: 5000
A34: 32 | B34: Zacatecas | D34: Zacatecas | E34: 0.05 | F34: 0.015 | G34: =E34*Caratula!$N$11 -> 43540 | I34: Zacatecas | J34: 5000
A36: Estados | D36: Factores Notariales por Estado | I36: Tarifas Mejora - Directas | N36: Tarifas Mejora - Por Monto Crédito

Sheet Aforos (hidden)
A1: =Caratula!F9&Caratula!N7 -> AdquisiciónTradicional | E1: Variantes
A2: =VLOOKUP($A$1,$E$2:$W$15,2,0) -> 0.1 | B2: =IF(A2>1%,A2,"") -> 0.1 | E2: =A24&B24 -> AdquisiciónTradicional | F2: 0.1 | G2: 0.15 | H2: 0.2 | I2: 0.25 | J2: 0.3 | K2: 0.35 | L2: 0.4 | M2: 0.45 | N2: 0.5 | O2: 0.55 | P2: 0.6 | Q2: 0.65 | R2: 0.7 | S2: 0.75 | T2: 0.8 | U2: 0.85 | V2: 0.9
A3: =VLOOKUP($A$1,$E$2:$W$15,3,0) -> 0.15 | B3: =IF(A3>1%,A3,"") -> 0.15 | E3: =A30&B30 -> MejoraTradicional | F3: 0.1 | G3: 0.15 | H3: 0.2 | I3: 0.25 | J3: 0.3 | K3: 0.35 | L3: 0.4 | M3: 0.45 | N3: 0.5 | O3: 0.55 | P3: 0.6 | Q3: 0.65 | R3: 0.7 | S3: 0.75 | T3: 0.8 | U3: 0.85
A4: =VLOOKUP($A$1,$E$2:$W$15,4,0) -> 0.2 | B4: 0.2 | E4: =A33&B33 -> Mejora más RemodelaciónTradicional | F4: 0.1 | G4: 0.15 | H4: 0.2 | I4: 0.25 | J4: 0.3 | K4: 0.35 | L4: 0.4 | M4: 0.45 | N4: 0.5 | O4: 0.55 | P4: 0.6 | Q4: 0.65 | R4: 0.7
A5: =VLOOKUP($A$1,$E$2:$W$15,5,0) -> 0.25 | B5: 0.25 | E5: =A35&B35 -> RemodelaciónTradicional | F5: 0.1 | G5: 0.15 | H5: 0.2 | I5: 0.25 | J5: 0.3 | K5: 0.35 | L5: 0.4
A6: =VLOOKUP($A$1,$E$2:$W$15,6,0) -> 0.3 | B6: 0.3 | E6: =A37&B37 -> ConstrucciónTradicional | F6: 0.1 | G6: 0.15 | H6: 0.2 | I6: 0.25 | J6: 0.3 | K6: 0.35 | L6: 0.4 | M6: 0.45 | N6: 0.5 | O6: 0.55 | P6: 0.6 | Q6: 0.65 | R6: 0.7
A7: =VLOOKUP($A$1,$E$2:$W$15,7,0) -> 0.35 | B7: 0.35 | E7: =A40&B40 -> Terreno_más_ConstrucciónTradicional | F7: 0.1 | G7: 0.15 | H7: 0.2 | I7: 0.25 | J7: 0.3 | K7: 0.35 | L7: 0.4 | M7: 0.45 | N7: 0.5 | O7: 0.55 | P7: 0.6 | Q7: 0.65 | R7: 0.7 | S7: 0.75 | T7: 0.8 | U7: 0.85
A8: =VLOOKUP($A$1,$E$2:$W$15,8,0) -> 0.4 | B8: 0.4 | E8: =A43&B43 -> Compra_Venta_Termino_ObraTradicional | F8: 0.1 | G8: 0.15 | H8: 0.2 | I8: 0.25 | J8: 0.3 | K8: 0.35 | L8: 0.4 | M8: 0.45 | N8: 0.5 | O8: 0.55 | P8: 0.6 | Q8: 0.65 | R8: 0.7 | S8: 0.75 | T8: 0.8 | U8: 0.85
A9: =VLOOKUP($A$1,$E$2:$W$15,9,0) -> 0.45 | B9: 0.45 | E9: =A46&B46 -> LiquidezTradicional | F9: 0.1 | G9: 0.15 | H9: 0.2 | I9: 0.25 | J9: 0.3 | K9: 0.35 | L9: 0.4 | M9: 0.45 | N9: 0.5 | O9: 0.55 | P9: 0.6 | Q9: 0.65 | R9: 0.7
A10: =VLOOKUP($A$1,$E$2:$W$15,10,0) -> 0.5 | B10: 0.5 | E10: =A47&B47 -> Terreno_UrbanizadoTradicional | F10: 0.1 | G10: 0.15 | H10: 0.2 | I10: 0.25 | J10: 0.3 | K10: 0.35 | L10: 0.4 | M10: 0.45 | N10: 0.5 | O10: 0.55 | P10: 0.6 | Q10: 0.65 | R10: 0.7
A11: =VLOOKUP($A$1,$E$2:$W$15,11,0) -> 0.55 | B11: 0.55 | E11: =A25&B25 -> AdquisiciónApoyo INFONAVIT | F11: 0.1 | G11: 0.15 | H11: 0.2 | I11: 0.25 | J11: 0.3 | K11: 0.35 | L11: 0.4 | M11: 0.45 | N11: 0.5 | O11: 0.55 | P11: 0.6 | Q11: 0.65 | R11: 0.7 | S11: 0.75 | T11: 0.8 | U11: 0.85 | V11: 0.9 | W11: 0.95
A12: =VLOOKUP($A$1,$E$2:$W$15,12,0) -> 0.6 | B12: 0.6 | E12: =A31&B31 -> MejoraApoyo INFONAVIT | F12: 0.1 | G12: 0.15 | H12: 0.2 | I12: 0.25 | J12: 0.3 | K12: 0.35 | L12: 0.4 | M12: 0.45 | N12: 0.5 | O12: 0.55 | P12: 0.6 | Q12: 0.65 | R12: 0.7 | S12: 0.75 | T12: 0.8 | U12: 0.85 | V12: 0.9 | W12: 0.95
A13: =VLOOKUP($A$1,$E$2:$W$15,13,0) -> 0.65 | B13: 0.65 | E13: =A38&B38 -> ConstrucciónApoyo INFONAVIT | F13: 0.1 | G13: 0.15 | H13: 0.2 | I13: 0.25 | J13: 0.3 | K13: 0.35 | L13: 0.4 | M13: 0.45 | N13: 0.5 | O13: 0.55 | P13: 0.6 | Q13: 0.65 | R13: 0.7 | S13: 0.75 | T13: 0.8
A14: =VLOOKUP($A$1,$E$2:$W$15,14,0) -> 0.7 | B14: 0.7 | E14: =A41&B41 -> Terreno_más_ConstrucciónApoyo INFONAVIT | F14: 0.1 | G14: 0.15 | H14: 0.2 | I14: 0.25 | J14: 0.3 | K14: 0.35 | L14: 0.4 | M14: 0.45 | N14: 0.5 | O14: 0.55 | P14: 0.6 | Q14: 0.65 | R14: 0.7 | S14: 0.75 | T14: 0.8 | U14: 0.85 | V14: 0.9 | W14: 0.95
A15: =VLOOKUP($A$1,$E$2:$W$15,15,0) -> 0.75 | B15: 0.75 | E15: =A44&B44 -> Compra_Venta_Termino_ObraApoyo INFONAVIT | F15: 0.1 | G15: 0.15 | H15: 0.2 | I15: 0.25 | J15: 0.3 | K15: 0.35 | L15: 0.4 | M15: 0.45 | N15: 0.5 | O15: 0.55 | P15: 0.6 | Q15: 0.65 | R15: 0.7 | S15: 0.75 | T15: 0.8 | U15: 0.85 | V15: 0.9 | W15: 0.95
A16: =VLOOKUP($A$1,$E$2:$W$15,16,0) -> 0.8 | B16: 0.8
A17: =VLOOKUP($A$1,$E$2:$W$15,17,0) -> 0.85 | B17: 0.85
A18: =VLOOKUP($A$1,$E$2:$W$15,18,0) -> 0.9 | B18: 0.9
A19: =VLOOKUP($A$1,$E$2:$W$15,19,0) -> 0
A22: Hipoteca Fuerte
A23: Destino | B23: Programas | C23: Aforo Max
A24: Adquisición | B24: Tradicional | C24: 0.9
A25: Adquisición | B25: Apoyo INFONAVIT | C25: 0.95
A26: Adquisición | B26: Cofinavit | C26: 0.95
A27: Adquisición | B27: Alia2+ | C27: 0.95
A28: Adquisición | B28: Respalda2 | C28: 0.95
A30: Mejora | B30: Tradicional | C30: 0.85
A31: Mejora | B31: Apoyo INFONAVIT | C31: 0.95
A33: Mejora más Remodelación | B33: Tradicional | C33: 0.7
A35: Remodelación | B35: Tradicional | C35: 0.4
A37: Construcción | B37: Tradicional | C37: 0.7
A38: Construcción | B38: Apoyo INFONAVIT | C38: 0.8
A40: Terreno_más_Construcción | B40: Tradicional | C40: 0.85
A41: Terreno_más_Construcción | B41: Apoyo INFONAVIT | C41: 0.95
A43: Compra_Venta_Termino_Obra | B43: Tradicional | C43: 0.85
A44: Compra_Venta_Termino_Obra | B44: Apoyo INFONAVIT | C44: 0.95
A46: Liquidez | B46: Tradicional | C46: 0.7
A47: Terreno_Urbanizado | B47: Tradicional | C47: 0.7
A49: Más por Menos
A50: Destino | B50: Programas | C50: Aforo Max
A51: Adquisición | B51: Tradicional | C51: 0.9
A52: Adquisición | B52: Apoyo INFONAVIT | C52: 0.95
A53: Adquisición | B53: Cofinavit | C53: 0.95
A54: Adquisición | B54: Cuenta INFONAVIT + BANORTE | C54: 0.95
A55: Adquisición | B55: Respalda2 | C55: 0.95
A57: Mejora | B57: Tradicional | C57: 0.85
A58: Mejora | B58: Apoyo INFONAVIT | C58: 0.95
A60: Mejora_más_Remodelación | B60: Tradicional | C60: 0.7
A62: Remodelación | B62: Tradicional | C62: 0.4
A64: Construcción | B64: Tradicional | C64: 0.7
A65: Construcción | B65: Apoyo INFONAVIT | C65: 0.8
A67: Terreno_más_Construcción | B67: Tradicional | C67: 0.85
A68: Terreno_más_Construcción | B68: Apoyo INFONAVIT | C68: 0.95
A70: Compra_Venta_Termino_Obra | B70: Tradicional | C70: 0.85
A71: Compra_Venta_Termino_Obra | B71: Apoyo INFONAVIT | C71: 0.95

Sheet Pago x mil (hidden)
A1: Ayudante Paso Tasas
A3: Parámetros | D3: Cálculos
A4: i.Días PMT | B4: 30.4
A5: i.Plazo Crédito | B5: =Caratula!F19 -> 240 | D5: DETALLE DEL CRÉDITO
A6: i.Monto Total Crédito | B6: =IF(Caratula!$N$17="SI",Caratula!$H$48+Caratula!$L$46,Caratula!$H$48) -> 609560 | E6: Producto: | F6: =i.Nombre_Producto -> Hipoteca Fuerte | G6: Seguro: | H6: =i.Etiqueta_Seguro -> Básico | J6: Valor Destructible
A7: i.Relación Ingreso Pago | B7: =IF(Caratula!$F$9='Tabla Parámetros'!$J$8,2.5,2) -> 2 | E7: Valor Vivienda: | F7: =i.Valor_Vivienda -> 870800 | G7: =i.Etiqueta_Apertura & ":" -> Apertura 1.00%: | H7: =i.Apertura_Sin_IVA -> 0 | J7: =IF(Caratula!$K$13="SI",Caratula!O13,Caratula!N13) -> 609560
A8: i.IVA Intereses | B8: 0.16 | E8: Monto de Crédito: | F8: =i.Monto_Total_Crédito -> 609560 | G8: Avalúo: | H8: =i.Avalúo_con_IVA -> 2612.4
A9: i.Factor Seguro Vida | B9: =IF(i.Etiqueta_Seguro='Tabla Parámetros'!N4,'Tabla Parámetros'!R5,IF('Pago x mil'!i.Etiqueta_Seguro='Tabla Parámetros'!N3,'Tabla Parámetros'!R10,)) -> 0.0006 | E9: Plazo: | F9: =i.Plazo_Crédito -> 240 | G9: Notariales Estimados: | H9: =i.Gastos_Notariales -> 34832
A10: i.Factor Seguro Daños | B10: =IF(i.Etiqueta_Seguro='Tabla Parámetros'!N4,'Tabla Parámetros'!S5,IF('Pago x mil'!i.Etiqueta_Seguro='Tabla Parámetros'!N3,'Tabla Parámetros'!S10,)) -> 0.0003
A11: i.Comisión Diferida | B11: ='Tabla Parámetros'!W24 -> 0 | E11: MÍNIMA | F11: BAJA | G11: MEDIA | H11: ALTA
A12: i.Aplica IVA? | B12: FALSE | D12: Tasa de Interés Anual Fija | E12: =IF(Caratula!$F$9='Tabla Parámetros'!$J$3,INDEX(i.Tasas_Gémini,1),IF(Caratula!$F$9='Tabla Parámetros'!$J$4,INDEX($B$27:$B$30,1),IF(Caratula!$F$9='Tabla Parámetros'!$J$5,INDEX($B$27:$B$30,1),IF(Caratula!$F$9='Tabla Parámetros'!$J$6,INDEX($B$22:$B$25,1),IF(Caratula!$F$9='Tabla Parámetros'!$J$7,INDEX($B$22:$B$25,1),IF(Caratula!$F$9='Tabla Parámetros'!$J$8,INDEX($B$22:$B$25,1),IF(Caratula!$F$9='Tabla Parámetros'!$J$9,INDEX($B$22:$B$25,1)))))))) -> 0.08 | F12: =IF(Caratula!$F$9='Tabla Parámetros'!$J$3,INDEX(i.Tasas_Gémini,2),IF(Caratula!$F$9='Tabla Parámetros'!$J$4,INDEX($B$27:$B$30,2),IF(Caratula!$F$9='Tabla Parámetros'!$J$5,INDEX($B$27:$B$30,2),IF(Caratula!$F$9='Tabla Parámetros'!$J$6,INDEX($B$22:$B$25,2),IF(Caratula!$F$9='Tabla Parámetros'!$J$7,INDEX($B$22:$B$25,2),IF(Caratula!$F$9='Tabla Parámetros'!$J$8,INDEX($B$22:$B$25,2),IF(Caratula!$F$9='Tabla Parámetros'!$J$9,INDEX($B$22:$B$25,2)))))))) -> 0.09 | G12: =IF(Caratula!$F$9='Tabla Parámetros'!$J$3,INDEX(i.Tasas_Gémini,3),IF(Caratula!$F$9='Tabla Parámetros'!$J$4,INDEX($B$27:$B$30,3),IF(Caratula!$F$9='Tabla Parámetros'!$J$5,INDEX($B$27:$B$30,3),IF(Caratula!$F$9='Tabla Parámetros'!$J$6,INDEX($B$22:$B$25,3),IF(Caratula!$F$9='Tabla Parámetros'!$J$7,INDEX($B$22:$B$25,3),IF(Caratula!$F$9='Tabla Parámetros'!$J$8,INDEX($B$22:$B$25,3),IF(Caratula!$F$9='Tabla Parámetros'!$J$9,INDEX($B$22:$B$25,3)))))))) -> 0.1 | H12: =IF(Caratula!$F$9='Tabla Parámetros'!$J$3,INDEX(i.Tasas_Gémini,4),IF(Caratula!$F$9='Tabla Parámetros'!$J$4,INDEX($B$27:$B$30,4),IF(Caratula!$F$9='Tabla Parámetros'!$J$5,INDEX($B$27:$B$30,4),IF(Caratula!$F$9='Tabla Parámetros'!$J$6,INDEX($B$22:$B$25,4),IF(Caratula!$F$9='Tabla Parámetros'!$J$7,INDEX($B$22:$B$25,4),IF(Caratula!$F$9='Tabla Parámetros'!$J$8,INDEX($B$22:$B$25,4),IF(Caratula!$F$9='Tabla Parámetros'!$J$9,INDEX($B$22:$B$25,4)))))))) -> 0.11 | J12: =E12 -> 0.08
D13: Pago Por Mil | E13: =PMT(Tasa_Interés / 360 * i.Días_PMT,i.Plazo_Crédito,-1000) -> 8.430907057 | F13: =PMT(Tasa_Interés / 360 * i.Días_PMT,i.Plazo_Crédito,-1000) -> 9.074580309 | G13: =PMT(Tasa_Interés / 360 * i.Días_PMT,i.Plazo_Crédito,-1000) -> 9.738721598 | H13: =PMT(Tasa_Interés / 360 * i.Días_PMT,i.Plazo_Crédito,-1000) -> 10.42188421 | J13: =F12 -> 0.09
A14: i.Nombre Producto | B14: =Caratula!H46 -> Hipoteca Fuerte | J14: =G12 -> 0.1
A15: i.Valor Vivienda | B15: =Caratula!N11 -> 870800 | D15: Pago Crédito | E15: =i.Monto_Total_Crédito / 1000 * Pago_por_Mil -> 5139.143706 | F15: =i.Monto_Total_Crédito / 1000 * Pago_por_Mil -> 5531.501173 | G15: =i.Monto_Total_Crédito / 1000 * Pago_por_Mil -> 5936.335137 | H15: =i.Monto_Total_Crédito / 1000 * Pago_por_Mil -> 6352.763739 | J15: =H12 -> 0.11
A16: i.Etiqueta Seguro | B16: =Caratula!$N$9 -> Básico | D16: I.V.A. | E16: =i.Monto_Total_Crédito * Tasa_Interés / 360 * i.Días_PMT * i.IVA_Intereses * (i.Aplica_IVA?) -> 0 | F16: =i.Monto_Total_Crédito * Tasa_Interés / 360 * i.Días_PMT * i.IVA_Intereses * (i.Aplica_IVA?) -> 0 | G16: =i.Monto_Total_Crédito * Tasa_Interés / 360 * i.Días_PMT * i.IVA_Intereses * (i.Aplica_IVA?) -> 0 | H16: =i.Monto_Total_Crédito * Tasa_Interés / 360 * i.Días_PMT * i.IVA_Intereses * (i.Aplica_IVA?) -> 0
A17: i.Apertura Sin IVA | B17: =Caratula!N15/1.16 -> 0 | D17: Seguro de Vida | E17: =i.Monto_Total_Crédito * i.Factor_Seguro_Vida -> 365.736 | F17: =i.Monto_Total_Crédito * i.Factor_Seguro_Vida -> 365.736 | G17: =i.Monto_Total_Crédito * i.Factor_Seguro_Vida -> 365.736 | H17: =i.Monto_Total_Crédito * i.Factor_Seguro_Vida -> 365.736
A18: i.Avalúo con IVA | B18: ='Tabla Parámetros'!T90 -> 2612.4 | D18: Seguro de Daños | E18: =J7 * i.Factor_Seguro_Daños -> 182.868 | F18: =J7 * i.Factor_Seguro_Daños -> 182.868 | G18: =J7 * i.Factor_Seguro_Daños -> 182.868 | H18: =J7 * i.Factor_Seguro_Daños -> 182.868 | J18: i.Ninguno | K18: 0.155
A19: i.Gastos Notariales | B19: =Caratula!L48 -> 34832 | D19: Comisión Dif | E19: =i.Comisión_Diferida -> 0 | F19: =i.Comisión_Diferida -> 0 | G19: =i.Comisión_Diferida -> 0 | H19: =i.Comisión_Diferida -> 0 | K19: 0.157
A20: i.Etiqueta Apertura | B20: Apertura 1.00%
D21: Pago Total Mensual | E21: =Pago_Crédito + I.V.A. + Seguro_de_Vida + Seguro_de_Daños + Comisión_Dif -> 5687.747706 | F21: =Pago_Crédito + I.V.A. + Seguro_de_Vida + Seguro_de_Daños + Comisión_Dif -> 6080.105173 | G21: =Pago_Crédito + I.V.A. + Seguro_de_Vida + Seguro_de_Daños + Comisión_Dif -> 6484.939137 | H21: =Pago_Crédito + I.V.A. + Seguro_de_Vida + Seguro_de_Daños + Comisión_Dif -> 6901.367739
A22: i.Tasas Gémini | B22: ='Tabla Parámetros'!D3 -> 0.08 | D22: Ingreso Requerido | E22: =Pago_Total_Mensual * i.Relación_Ingreso_Pago -> 11375.49541 | F22: =Pago_Total_Mensual * i.Relación_Ingreso_Pago -> 12160.21035 | G22: =Pago_Total_Mensual * i.Relación_Ingreso_Pago -> 12969.87827 | H22: =Pago_Total_Mensual * i.Relación_Ingreso_Pago -> 13802.73548
B23: ='Tabla Parámetros'!D4 -> 0.09
B24: ='Tabla Parámetros'!D5 -> 0.1 | E24: =+SUM(E15:E18) -> 5687.747706 | F24: =+SUM(F15:F18) -> 6080.105173 | G24: 6484.939137 | H24: 6901.367739
B25: ='Tabla Parámetros'!D6 -> 0.11 | E25: =+E24/1000 -> 5.687747706 | F25: =+F24/1000 -> 6.080105173 | G25: 6.484939137 | H25: 6.901367739
A27: i.Tasas Mejora | B27: ='Tabla Parámetros'!C3 -> 0.08
B28: ='Tabla Parámetros'!C4 -> 0.09 | D28: Pago Mensual Promedio | E28: Tasa Interés Promedio | F28: Pago Mensual sin PP | G28: Ahorro
B29: ='Tabla Parámetros'!C5 -> 0.1 | D29: =AVERAGE(D31:D390) -> 73359.81957 | E29: 0.1013 | G29: =SUM(G31:G390) -> -16627463.65
B30: ='Tabla Parámetros'!C6 -> 0.11
B31: 1 | D31: 77084.9961 | F31: 4078.721 | G31: =IFERROR(F31-D31,0) -> -73006.2751
B32: 2 | D32: 77084.9961 | F32: 4078.721 | G32: -73006.2751
B33: 3 | D33: 77084.9962 | F33: 4078.721 | G33: -73006.2752
B34: 4 | D34: 77084.9961 | F34: 4078.721 | G34: -73006.2751
B35: 5 | D35: 77084.9961 | F35: 4078.721 | G35: -73006.2751
B36: 6 | D36: 77084.9961 | F36: 4078.721 | G36: -73006.2751
B37: 7 | D37: 77084.9961 | F37: 4078.721 | G37: -73006.2751
B38: 8 | D38: 77084.9961 | F38: 4078.721 | G38: -73006.2751
B39: 9 | D39: 77084.9961 | F39: 4078.721 | G39: -73006.2751
B40: 10 | D40: 77084.9961 | F40: 4078.7211 | G40: -73006.275
B41: 11 | D41: 77084.9961 | F41: 4078.721 | G41: -73006.2751
B42: 12 | D42: 77084.9961 | F42: 4078.721 | G42: -73006.2751
B43: 13 | D43: 76002.4277 | F43: 4078.721 | G43: -71923.7067
B44: 14 | D44: 76003.7747 | F44: 4078.721 | G44: -71925.0537
B45: 15 | D45: 76005.1346 | F45: 4078.7211 | G45: -71926.4135
B46: 16 | D46: 76006.5074 | F46: 4078.721 | G46: -71927.7864
B47: 17 | D47: 76007.8933 | F47: 4078.721 | G47: -71929.1723
B48: 18 | D48: 76009.2923 | F48: 4078.721 | G48: -71930.5713
B49: 19 | D49: 76010.7046 | F49: 4078.721 | G49: -71931.9836
B50: 20 | D50: 76012.1303 | F50: 4078.721 | G50: -71933.4093
B51: 21 | D51: 76013.5695 | F51: 4078.721 | G51: -71934.8485
B52: 22 | D52: 76015.0225 | F52: 4078.721 | G52: -71936.3015
B53: 23 | D53: 76016.4891 | F53: 4078.721 | G53: -71937.7681
B54: 24 | D54: 76017.9698 | F54: 4078.721 | G54: -71939.2488
B55: 25 | D55: 74953.933 | F55: 4078.721 | G55: -70875.212
B56: 26 | D56: 74956.9509 | F56: 4078.721 | G56: -70878.2299
B57: 27 | D57: 74959.9975 | F57: 4078.721 | G57: -70881.2765
B58: 28 | D58: 74963.0729 | F58: 4078.721 | G58: -70884.3519
B59: 29 | D59: 74966.1776 | F59: 4078.721 | G59: -70887.4566
B60: 30 | D60: 74969.3117 | F60: 4078.721 | G60: -70890.5907
B61: 31 | D61: 74972.4757 | F61: 4078.721 | G61: -70893.7547
B62: 32 | D62: 74975.6697 | F62: 4078.721 | G62: -70896.9487
B63: 33 | D63: 74978.8941 | F63: 4078.721 | G63: -70900.1731
B64: 34 | D64: 74982.149 | F64: 4078.721 | G64: -70903.428
B65: 35 | D65: 74985.4349 | F65: 4078.721 | G65: -70906.7139
B66: 36 | D66: 74988.7521 | F66: 4078.721 | G66: -70910.0311
B67: 37 | D67: 73945.653 | F67: 4078.721 | G67: -69866.932
B68: 38 | D68: 73950.7237 | F68: 4078.721 | G68: -69872.0027
B69: 39 | D69: 73955.8426 | F69: 4078.721 | G69: -69877.1216
B70: 40 | D70: 73961.0101 | F70: 4078.721 | G70: -69882.2891
B71: 41 | D71: 73966.2267 | F71: 4078.721 | G71: -69887.5057
B72: 42 | D72: 73971.4927 | F72: 4078.721 | G72: -69892.7717
B73: 43 | D73: 73976.8089 | F73: 4078.721 | G73: -69898.0879
B74: 44 | D74: 73982.1756 | F74: 4078.721 | G74: -69903.4546
B75: 45 | D75: 73987.5933 | F75: 4078.721 | G75: -69908.8723
B76: 46 | D76: 73993.0623 | F76: 4078.721 | G76: -69914.3413
B77: 47 | D77: 73998.5835 | F77: 4078.721 | G77: -69919.8625
B78: 48 | D78: 74004.157 | F78: 4078.721 | G78: -69925.436
B79: 49 | D79: 72984.7125 | F79: 4078.721 | G79: -68905.9915
B80: 50 | D80: 72992.2857 | F80: 4078.721 | G80: -68913.5647
B81: 51 | D81: 72999.9309 | F81: 4078.721 | G81: -68921.2099
B82: 52 | D82: 73007.6487 | F82: 4078.721 | G82: -68928.9277
B83: 53 | D83: 73015.4398 | F83: 4078.721 | G83: -68936.7188
B84: 54 | D84: 73023.305 | F84: 4078.721 | G84: -68944.584
B85: 55 | D85: 73031.2449 | F85: 4078.721 | G85: -68952.5239
B86: 56 | D86: 73039.2601 | F86: 4078.721 | G86: -68960.5391
B87: 57 | D87: 73047.3515 | F87: 4078.721 | G87: -68968.6305
B88: 58 | D88: 73055.5199 | F88: 4078.721 | G88: -68976.7989
B89: 59 | D89: 73063.7658 | F89: 4078.721 | G89: -68985.0448
B90: 60 | D90: 73072.09 | F90: 4078.721 | G90: -68993.369
B91: 61 | D91: 72079.3675 | F91: 4078.721 | G91: -68000.6465
B92: 62 | D92: 72089.9715 | F92: 4078.721 | G92: -68011.2505
B93: 63 | D93: 72100.6761 | F93: 4078.721 | G93: -68021.9551
B94: 64 | D94: 72111.4826 | F94: 4078.721 | G94: -68032.7616
B95: 65 | D95: 72122.3916 | F95: 4078.721 | G95: =IFERROR(F95-D95,0) -> -68043.6706
B96: 66 | D96: 72133.4042 | F96: 4078.721 | G96: -68054.6832
B97: 67 | D97: 72144.5215 | F97: 4078.721 | G97: -68065.8005
B98: 68 | D98: 72155.7444 | F98: 4078.721 | G98: -68077.0234
B99: 69 | D99: 72167.0739 | F99: 4078.721 | G99: -68088.3529
B100: 70 | D100: 72178.511 | F100: 4078.721 | G100: -68099.79
B101: 71 | D101: 72190.0568 | F101: 4078.721 | G101: -68111.3358
B102: 72 | D102: 72201.7122 | F102: 4078.721 | G102: -68122.9912
B103: 73 | D103: 71239.1749 | F103: 4078.721 | G103: -67160.4539
B104: 74 | D104: 71253.4285 | F104: 4078.721 | G104: -67174.7075
B105: 75 | D105: 71267.8175 | F105: 4078.721 | G105: -67189.0965
B106: 76 | D106: 71282.3432 | F106: 4078.721 | G106: -67203.6222
B107: 77 | D107: 71297.0068 | F107: 4078.721 | G107: -67218.2858
B108: 78 | D108: 71311.8099 | F108: 4078.721 | G108: -67233.0889
B109: 79 | D109: 71326.7534 | F109: 4078.721 | G109: -67248.0324
B110: 80 | D110: 71341.8391 | F110: 4078.721 | G110: -67263.1181
B111: 81 | D111: 71357.0679 | F111: 4078.721 | G111: -67278.3469
B112: 82 | D112: 71372.4415 | F112: 4078.721 | G112: -67293.7205
B113: 83 | D113: 71387.9611 | F113: 4078.721 | G113: -67309.2401
B114: 84 | D114: 71403.6282 | F114: 4078.721 | G114: -67324.9072
B115: 85 | D115: 70475.1854 | F115: 4078.721 | G115: -66396.4644
B116: 86 | D116: 70493.8125 | F116: 4078.721 | G116: -66415.0915
B117: 87 | D117: 70512.6166 | F117: 4078.721 | G117: -66433.8956
B118: 88 | D118: 70531.5994 | F118: 4078.721 | G118: -66452.8784
B119: 89 | D119: 70550.7625 | F119: 4078.721 | G119: -66472.0415
B120: 90 | D120: 70570.1076 | F120: 4078.721 | G120: -66491.3866
B121: 91 | D121: 70589.6366 | F121: 4078.721 | G121: -66510.9156
B122: 92 | D122: 70609.351 | F122: 4078.721 | G122: -66530.63
B123: 93 | D123: 70629.2527 | F123: 4078.721 | G123: -66550.5317
B124: 94 | D124: 70649.3435 | F124: 4078.7211 | G124: -66570.6224
B125: 95 | D125: 70669.6251 | F125: 4078.721 | G125: -66590.9041
B126: 96 | D126: 70690.0996 | F126: 4078.721 | G126: -66611.3786
B127: 97 | D127: 70710.7684 | F127: 4078.721 | G127: -66632.0474
B128: 98 | D128: 70731.6335 | F128: 4078.721 | G128: -66652.9125
B129: 99 | D129: 70752.697 | F129: 4078.721 | G129: -66673.976
B130: 100 | D130: 70773.9604 | F130: 4078.721 | G130: -66695.2394
B131: 101 | D131: 70795.426 | F131: 4078.721 | G131: -66716.705
B132: 102 | D132: 70817.0954 | F132: 4078.721 | G132: -66738.3744
B133: 103 | D133: 70838.9708 | F133: 4078.721 | G133: -66760.2498
B134: 104 | D134: 70861.0538 | F134: 4078.721 | G134: -66782.3328
B135: 105 | D135: 70883.3468 | F135: 4078.721 | G135: -66804.6258
B136: 106 | D136: 70905.8514 | F136: 4078.721 | G136: -66827.1304
B137: 107 | D137: 70928.57 | F137: 4078.721 | G137: -66849.849
B138: 108 | D138: 70951.5042 | F138: 4078.721 | G138: -66872.7832
B139: 109 | D139: 70974.6564 | F139: 4078.721 | G139: -66895.9354
B140: 110 | D140: 70998.0286 | F140: 4078.721 | G140: -66919.3076
B141: 111 | D141: 71021.6228 | F141: 4078.721 | G141: -66942.9018
B142: 112 | D142: 71045.441 | F142: 4078.721 | G142: -66966.72
B143: 113 | D143: 71069.4857 | F143: 4078.721 | G143: -66990.7647
B144: 114 | D144: 71093.7586 | F144: 4078.721 | G144: -67015.0376
B145: 115 | D145: 71118.2623 | F145: 4078.721 | G145: -67039.5413
B146: 116 | D146: 71142.9986 | F146: 4078.721 | G146: -67064.2776
B147: 117 | D147: 71167.97 | F147: 4078.721 | G147: -67089.249
B148: 118 | D148: 71193.1786 | F148: 4078.721 | G148: -67114.4576
B149: 119 | D149: 71218.6268 | F149: 4078.721 | G149: -67139.9058
B150: 120 | D150: 71244.3166 | F150: 4078.721 | G150: -67165.5956
B151: 121 | D151: 71270.2505 | F151: 4078.721 | G151: -67191.5295
B152: 122 | D152: 71296.4308 | F152: 4078.721 | G152: -67217.7098
B153: 123 | D153: 71322.8597 | F153: 4078.721 | G153: -67244.1387
B154: 124 | D154: 71349.5398 | F154: 4078.721 | G154: -67270.8188
B155: 125 | D155: 71376.4733 | F155: 4078.721 | G155: -67297.7523
B156: 126 | D156: 71403.6627 | F156: 4078.721 | G156: -67324.9417
B157: 127 | D157: 71431.1104 | F157: 4078.721 | G157: -67352.3894
B158: 128 | D158: 71458.8189 | F158: 4078.721 | G158: -67380.0979
B159: 129 | D159: 71486.7906 | F159: 4078.721 | G159: =IFERROR(F159-D159,0) -> -67408.0696
B160: 130 | D160: 71515.028 | F160: 4078.721 | G160: -67436.307
B161: 131 | D161: 71543.5336 | F161: 4078.721 | G161: -67464.8126
B162: 132 | D162: 71572.3101 | F162: 4078.721 | G162: -67493.5891
B163: 133 | D163: 71601.3599 | F163: 4078.721 | G163: -67522.6389
B164: 134 | D164: 71630.6857 | F164: 4078.7211 | G164: -67551.9646
B165: 135 | D165: 71660.2902 | F165: 4078.721 | G165: -67581.5692
B166: 136 | D166: 71690.1758 | F166: 4078.721 | G166: -67611.4548
B167: 137 | D167: 71720.3454 | F167: 4078.721 | G167: -67641.6244
B168: 138 | D168: 71750.8015 | F168: 4078.721 | G168: -67672.0805
B169: 139 | D169: 71781.5471 | F169: 4078.721 | G169: -67702.8261
B170: 140 | D170: 71812.5847 | F170: 4078.721 | G170: -67733.8637
B171: 141 | D171: 71843.9171 | F171: 4078.721 | G171: -67765.1961
B172: 142 | D172: 71875.5472 | F172: 4078.721 | G172: -67796.8262
B173: 143 | D173: 71907.4778 | F173: 4078.7211 | G173: -67828.7567
B174: 144 | D174: 71939.7118 | F174: 4078.721 | G174: -67860.9908
B175: 145 | D175: 71972.2519 | F175: 4078.721 | G175: -67893.5309
B176: 146 | D176: 72005.1012 | F176: 4078.721 | G176: -67926.3802
B177: 147 | D177: 72038.2626 | F177: 4078.7211 | G177: -67959.5415
B178: 148 | D178: 72071.7389 | F178: 4078.721 | G178: -67993.0179
B179: 149 | D179: 72105.5334 | F179: 4078.721 | G179: -68026.8124
B180: 150 | D180: 72139.6488 | F180: 4078.7211 | G180: -68060.9277
B181: 151 | D181: 72174.0884 | F181: 4078.721 | G181: -68095.3674
B182: 152 | D182: 72208.8551 | F182: 4078.721 | G182: -68130.1341
B183: 153 | D183: 72243.9521 | F183: 4078.721 | G183: -68165.2311
B184: 154 | D184: 72279.3826 | F184: 4078.7211 | G184: -68200.6615
B185: 155 | D185: 72315.1496 | F185: 4078.721 | G185: -68236.4286
B186: 156 | D186: 72351.2565 | F186: 4078.721 | G186: -68272.5355
B187: 157 | D187: 72387.7063 | F187: 4078.721 | G187: -68308.9853
B188: 158 | D188: 72424.5024 | F188: 4078.721 | G188: -68345.7814
B189: 159 | D189: 72461.6481 | F189: 4078.721 | G189: -68382.9271
B190: 160 | D190: 72499.1466 | F190: 4078.721 | G190: -68420.4256
B191: 161 | D191: 72537.0014 | F191: 4078.721 | G191: -68458.2804
B192: 162 | D192: 72575.2158 | F192: 4078.721 | G192: -68496.4948
B193: 163 | D193: 72613.7932 | F193: 4078.721 | G193: -68535.0722
B194: 164 | D194: 72652.7371 | F194: 4078.721 | G194: -68574.0161
B195: 165 | D195: 72692.0511 | F195: 4078.721 | G195: -68613.3301
B196: 166 | D196: 72731.7385 | F196: 4078.721 | G196: -68653.0175
B197: 167 | D197: 72771.8028 | F197: 4078.721 | G197: -68693.0818
B198: 168 | D198: 72812.2479 | F198: 4078.721 | G198: -68733.5269
B199: 169 | D199: 72853.0772 | F199: 4078.721 | G199: -68774.3562
B200: 170 | D200: 72894.2942 | F200: 4078.721 | G200: -68815.5732
B201: 171 | D201: 72935.9029 | F201: 4078.7211 | G201: -68857.1818
B202: 172 | D202: 72977.9069 | F202: 4078.721 | G202: -68899.1859
... 188 more rows

Sheet Fecha Pago (hidden)
A1: Fecha Corte | B1: 3 | F1: Salida Combo | G1: Plazo | H1: =+Caratula!$H$49 -> 240
A2: Fecha Cotización | B2: =Caratula!$F$7 -> 2022-06-29 | F2: Fórmula | G2: Días PMT | H2: 30.4
A3: Día Fecha Cotización | B3: =DAY($B$2) -> 29 | C3: =B3 -> 29 | D3: =$B3-$C3 -> 0 | K3: =B2 -> 44741 | L3: Duración Intereses
A4: Mes Fecha Cotización | B4: =MONTH($B$2) -> 6 | C4: =B4 -> 6 | D4: =$B4-$C4 -> 0 | J4: 1 | K4: =IF(($J$4:$J$363)<=$H$1,(EOMONTH(K3,0)+$B$6)) -> 2022-07-03 | L4: =$K$1:$K$363 - $B$2 + 1 -> 5
A5: Año Fecha Cotización | B5: =YEAR($B$2) -> 2022 | C5: =B5 -> 2022 | D5: =$B5-$C5 -> 0 | J5: 2 | K5: =IF(($J$4:$J$363)<=$H$1,(EOMONTH(K4,0)+$B$6)) -> 2022-08-03 | L5: =IF($J$4:$J$363 <= $H$1,$H$2,"") -> 30.4
A6: Día Primer Pago | B6: 3 | D6: =IF(SUM($D$3:$D$5)<>0,"SI","NO") -> NO | E6: Fecha Diferente / Se utiliza para validar fecha de captura | J6: 3 | K6: 2022-09-03 | L6: =IF($J$4:$J$363 <= $H$1,$H$2,"") -> 30.4
A7: Mes Primer Pago | B7: =MONTH(B2)+1 -> 7 | J7: 4 | K7: 2022-10-03 | L7: =IF($J$4:$J$363 <= $H$1,$H$2,"") -> 30.4
A8: Fecha Primer Pago | B8: =DATE(B5,B7,B6) -> 2022-07-03 | J8: 5 | K8: 2022-11-03 | L8: 30.4
B9: Día | C9: Mes | D9: Año | J9: 6 | K9: 2022-12-03 | L9: 30.4
B10: =B3 -> 29 | C10: =B4 -> 6 | D10: =VLOOKUP($D$11,$A$12:$D$42,4,FALSE) -> 2022 | J10: 7 | K10: 2023-01-03 | L10: 30.4
D11: 1 | F11: Día máximo | G11: =+VLOOKUP(C4,E12:F23,2) -> 30 | J11: 8 | K11: 2023-02-03 | L11: 30.4
A12: 1 | B12: 1 | C12: Enero | D12: =YEAR(TODAY()) -> 2022 | E12: 1 | F12: 31 | J12: 9 | K12: 2023-03-03 | L12: 30.4
A13: 2 | B13: 2 | C13: Febrero | D13: =+D12+1 -> 2023 | E13: 2 | F13: 28 | J13: 10 | K13: 2023-04-03 | L13: 30.4
A14: 3 | B14: 3 | C14: Marzo | D14: =+D13+1 -> 2024 | E14: 3 | F14: 31 | J14: 11 | K14: 2023-05-03 | L14: 30.4
A15: 4 | B15: 4 | C15: Abril | D15: =+D14+1 -> 2025 | E15: 4 | F15: 30 | J15: 12 | K15: 2023-06-03 | L15: 30.4
A16: 5 | B16: 5 | C16: Mayo | D16: =+D15+1 -> 2026 | E16: 5 | F16: 31 | J16: 13 | K16: 2023-07-03 | L16: 30.4
A17: 6 | B17: 6 | C17: Junio | E17: 6 | F17: 30 | J17: 14 | K17: 2023-08-03 | L17: 30.4
A18: 7 | B18: 7 | C18: Julio | E18: 7 | F18: 31 | J18: 15 | K18: 2023-09-03 | L18: 30.4
A19: 8 | B19: 8 | C19: Agosto | E19: 8 | F19: 31 | J19: 16 | K19: 2023-10-03 | L19: 30.4
A20: 9 | B20: 9 | C20: Septiembre | E20: 9 | F20: 30 | J20: 17 | K20: 2023-11-03 | L20: 30.4
A21: 10 | B21: 10 | C21: Octubre | E21: 10 | F21: 31 | J21: 18 | K21: 2023-12-03 | L21: 30.4
A22: 11 | B22: 11 | C22: Noviembre | E22: 11 | F22: 30 | J22: 19 | K22: 2024-01-03 | L22: 30.4
A23: 12 | B23: 12 | C23: Diciembre | E23: 12 | F23: 31 | J23: 20 | K23: 2024-02-03 | L23: 30.4
A24: 13 | B24: 13 | J24: 21 | K24: 2024-03-03 | L24: 30.4
A25: 14 | B25: 14 | J25: 22 | K25: 2024-04-03 | L25: 30.4
A26: 15 | B26: 15 | J26: 23 | K26: 2024-05-03 | L26: 30.4
A27: 16 | B27: 16 | J27: 24 | K27: 2024-06-03 | L27: 30.4
A28: 17 | B28: 17 | J28: 25 | K28: 2024-07-03 | L28: 30.4
A29: 18 | B29: 18 | J29: 26 | K29: 2024-08-03 | L29: 30.4
A30: 19 | B30: 19 | J30: 27 | K30: 2024-09-03 | L30: 30.4
A31: 20 | B31: 20 | J31: 28 | K31: 2024-10-03 | L31: 30.4
A32: 21 | B32: 21 | J32: 29 | K32: 2024-11-03 | L32: 30.4
A33: 22 | B33: 22 | J33: 30 | K33: 2024-12-03 | L33: 30.4
A34: 23 | B34: 23 | J34: 31 | K34: 2025-01-03 | L34: 30.4
A35: 24 | B35: 24 | J35: 32 | K35: 2025-02-03 | L35: 30.4
A36: 25 | B36: 25 | J36: 33 | K36: 2025-03-03 | L36: 30.4
A37: 26 | B37: 26 | J37: 34 | K37: 2025-04-03 | L37: 30.4
A38: 27 | B38: 27 | J38: 35 | K38: 2025-05-03 | L38: 30.4
A39: 28 | B39: 28 | J39: 36 | K39: 2025-06-03 | L39: 30.4
A40: 29 | B40: 29 | J40: 37 | K40: 2025-07-03 | L40: 30.4
A41: 30 | B41: 30 | J41: 38 | K41: 2025-08-03 | L41: 30.4
A42: 31 | J42: 39 | K42: 2025-09-03 | L42: 30.4
J43: 40 | K43: 2025-10-03 | L43: 30.4
J44: 41 | K44: 2025-11-03 | L44: 30.4
J45: 42 | K45: 2025-12-03 | L45: 30.4
J46: 43 | K46: 2026-01-03 | L46: 30.4
J47: 44 | K47: 2026-02-03 | L47: 30.4
J48: 45 | K48: 2026-03-03 | L48: 30.4
J49: 46 | K49: 2026-04-03 | L49: 30.4
J50: 47 | K50: 2026-05-03 | L50: 30.4
J51: 48 | K51: 2026-06-03 | L51: 30.4
J52: 49 | K52: 2026-07-03 | L52: 30.4
J53: 50 | K53: 2026-08-03 | L53: 30.4
J54: 51 | K54: 2026-09-03 | L54: 30.4
J55: 52 | K55: 2026-10-03 | L55: 30.4
J56: 53 | K56: 2026-11-03 | L56: 30.4
J57: 54 | K57: 2026-12-03 | L57: 30.4
J58: 55 | K58: 2027-01-03 | L58: 30.4
J59: 56 | K59: 2027-02-03 | L59: 30.4
J60: 57 | K60: 2027-03-03 | L60: 30.4
J61: 58 | K61: 2027-04-03 | L61: 30.4
J62: 59 | K62: 2027-05-03 | L62: 30.4
J63: 60 | K63: 2027-06-03 | L63: 30.4
J64: 61 | K64: 2027-07-03 | L64: 30.4
J65: 62 | K65: 2027-08-03 | L65: 30.4
J66: 63 | K66: 2027-09-03 | L66: 30.4
J67: 64 | K67: 2027-10-03 | L67: 30.4
J68: 65 | K68: 2027-11-03 | L68: 30.4
J69: 66 | K69: =IF(($J$4:$J$363)<=$H$1,(EOMONTH(K68,0)+$B$6)) -> 2027-12-03 | L69: 30.4
J70: 67 | K70: 2028-01-03 | L70: =IF($J$4:$J$363 <= $H$1,$H$2,"") -> 30.4
J71: 68 | K71: 2028-02-03 | L71: 30.4
J72: 69 | K72: 2028-03-03 | L72: 30.4
J73: 70 | K73: 2028-04-03 | L73: 30.4
J74: 71 | K74: 2028-05-03 | L74: 30.4
J75: 72 | K75: 2028-06-03 | L75: 30.4
J76: 73 | K76: 2028-07-03 | L76: 30.4
J77: 74 | K77: 2028-08-03 | L77: 30.4
J78: 75 | K78: 2028-09-03 | L78: 30.4
J79: 76 | K79: 2028-10-03 | L79: 30.4
J80: 77 | K80: 2028-11-03 | L80: 30.4
J81: 78 | K81: 2028-12-03 | L81: 30.4
J82: 79 | K82: 2029-01-03 | L82: 30.4
J83: 80 | K83: 2029-02-03 | L83: 30.4
J84: 81 | K84: 2029-03-03 | L84: 30.4
J85: 82 | K85: 2029-04-03 | L85: 30.4
J86: 83 | K86: 2029-05-03 | L86: 30.4
J87: 84 | K87: 2029-06-03 | L87: 30.4
J88: 85 | K88: 2029-07-03 | L88: 30.4
J89: 86 | K89: 2029-08-03 | L89: 30.4
J90: 87 | K90: 2029-09-03 | L90: 30.4
J91: 88 | K91: 2029-10-03 | L91: 30.4
J92: 89 | K92: 2029-11-03 | L92: 30.4
J93: 90 | K93: 2029-12-03 | L93: 30.4
J94: 91 | K94: 2030-01-03 | L94: 30.4
J95: 92 | K95: 2030-02-03 | L95: 30.4
J96: 93 | K96: 2030-03-03 | L96: 30.4
J97: 94 | K97: 2030-04-03 | L97: 30.4
J98: 95 | K98: 2030-05-03 | L98: 30.4
J99: 96 | K99: 2030-06-03 | L99: 30.4
J100: 97 | K100: 2030-07-03 | L100: 30.4
J101: 98 | K101: 2030-08-03 | L101: 30.4
J102: 99 | K102: 2030-09-03 | L102: 30.4
J103: 100 | K103: 2030-10-03 | L103: 30.4
J104: 101 | K104: 2030-11-03 | L104: 30.4
J105: 102 | K105: 2030-12-03 | L105: 30.4
J106: 103 | K106: 2031-01-03 | L106: 30.4
J107: 104 | K107: 2031-02-03 | L107: 30.4
J108: 105 | K108: 2031-03-03 | L108: 30.4
J109: 106 | K109: 2031-04-03 | L109: 30.4
J110: 107 | K110: 2031-05-03 | L110: 30.4
J111: 108 | K111: 2031-06-03 | L111: 30.4
J112: 109 | K112: 2031-07-03 | L112: 30.4
J113: 110 | K113: 2031-08-03 | L113: 30.4
J114: 111 | K114: 2031-09-03 | L114: 30.4
J115: 112 | K115: 2031-10-03 | L115: 30.4
J116: 113 | K116: 2031-11-03 | L116: 30.4
J117: 114 | K117: 2031-12-03 | L117: 30.4
J118: 115 | K118: 2032-01-03 | L118: 30.4
J119: 116 | K119: 2032-02-03 | L119: 30.4
J120: 117 | K120: 2032-03-03 | L120: 30.4
J121: 118 | K121: 2032-04-03 | L121: 30.4
J122: 119 | K122: 2032-05-03 | L122: 30.4
J123: 120 | K123: 2032-06-03 | L123: 30.4
J124: 121 | K124: 2032-07-03 | L124: 30.4
J125: 122 | K125: 2032-08-03 | L125: 30.4
J126: 123 | K126: 2032-09-03 | L126: 30.4
J127: 124 | K127: 2032-10-03 | L127: 30.4
J128: 125 | K128: 2032-11-03 | L128: 30.4
J129: 126 | K129: 2032-12-03 | L129: 30.4
J130: 127 | K130: 2033-01-03 | L130: 30.4
J131: 128 | K131: 2033-02-03 | L131: 30.4
J132: 129 | K132: 2033-03-03 | L132: 30.4
J133: 130 | K133: =IF(($J$4:$J$363)<=$H$1,(EOMONTH(K132,0)+$B$6)) -> 2033-04-03 | L133: 30.4
J134: 131 | K134: 2033-05-03 | L134: =IF($J$4:$J$363 <= $H$1,$H$2,"") -> 30.4
J135: 132 | K135: 2033-06-03 | L135: 30.4
J136: 133 | K136: 2033-07-03 | L136: 30.4
J137: 134 | K137: 2033-08-03 | L137: 30.4
J138: 135 | K138: 2033-09-03 | L138: 30.4
J139: 136 | K139: 2033-10-03 | L139: 30.4
J140: 137 | K140: 2033-11-03 | L140: 30.4
J141: 138 | K141: 2033-12-03 | L141: 30.4
J142: 139 | K142: 2034-01-03 | L142: 30.4
J143: 140 | K143: 2034-02-03 | L143: 30.4
J144: 141 | K144: 2034-03-03 | L144: 30.4
J145: 142 | K145: 2034-04-03 | L145: 30.4
J146: 143 | K146: 2034-05-03 | L146: 30.4
J147: 144 | K147: 2034-06-03 | L147: 30.4
J148: 145 | K148: 2034-07-03 | L148: 30.4
J149: 146 | K149: 2034-08-03 | L149: 30.4
J150: 147 | K150: 2034-09-03 | L150: 30.4
J151: 148 | K151: 2034-10-03 | L151: 30.4
J152: 149 | K152: 2034-11-03 | L152: 30.4
J153: 150 | K153: 2034-12-03 | L153: 30.4
J154: 151 | K154: 2035-01-03 | L154: 30.4
J155: 152 | K155: 2035-02-03 | L155: 30.4
J156: 153 | K156: 2035-03-03 | L156: 30.4
J157: 154 | K157: 2035-04-03 | L157: 30.4
J158: 155 | K158: 2035-05-03 | L158: 30.4
J159: 156 | K159: 2035-06-03 | L159: 30.4
J160: 157 | K160: 2035-07-03 | L160: 30.4
J161: 158 | K161: 2035-08-03 | L161: 30.4
J162: 159 | K162: 2035-09-03 | L162: 30.4
J163: 160 | K163: 2035-10-03 | L163: 30.4
J164: 161 | K164: 2035-11-03 | L164: 30.4
J165: 162 | K165: 2035-12-03 | L165: 30.4
J166: 163 | K166: 2036-01-03 | L166: 30.4
J167: 164 | K167: 2036-02-03 | L167: 30.4
J168: 165 | K168: 2036-03-03 | L168: 30.4
J169: 166 | K169: 2036-04-03 | L169: 30.4
J170: 167 | K170: 2036-05-03 | L170: 30.4
J171: 168 | K171: 2036-06-03 | L171: 30.4
J172: 169 | K172: 2036-07-03 | L172: 30.4
J173: 170 | K173: 2036-08-03 | L173: 30.4
J174: 171 | K174: 2036-09-03 | L174: 30.4
J175: 172 | K175: 2036-10-03 | L175: 30.4
J176: 173 | K176: 2036-11-03 | L176: 30.4
J177: 174 | K177: 2036-12-03 | L177: 30.4
J178: 175 | K178: 2037-01-03 | L178: 30.4
J179: 176 | K179: 2037-02-03 | L179: 30.4
J180: 177 | K180: 2037-03-03 | L180: 30.4
J181: 178 | K181: 2037-04-03 | L181: 30.4
J182: 179 | K182: 2037-05-03 | L182: 30.4
J183: 180 | K183: 2037-06-03 | L183: 30.4
J184: 181 | K184: 2037-07-03 | L184: 30.4
J185: 182 | K185: 2037-08-03 | L185: 30.4
J186: 183 | K186: 2037-09-03 | L186: 30.4
J187: 184 | K187: 2037-10-03 | L187: 30.4
J188: 185 | K188: 2037-11-03 | L188: 30.4
J189: 186 | K189: 2037-12-03 | L189: 30.4
J190: 187 | K190: 2038-01-03 | L190: 30.4
J191: 188 | K191: 2038-02-03 | L191: 30.4
J192: 189 | K192: 2038-03-03 | L192: 30.4
J193: 190 | K193: 2038-04-03 | L193: 30.4
J194: 191 | K194: 2038-05-03 | L194: 30.4
J195: 192 | K195: 2038-06-03 | L195: 30.4
J196: 193 | K196: 2038-07-03 | L196: 30.4
J197: 194 | K197: =IF(($J$4:$J$363)<=$H$1,(EOMONTH(K196,0)+$B$6)) -> 2038-08-03 | L197: 30.4
J198: 195 | K198: 2038-09-03 | L198: =IF($J$4:$J$363 <= $H$1,$H$2,"") -> 30.4
J199: 196 | K199: 2038-10-03 | L199: 30.4
J200: 197 | K200: 2038-11-03 | L200: 30.4
... 163 more rows

Sheet CAT (hidden)
E1: Pagos para TIR
B2: Monto de Crédito | C2: =Caratula!H48 -> 609560 | E2: =-C2+(Caratula!L46+(Caratula!L47/1.16)+(Caratula!L49/1.16)) -> -606661.3793
B3: Tasa de interes | C3: =Caratula!F62 -> 0.09 | E3: =IF(Caratula!B67="","",Caratula!I67+Caratula!J67+(Caratula!K67/1.16)+Caratula!L67) -> 87.23013793
B4: TIR Mensual | C4: =IRR(E2:E242) -> -0.01390727165 | E4: =IF(Caratula!B68="","",Caratula!I68+Caratula!J68+(Caratula!K68/1.16)+Caratula!L68) -> 522.8415205
B5: TIR Anual simple | C5: =C4*12 -> -0.1668872598 | E5: =IF(Caratula!B69="","",Caratula!I69+Caratula!J69+(Caratula!K69/1.16)+Caratula!L69) -> 522.2981146
B6: CAT | C6: =EFFECT(C5,12) ->  | E6: =IF(Caratula!B70="","",Caratula!I70+Caratula!J70+(Caratula!K70/1.16)+Caratula!L70) -> 521.7505789
E7: =IF(Caratula!B71="","",Caratula!I71+Caratula!J71+(Caratula!K71/1.16)+Caratula!L71) -> 521.1988819
E8: =IF(Caratula!B72="","",Caratula!I72+Caratula!J72+(Caratula!K72/1.16)+Caratula!L72) -> 520.642992
E9: =IF(Caratula!B73="","",Caratula!I73+Caratula!J73+(Caratula!K73/1.16)+Caratula!L73) -> 520.0828774
E10: =IF(Caratula!B74="","",Caratula!I74+Caratula!J74+(Caratula!K74/1.16)+Caratula!L74) -> 519.5185059
E11: =IF(Caratula!B75="","",Caratula!I75+Caratula!J75+(Caratula!K75/1.16)+Caratula!L75) -> 518.9498451
E12: =IF(Caratula!B76="","",Caratula!I76+Caratula!J76+(Caratula!K76/1.16)+Caratula!L76) -> 518.3768625
E13: =IF(Caratula!B77="","",Caratula!I77+Caratula!J77+(Caratula!K77/1.16)+Caratula!L77) -> 517.7995253
E14: =IF(Caratula!B78="","",Caratula!I78+Caratula!J78+(Caratula!K78/1.16)+Caratula!L78) -> 517.2178003
E15: =IF(Caratula!B79="","",Caratula!I79+Caratula!J79+(Caratula!K79/1.16)+Caratula!L79) -> 516.6316542
E16: =IF(Caratula!B80="","",Caratula!I80+Caratula!J80+(Caratula!K80/1.16)+Caratula!L80) -> 516.0410534
E17: =IF(Caratula!B81="","",Caratula!I81+Caratula!J81+(Caratula!K81/1.16)+Caratula!L81) -> 515.445964
E18: =IF(Caratula!B82="","",Caratula!I82+Caratula!J82+(Caratula!K82/1.16)+Caratula!L82) -> 514.8463519
E19: =IF(Caratula!B83="","",Caratula!I83+Caratula!J83+(Caratula!K83/1.16)+Caratula!L83) -> 514.2421828
E20: =IF(Caratula!B84="","",Caratula!I84+Caratula!J84+(Caratula!K84/1.16)+Caratula!L84) -> 513.633422
E21: =IF(Caratula!B85="","",Caratula!I85+Caratula!J85+(Caratula!K85/1.16)+Caratula!L85) -> 513.0200346
E22: =IF(Caratula!B86="","",Caratula!I86+Caratula!J86+(Caratula!K86/1.16)+Caratula!L86) -> 512.4019855
E23: =IF(Caratula!B87="","",Caratula!I87+Caratula!J87+(Caratula!K87/1.16)+Caratula!L87) -> 511.7792392
E24: =IF(Caratula!B88="","",Caratula!I88+Caratula!J88+(Caratula!K88/1.16)+Caratula!L88) -> 511.15176
E25: =IF(Caratula!B89="","",Caratula!I89+Caratula!J89+(Caratula!K89/1.16)+Caratula!L89) -> 510.519512
E26: =IF(Caratula!B90="","",Caratula!I90+Caratula!J90+(Caratula!K90/1.16)+Caratula!L90) -> 509.8824589
E27: =IF(Caratula!B91="","",Caratula!I91+Caratula!J91+(Caratula!K91/1.16)+Caratula!L91) -> 509.2405642
E28: =IF(Caratula!B92="","",Caratula!I92+Caratula!J92+(Caratula!K92/1.16)+Caratula!L92) -> 508.5937911
E29: =IF(Caratula!B93="","",Caratula!I93+Caratula!J93+(Caratula!K93/1.16)+Caratula!L93) -> 507.9421025
E30: =IF(Caratula!B94="","",Caratula!I94+Caratula!J94+(Caratula!K94/1.16)+Caratula!L94) -> 507.2854611
E31: =IF(Caratula!B95="","",Caratula!I95+Caratula!J95+(Caratula!K95/1.16)+Caratula!L95) -> 506.6238292
E32: =IF(Caratula!B96="","",Caratula!I96+Caratula!J96+(Caratula!K96/1.16)+Caratula!L96) -> 505.9571689
E33: =IF(Caratula!B97="","",Caratula!I97+Caratula!J97+(Caratula!K97/1.16)+Caratula!L97) -> 505.285442
E34: =IF(Caratula!B98="","",Caratula!I98+Caratula!J98+(Caratula!K98/1.16)+Caratula!L98) -> 504.6086099
E35: =IF(Caratula!B99="","",Caratula!I99+Caratula!J99+(Caratula!K99/1.16)+Caratula!L99) -> 503.926634
E36: =IF(Caratula!B100="","",Caratula!I100+Caratula!J100+(Caratula!K100/1.16)+Caratula!L100) -> 503.239475
E37: =IF(Caratula!B101="","",Caratula!I101+Caratula!J101+(Caratula!K101/1.16)+Caratula!L101) -> 502.5470936
E38: =IF(Caratula!B102="","",Caratula!I102+Caratula!J102+(Caratula!K102/1.16)+Caratula!L102) -> 501.8494501
E39: =IF(Caratula!B103="","",Caratula!I103+Caratula!J103+(Caratula!K103/1.16)+Caratula!L103) -> 501.1465046
E40: =IF(Caratula!B104="","",Caratula!I104+Caratula!J104+(Caratula!K104/1.16)+Caratula!L104) -> 500.4382166
E41: =IF(Caratula!B105="","",Caratula!I105+Caratula!J105+(Caratula!K105/1.16)+Caratula!L105) -> 499.7245457
E42: =IF(Caratula!B106="","",Caratula!I106+Caratula!J106+(Caratula!K106/1.16)+Caratula!L106) -> 499.0054508
E43: =IF(Caratula!B107="","",Caratula!I107+Caratula!J107+(Caratula!K107/1.16)+Caratula!L107) -> 498.2808908
E44: =IF(Caratula!B108="","",Caratula!I108+Caratula!J108+(Caratula!K108/1.16)+Caratula!L108) -> 497.5508242
E45: =IF(Caratula!B109="","",Caratula!I109+Caratula!J109+(Caratula!K109/1.16)+Caratula!L109) -> 496.8152091
E46: =IF(Caratula!B110="","",Caratula!I110+Caratula!J110+(Caratula!K110/1.16)+Caratula!L110) -> 496.0740033
E47: =IF(Caratula!B111="","",Caratula!I111+Caratula!J111+(Caratula!K111/1.16)+Caratula!L111) -> 495.3271643
E48: =IF(Caratula!B112="","",Caratula!I112+Caratula!J112+(Caratula!K112/1.16)+Caratula!L112) -> 494.5746494
E49: =IF(Caratula!B113="","",Caratula!I113+Caratula!J113+(Caratula!K113/1.16)+Caratula!L113) -> 493.8164153
E50: =IF(Caratula!B114="","",Caratula!I114+Caratula!J114+(Caratula!K114/1.16)+Caratula!L114) -> 493.0524187
E51: =IF(Caratula!B115="","",Caratula!I115+Caratula!J115+(Caratula!K115/1.16)+Caratula!L115) -> 492.2826157
E52: =IF(Caratula!B116="","",Caratula!I116+Caratula!J116+(Caratula!K116/1.16)+Caratula!L116) -> 491.5069622
E53: =IF(Caratula!B117="","",Caratula!I117+Caratula!J117+(Caratula!K117/1.16)+Caratula!L117) -> 490.7254137
E54: =IF(Caratula!B118="","",Caratula!I118+Caratula!J118+(Caratula!K118/1.16)+Caratula!L118) -> 489.9379254
E55: =IF(Caratula!B119="","",Caratula!I119+Caratula!J119+(Caratula!K119/1.16)+Caratula!L119) -> 489.1444523
E56: =IF(Caratula!B120="","",Caratula!I120+Caratula!J120+(Caratula!K120/1.16)+Caratula!L120) -> 488.3449487
E57: =IF(Caratula!B121="","",Caratula!I121+Caratula!J121+(Caratula!K121/1.16)+Caratula!L121) -> 487.5393689
E58: =IF(Caratula!B122="","",Caratula!I122+Caratula!J122+(Caratula!K122/1.16)+Caratula!L122) -> 486.7276667
E59: =IF(Caratula!B123="","",Caratula!I123+Caratula!J123+(Caratula!K123/1.16)+Caratula!L123) -> 485.9097956
E60: =IF(Caratula!B124="","",Caratula!I124+Caratula!J124+(Caratula!K124/1.16)+Caratula!L124) -> 485.0857087
E61: =IF(Caratula!B125="","",Caratula!I125+Caratula!J125+(Caratula!K125/1.16)+Caratula!L125) -> 484.2553587
E62: =IF(Caratula!B126="","",Caratula!I126+Caratula!J126+(Caratula!K126/1.16)+Caratula!L126) -> 483.418698
E63: =IF(Caratula!B127="","",Caratula!I127+Caratula!J127+(Caratula!K127/1.16)+Caratula!L127) -> 482.5756787
E64: =IF(Caratula!B128="","",Caratula!I128+Caratula!J128+(Caratula!K128/1.16)+Caratula!L128) -> 481.7262525
E65: =IF(Caratula!B129="","",Caratula!I129+Caratula!J129+(Caratula!K129/1.16)+Caratula!L129) -> 480.8703706
E66: =IF(Caratula!B130="","",Caratula!I130+Caratula!J130+(Caratula!K130/1.16)+Caratula!L130) -> 480.007984
E67: =IF(Caratula!B131="","",Caratula!I131+Caratula!J131+(Caratula!K131/1.16)+Caratula!L131) -> 479.1390433
E68: =IF(Caratula!B132="","",Caratula!I132+Caratula!J132+(Caratula!K132/1.16)+Caratula!L132) -> 478.2634986
E69: =IF(Caratula!B133="","",Caratula!I133+Caratula!J133+(Caratula!K133/1.16)+Caratula!L133) -> 477.3812998
E70: =IF(Caratula!B134="","",Caratula!I134+Caratula!J134+(Caratula!K134/1.16)+Caratula!L134) -> 476.4923963
E71: =IF(Caratula!B135="","",Caratula!I135+Caratula!J135+(Caratula!K135/1.16)+Caratula!L135) -> 475.5967371
E72: =IF(Caratula!B136="","",Caratula!I136+Caratula!J136+(Caratula!K136/1.16)+Caratula!L136) -> 474.6942709
E73: =IF(Caratula!B137="","",Caratula!I137+Caratula!J137+(Caratula!K137/1.16)+Caratula!L137) -> 473.784946
E74: =IF(Caratula!B138="","",Caratula!I138+Caratula!J138+(Caratula!K138/1.16)+Caratula!L138) -> 472.8687102
E75: =IF(Caratula!B139="","",Caratula!I139+Caratula!J139+(Caratula!K139/1.16)+Caratula!L139) -> 471.945511
E76: =IF(Caratula!B140="","",Caratula!I140+Caratula!J140+(Caratula!K140/1.16)+Caratula!L140) -> 471.0152955
E77: =IF(Caratula!B141="","",Caratula!I141+Caratula!J141+(Caratula!K141/1.16)+Caratula!L141) -> 470.0780103
E78: =IF(Caratula!B142="","",Caratula!I142+Caratula!J142+(Caratula!K142/1.16)+Caratula!L142) -> 469.1336018
E79: =IF(Caratula!B143="","",Caratula!I143+Caratula!J143+(Caratula!K143/1.16)+Caratula!L143) -> 468.1820158
E80: =IF(Caratula!B144="","",Caratula!I144+Caratula!J144+(Caratula!K144/1.16)+Caratula!L144) -> 467.2231977
E81: =IF(Caratula!B145="","",Caratula!I145+Caratula!J145+(Caratula!K145/1.16)+Caratula!L145) -> 466.2570926
E82: =IF(Caratula!B146="","",Caratula!I146+Caratula!J146+(Caratula!K146/1.16)+Caratula!L146) -> 465.2836452
E83: =IF(Caratula!B147="","",Caratula!I147+Caratula!J147+(Caratula!K147/1.16)+Caratula!L147) -> 464.3027995
E84: =IF(Caratula!B148="","",Caratula!I148+Caratula!J148+(Caratula!K148/1.16)+Caratula!L148) -> 463.3144993
E85: =IF(Caratula!B149="","",Caratula!I149+Caratula!J149+(Caratula!K149/1.16)+Caratula!L149) -> 462.3186881
E86: =IF(Caratula!B150="","",Caratula!I150+Caratula!J150+(Caratula!K150/1.16)+Caratula!L150) -> 461.3153088
E87: =IF(Caratula!B151="","",Caratula!I151+Caratula!J151+(Caratula!K151/1.16)+Caratula!L151) -> 460.3043037
E88: =IF(Caratula!B152="","",Caratula!I152+Caratula!J152+(Caratula!K152/1.16)+Caratula!L152) -> 459.2856151
E89: =IF(Caratula!B153="","",Caratula!I153+Caratula!J153+(Caratula!K153/1.16)+Caratula!L153) -> 458.2591843
E90: =IF(Caratula!B154="","",Caratula!I154+Caratula!J154+(Caratula!K154/1.16)+Caratula!L154) -> 457.2249527
E91: =IF(Caratula!B155="","",Caratula!I155+Caratula!J155+(Caratula!K155/1.16)+Caratula!L155) -> 456.182861
E92: =IF(Caratula!B156="","",Caratula!I156+Caratula!J156+(Caratula!K156/1.16)+Caratula!L156) -> 455.1328493
E93: =IF(Caratula!B157="","",Caratula!I157+Caratula!J157+(Caratula!K157/1.16)+Caratula!L157) -> 454.0748576
E94: =IF(Caratula!B158="","",Caratula!I158+Caratula!J158+(Caratula!K158/1.16)+Caratula!L158) -> 453.0088251
E95: =IF(Caratula!B159="","",Caratula!I159+Caratula!J159+(Caratula!K159/1.16)+Caratula!L159) -> 451.9346908
E96: =IF(Caratula!B160="","",Caratula!I160+Caratula!J160+(Caratula!K160/1.16)+Caratula!L160) -> 450.8523931
E97: =IF(Caratula!B161="","",Caratula!I161+Caratula!J161+(Caratula!K161/1.16)+Caratula!L161) -> 449.7618699
E98: =IF(Caratula!B162="","",Caratula!I162+Caratula!J162+(Caratula!K162/1.16)+Caratula!L162) -> 448.6630587
E99: =IF(Caratula!B163="","",Caratula!I163+Caratula!J163+(Caratula!K163/1.16)+Caratula!L163) -> 447.5558965
E100: =IF(Caratula!B164="","",Caratula!I164+Caratula!J164+(Caratula!K164/1.16)+Caratula!L164) -> 446.4403199
E101: =IF(Caratula!B165="","",Caratula!I165+Caratula!J165+(Caratula!K165/1.16)+Caratula!L165) -> 445.316265
E102: =IF(Caratula!B166="","",Caratula!I166+Caratula!J166+(Caratula!K166/1.16)+Caratula!L166) -> 444.1836672
E103: =IF(Caratula!B167="","",Caratula!I167+Caratula!J167+(Caratula!K167/1.16)+Caratula!L167) -> 443.0424617
E104: =IF(Caratula!B168="","",Caratula!I168+Caratula!J168+(Caratula!K168/1.16)+Caratula!L168) -> 441.892583
E105: =IF(Caratula!B169="","",Caratula!I169+Caratula!J169+(Caratula!K169/1.16)+Caratula!L169) -> 440.7339652
E106: =IF(Caratula!B170="","",Caratula!I170+Caratula!J170+(Caratula!K170/1.16)+Caratula!L170) -> 439.566542
E107: =IF(Caratula!B171="","",Caratula!I171+Caratula!J171+(Caratula!K171/1.16)+Caratula!L171) -> 438.3902463
E108: =IF(Caratula!B172="","",Caratula!I172+Caratula!J172+(Caratula!K172/1.16)+Caratula!L172) -> 437.2050108
E109: =IF(Caratula!B173="","",Caratula!I173+Caratula!J173+(Caratula!K173/1.16)+Caratula!L173) -> 436.0107675
E110: =IF(Caratula!B174="","",Caratula!I174+Caratula!J174+(Caratula!K174/1.16)+Caratula!L174) -> 434.8074479
E111: =IF(Caratula!B175="","",Caratula!I175+Caratula!J175+(Caratula!K175/1.16)+Caratula!L175) -> 433.5949831
E112: =IF(Caratula!B176="","",Caratula!I176+Caratula!J176+(Caratula!K176/1.16)+Caratula!L176) -> 432.3733036
E113: =IF(Caratula!B177="","",Caratula!I177+Caratula!J177+(Caratula!K177/1.16)+Caratula!L177) -> 431.1423393
E114: =IF(Caratula!B178="","",Caratula!I178+Caratula!J178+(Caratula!K178/1.16)+Caratula!L178) -> 429.9020197
E115: =IF(Caratula!B179="","",Caratula!I179+Caratula!J179+(Caratula!K179/1.16)+Caratula!L179) -> 428.6522736
E116: =IF(Caratula!B180="","",Caratula!I180+Caratula!J180+(Caratula!K180/1.16)+Caratula!L180) -> 427.3930295
E117: =IF(Caratula!B181="","",Caratula!I181+Caratula!J181+(Caratula!K181/1.16)+Caratula!L181) -> 426.1242152
E118: =IF(Caratula!B182="","",Caratula!I182+Caratula!J182+(Caratula!K182/1.16)+Caratula!L182) -> 424.8457578
E119: =IF(Caratula!B183="","",Caratula!I183+Caratula!J183+(Caratula!K183/1.16)+Caratula!L183) -> 423.5575842
E120: =IF(Caratula!B184="","",Caratula!I184+Caratula!J184+(Caratula!K184/1.16)+Caratula!L184) -> 422.2596204
E121: =IF(Caratula!B185="","",Caratula!I185+Caratula!J185+(Caratula!K185/1.16)+Caratula!L185) -> 420.9517921
E122: =IF(Caratula!B186="","",Caratula!I186+Caratula!J186+(Caratula!K186/1.16)+Caratula!L186) -> 419.6340244
E123: =IF(Caratula!B187="","",Caratula!I187+Caratula!J187+(Caratula!K187/1.16)+Caratula!L187) -> 418.3062416
E124: =IF(Caratula!B188="","",Caratula!I188+Caratula!J188+(Caratula!K188/1.16)+Caratula!L188) -> 416.9683676
E125: =IF(Caratula!B189="","",Caratula!I189+Caratula!J189+(Caratula!K189/1.16)+Caratula!L189) -> 415.6203258
E126: =IF(Caratula!B190="","",Caratula!I190+Caratula!J190+(Caratula!K190/1.16)+Caratula!L190) -> 414.2620389
E127: =IF(Caratula!B191="","",Caratula!I191+Caratula!J191+(Caratula!K191/1.16)+Caratula!L191) -> 412.893429
E128: =IF(Caratula!B192="","",Caratula!I192+Caratula!J192+(Caratula!K192/1.16)+Caratula!L192) -> 411.5144177
E129: =IF(Caratula!B193="","",Caratula!I193+Caratula!J193+(Caratula!K193/1.16)+Caratula!L193) -> 410.1249258
E130: =IF(Caratula!B194="","",Caratula!I194+Caratula!J194+(Caratula!K194/1.16)+Caratula!L194) -> 408.7248739
E131: =IF(Caratula!B195="","",Caratula!I195+Caratula!J195+(Caratula!K195/1.16)+Caratula!L195) -> 407.3141815
E132: =IF(Caratula!B196="","",Caratula!I196+Caratula!J196+(Caratula!K196/1.16)+Caratula!L196) -> 405.8927679
E133: =IF(Caratula!B197="","",Caratula!I197+Caratula!J197+(Caratula!K197/1.16)+Caratula!L197) -> 404.4605516
E134: =IF(Caratula!B198="","",Caratula!I198+Caratula!J198+(Caratula!K198/1.16)+Caratula!L198) -> 403.0174503
E135: =IF(Caratula!B199="","",Caratula!I199+Caratula!J199+(Caratula!K199/1.16)+Caratula!L199) -> 401.5633816
E136: =IF(Caratula!B200="","",Caratula!I200+Caratula!J200+(Caratula!K200/1.16)+Caratula!L200) -> 400.0982619
E137: =IF(Caratula!B201="","",Caratula!I201+Caratula!J201+(Caratula!K201/1.16)+Caratula!L201) -> 398.6220073
E138: =IF(Caratula!B202="","",Caratula!I202+Caratula!J202+(Caratula!K202/1.16)+Caratula!L202) -> 397.1345331
E139: =IF(Caratula!B203="","",Caratula!I203+Caratula!J203+(Caratula!K203/1.16)+Caratula!L203) -> 395.6357542
E140: =IF(Caratula!B204="","",Caratula!I204+Caratula!J204+(Caratula!K204/1.16)+Caratula!L204) -> 394.1255845
E141: =IF(Caratula!B205="","",Caratula!I205+Caratula!J205+(Caratula!K205/1.16)+Caratula!L205) -> 392.6039376
E142: =IF(Caratula!B206="","",Caratula!I206+Caratula!J206+(Caratula!K206/1.16)+Caratula!L206) -> 391.0707261
E143: =IF(Caratula!B207="","",Caratula!I207+Caratula!J207+(Caratula!K207/1.16)+Caratula!L207) -> 389.5258622
E144: =IF(Caratula!B208="","",Caratula!I208+Caratula!J208+(Caratula!K208/1.16)+Caratula!L208) -> 387.9692574
E145: =IF(Caratula!B209="","",Caratula!I209+Caratula!J209+(Caratula!K209/1.16)+Caratula!L209) -> 386.4008224
E146: =IF(Caratula!B210="","",Caratula!I210+Caratula!J210+(Caratula!K210/1.16)+Caratula!L210) -> 384.8204672
E147: =IF(Caratula!B211="","",Caratula!I211+Caratula!J211+(Caratula!K211/1.16)+Caratula!L211) -> 383.2281014
E148: =IF(Caratula!B212="","",Caratula!I212+Caratula!J212+(Caratula!K212/1.16)+Caratula!L212) -> 381.6236336
E149: =IF(Caratula!B213="","",Caratula!I213+Caratula!J213+(Caratula!K213/1.16)+Caratula!L213) -> 380.0069718
E150: =IF(Caratula!B214="","",Caratula!I214+Caratula!J214+(Caratula!K214/1.16)+Caratula!L214) -> 378.3780234
E151: =IF(Caratula!B215="","",Caratula!I215+Caratula!J215+(Caratula!K215/1.16)+Caratula!L215) -> 376.736695
E152: =IF(Caratula!B216="","",Caratula!I216+Caratula!J216+(Caratula!K216/1.16)+Caratula!L216) -> 375.0828924
E153: =IF(Caratula!B217="","",Caratula!I217+Caratula!J217+(Caratula!K217/1.16)+Caratula!L217) -> 373.416521
E154: =IF(Caratula!B218="","",Caratula!I218+Caratula!J218+(Caratula!K218/1.16)+Caratula!L218) -> 371.7374852
E155: =IF(Caratula!B219="","",Caratula!I219+Caratula!J219+(Caratula!K219/1.16)+Caratula!L219) -> 370.0456887
E156: =IF(Caratula!B220="","",Caratula!I220+Caratula!J220+(Caratula!K220/1.16)+Caratula!L220) -> 368.3410345
E157: =IF(Caratula!B221="","",Caratula!I221+Caratula!J221+(Caratula!K221/1.16)+Caratula!L221) -> 366.623425
E158: =IF(Caratula!B222="","",Caratula!I222+Caratula!J222+(Caratula!K222/1.16)+Caratula!L222) -> 364.8927616
E159: =IF(Caratula!B223="","",Caratula!I223+Caratula!J223+(Caratula!K223/1.16)+Caratula!L223) -> 363.1489452
E160: =IF(Caratula!B224="","",Caratula!I224+Caratula!J224+(Caratula!K224/1.16)+Caratula!L224) -> 361.3918758
E161: =IF(Caratula!B225="","",Caratula!I225+Caratula!J225+(Caratula!K225/1.16)+Caratula!L225) -> 359.6214527
E162: =IF(Caratula!B226="","",Caratula!I226+Caratula!J226+(Caratula!K226/1.16)+Caratula!L226) -> 357.8375743
E163: =IF(Caratula!B227="","",Caratula!I227+Caratula!J227+(Caratula!K227/1.16)+Caratula!L227) -> 356.0401385
E164: =IF(Caratula!B228="","",Caratula!I228+Caratula!J228+(Caratula!K228/1.16)+Caratula!L228) -> 354.2290422
E165: =IF(Caratula!B229="","",Caratula!I229+Caratula!J229+(Caratula!K229/1.16)+Caratula!L229) -> 352.4041815
E166: =IF(Caratula!B230="","",Caratula!I230+Caratula!J230+(Caratula!K230/1.16)+Caratula!L230) -> 350.5654519
E167: =IF(Caratula!B231="","",Caratula!I231+Caratula!J231+(Caratula!K231/1.16)+Caratula!L231) -> 348.7127479
E168: =IF(Caratula!B232="","",Caratula!I232+Caratula!J232+(Caratula!K232/1.16)+Caratula!L232) -> 346.8459634
E169: =IF(Caratula!B233="","",Caratula!I233+Caratula!J233+(Caratula!K233/1.16)+Caratula!L233) -> 344.9649913
E170: =IF(Caratula!B234="","",Caratula!I234+Caratula!J234+(Caratula!K234/1.16)+Caratula!L234) -> 343.0697239
E171: =IF(Caratula!B235="","",Caratula!I235+Caratula!J235+(Caratula!K235/1.16)+Caratula!L235) -> 341.1600524
E172: =IF(Caratula!B236="","",Caratula!I236+Caratula!J236+(Caratula!K236/1.16)+Caratula!L236) -> 339.2358674
E173: =IF(Caratula!B237="","",Caratula!I237+Caratula!J237+(Caratula!K237/1.16)+Caratula!L237) -> 337.2970586
E174: =IF(Caratula!B238="","",Caratula!I238+Caratula!J238+(Caratula!K238/1.16)+Caratula!L238) -> 335.3435148
E175: =IF(Caratula!B239="","",Caratula!I239+Caratula!J239+(Caratula!K239/1.16)+Caratula!L239) -> 333.3751242
E176: =IF(Caratula!B240="","",Caratula!I240+Caratula!J240+(Caratula!K240/1.16)+Caratula!L240) -> 331.3917737
E177: =IF(Caratula!B241="","",Caratula!I241+Caratula!J241+(Caratula!K241/1.16)+Caratula!L241) -> 329.3933498
E178: =IF(Caratula!B242="","",Caratula!I242+Caratula!J242+(Caratula!K242/1.16)+Caratula!L242) -> 327.3797379
E179: =IF(Caratula!B243="","",Caratula!I243+Caratula!J243+(Caratula!K243/1.16)+Caratula!L243) -> 325.3508225
E180: =IF(Caratula!B244="","",Caratula!I244+Caratula!J244+(Caratula!K244/1.16)+Caratula!L244) -> 323.3064873
E181: =IF(Caratula!B245="","",Caratula!I245+Caratula!J245+(Caratula!K245/1.16)+Caratula!L245) -> 321.2466152
E182: =IF(Caratula!B246="","",Caratula!I246+Caratula!J246+(Caratula!K246/1.16)+Caratula!L246) -> 319.1710881
E183: =IF(Caratula!B247="","",Caratula!I247+Caratula!J247+(Caratula!K247/1.16)+Caratula!L247) -> 317.079787
E184: =IF(Caratula!B248="","",Caratula!I248+Caratula!J248+(Caratula!K248/1.16)+Caratula!L248) -> 314.972592
E185: =IF(Caratula!B249="","",Caratula!I249+Caratula!J249+(Caratula!K249/1.16)+Caratula!L249) -> 312.8493823
E186: =IF(Caratula!B250="","",Caratula!I250+Caratula!J250+(Caratula!K250/1.16)+Caratula!L250) -> 310.7100362
E187: =IF(Caratula!B251="","",Caratula!I251+Caratula!J251+(Caratula!K251/1.16)+Caratula!L251) -> 308.5544311
E188: =IF(Caratula!B252="","",Caratula!I252+Caratula!J252+(Caratula!K252/1.16)+Caratula!L252) -> 306.3824434
E189: =IF(Caratula!B253="","",Caratula!I253+Caratula!J253+(Caratula!K253/1.16)+Caratula!L253) -> 304.1939485
E190: =IF(Caratula!B254="","",Caratula!I254+Caratula!J254+(Caratula!K254/1.16)+Caratula!L254) -> 301.9888212
E191: =IF(Caratula!B255="","",Caratula!I255+Caratula!J255+(Caratula!K255/1.16)+Caratula!L255) -> 299.7669348
E192: =IF(Caratula!B256="","",Caratula!I256+Caratula!J256+(Caratula!K256/1.16)+Caratula!L256) -> 297.5281621
E193: =IF(Caratula!B257="","",Caratula!I257+Caratula!J257+(Caratula!K257/1.16)+Caratula!L257) -> 295.2723748
E194: =IF(Caratula!B258="","",Caratula!I258+Caratula!J258+(Caratula!K258/1.16)+Caratula!L258) -> 292.9994434
E195: =IF(Caratula!B259="","",Caratula!I259+Caratula!J259+(Caratula!K259/1.16)+Caratula!L259) -> 290.7092378
E196: =IF(Caratula!B260="","",Caratula!I260+Caratula!J260+(Caratula!K260/1.16)+Caratula!L260) -> 288.4016266
E197: =IF(Caratula!B261="","",Caratula!I261+Caratula!J261+(Caratula!K261/1.16)+Caratula!L261) -> 286.0764776
E198: =IF(Caratula!B262="","",Caratula!I262+Caratula!J262+(Caratula!K262/1.16)+Caratula!L262) -> 283.7336574
E199: =IF(Caratula!B263="","",Caratula!I263+Caratula!J263+(Caratula!K263/1.16)+Caratula!L263) -> 281.3730318
E200: =IF(Caratula!B264="","",Caratula!I264+Caratula!J264+(Caratula!K264/1.16)+Caratula!L264) -> 278.9944655
... 42 more rows

Sheet CAT Flujo Cero (hidden)
A1: Cálculo del Flujo Cero para el CAT
B3: Financiamientos | C3: Pagos
A4: Crédito Principal* | B4: …
A5: Gastos Notariales | B5: 0 | C5: N/A
A6: Avalúo | B6: 0 | C6: ='Tabla Parámetros'!$T$90 -> 2612.4
A7: Investigación | B7: 0 | C7: =Caratula!L49/1.16 -> 646.5517241
A8: Apertura | B8: =IF(Caratula!N17="SI",-Caratula!L46,0) -> 0 | C8: =IF(Caratula!$F$9="Terreno_Urbanizado",Caratula!L46/1.16,IF(Caratula!$F$9="Liquidez",Caratula!L46/1.16,Caratula!$L$46)) -> 0 | E8: Flujo Cero
B9: =SUM(B5:B8) -> 0 | C9: =SUM(C5:C8) -> 3258.951724 | E9: =SUM(B9:C9) -> 3258.951724
A11: * Nota: Queda fuera de este cálculo la disposición del Crédito Principal.
A12: Esto es porque en el caso del CAT con Ministraciones, el flujo cero no considera la totalidad del monto del crédito principal.
A13: Esto dificultaría el reuso de estos cálculos tal cual están.
A14: Por lo tanto, la disposición/disposiciones del Crédito Principal sí tendrá que ir en cada hoja del CAT por el momento.

Sheet Tabla Fijos (hidden)
O1: Si | R1: Plazo
B2: Vivienda | C2: =Caratula!N11 -> 870800 | E2: Tasa | F2: =Caratula!F62 -> 0.09 | H2: Destino | J2: =Caratula!F9 -> Adquisición | L2: Com. Apertura Finan | M2: =Caratula!$N$17 -> NO | O2: No | R2: Pago
B3: Crédito | C3: =IF($M$2="SI",Caratula!$H$48+Caratula!$L$46,IF('Tabla Fijos'!$M$2="NO",Caratula!$H$48,)) -> 609560 | E3: Seguro | F3: =IF(Caratula!F13='Tabla Parámetros'!$N$6,Caratula!N9,IF(Caratula!F13='Tabla Parámetros'!$N$7,"",)) -> Básico | H3: Programa | J3: =Caratula!N7 -> Tradicional | L3: Com. Apertura | M3: =Caratula!N15 -> 0 | R3: Plazo y Pago
B4: Plazo | C4: =Caratula!F19 -> 240 | E4: Vida | F4: =IF(F3="","",IF(F3='Tabla Parámetros'!N4,'Tabla Parámetros'!R5,IF('Tabla Fijos CAT'!F3='Tabla Parámetros'!N3,'Tabla Parámetros'!R10))) -> 0.0006
B5: Valor Destructible | C5: =IF(Caratula!$K$13="No",Caratula!$N$13,IF(Caratula!$K$13="Si",Caratula!$O$13,)) -> 609560 | E5: Daños | F5: =IF(F3="","",IF(F3='Tabla Parámetros'!N4,'Tabla Parámetros'!S5,IF(F3='Tabla Parámetros'!N3,'Tabla Parámetros'!S10))) -> 0.0003
P7: Prepago | Q7: =Caratula!N62 -> Reduce Plazo y Pago
G8: =PPMT((F2/360*30.4),B12,C4,-F12) -> 898.8451731 | J8: =PMT((F2/360)*14,C4,-C3) -> 3758.368575 | K8: =$C$3*$F$4 -> 365.736 | L8: =$C$5*$F$5 -> 182.868
B10: Periodo | C10: Fecha | D10: Días | E10: Tasa | F10: Saldo Inicial | G10: Capital | H10: Interés | I10: IVA Interés | J10: Pago | K10: Seguro de Vida | L10: Seguro de Daños y Contenidos | M10: Comisión Diferida | N10: Aportación Patronal | O10: Aportaciones a Capital | P10: Pago Mensual | Q10: Saldo Final | S10: Reduce Plazo y Pago | V10: Reduce Plazo | Y10: Reduce Pago
B11: 0 | Q11: =$C$3 -> 609560 | S11: Capital | T11: Interés | U11: Pago | V11: Capital | W11: Interés | X11: Pago | Y11: Capital | Z11: Interés | AA11: Pago
B12: 1 | C12: =IF($B$12="","",'Fecha Pago'!K4) -> 2022-07-03 | D12: =IF($B$12="","",'Fecha Pago'!L4) -> 5 | E12: =IF(B12="","",$F$2) -> 0.09 | F12: =Q11 -> 609560 | G12: =IF(B12="","",IF((J12-H12)>F12,F12,IF($Q$7=$S$10,S12,IF($Q$7=$V$10,V12,IF($Q$7=$Y$10,Y12,))))) -> 898.8451731 | H12: =IF(C12="","",IF($Q$7=$S$10,T12,IF($Q$7=$V$10,W12,IF($Q$7=$Y$10,Z12,)))) -> 761.95 | I12: =IF(B12="","",IF(Caratula!$F$9="Liquidez",'Tabla Fijos'!H12*0.16,IF(Caratula!$F$9="Terreno_Urbanizado",'Tabla Fijos'!H12*0.16,IF(Caratula!$J$9="SI",H12*0.16,0)))) -> 0 | J12: =IF(D12="","",IF($Q$7=$S$10,U12,IF($Q$7=$V$10,X12,IF($Q$7=$Y$10,AA12,)))) -> 1660.795173 | K12: =IF(B12="","",IF($F$3="",0,($F$4/30*D12)*F12)) -> 60.956 | L12: =IF(B12="","",IF(F12=0,0,($F$5/30*D12)*$C$5)) -> 30.478 | M12: =IF(B12="","",IF(F12=0,0,IF(Caratula!$F$11='Tabla Parámetros'!$W$1,'Tabla Parámetros'!$W$24,IF(Caratula!$F$11='Tabla Parámetros'!$Y$14,'Tabla Parámetros'!$Y$19,IF(Caratula!$F$11='Tabla Parámetros'!$Y$21,'Tabla Parámetros'!$Y$26,IF(Caratula!$F$11='Tabla Parámetros'!$Y$1,'Tabla Parámetros'!$Y$12)))))) -> 0 | N12: =IF(B12="","",IF(F12=0,0,IF(Caratula!$N$7='Tabla Parámetros'!$C$31,AportPat!L4,0))) -> 0 | O12: =IF(Caratula!$J$62=3,Caratula!N70,Caratula!N67) -> 0 | P12: =IF(B12="","",G12+H12+K12+L12+M12)-N12 -> 1752.229173 | Q12: =IF(B12="","",F12-G12) -> 608661.1548 | S12: =IF(F12=0,0,PPMT(E12/360*30.4,B12,$C$4,-$Q$11)+N12+O12) -> 898.8451731 | T12: =(E12/360*D12)*F12 -> 761.95 | U12: =S12+T12 -> 1660.795173 | V12: =PPMT(E12/360*30.4,B12,$C$4,-$Q$11)+N12+O12 -> 898.8451731 | W12: =(E12/360*D12)*F12 -> 761.95 | X12: =IF(F12=0,0,PMT($F$2/360*30.4,$C$4,-$C$3)+N12+O12) -> 5531.501173 | Y12: =PPMT(E12/360*30.4,B12,$C$4,-$Q$11)+N12+O12 -> 898.8451731 | Z12: =(E12/360*D12)*F12 -> 761.95 | AA12: =Y12+Z12 -> 1660.795173
B13: =IF(B12="","",IF(B12=$C$4,"",B12+1)) -> 2 | C13: =IF($B$12="","",'Fecha Pago'!K5) -> 2022-08-03 | D13: =IF($B$12="","",'Fecha Pago'!L5) -> 30.4 | E13: =IF(B13="","",$F$2) -> 0.09 | F13: =IF(B13="","",F12-G12) -> 608661.1548 | G13: 905.6763965 | H13: =IF(C13="","",IF($Q$7=$S$10,T13,IF($Q$7=$V$10,W13,IF($Q$7=$Y$10,Z13,)))) -> 4625.824777 | I13: =IF(B13="","",IF(Caratula!$F$9="Liquidez",'Tabla Fijos'!H13*0.16,IF(Caratula!$F$9="Terreno_Urbanizado",'Tabla Fijos'!H13*0.16,IF(Caratula!$J$9="SI",H13*0.16,0)))) -> 0 | J13: =IF(D13="","",IF($Q$7=$S$10,U13,IF($Q$7=$V$10,X13,IF($Q$7=$Y$10,AA13,)))) -> 5531.501173 | K13: =IF(B13="","",IF($F$3="",0,($F$4*F13))) -> 365.1966929 | L13: =IF(B13="","",IF(F13=0,0,$F$5*$C$5)) -> 182.868 | M13: =IF(B13="","",IF(F13=0,0,IF(Caratula!$F$11='Tabla Parámetros'!$W$1,'Tabla Parámetros'!$W$24,IF(Caratula!$F$11='Tabla Parámetros'!$Y$14,'Tabla Parámetros'!$Y$19,IF(Caratula!$F$11='Tabla Parámetros'!$Y$21,'Tabla Parámetros'!$Y$26,IF(Caratula!$F$11='Tabla Parámetros'!$Y$1,'Tabla Parámetros'!$Y$12)))))) -> 0 | N13: =IF(B13="","",IF(F13=0,0,IF(Caratula!$N$7='Tabla Parámetros'!$C$31,AportPat!L5,0))) -> 0 | O13: =IF(Caratula!$J$62=3,Caratula!N71,Caratula!N68) -> 0 | P13: =IF(B13="","",G13+H13+K13+L13+M13)-N13 -> 6079.565866 | Q13: =IF(B13="","",F13-G13) -> 607755.4784 | S13: 905.6763965 | T13: =(E13/360*D13)*F13 -> 4625.824777 | U13: =S13+T13 -> 5531.501173 | V13: =X13-W13 -> 905.6763965 | W13: =(E13/360*D13)*F13 -> 4625.824777 | X13: 5531.501173 | Y13: =AA13-Z13 -> 905.6763965 | Z13: =(E13/360*D13)*F13 -> 4625.824777 | AA13: =PMT($F$2/360*30.4,$C$4-B12,-Q12)+N13+O13 -> 5531.501173
B14: =IF(B13="","",IF(B13=$C$4,"",B13+1)) -> 3 | C14: =IF($B$12="","",'Fecha Pago'!K6) -> 2022-09-03 | D14: =IF($B$12="","",'Fecha Pago'!L6) -> 30.4 | E14: 0.09 | F14: 607755.4784 | G14: 912.5595371 | H14: 4618.941636 | I14: =IF(B14="","",IF(Caratula!$F$9="Liquidez",'Tabla Fijos'!H14*0.16,IF(Caratula!$F$9="Terreno_Urbanizado",'Tabla Fijos'!H14*0.16,IF(Caratula!$J$9="SI",H14*0.16,0)))) -> 0 | J14: 5531.501173 | K14: =IF(B14="","",IF($F$3="",0,($F$4*F14))) -> 364.6532871 | L14: =IF(B14="","",IF(F14=0,0,$F$5*$C$5)) -> 182.868 | M14: =IF(B14="","",IF(F14=0,0,IF(Caratula!$F$11='Tabla Parámetros'!$W$1,'Tabla Parámetros'!$W$24,IF(Caratula!$F$11='Tabla Parámetros'!$Y$14,'Tabla Parámetros'!$Y$19,IF(Caratula!$F$11='Tabla Parámetros'!$Y$21,'Tabla Parámetros'!$Y$26,IF(Caratula!$F$11='Tabla Parámetros'!$Y$1,'Tabla Parámetros'!$Y$12)))))) -> 0 | N14: =IF(B14="","",IF(F14=0,0,IF(Caratula!$N$7='Tabla Parámetros'!$C$31,AportPat!L6,0))) -> 0 | O14: =IF(Caratula!$J$62=3,Caratula!N72,Caratula!N69) -> 0 | P14: 6079.02246 | Q14: 606842.9189 | S14: 912.5595371 | T14: 4618.941636 | U14: 5531.501173 | V14: 912.5595371 | W14: 4618.941636 | X14: 5531.501173 | Y14: 912.5595371 | Z14: 4618.941636 | AA14: =PMT($F$2/360*30.4,$C$4-B13,-Q13)+N14+O14 -> 5531.501173
